{"text_format":"1","workbook":"xlsx","n_sheets":10,"sheets":["Instructions","Campers Page 1","Campers Page 2","Leaders & Financials","Hidden Sheet","Ethnicity Report","Male Cabin Roster","Female Cabin Roster","Housing Request","Housing List"],"not_rendered":{"charts":0,"images":5,"macros":1,"external_links":0,"defined_names":11,"comments":0,"pivot_tables":0},"unopened":[],"bounds":{"document_bytes":16777216,"sheet_cells":100000,"rows_first":2000,"rows_last":500,"rows_between":2000,"halvings":0,"cell_chars":16384,"cell_head_chars":4096},"cells_cut":0,"cells_raw":0,"read":"whole","date_system":"1900"}

{"sheet":"Instructions","index":0,"n_rows":19,"n_cols":2,"rows_kept":19,"cut":false,"hidden":false,"merged":[[12,1,12,9],[15,1,15,9],[18,1,18,9],[1,0,1,5],[3,0,3,9],[6,1,6,9],[9,1,9,9]]}
[]
["Young Life Adventures Santa Cruz Registration Packet"]
[]
["Welcome to the Adventures Santa Cruz Registration Packet.  This workbook prepopulates some of the information for you. Please read below for detailed instructions for completing each tab. Once it is completed, return to the camp office via email. Please call us at 530-448-6026 with questions!"]
[]
["Campers Page 1 & Campers Page 2"]
[null,"Start off by entering the requested information in the blanks at the top of the form. Then enter all campers names on Campers Page 1 of the A Form. If more room is needed, move on to Campers Page 2. Be sure to mark Male or Female, what type of health form, and if they are a repeat camper (enter 2, 3, or 4). If you use camp trip manager, you may copy and paste the names from the A form it generates, but make sure you right click and 'Paste Special'- paste the values only.  "]
[]
["Leaders & Financials "]
[null,"Enter all leader names on the Leaders & Financials tab. Again note Male or Female and that they have a health form. Indicate which leaders have completed the online leader training for this summer in the Leader Orientation column. Make sure Staff Leaders are entered under Staff and not Volunteers. Again- make sure you right click and 'Paste Special'- paste the values only.  "]
[]
["Ethnicity Report"]
[null,"On the Ethnicity Report tab please enter the number of campers and leaders for each ethnicity. When the number you have entered matches the A Form total, the red highlighting will disappear, indicating that the correct total number has been input."]
[]
["Male Cabin Roster & Female Cabin Roster"]
[null,"Enter your preferred cabin makeups on the Male Cabin Roster and Female Cabin Roster tabs. Enter the names from the name list to the right or select from the drop down list for each cell. When a name is used it will disappear from the name list. (It will not disappear from the drop down list)  If a name is used more than once, it will be highlighted and should be corrected. To delete a name entered incorrectly, use the Delete button. If the Backspace button is used you will get an error and will not be able to delete. Do not copy and paste names into these lists, but either select them from the drop down list or type them in."]
[]
["Housing Request"]
[null,"On the Housing Request tab, please enter the Trip Leader name and phone number, your preferred area name while at camp, any specific needs for your area, and a potential second choice housing makeup.  If any questions arise during the housing process, a head leader will contact you using the information on this form."]

{"sheet":"Campers Page 1","index":1,"n_rows":60,"n_cols":20,"rows_kept":60,"cut":false,"hidden":false,"merged":[[1,2,4,13],[14,1,14,7],[14,10,14,16],[8,4,8,7],[6,2,6,7],[7,2,7,7],[7,11,7,16]]}
[]
[null,null,"YOUNG LIFE SUMMER CAMP REGISTRATION"]
[]
[]
[]
[]
[null,"CAMP NAME","YL Adventures Santa Cruz",null,null,null,null,null,null,null,"AREA NUMBER"]
[null,"CAMP TYPE","Discipleship",null,null,null,null,null,null,null,"AREA NAME"]
[null,"CAMP DATES",null,"to",null,null,null,null,null,null,"REGION NUMBER"]
[]
[null,"Completed A-Form and health forms for each camper & leader must be turned in upon arrival at camp. Please type or print names legibly."]
[null,"Enter campers and leaders separately (leaders on last page)."]
[null,"Repeat Camper - For campers who have previously attended a summer camp week of the same camp type, enter 2 (second-timer), 3 (third-timer),"]
[null,"or 4 (fourth-timer). Leave blank for first-timers."]
[null,"CAMPERS ONLY",null,null,null,null,null,null,null,null,"CAMPERS ONLY"]
[null,"LAST NAME","FIRST NAME","MALE","FEMALE","ONLINE HC FORM","PAPER HC FORM","REPEAT CAMPER",null,null,"LAST NAME","FIRST NAME","MALE","FEMALE","ONLINE HC FORM","PAPER HC FORM","REPEAT CAMPER"]
[1,null,null,null,null,null,null,null,null,{"$f":"A56+1","v":41},null,null,null,null,null,null,null,null,"Beyond Malibu","6th Grade Outreach"]
[{"$f":"A17+1","v":2},null,null,null,null,null,null,null,null,{"$f":"J17+1","v":42},null,null,null,null,null,null,null,null,"Breakaway Lodge","9th Grade Outreach"]
[{"$f":"A18+1","v":3},null,null,null,null,null,null,null,null,43,null,null,null,null,null,null,null,null,"Camp Buckner","Backpacking"]
[4,null,null,null,null,null,null,null,null,44,null,null,null,null,null,null,null,null,"Carolina Point","Discipleship"]
[5,null,null,null,null,null,null,null,null,45,null,null,null,null,null,null,null,null,"Castaway Club","Kayaking"]
[6,null,null,null,null,null,null,null,null,46,null,null,null,null,null,null,null,null,"Clearwater Cove","Multi-Cultural/Urban"]
[7,null,null,null,null,null,null,null,null,47,null,null,null,null,null,null,null,null,"Crooked Creek","Senior High Outreach"]
[8,null,null,null,null,null,null,null,null,48,null,null,null,null,null,null,null,null,"Crossroads","Sports"]
[9,null,null,null,null,null,null,null,null,49,null,null,null,null,null,null,null,null,"Family First","WyldLife Outreach"]
[10,null,null,null,null,null,null,null,null,50,null,null,null,null,null,null,null,null,"Frontier Ranch"]
[11,null,null,null,null,null,null,null,null,51,null,null,null,null,null,null,null,null,"Lake Champion"]
[12,null,null,null,null,null,null,null,null,52,null,null,null,null,null,null,null,null,"Lost Canyon"]
[13,null,null,null,null,null,null,null,null,53,null,null,null,null,null,null,null,null,"Malibu Club"]
[14,null,null,null,null,null,null,null,null,54,null,null,null,null,null,null,null,null,"Michindoh"]
[15,null,null,null,null,null,null,null,null,55,null,null,null,null,null,null,null,null,"Mokule'ia"]
[16,null,null,null,null,null,null,null,null,56,null,null,null,null,null,null,null,null,"NorthBay"]
[17,null,null,null,null,null,null,null,null,57,null,null,null,null,null,null,null,null,"Oakbridge"]
[18,null,null,null,null,null,null,null,null,58,null,null,null,null,null,null,null,null,"RMR Backcountry"]
[19,null,null,null,null,null,null,null,null,59,null,null,null,null,null,null,null,null,"Rockbridge"]
[20,null,null,null,null,null,null,null,null,60,null,null,null,null,null,null,null,null,"Rockridge Canyon"]
[21,null,null,null,null,null,null,null,null,61,null,null,null,null,null,null,null,null,"Rocky Creek Ranch"]
[22,null,null,null,null,null,null,null,null,62,null,null,null,null,null,null,null,null,"Saranac Village"]
[23,null,null,null,null,null,null,null,null,63,null,null,null,null,null,null,null,null,"Sharp Top Cove"]
[24,null,null,null,null,null,null,null,null,64,null,null,null,null,null,null,null,null,"Southwind"]
[25,null,null,null,null,null,null,null,null,65,null,null,null,null,null,null,null,null,"Timber Wolf Lake"]
[26,null,null,null,null,null,null,null,null,66,null,null,null,null,null,null,null,null,"WFR Canyon"]
[27,null,null,null,null,null,null,null,null,67,null,null,null,null,null,null,null,null,"WFR Creekside"]
[28,null,null,null,null,null,null,null,null,68,null,null,null,null,null,null,null,null,"Wilderness Ranch"]
[29,null,null,null,null,null,null,null,null,69,null,null,null,null,null,null,null,null,"Windy Gap"]
[30,null,null,null,null,null,null,null,null,70,null,null,null,null,null,null,null,null,"Woodleaf"]
[31,null,null,null,null,null,null,null,null,71,null,null,null,null,null,null,null,null,"YL Adventures Santa Cruz"]
[32,null,null,null,null,null,null,null,null,72]
[33,null,null,null,null,null,null,null,null,73]
[34,null,null,null,null,null,null,null,null,74]
[35,null,null,null,null,null,null,null,null,75]
[36,null,null,null,null,null,null,null,null,76]
[37,null,null,null,null,null,null,null,null,77]
[38,null,null,null,null,null,null,null,null,78]
[39,null,null,null,null,null,null,null,null,79]
[40,null,null,null,null,null,null,null,null,null,null,"TOTALS",{"$f":"COUNTA(D17:D56)+COUNTA(M17:M55)","v":0},{"$f":"COUNTA(E17:E56)+COUNTA(N17:N55)","v":0}]
[]
[null,null,null,null,null,2,null,{"$f":"COUNTIF($H$17:$H$56,F58)","v":0},null,null,null,null,null,null,2,null,{"$f":"COUNTIF($Q$17:$Q$55,O58)","v":0}]
[null,null,null,null,null,3,null,{"$f":"COUNTIF($H$17:$H$56,F59)","v":0},null,null,null,null,null,null,3,null,{"$f":"COUNTIF($Q$17:$Q$55,O59)","v":0}]
[null,null,null,null,null,4,null,0,null,null,null,null,null,null,4,null,0]

{"sheet":"Campers Page 2","index":2,"n_rows":61,"n_cols":20,"rows_kept":61,"cut":false,"hidden":false,"merged":[[13,1,13,7],[13,10,13,16],[10,1,11,16],[1,2,4,13],[6,2,6,7],[7,2,7,7],[7,11,7,16],[8,4,8,7]]}
[]
[null,null,"YOUNG LIFE SUMMER CAMP REGISTRATION"]
[]
[]
[]
[]
[null,"CAMP NAME",{"$f":"'Campers Page 1'!C7:H7","v":"YL Adventures Santa Cruz"},null,null,null,null,null,null,null,"AREA NUMBER",{"$f":"'Campers Page 1'!L7","v":0}]
[null,"CAMP TYPE",{"$f":"'Campers Page 1'!C8:H8","v":"Discipleship"},null,null,null,null,null,null,null,"AREA NAME",{"$f":"'Campers Page 1'!L8:Q8","v":0}]
[null,"CAMP DATES",{"$f":"'Campers Page 1'!C9","v":"00:00:00"},"to",{"$f":"'Campers Page 1'!E9:H9","v":"00:00:00"},null,null,null,null,null,"REGION NUMBER",{"$f":"'Campers Page 1'!L9","v":0}]
[]
[null,"CAMPERS PAGE 2"]
[]
[]
[null,"CAMPERS ONLY",null,null,null,null,null,null,null,null,"CAMPERS ONLY"]
[null,"LAST NAME","FIRST NAME","MALE","FEMALE","ONLINE HC FORM","PAPER HC FORM","2nd, 3rd, 4th\nTIMER",null,null,"LAST NAME","FIRST NAME","MALE","FEMALE","ONLINE HC FORM","PAPER HC FORM","2nd, 3rd, 4th\nTIMER"]
[80,null,null,null,null,null,null,null,null,{"$f":"A56+1","v":121},null,null,null,null,null,null,null,null,"Beyond Malibu","6th Grade Outreach"]
[{"$f":"A16+1","v":81},null,null,null,null,null,null,null,null,{"$f":"J16+1","v":122},null,null,null,null,null,null,null,null,"Breakaway Lodge","9th Grade Outreach"]
[{"$f":"A17+1","v":82},null,null,null,null,null,null,null,null,123,null,null,null,null,null,null,null,null,"Camp Buckner","Backpacking"]
[83,null,null,null,null,null,null,null,null,124,null,null,null,null,null,null,null,null,"Castaway Club","Capernaum"]
[84,null,null,null,null,null,null,null,null,125,null,null,null,null,null,null,null,null,"Crooked Creek","Discipleship"]
[85,null,null,null,null,null,null,null,null,126,null,null,null,null,null,null,null,null,"Family First","Kayaking"]
[86,null,null,null,null,null,null,null,null,127,null,null,null,null,null,null,null,null,"Frontier Ranch","Multi-Cultural/Urban"]
[87,null,null,null,null,null,null,null,null,128,null,null,null,null,null,null,null,null,"Lake Champion","Senior High Outreach"]
[88,null,null,null,null,null,null,null,null,129,null,null,null,null,null,null,null,null,"Lost Canyon","Sports"]
[89,null,null,null,null,null,null,null,null,130,null,null,null,null,null,null,null,null,"Malibu Club","WyldLife Outreach"]
[90,null,null,null,null,null,null,null,null,131,null,null,null,null,null,null,null,null,"Michindoh","YoungLives"]
[91,null,null,null,null,null,null,null,null,132,null,null,null,null,null,null,null,null,"Mokule'ia"]
[92,null,null,null,null,null,null,null,null,133,null,null,null,null,null,null,null,null,"NorthBay"]
[93,null,null,null,null,null,null,null,null,134,null,null,null,null,null,null,null,null,"Oakbridge"]
[94,null,null,null,null,null,null,null,null,135,null,null,null,null,null,null,null,null,"Quaker Ridge"]
[95,null,null,null,null,null,null,null,null,136,null,null,null,null,null,null,null,null,"RMR Backcountry"]
[96,null,null,null,null,null,null,null,null,137,null,null,null,null,null,null,null,null,"Rockbridge"]
[97,null,null,null,null,null,null,null,null,138,null,null,null,null,null,null,null,null,"Rockridge Canyon"]
[98,null,null,null,null,null,null,null,null,139,null,null,null,null,null,null,null,null,"Saranac Village"]
[99,null,null,null,null,null,null,null,null,140,null,null,null,null,null,null,null,null,"Sharp Top Cove"]
[100,null,null,null,null,null,null,null,null,141,null,null,null,null,null,null,null,null,"Southwind"]
[101,null,null,null,null,null,null,null,null,142,null,null,null,null,null,null,null,null,"Timber Wolf Lake"]
[102,null,null,null,null,null,null,null,null,143,null,null,null,null,null,null,null,null,"WFR Canyon"]
[103,null,null,null,null,null,null,null,null,144,null,null,null,null,null,null,null,null,"WFR Creekside"]
[104,null,null,null,null,null,null,null,null,145,null,null,null,null,null,null,null,null,"Wilderness Ranch"]
[105,null,null,null,null,null,null,null,null,146,null,null,null,null,null,null,null,null,"Windy Gap"]
[106,null,null,null,null,null,null,null,null,147,null,null,null,null,null,null,null,null,"Woodleaf"]
[107,null,null,null,null,null,null,null,null,148,null,null,null,null,null,null,null,null,"YL Adventures Santa Cruz"]
[108,null,null,null,null,null,null,null,null,149]
[109,null,null,null,null,null,null,null,null,150]
[110,null,null,null,null,null,null,null,null,151]
[111,null,null,null,null,null,null,null,null,152]
[112,null,null,null,null,null,null,null,null,153]
[113,null,null,null,null,null,null,null,null,154]
[114,null,null,null,null,null,null,null,null,155]
[115,null,null,null,null,null,null,null,null,156]
[116,null,null,null,null,null,null,null,null,157]
[117,null,null,null,null,null,null,null,null,158]
[118,null,null,null,null,null,null,null,null,159]
[119,null,null,null,null,null,null,null,null,160]
[120,null,null,null,null,null,null,null,null,null,null,"TOTALS PAGE 2",{"$f":"COUNTA(D16:D56)+COUNTA(M16:M55)","v":0},{"$f":"COUNTA(E16:E56)+COUNTA(N16:N55)","v":0}]
[null,null,null,null,null,null,null,null,null,null,null,"GRAND TOTALS",{"$f":"M56+'Campers Page 1'!M56","v":0},{"$f":"N56+'Campers Page 1'!N56","v":0}]
[]
[null,null,null,null,null,2,null,{"$f":"COUNTIF($H$16:$H$56,F59)","v":0},null,null,null,null,null,null,2,null,{"$f":"COUNTIF($Q$16:$Q$55,O59)","v":0}]
[null,null,null,null,null,3,null,{"$f":"COUNTIF($H$16:$H$56,F60)","v":0},null,null,null,null,null,null,3,null,{"$f":"COUNTIF($Q$16:$Q$55,O60)","v":0}]
[null,null,null,null,null,4,null,0,null,null,null,null,null,null,4,null,0]

{"sheet":"Leaders & Financials","index":3,"n_rows":54,"n_cols":16,"rows_kept":54,"cut":false,"hidden":false,"merged":[[18,9,18,12],[28,1,28,7],[28,9,28,12],[29,9,29,11],[15,9,15,11],[16,9,16,11],[10,10,10,11],[10,12,11,12],[12,9,12,12],[13,9,13,11],[14,9,14,11],[0,2,2,11],[4,9,4,12],[5,9,5,12],[6,9,6,12],[3,10,3,12],[4,1,4,7],[35,9,35,10],[19,9,19,12],[21,11,21,12],[25,8,25,11],[26,8,26,11],[30,9,30,11],[47,3,47,6],[47,10,47,11],[49,4,49,7],[29,7,30,7],[41,9,41,11],[44,1,44,6],[44,9,44,12],[29,1,30,1],[29,2,30,2],[29,3,30,3],[29,4,30,4],[29,6,30,6],[29,5,30,5],[31,9,31,11],[33,9,33,10],[34,9,34,10],[45,3,45,6],[37,9,37,10],[39,9,39,11],[40,9,40,11],[53,1,53,2],[50,1,50,2],[50,4,50,7],[53,4,53,7],[50,9,50,10],[52,4,52,7],[49,1,49,2],[52,1,52,2],[46,1,46,2],[46,3,46,6],[46,10,46,11],[47,1,47,2]]}
[null,null,"YOUNG LIFE SUMMER CAMP REGISTRATION"]
[]
[]
[null,null,null,null,null,null,null,null,null,{"$f":"'Campers Page 1'!L7","v":0},{"$f":"'Campers Page 1'!L8","v":0}]
[null,"VOLUNTEER LEADERS",null,null,null,null,null,null,null,"FINANCIAL SUMMARY"]
[null,"LAST NAME","FIRST NAME","MALE","FEMALE","ONLINE HC FORM","PAPER HC FORM","LEADER ORIENTATION",null,"TRIP LEADER: DO NOT COMPLETE THIS SECTION\nCompleted by camp office during payment"]
[1,null,null,null,null,null,null,null,null,"CAMP FEES",null,null,null,null,"Beyond Malibu","6th Grade Outreach"]
[{"$f":"A7+1","v":2},null,null,null,null,null,null,null,null,null,"Number","x Camp Fee","= Amount",null,"Breakaway Lodge","9th Grade Outreach"]
[{"$f":"A8+1","v":3},null,null,null,null,null,null,null,null,"Campers ",{"$f":"'Campers Page 2'!M57+'Campers Page 2'!N57","v":0},495,{"$f":"K9*L9","v":0},null,"Camp Buckner","Backpacking"]
[4,null,null,null,null,null,null,null,null,"Leaders (Staff & Volunteers) ",{"$f":"D43+E43","v":0},495,{"$f":"K10*L10","v":0},null,"Castaway Club","Capernaum"]
[5,null,null,null,null,null,null,null,null,null,"Subtotal Camp Fees",null,{"$f":"M9+M10","v":0},null,"Crooked Creek","Discipleship"]
[6,null,null,null,null,null,null,null,null,null,null,null,null,null,"Family First","Kayaking"]
[7,null,null,null,null,null,null,null,null,"MISCELLANEOUS CHARGES",null,null,null,null,"Frontier Ranch","Multi-Cultural/Urban"]
[8,null,null,null,null,null,null,null,null,"Description",null,null,"Amount",null,"Lake Champion","Senior High Outreach"]
[9,null,null,null,null,null,null,null,null,null,null,null,null,null,"Lost Canyon","Sports"]
[10,null,null,null,null,null,null,null,null,null,null,null,null,null,"Malibu Club","WyldLife Outreach"]
[11,null,null,null,null,null,null,null,null,null,null,null,null,null,"Michindoh","YoungLives"]
[12,null,null,null,null,null,null,null,null,null,null,null,null,null,"Mokule'ia"]
[13,null,null,null,null,null,null,null,null,"ACCOUNTABILITY CHARGE",null,null,null,null,"NorthBay"]
[14,null,null,null,null,null,null,null,null,"Area is financially accountable for 90% of R2. Accountability fee is 1/2 of the camp fee.",null,null,null,null,"Oakbridge"]
[15,null,null,null,null,null,null,null,null,"R2 ",null,null,null,null,"Quaker Ridge"]
[16,null,null,null,null,null,null,null,null,"90% of R2 ",{"$f":"ROUNDUP(K21*0.9,0)","v":0},"No accountability fee",null,null,"RMR Backcountry"]
[17,null,null,null,null,null,null,null,null,null,"90% - Actual","x 1/2 Camp Fee","= Amount",null,"Rockbridge"]
[18,null,null,null,null,null,null,null,null,"Accountability Charge ",{"$f":"IF(SUM(K9:K10)<K22,K22-SUM(K9:K10),0)","v":0},{"$f":"495/2","v":247.5},{"$f":"K24*L24","v":0},null,"Rockridge Canyon"]
[19,null,null,null,null,null,null,null,null,null,null,null,null,null,"Saranac Village"]
[20,null,null,null,null,null,null,null,"TOTAL FEES = ",null,null,null,{"$f":"M11+M15+M16+M17+M24","v":0},null,"Sharp Top Cove"]
[null,null,"TOTAL VOLUNTEERS",{"$f":"COUNTA(D7:D26)","v":0},{"$f":"COUNTA(E7:E26)","v":0},null,null,null,"(Camp Fees + Misc, Charges + Accountability Charge)",null,null,null,null,null,"Southwind"]
[null,null,null,null,null,null,null,null,null,null,null,null,null,null,"Timber Wolf Lake"]
[null,"YOUNG LIFE STAFF LEADERS",null,null,null,null,null,null,null,"PAYMENTS",null,null,null,null,"WFR Canyon"]
[null,"LAST NAME","FIRST NAME","MALE","FEMALE","ONLINE","PAPER","ORIENTATION",null,null,null,null,"Amount"]
[null,null,null,null,null,null,null,null,null,"Pre-Registration INTERNAL TRANSFER ",null,null,null,null,"WFR Creekside"]
[1,null,null,null,null,null,null,null,null,"Pre-Registration CHECK (Non-YL Groups) ",null,null,null,null,"Wilderness Ranch"]
[{"$f":"A32+1","v":2},null,null,null,null,null,null,null,null,null,null,"Area #","Amount",null,"Windy Gap"]
[{"$f":"A33+1","v":3},null,null,null,null,null,null,null,null,"Area Campership Transfer ",null,null,null,null,"Woodleaf"]
[4,null,null,null,null,null,null,null,null,"Area Campership Transfer ",null,null,null,null,"YL Adventures Santa Cruz"]
[5,null,null,null,null,null,null,null,null,"Dependent Scholarship Transfer "]
[6,null,null,null,null,null,null,null,null,null,null,"Check #","Amount"]
[7,null,null,null,null,null,null,null,null,"Check (Non-YL Groups) "]
[8]
[9,null,null,null,null,null,null,null,null,"TOTAL PAYMENTS = ",null,null,{"$f":"M31+M32+M34+M35+M36+M38","v":0}]
[10,null,null,null,null,null,null,null,null,"(Pre-Registration + Transfers + Check)"]
[null,null,"TOTAL STAFF",{"$f":"COUNTA(D32:D41)","v":0},{"$f":"COUNTA(E32:E41)","v":0},null,null,null,null,"BALANCE DUE ",null,null,{"$f":"M26-M40","v":0}]
[null,null,"TOTAL LEADERS",{"$f":"D27+D42","v":0},{"$f":"E27+E42","v":0}]
[]
[null,"SECOND-TIMER SUMMARY",null,null,null,null,null,null,null,"SCHOLARSHIP INFORMATION"]
[null,"TOTAL 2nd TIMERS",null,{"$f":"'Campers Page 1'!H58+'Campers Page 1'!Q58+'Campers Page 2'!H59+'Campers Page 2'!Q59","v":0},null,null,null,null,null,"DEPENDENT CAMP SCHOLARSHIP"]
[null,"TOTAL 3rd TIMERS",null,{"$f":"'Campers Page 1'!H59+'Campers Page 1'!Q59+'Campers Page 2'!H60+'Campers Page 2'!Q60","v":0},null,null,null,null,null,"Camper Name",null,null,"Parent's Area#"]
[null,"TOTAL 4th TIMERS",null,{"$f":"'Campers Page 1'!H60+'Campers Page 1'!Q60+'Campers Page 2'!H61+'Campers Page 2'!Q61","v":0},null,null,null,null,null,"Parent Name"]
[]
[]
[null,"Area Trip Leader Signature",null,null,"Date"]
[]
[]
[null,"Camp Staff Signature",null,null,"Date"]

{"sheet":"Hidden Sheet","index":4,"n_rows":163,"n_cols":13,"rows_kept":163,"cut":false,"hidden":false,"merged":[]}
[null,"Female Leader Total From A Form",{"$f":"'Leaders & Financials'!E43","v":0},null,"Female Camper Names","Male Camper Names","Female Leader Names","Male Leader Names",null,"Actual Female Camper Name","Actual Male Camper Names","Actual Female Leader Names","Actual Male Leader Names"]
[null,"Female Camper Total From A Form",{"$f":"'Campers Page 2'!N57","v":0}]
[null,null,null,null,{"$f":"IF('Campers Page 1'!E17<>0,(CONCATENATE('Campers Page 1'!C17,\" \",'Campers Page 1'!B17)),\"\")","v":""},{"$f":"IF('Campers Page 1'!D17<>0,(CONCATENATE('Campers Page 1'!C17,\" \",'Campers Page 1'!B17)),\"\")","v":""},{"$f":"IF('Leaders & Financials'!E7<>0,(CONCATENATE('Leaders & Financials'!C7,\" \",'Leaders & Financials'!B7)),\"\")","v":""},{"$f":"IF('Leaders & Financials'!D7<>0,(CONCATENATE('Leaders & Financials'!C7,\" \",'Leaders & Financials'!B7)),\"\")","v":""},null,{"$f":"IFERROR(INDEX($E$2:$E$162,SMALL(IF(($E$2:$E$162)<>\"\",ROW($E$1:$E$161),\"\"),ROW(J1))),\"\")","v":""},{"$f":"IFERROR(INDEX($F$2:$F$162,SMALL(IF(($F$2:$F$162)<>\"\",ROW($F$1:$F$161),\"\"),ROW(K1))),\"\")","v":""},{"$f":"IFERROR(INDEX($G$2:$G$32,SMALL(IF(($G$2:$G$32)<>\"\",ROW($G$1:$G$31),\"\"),ROW(L1))),\"\")","v":""},{"$f":"IFERROR(INDEX($H$2:$H$32,SMALL(IF(($H$2:$H$32)<>\"\",ROW($H$1:$H$31),\"\"),ROW(M1))),\"\")","v":""}]
[null,"Female Leader Total From Cabin Roster",{"$f":"COUNTA('Female Cabin Roster'!E10:E14,'Female Cabin Roster'!K10:K14,'Female Cabin Roster'!Q10:Q14,'Female Cabin Roster'!E39:E43,'Female Cabin Roster'!K39:K43,'Female Cabin Roster'!Q39:Q43,'Female Cabin Roster'!E68:E72,'Female Cabin Roster'!K68:K72,'Female Cabin Roster'!Q68:Q72,'Female Cabin Roster'!E97:E101,'Female Cabin Roster'!K97:K101,'Female Cabin Roster'!Q97:Q101)","v":0},null,{"$f":"IF('Campers Page 1'!E18<>0,(CONCATENATE('Campers Page 1'!C18,\" \",'Campers Page 1'!B18)),\"\")","v":""},{"$f":"IF('Campers Page 1'!D18<>0,(CONCATENATE('Campers Page 1'!C18,\" \",'Campers Page 1'!B18)),\"\")","v":""},{"$f":"IF('Leaders & Financials'!E8<>0,(CONCATENATE('Leaders & Financials'!C8,\" \",'Leaders & Financials'!B8)),\"\")","v":""},{"$f":"IF('Leaders & Financials'!D8<>0,(CONCATENATE('Leaders & Financials'!C8,\" \",'Leaders & Financials'!B8)),\"\")","v":""},null,{"$f":"IFERROR(INDEX($E$2:$E$162,SMALL(IF(($E$2:$E$162)<>\"\",ROW($E$1:$E$161),\"\"),ROW(J2))),\"\")","v":""},{"$f":"IFERROR(INDEX($F$2:$F$162,SMALL(IF(($F$2:$F$162)<>\"\",ROW($F$1:$F$161),\"\"),ROW(K2))),\"\")","v":""},{"$f":"IFERROR(INDEX($G$2:$G$32,SMALL(IF(($G$2:$G$32)<>\"\",ROW($G$1:$G$31),\"\"),ROW(L2))),\"\")","v":""},{"$f":"IFERROR(INDEX($H$2:$H$32,SMALL(IF(($H$2:$H$32)<>\"\",ROW($H$1:$H$31),\"\"),ROW(M2))),\"\")","v":""}]
[null,"Female Camper Total From Cabin Roster",{"$f":"COUNTA('Female Cabin Roster'!E16:E33,'Female Cabin Roster'!K16:K33,'Female Cabin Roster'!Q16:Q33,'Female Cabin Roster'!E45:E62,'Female Cabin Roster'!K45:K62,'Female Cabin Roster'!Q45:Q62,'Female Cabin Roster'!E74:E91,'Female Cabin Roster'!K74:K91,'Female Cabin Roster'!Q74:Q91,'Female Cabin Roster'!E103:E120,'Female Cabin Roster'!K103:K120,'Female Cabin Roster'!Q103:Q120)","v":0},null,{"$f":"IF('Campers Page 1'!E19<>0,(CONCATENATE('Campers Page 1'!C19,\" \",'Campers Page 1'!B19)),\"\")","v":""},{"$f":"IF('Campers Page 1'!D19<>0,(CONCATENATE('Campers Page 1'!C19,\" \",'Campers Page 1'!B19)),\"\")","v":""},{"$f":"IF('Leaders & Financials'!E9<>0,(CONCATENATE('Leaders & Financials'!C9,\" \",'Leaders & Financials'!B9)),\"\")","v":""},{"$f":"IF('Leaders & Financials'!D9<>0,(CONCATENATE('Leaders & Financials'!C9,\" \",'Leaders & Financials'!B9)),\"\")","v":""},null,{"$f":"IFERROR(INDEX($E$2:$E$162,SMALL(IF(($E$2:$E$162)<>\"\",ROW($E$1:$E$161),\"\"),ROW(J3))),\"\")","v":""},{"$f":"IFERROR(INDEX($F$2:$F$162,SMALL(IF(($F$2:$F$162)<>\"\",ROW($F$1:$F$161),\"\"),ROW(K3))),\"\")","v":""},{"$f":"IFERROR(INDEX($G$2:$G$32,SMALL(IF(($G$2:$G$32)<>\"\",ROW($G$1:$G$31),\"\"),ROW(L3))),\"\")","v":""},{"$f":"IFERROR(INDEX($H$2:$H$32,SMALL(IF(($H$2:$H$32)<>\"\",ROW($H$1:$H$31),\"\"),ROW(M3))),\"\")","v":""}]
[null,null,null,null,{"$f":"IF('Campers Page 1'!E20<>0,(CONCATENATE('Campers Page 1'!C20,\" \",'Campers Page 1'!B20)),\"\")","v":""},{"$f":"IF('Campers Page 1'!D20<>0,(CONCATENATE('Campers Page 1'!C20,\" \",'Campers Page 1'!B20)),\"\")","v":""},{"$f":"IF('Leaders & Financials'!E10<>0,(CONCATENATE('Leaders & Financials'!C10,\" \",'Leaders & Financials'!B10)),\"\")","v":""},{"$f":"IF('Leaders & Financials'!D10<>0,(CONCATENATE('Leaders & Financials'!C10,\" \",'Leaders & Financials'!B10)),\"\")","v":""},null,{"$f":"IFERROR(INDEX($E$2:$E$162,SMALL(IF(($E$2:$E$162)<>\"\",ROW($E$1:$E$161),\"\"),ROW(J4))),\"\")","v":""},{"$f":"IFERROR(INDEX($F$2:$F$162,SMALL(IF(($F$2:$F$162)<>\"\",ROW($F$1:$F$161),\"\"),ROW(K4))),\"\")","v":""},{"$f":"IFERROR(INDEX($G$2:$G$32,SMALL(IF(($G$2:$G$32)<>\"\",ROW($G$1:$G$31),\"\"),ROW(L4))),\"\")","v":""},{"$f":"IFERROR(INDEX($H$2:$H$32,SMALL(IF(($H$2:$H$32)<>\"\",ROW($H$1:$H$31),\"\"),ROW(M4))),\"\")","v":""}]
[null,"Male Leader Total From A Form",{"$f":"'Leaders & Financials'!D43","v":0},null,{"$f":"IF('Campers Page 1'!E21<>0,(CONCATENATE('Campers Page 1'!C21,\" \",'Campers Page 1'!B21)),\"\")","v":""},{"$f":"IF('Campers Page 1'!D21<>0,(CONCATENATE('Campers Page 1'!C21,\" \",'Campers Page 1'!B21)),\"\")","v":""},{"$f":"IF('Leaders & Financials'!E11<>0,(CONCATENATE('Leaders & Financials'!C11,\" \",'Leaders & Financials'!B11)),\"\")","v":""},{"$f":"IF('Leaders & Financials'!D11<>0,(CONCATENATE('Leaders & Financials'!C11,\" \",'Leaders & Financials'!B11)),\"\")","v":""},null,{"$f":"IFERROR(INDEX($E$2:$E$162,SMALL(IF(($E$2:$E$162)<>\"\",ROW($E$1:$E$161),\"\"),ROW(J5))),\"\")","v":""},{"$f":"IFERROR(INDEX($F$2:$F$162,SMALL(IF(($F$2:$F$162)<>\"\",ROW($F$1:$F$161),\"\"),ROW(K5))),\"\")","v":""},{"$f":"IFERROR(INDEX($G$2:$G$32,SMALL(IF(($G$2:$G$32)<>\"\",ROW($G$1:$G$31),\"\"),ROW(L5))),\"\")","v":""},{"$f":"IFERROR(INDEX($H$2:$H$32,SMALL(IF(($H$2:$H$32)<>\"\",ROW($H$1:$H$31),\"\"),ROW(M5))),\"\")","v":""}]
[null,"Male Camper Total From A Form",{"$f":"'Campers Page 2'!M57","v":0},null,{"$f":"IF('Campers Page 1'!E22<>0,(CONCATENATE('Campers Page 1'!C22,\" \",'Campers Page 1'!B22)),\"\")","v":""},{"$f":"IF('Campers Page 1'!D22<>0,(CONCATENATE('Campers Page 1'!C22,\" \",'Campers Page 1'!B22)),\"\")","v":""},{"$f":"IF('Leaders & Financials'!E12<>0,(CONCATENATE('Leaders & Financials'!C12,\" \",'Leaders & Financials'!B12)),\"\")","v":""},{"$f":"IF('Leaders & Financials'!D12<>0,(CONCATENATE('Leaders & Financials'!C12,\" \",'Leaders & Financials'!B12)),\"\")","v":""},null,{"$f":"IFERROR(INDEX($E$2:$E$162,SMALL(IF(($E$2:$E$162)<>\"\",ROW($E$1:$E$161),\"\"),ROW(J6))),\"\")","v":""},{"$f":"IFERROR(INDEX($F$2:$F$162,SMALL(IF(($F$2:$F$162)<>\"\",ROW($F$1:$F$161),\"\"),ROW(K6))),\"\")","v":""},{"$f":"IFERROR(INDEX($G$2:$G$32,SMALL(IF(($G$2:$G$32)<>\"\",ROW($G$1:$G$31),\"\"),ROW(L6))),\"\")","v":""},{"$f":"IFERROR(INDEX($H$2:$H$32,SMALL(IF(($H$2:$H$32)<>\"\",ROW($H$1:$H$31),\"\"),ROW(M6))),\"\")","v":""}]
[null,null,null,null,{"$f":"IF('Campers Page 1'!E23<>0,(CONCATENATE('Campers Page 1'!C23,\" \",'Campers Page 1'!B23)),\"\")","v":""},{"$f":"IF('Campers Page 1'!D23<>0,(CONCATENATE('Campers Page 1'!C23,\" \",'Campers Page 1'!B23)),\"\")","v":""},{"$f":"IF('Leaders & Financials'!E13<>0,(CONCATENATE('Leaders & Financials'!C13,\" \",'Leaders & Financials'!B13)),\"\")","v":""},{"$f":"IF('Leaders & Financials'!D13<>0,(CONCATENATE('Leaders & Financials'!C13,\" \",'Leaders & Financials'!B13)),\"\")","v":""},null,{"$f":"IFERROR(INDEX($E$2:$E$162,SMALL(IF(($E$2:$E$162)<>\"\",ROW($E$1:$E$161),\"\"),ROW(J7))),\"\")","v":""},{"$f":"IFERROR(INDEX($F$2:$F$162,SMALL(IF(($F$2:$F$162)<>\"\",ROW($F$1:$F$161),\"\"),ROW(K7))),\"\")","v":""},{"$f":"IFERROR(INDEX($G$2:$G$32,SMALL(IF(($G$2:$G$32)<>\"\",ROW($G$1:$G$31),\"\"),ROW(L7))),\"\")","v":""},{"$f":"IFERROR(INDEX($H$2:$H$32,SMALL(IF(($H$2:$H$32)<>\"\",ROW($H$1:$H$31),\"\"),ROW(M7))),\"\")","v":""}]
[null,"Male Leader Total From Cabin Roster",{"$f":"COUNTA('Male Cabin Roster'!E10:E14,'Male Cabin Roster'!K10:K14,'Male Cabin Roster'!Q10:Q14,'Male Cabin Roster'!E39:E43,'Male Cabin Roster'!K39:K43,'Male Cabin Roster'!Q39:Q43,'Male Cabin Roster'!E68:E72,'Male Cabin Roster'!K68:K72,'Male Cabin Roster'!Q68:Q72,'Male Cabin Roster'!E97:E101,'Male Cabin Roster'!K97:K101,'Male Cabin Roster'!Q97:Q101)","v":0},null,{"$f":"IF('Campers Page 1'!E24<>0,(CONCATENATE('Campers Page 1'!C24,\" \",'Campers Page 1'!B24)),\"\")","v":""},{"$f":"IF('Campers Page 1'!D24<>0,(CONCATENATE('Campers Page 1'!C24,\" \",'Campers Page 1'!B24)),\"\")","v":""},{"$f":"IF('Leaders & Financials'!E14<>0,(CONCATENATE('Leaders & Financials'!C14,\" \",'Leaders & Financials'!B14)),\"\")","v":""},{"$f":"IF('Leaders & Financials'!D14<>0,(CONCATENATE('Leaders & Financials'!C14,\" \",'Leaders & Financials'!B14)),\"\")","v":""},null,{"$f":"IFERROR(INDEX($E$2:$E$162,SMALL(IF(($E$2:$E$162)<>\"\",ROW($E$1:$E$161),\"\"),ROW(J8))),\"\")","v":""},{"$f":"IFERROR(INDEX($F$2:$F$162,SMALL(IF(($F$2:$F$162)<>\"\",ROW($F$1:$F$161),\"\"),ROW(K8))),\"\")","v":""},{"$f":"IFERROR(INDEX($G$2:$G$32,SMALL(IF(($G$2:$G$32)<>\"\",ROW($G$1:$G$31),\"\"),ROW(L8))),\"\")","v":""},{"$f":"IFERROR(INDEX($H$2:$H$32,SMALL(IF(($H$2:$H$32)<>\"\",ROW($H$1:$H$31),\"\"),ROW(M8))),\"\")","v":""}]
[null,"Male Camper Total From A Form",{"$f":"COUNTA('Male Cabin Roster'!E16:E33,'Male Cabin Roster'!K16:K33,'Male Cabin Roster'!Q16:Q33,'Male Cabin Roster'!E45:E62,'Male Cabin Roster'!K45:K62,'Male Cabin Roster'!Q45:Q62,'Male Cabin Roster'!E74:E91,'Male Cabin Roster'!K74:K91,'Male Cabin Roster'!Q74:Q91,'Male Cabin Roster'!E103:E120,'Male Cabin Roster'!K103:K120,'Male Cabin Roster'!Q103:Q120)","v":0},null,{"$f":"IF('Campers Page 1'!E25<>0,(CONCATENATE('Campers Page 1'!C25,\" \",'Campers Page 1'!B25)),\"\")","v":""},{"$f":"IF('Campers Page 1'!D25<>0,(CONCATENATE('Campers Page 1'!C25,\" \",'Campers Page 1'!B25)),\"\")","v":""},{"$f":"IF('Leaders & Financials'!E15<>0,(CONCATENATE('Leaders & Financials'!C15,\" \",'Leaders & Financials'!B15)),\"\")","v":""},{"$f":"IF('Leaders & Financials'!D15<>0,(CONCATENATE('Leaders & Financials'!C15,\" \",'Leaders & Financials'!B15)),\"\")","v":""},null,{"$f":"IFERROR(INDEX($E$2:$E$162,SMALL(IF(($E$2:$E$162)<>\"\",ROW($E$1:$E$161),\"\"),ROW(J9))),\"\")","v":""},{"$f":"IFERROR(INDEX($F$2:$F$162,SMALL(IF(($F$2:$F$162)<>\"\",ROW($F$1:$F$161),\"\"),ROW(K9))),\"\")","v":""},{"$f":"IFERROR(INDEX($G$2:$G$32,SMALL(IF(($G$2:$G$32)<>\"\",ROW($G$1:$G$31),\"\"),ROW(L9))),\"\")","v":""},{"$f":"IFERROR(INDEX($H$2:$H$32,SMALL(IF(($H$2:$H$32)<>\"\",ROW($H$1:$H$31),\"\"),ROW(M9))),\"\")","v":""}]
[null,null,null,null,{"$f":"IF('Campers Page 1'!E26<>0,(CONCATENATE('Campers Page 1'!C26,\" \",'Campers Page 1'!B26)),\"\")","v":""},{"$f":"IF('Campers Page 1'!D26<>0,(CONCATENATE('Campers Page 1'!C26,\" \",'Campers Page 1'!B26)),\"\")","v":""},{"$f":"IF('Leaders & Financials'!E16<>0,(CONCATENATE('Leaders & Financials'!C16,\" \",'Leaders & Financials'!B16)),\"\")","v":""},{"$f":"IF('Leaders & Financials'!D16<>0,(CONCATENATE('Leaders & Financials'!C16,\" \",'Leaders & Financials'!B16)),\"\")","v":""},null,{"$f":"IFERROR(INDEX($E$2:$E$162,SMALL(IF(($E$2:$E$162)<>\"\",ROW($E$1:$E$161),\"\"),ROW(J10))),\"\")","v":""},{"$f":"IFERROR(INDEX($F$2:$F$162,SMALL(IF(($F$2:$F$162)<>\"\",ROW($F$1:$F$161),\"\"),ROW(K10))),\"\")","v":""},{"$f":"IFERROR(INDEX($G$2:$G$32,SMALL(IF(($G$2:$G$32)<>\"\",ROW($G$1:$G$31),\"\"),ROW(L10))),\"\")","v":""},{"$f":"IFERROR(INDEX($H$2:$H$32,SMALL(IF(($H$2:$H$32)<>\"\",ROW($H$1:$H$31),\"\"),ROW(M10))),\"\")","v":""}]
[null,null,null,null,{"$f":"IF('Campers Page 1'!E27<>0,(CONCATENATE('Campers Page 1'!C27,\" \",'Campers Page 1'!B27)),\"\")","v":""},{"$f":"IF('Campers Page 1'!D27<>0,(CONCATENATE('Campers Page 1'!C27,\" \",'Campers Page 1'!B27)),\"\")","v":""},{"$f":"IF('Leaders & Financials'!E17<>0,(CONCATENATE('Leaders & Financials'!C17,\" \",'Leaders & Financials'!B17)),\"\")","v":""},{"$f":"IF('Leaders & Financials'!D17<>0,(CONCATENATE('Leaders & Financials'!C17,\" \",'Leaders & Financials'!B17)),\"\")","v":""},null,{"$f":"IFERROR(INDEX($E$2:$E$162,SMALL(IF(($E$2:$E$162)<>\"\",ROW($E$1:$E$161),\"\"),ROW(J11))),\"\")","v":""},{"$f":"IFERROR(INDEX($F$2:$F$162,SMALL(IF(($F$2:$F$162)<>\"\",ROW($F$1:$F$161),\"\"),ROW(K11))),\"\")","v":""},{"$f":"IFERROR(INDEX($G$2:$G$32,SMALL(IF(($G$2:$G$32)<>\"\",ROW($G$1:$G$31),\"\"),ROW(L11))),\"\")","v":""},{"$f":"IFERROR(INDEX($H$2:$H$32,SMALL(IF(($H$2:$H$32)<>\"\",ROW($H$1:$H$31),\"\"),ROW(M11))),\"\")","v":""}]
[null,null,null,null,{"$f":"IF('Campers Page 1'!E28<>0,(CONCATENATE('Campers Page 1'!C28,\" \",'Campers Page 1'!B28)),\"\")","v":""},{"$f":"IF('Campers Page 1'!D28<>0,(CONCATENATE('Campers Page 1'!C28,\" \",'Campers Page 1'!B28)),\"\")","v":""},{"$f":"IF('Leaders & Financials'!E18<>0,(CONCATENATE('Leaders & Financials'!C18,\" \",'Leaders & Financials'!B18)),\"\")","v":""},{"$f":"IF('Leaders & Financials'!D18<>0,(CONCATENATE('Leaders & Financials'!C18,\" \",'Leaders & Financials'!B18)),\"\")","v":""},null,{"$f":"IFERROR(INDEX($E$2:$E$162,SMALL(IF(($E$2:$E$162)<>\"\",ROW($E$1:$E$161),\"\"),ROW(J12))),\"\")","v":""},{"$f":"IFERROR(INDEX($F$2:$F$162,SMALL(IF(($F$2:$F$162)<>\"\",ROW($F$1:$F$161),\"\"),ROW(K12))),\"\")","v":""},{"$f":"IFERROR(INDEX($G$2:$G$32,SMALL(IF(($G$2:$G$32)<>\"\",ROW($G$1:$G$31),\"\"),ROW(L12))),\"\")","v":""},{"$f":"IFERROR(INDEX($H$2:$H$32,SMALL(IF(($H$2:$H$32)<>\"\",ROW($H$1:$H$31),\"\"),ROW(M12))),\"\")","v":""}]
[null,null,null,null,{"$f":"IF('Campers Page 1'!E29<>0,(CONCATENATE('Campers Page 1'!C29,\" \",'Campers Page 1'!B29)),\"\")","v":""},{"$f":"IF('Campers Page 1'!D29<>0,(CONCATENATE('Campers Page 1'!C29,\" \",'Campers Page 1'!B29)),\"\")","v":""},{"$f":"IF('Leaders & Financials'!E19<>0,(CONCATENATE('Leaders & Financials'!C19,\" \",'Leaders & Financials'!B19)),\"\")","v":""},{"$f":"IF('Leaders & Financials'!D19<>0,(CONCATENATE('Leaders & Financials'!C19,\" \",'Leaders & Financials'!B19)),\"\")","v":""},null,{"$f":"IFERROR(INDEX($E$2:$E$162,SMALL(IF(($E$2:$E$162)<>\"\",ROW($E$1:$E$161),\"\"),ROW(J13))),\"\")","v":""},{"$f":"IFERROR(INDEX($F$2:$F$162,SMALL(IF(($F$2:$F$162)<>\"\",ROW($F$1:$F$161),\"\"),ROW(K13))),\"\")","v":""},{"$f":"IFERROR(INDEX($G$2:$G$32,SMALL(IF(($G$2:$G$32)<>\"\",ROW($G$1:$G$31),\"\"),ROW(L13))),\"\")","v":""},{"$f":"IFERROR(INDEX($H$2:$H$32,SMALL(IF(($H$2:$H$32)<>\"\",ROW($H$1:$H$31),\"\"),ROW(M13))),\"\")","v":""}]
[null,null,null,null,{"$f":"IF('Campers Page 1'!E30<>0,(CONCATENATE('Campers Page 1'!C30,\" \",'Campers Page 1'!B30)),\"\")","v":""},{"$f":"IF('Campers Page 1'!D30<>0,(CONCATENATE('Campers Page 1'!C30,\" \",'Campers Page 1'!B30)),\"\")","v":""},{"$f":"IF('Leaders & Financials'!E20<>0,(CONCATENATE('Leaders & Financials'!C20,\" \",'Leaders & Financials'!B20)),\"\")","v":""},{"$f":"IF('Leaders & Financials'!D20<>0,(CONCATENATE('Leaders & Financials'!C20,\" \",'Leaders & Financials'!B20)),\"\")","v":""},null,{"$f":"IFERROR(INDEX($E$2:$E$162,SMALL(IF(($E$2:$E$162)<>\"\",ROW($E$1:$E$161),\"\"),ROW(J14))),\"\")","v":""},{"$f":"IFERROR(INDEX($F$2:$F$162,SMALL(IF(($F$2:$F$162)<>\"\",ROW($F$1:$F$161),\"\"),ROW(K14))),\"\")","v":""},{"$f":"IFERROR(INDEX($G$2:$G$32,SMALL(IF(($G$2:$G$32)<>\"\",ROW($G$1:$G$31),\"\"),ROW(L14))),\"\")","v":""},{"$f":"IFERROR(INDEX($H$2:$H$32,SMALL(IF(($H$2:$H$32)<>\"\",ROW($H$1:$H$31),\"\"),ROW(M14))),\"\")","v":""}]
[null,null,null,null,{"$f":"IF('Campers Page 1'!E31<>0,(CONCATENATE('Campers Page 1'!C31,\" \",'Campers Page 1'!B31)),\"\")","v":""},{"$f":"IF('Campers Page 1'!D31<>0,(CONCATENATE('Campers Page 1'!C31,\" \",'Campers Page 1'!B31)),\"\")","v":""},{"$f":"IF('Leaders & Financials'!E21<>0,(CONCATENATE('Leaders & Financials'!C21,\" \",'Leaders & Financials'!B21)),\"\")","v":""},{"$f":"IF('Leaders & Financials'!D21<>0,(CONCATENATE('Leaders & Financials'!C21,\" \",'Leaders & Financials'!B21)),\"\")","v":""},null,{"$f":"IFERROR(INDEX($E$2:$E$162,SMALL(IF(($E$2:$E$162)<>\"\",ROW($E$1:$E$161),\"\"),ROW(J15))),\"\")","v":""},{"$f":"IFERROR(INDEX($F$2:$F$162,SMALL(IF(($F$2:$F$162)<>\"\",ROW($F$1:$F$161),\"\"),ROW(K15))),\"\")","v":""},{"$f":"IFERROR(INDEX($G$2:$G$32,SMALL(IF(($G$2:$G$32)<>\"\",ROW($G$1:$G$31),\"\"),ROW(L15))),\"\")","v":""},{"$f":"IFERROR(INDEX($H$2:$H$32,SMALL(IF(($H$2:$H$32)<>\"\",ROW($H$1:$H$31),\"\"),ROW(M15))),\"\")","v":""}]
[null,null,null,null,{"$f":"IF('Campers Page 1'!E32<>0,(CONCATENATE('Campers Page 1'!C32,\" \",'Campers Page 1'!B32)),\"\")","v":""},{"$f":"IF('Campers Page 1'!D32<>0,(CONCATENATE('Campers Page 1'!C32,\" \",'Campers Page 1'!B32)),\"\")","v":""},{"$f":"IF('Leaders & Financials'!E22<>0,(CONCATENATE('Leaders & Financials'!C22,\" \",'Leaders & Financials'!B22)),\"\")","v":""},{"$f":"IF('Leaders & Financials'!D22<>0,(CONCATENATE('Leaders & Financials'!C22,\" \",'Leaders & Financials'!B22)),\"\")","v":""},null,{"$f":"IFERROR(INDEX($E$2:$E$162,SMALL(IF(($E$2:$E$162)<>\"\",ROW($E$1:$E$161),\"\"),ROW(J16))),\"\")","v":""},{"$f":"IFERROR(INDEX($F$2:$F$162,SMALL(IF(($F$2:$F$162)<>\"\",ROW($F$1:$F$161),\"\"),ROW(K16))),\"\")","v":""},{"$f":"IFERROR(INDEX($G$2:$G$32,SMALL(IF(($G$2:$G$32)<>\"\",ROW($G$1:$G$31),\"\"),ROW(L16))),\"\")","v":""},{"$f":"IFERROR(INDEX($H$2:$H$32,SMALL(IF(($H$2:$H$32)<>\"\",ROW($H$1:$H$31),\"\"),ROW(M16))),\"\")","v":""}]
[null,null,null,null,{"$f":"IF('Campers Page 1'!E33<>0,(CONCATENATE('Campers Page 1'!C33,\" \",'Campers Page 1'!B33)),\"\")","v":""},{"$f":"IF('Campers Page 1'!D33<>0,(CONCATENATE('Campers Page 1'!C33,\" \",'Campers Page 1'!B33)),\"\")","v":""},{"$f":"IF('Leaders & Financials'!E23<>0,(CONCATENATE('Leaders & Financials'!C23,\" \",'Leaders & Financials'!B23)),\"\")","v":""},{"$f":"IF('Leaders & Financials'!D23<>0,(CONCATENATE('Leaders & Financials'!C23,\" \",'Leaders & Financials'!B23)),\"\")","v":""},null,{"$f":"IFERROR(INDEX($E$2:$E$162,SMALL(IF(($E$2:$E$162)<>\"\",ROW($E$1:$E$161),\"\"),ROW(J17))),\"\")","v":""},{"$f":"IFERROR(INDEX($F$2:$F$162,SMALL(IF(($F$2:$F$162)<>\"\",ROW($F$1:$F$161),\"\"),ROW(K17))),\"\")","v":""},{"$f":"IFERROR(INDEX($G$2:$G$32,SMALL(IF(($G$2:$G$32)<>\"\",ROW($G$1:$G$31),\"\"),ROW(L17))),\"\")","v":""},{"$f":"IFERROR(INDEX($H$2:$H$32,SMALL(IF(($H$2:$H$32)<>\"\",ROW($H$1:$H$31),\"\"),ROW(M17))),\"\")","v":""}]
[null,null,null,null,{"$f":"IF('Campers Page 1'!E34<>0,(CONCATENATE('Campers Page 1'!C34,\" \",'Campers Page 1'!B34)),\"\")","v":""},{"$f":"IF('Campers Page 1'!D34<>0,(CONCATENATE('Campers Page 1'!C34,\" \",'Campers Page 1'!B34)),\"\")","v":""},{"$f":"IF('Leaders & Financials'!E24<>0,(CONCATENATE('Leaders & Financials'!C24,\" \",'Leaders & Financials'!B24)),\"\")","v":""},{"$f":"IF('Leaders & Financials'!D24<>0,(CONCATENATE('Leaders & Financials'!C24,\" \",'Leaders & Financials'!B24)),\"\")","v":""},null,{"$f":"IFERROR(INDEX($E$2:$E$162,SMALL(IF(($E$2:$E$162)<>\"\",ROW($E$1:$E$161),\"\"),ROW(J18))),\"\")","v":""},{"$f":"IFERROR(INDEX($F$2:$F$162,SMALL(IF(($F$2:$F$162)<>\"\",ROW($F$1:$F$161),\"\"),ROW(K18))),\"\")","v":""},{"$f":"IFERROR(INDEX($G$2:$G$32,SMALL(IF(($G$2:$G$32)<>\"\",ROW($G$1:$G$31),\"\"),ROW(L18))),\"\")","v":""},{"$f":"IFERROR(INDEX($H$2:$H$32,SMALL(IF(($H$2:$H$32)<>\"\",ROW($H$1:$H$31),\"\"),ROW(M18))),\"\")","v":""}]
[null,null,null,null,{"$f":"IF('Campers Page 1'!E35<>0,(CONCATENATE('Campers Page 1'!C35,\" \",'Campers Page 1'!B35)),\"\")","v":""},{"$f":"IF('Campers Page 1'!D35<>0,(CONCATENATE('Campers Page 1'!C35,\" \",'Campers Page 1'!B35)),\"\")","v":""},{"$f":"IF('Leaders & Financials'!E25<>0,(CONCATENATE('Leaders & Financials'!C25,\" \",'Leaders & Financials'!B25)),\"\")","v":""},{"$f":"IF('Leaders & Financials'!D25<>0,(CONCATENATE('Leaders & Financials'!C25,\" \",'Leaders & Financials'!B25)),\"\")","v":""},null,{"$f":"IFERROR(INDEX($E$2:$E$162,SMALL(IF(($E$2:$E$162)<>\"\",ROW($E$1:$E$161),\"\"),ROW(J19))),\"\")","v":""},{"$f":"IFERROR(INDEX($F$2:$F$162,SMALL(IF(($F$2:$F$162)<>\"\",ROW($F$1:$F$161),\"\"),ROW(K19))),\"\")","v":""},{"$f":"IFERROR(INDEX($G$2:$G$32,SMALL(IF(($G$2:$G$32)<>\"\",ROW($G$1:$G$31),\"\"),ROW(L19))),\"\")","v":""},{"$f":"IFERROR(INDEX($H$2:$H$32,SMALL(IF(($H$2:$H$32)<>\"\",ROW($H$1:$H$31),\"\"),ROW(M19))),\"\")","v":""}]
[null,null,null,null,{"$f":"IF('Campers Page 1'!E36<>0,(CONCATENATE('Campers Page 1'!C36,\" \",'Campers Page 1'!B36)),\"\")","v":""},{"$f":"IF('Campers Page 1'!D36<>0,(CONCATENATE('Campers Page 1'!C36,\" \",'Campers Page 1'!B36)),\"\")","v":""},{"$f":"IF('Leaders & Financials'!E26<>0,(CONCATENATE('Leaders & Financials'!C26,\" \",'Leaders & Financials'!B26)),\"\")","v":""},{"$f":"IF('Leaders & Financials'!D26<>0,(CONCATENATE('Leaders & Financials'!C26,\" \",'Leaders & Financials'!B26)),\"\")","v":""},null,{"$f":"IFERROR(INDEX($E$2:$E$162,SMALL(IF(($E$2:$E$162)<>\"\",ROW($E$1:$E$161),\"\"),ROW(J20))),\"\")","v":""},{"$f":"IFERROR(INDEX($F$2:$F$162,SMALL(IF(($F$2:$F$162)<>\"\",ROW($F$1:$F$161),\"\"),ROW(K20))),\"\")","v":""},{"$f":"IFERROR(INDEX($G$2:$G$32,SMALL(IF(($G$2:$G$32)<>\"\",ROW($G$1:$G$31),\"\"),ROW(L20))),\"\")","v":""},{"$f":"IFERROR(INDEX($H$2:$H$32,SMALL(IF(($H$2:$H$32)<>\"\",ROW($H$1:$H$31),\"\"),ROW(M20))),\"\")","v":""}]
[null,null,null,null,{"$f":"IF('Campers Page 1'!E37<>0,(CONCATENATE('Campers Page 1'!C37,\" \",'Campers Page 1'!B37)),\"\")","v":""},{"$f":"IF('Campers Page 1'!D37<>0,(CONCATENATE('Campers Page 1'!C37,\" \",'Campers Page 1'!B37)),\"\")","v":""},{"$f":"IF('Leaders & Financials'!E32<>0,(CONCATENATE('Leaders & Financials'!C32,\" \",'Leaders & Financials'!B32)),\"\")","v":""},{"$f":"IF('Leaders & Financials'!D32<>0,(CONCATENATE('Leaders & Financials'!C32,\" \",'Leaders & Financials'!B32)),\"\")","v":""},null,{"$f":"IFERROR(INDEX($E$2:$E$162,SMALL(IF(($E$2:$E$162)<>\"\",ROW($E$1:$E$161),\"\"),ROW(J21))),\"\")","v":""},{"$f":"IFERROR(INDEX($F$2:$F$162,SMALL(IF(($F$2:$F$162)<>\"\",ROW($F$1:$F$161),\"\"),ROW(K21))),\"\")","v":""},{"$f":"IFERROR(INDEX($G$2:$G$32,SMALL(IF(($G$2:$G$32)<>\"\",ROW($G$1:$G$31),\"\"),ROW(L21))),\"\")","v":""},{"$f":"IFERROR(INDEX($H$2:$H$32,SMALL(IF(($H$2:$H$32)<>\"\",ROW($H$1:$H$31),\"\"),ROW(M21))),\"\")","v":""}]
[null,null,null,null,{"$f":"IF('Campers Page 1'!E38<>0,(CONCATENATE('Campers Page 1'!C38,\" \",'Campers Page 1'!B38)),\"\")","v":""},{"$f":"IF('Campers Page 1'!D38<>0,(CONCATENATE('Campers Page 1'!C38,\" \",'Campers Page 1'!B38)),\"\")","v":""},{"$f":"IF('Leaders & Financials'!E33<>0,(CONCATENATE('Leaders & Financials'!C33,\" \",'Leaders & Financials'!B33)),\"\")","v":""},{"$f":"IF('Leaders & Financials'!D33<>0,(CONCATENATE('Leaders & Financials'!C33,\" \",'Leaders & Financials'!B33)),\"\")","v":""},null,{"$f":"IFERROR(INDEX($E$2:$E$162,SMALL(IF(($E$2:$E$162)<>\"\",ROW($E$1:$E$161),\"\"),ROW(J22))),\"\")","v":""},{"$f":"IFERROR(INDEX($F$2:$F$162,SMALL(IF(($F$2:$F$162)<>\"\",ROW($F$1:$F$161),\"\"),ROW(K22))),\"\")","v":""},{"$f":"IFERROR(INDEX($G$2:$G$32,SMALL(IF(($G$2:$G$32)<>\"\",ROW($G$1:$G$31),\"\"),ROW(L22))),\"\")","v":""},{"$f":"IFERROR(INDEX($H$2:$H$32,SMALL(IF(($H$2:$H$32)<>\"\",ROW($H$1:$H$31),\"\"),ROW(M22))),\"\")","v":""}]
[null,null,null,null,{"$f":"IF('Campers Page 1'!E39<>0,(CONCATENATE('Campers Page 1'!C39,\" \",'Campers Page 1'!B39)),\"\")","v":""},{"$f":"IF('Campers Page 1'!D39<>0,(CONCATENATE('Campers Page 1'!C39,\" \",'Campers Page 1'!B39)),\"\")","v":""},{"$f":"IF('Leaders & Financials'!E34<>0,(CONCATENATE('Leaders & Financials'!C34,\" \",'Leaders & Financials'!B34)),\"\")","v":""},{"$f":"IF('Leaders & Financials'!D34<>0,(CONCATENATE('Leaders & Financials'!C34,\" \",'Leaders & Financials'!B34)),\"\")","v":""},null,{"$f":"IFERROR(INDEX($E$2:$E$162,SMALL(IF(($E$2:$E$162)<>\"\",ROW($E$1:$E$161),\"\"),ROW(J23))),\"\")","v":""},{"$f":"IFERROR(INDEX($F$2:$F$162,SMALL(IF(($F$2:$F$162)<>\"\",ROW($F$1:$F$161),\"\"),ROW(K23))),\"\")","v":""},{"$f":"IFERROR(INDEX($G$2:$G$32,SMALL(IF(($G$2:$G$32)<>\"\",ROW($G$1:$G$31),\"\"),ROW(L23))),\"\")","v":""},{"$f":"IFERROR(INDEX($H$2:$H$32,SMALL(IF(($H$2:$H$32)<>\"\",ROW($H$1:$H$31),\"\"),ROW(M23))),\"\")","v":""}]
[null,null,null,null,{"$f":"IF('Campers Page 1'!E40<>0,(CONCATENATE('Campers Page 1'!C40,\" \",'Campers Page 1'!B40)),\"\")","v":""},{"$f":"IF('Campers Page 1'!D40<>0,(CONCATENATE('Campers Page 1'!C40,\" \",'Campers Page 1'!B40)),\"\")","v":""},{"$f":"IF('Leaders & Financials'!E35<>0,(CONCATENATE('Leaders & Financials'!C35,\" \",'Leaders & Financials'!B35)),\"\")","v":""},{"$f":"IF('Leaders & Financials'!D35<>0,(CONCATENATE('Leaders & Financials'!C35,\" \",'Leaders & Financials'!B35)),\"\")","v":""},null,{"$f":"IFERROR(INDEX($E$2:$E$162,SMALL(IF(($E$2:$E$162)<>\"\",ROW($E$1:$E$161),\"\"),ROW(J24))),\"\")","v":""},{"$f":"IFERROR(INDEX($F$2:$F$162,SMALL(IF(($F$2:$F$162)<>\"\",ROW($F$1:$F$161),\"\"),ROW(K24))),\"\")","v":""},{"$f":"IFERROR(INDEX($G$2:$G$32,SMALL(IF(($G$2:$G$32)<>\"\",ROW($G$1:$G$31),\"\"),ROW(L24))),\"\")","v":""},{"$f":"IFERROR(INDEX($H$2:$H$32,SMALL(IF(($H$2:$H$32)<>\"\",ROW($H$1:$H$31),\"\"),ROW(M24))),\"\")","v":""}]
[null,null,null,null,{"$f":"IF('Campers Page 1'!E41<>0,(CONCATENATE('Campers Page 1'!C41,\" \",'Campers Page 1'!B41)),\"\")","v":""},{"$f":"IF('Campers Page 1'!D41<>0,(CONCATENATE('Campers Page 1'!C41,\" \",'Campers Page 1'!B41)),\"\")","v":""},{"$f":"IF('Leaders & Financials'!E36<>0,(CONCATENATE('Leaders & Financials'!C36,\" \",'Leaders & Financials'!B36)),\"\")","v":""},{"$f":"IF('Leaders & Financials'!D36<>0,(CONCATENATE('Leaders & Financials'!C36,\" \",'Leaders & Financials'!B36)),\"\")","v":""},null,{"$f":"IFERROR(INDEX($E$2:$E$162,SMALL(IF(($E$2:$E$162)<>\"\",ROW($E$1:$E$161),\"\"),ROW(J25))),\"\")","v":""},{"$f":"IFERROR(INDEX($F$2:$F$162,SMALL(IF(($F$2:$F$162)<>\"\",ROW($F$1:$F$161),\"\"),ROW(K25))),\"\")","v":""},{"$f":"IFERROR(INDEX($G$2:$G$32,SMALL(IF(($G$2:$G$32)<>\"\",ROW($G$1:$G$31),\"\"),ROW(L25))),\"\")","v":""},{"$f":"IFERROR(INDEX($H$2:$H$32,SMALL(IF(($H$2:$H$32)<>\"\",ROW($H$1:$H$31),\"\"),ROW(M25))),\"\")","v":""}]
[null,null,null,null,{"$f":"IF('Campers Page 1'!E42<>0,(CONCATENATE('Campers Page 1'!C42,\" \",'Campers Page 1'!B42)),\"\")","v":""},{"$f":"IF('Campers Page 1'!D42<>0,(CONCATENATE('Campers Page 1'!C42,\" \",'Campers Page 1'!B42)),\"\")","v":""},{"$f":"IF('Leaders & Financials'!E37<>0,(CONCATENATE('Leaders & Financials'!C37,\" \",'Leaders & Financials'!B37)),\"\")","v":""},{"$f":"IF('Leaders & Financials'!D37<>0,(CONCATENATE('Leaders & Financials'!C37,\" \",'Leaders & Financials'!B37)),\"\")","v":""},null,{"$f":"IFERROR(INDEX($E$2:$E$162,SMALL(IF(($E$2:$E$162)<>\"\",ROW($E$1:$E$161),\"\"),ROW(J26))),\"\")","v":""},{"$f":"IFERROR(INDEX($F$2:$F$162,SMALL(IF(($F$2:$F$162)<>\"\",ROW($F$1:$F$161),\"\"),ROW(K26))),\"\")","v":""},{"$f":"IFERROR(INDEX($G$2:$G$32,SMALL(IF(($G$2:$G$32)<>\"\",ROW($G$1:$G$31),\"\"),ROW(L26))),\"\")","v":""},{"$f":"IFERROR(INDEX($H$2:$H$32,SMALL(IF(($H$2:$H$32)<>\"\",ROW($H$1:$H$31),\"\"),ROW(M26))),\"\")","v":""}]
[null,null,null,null,{"$f":"IF('Campers Page 1'!E43<>0,(CONCATENATE('Campers Page 1'!C43,\" \",'Campers Page 1'!B43)),\"\")","v":""},{"$f":"IF('Campers Page 1'!D43<>0,(CONCATENATE('Campers Page 1'!C43,\" \",'Campers Page 1'!B43)),\"\")","v":""},{"$f":"IF('Leaders & Financials'!E38<>0,(CONCATENATE('Leaders & Financials'!C38,\" \",'Leaders & Financials'!B38)),\"\")","v":""},{"$f":"IF('Leaders & Financials'!D38<>0,(CONCATENATE('Leaders & Financials'!C38,\" \",'Leaders & Financials'!B38)),\"\")","v":""},null,{"$f":"IFERROR(INDEX($E$2:$E$162,SMALL(IF(($E$2:$E$162)<>\"\",ROW($E$1:$E$161),\"\"),ROW(J27))),\"\")","v":""},{"$f":"IFERROR(INDEX($F$2:$F$162,SMALL(IF(($F$2:$F$162)<>\"\",ROW($F$1:$F$161),\"\"),ROW(K27))),\"\")","v":""},{"$f":"IFERROR(INDEX($G$2:$G$32,SMALL(IF(($G$2:$G$32)<>\"\",ROW($G$1:$G$31),\"\"),ROW(L27))),\"\")","v":""},{"$f":"IFERROR(INDEX($H$2:$H$32,SMALL(IF(($H$2:$H$32)<>\"\",ROW($H$1:$H$31),\"\"),ROW(M27))),\"\")","v":""}]
[null,null,null,null,{"$f":"IF('Campers Page 1'!E44<>0,(CONCATENATE('Campers Page 1'!C44,\" \",'Campers Page 1'!B44)),\"\")","v":""},{"$f":"IF('Campers Page 1'!D44<>0,(CONCATENATE('Campers Page 1'!C44,\" \",'Campers Page 1'!B44)),\"\")","v":""},{"$f":"IF('Leaders & Financials'!E39<>0,(CONCATENATE('Leaders & Financials'!C39,\" \",'Leaders & Financials'!B39)),\"\")","v":""},{"$f":"IF('Leaders & Financials'!D39<>0,(CONCATENATE('Leaders & Financials'!C39,\" \",'Leaders & Financials'!B39)),\"\")","v":""},null,{"$f":"IFERROR(INDEX($E$2:$E$162,SMALL(IF(($E$2:$E$162)<>\"\",ROW($E$1:$E$161),\"\"),ROW(J28))),\"\")","v":""},{"$f":"IFERROR(INDEX($F$2:$F$162,SMALL(IF(($F$2:$F$162)<>\"\",ROW($F$1:$F$161),\"\"),ROW(K28))),\"\")","v":""},{"$f":"IFERROR(INDEX($G$2:$G$32,SMALL(IF(($G$2:$G$32)<>\"\",ROW($G$1:$G$31),\"\"),ROW(L28))),\"\")","v":""},{"$f":"IFERROR(INDEX($H$2:$H$32,SMALL(IF(($H$2:$H$32)<>\"\",ROW($H$1:$H$31),\"\"),ROW(M28))),\"\")","v":""}]
[null,null,null,null,{"$f":"IF('Campers Page 1'!E45<>0,(CONCATENATE('Campers Page 1'!C45,\" \",'Campers Page 1'!B45)),\"\")","v":""},{"$f":"IF('Campers Page 1'!D45<>0,(CONCATENATE('Campers Page 1'!C45,\" \",'Campers Page 1'!B45)),\"\")","v":""},{"$f":"IF('Leaders & Financials'!E40<>0,(CONCATENATE('Leaders & Financials'!C40,\" \",'Leaders & Financials'!B40)),\"\")","v":""},{"$f":"IF('Leaders & Financials'!D40<>0,(CONCATENATE('Leaders & Financials'!C40,\" \",'Leaders & Financials'!B40)),\"\")","v":""},null,{"$f":"IFERROR(INDEX($E$2:$E$162,SMALL(IF(($E$2:$E$162)<>\"\",ROW($E$1:$E$161),\"\"),ROW(J29))),\"\")","v":""},{"$f":"IFERROR(INDEX($F$2:$F$162,SMALL(IF(($F$2:$F$162)<>\"\",ROW($F$1:$F$161),\"\"),ROW(K29))),\"\")","v":""},{"$f":"IFERROR(INDEX($G$2:$G$32,SMALL(IF(($G$2:$G$32)<>\"\",ROW($G$1:$G$31),\"\"),ROW(L29))),\"\")","v":""},{"$f":"IFERROR(INDEX($H$2:$H$32,SMALL(IF(($H$2:$H$32)<>\"\",ROW($H$1:$H$31),\"\"),ROW(M29))),\"\")","v":""}]
[null,null,null,null,{"$f":"IF('Campers Page 1'!E46<>0,(CONCATENATE('Campers Page 1'!C46,\" \",'Campers Page 1'!B46)),\"\")","v":""},{"$f":"IF('Campers Page 1'!D46<>0,(CONCATENATE('Campers Page 1'!C46,\" \",'Campers Page 1'!B46)),\"\")","v":""},{"$f":"IF('Leaders & Financials'!E41<>0,(CONCATENATE('Leaders & Financials'!C41,\" \",'Leaders & Financials'!B41)),\"\")","v":""},{"$f":"IF('Leaders & Financials'!D41<>0,(CONCATENATE('Leaders & Financials'!C41,\" \",'Leaders & Financials'!B41)),\"\")","v":""},null,{"$f":"IFERROR(INDEX($E$2:$E$162,SMALL(IF(($E$2:$E$162)<>\"\",ROW($E$1:$E$161),\"\"),ROW(J30))),\"\")","v":""},{"$f":"IFERROR(INDEX($F$2:$F$162,SMALL(IF(($F$2:$F$162)<>\"\",ROW($F$1:$F$161),\"\"),ROW(K30))),\"\")","v":""},{"$f":"IFERROR(INDEX($G$2:$G$32,SMALL(IF(($G$2:$G$32)<>\"\",ROW($G$1:$G$31),\"\"),ROW(L30))),\"\")","v":""},{"$f":"IFERROR(INDEX($H$2:$H$32,SMALL(IF(($H$2:$H$32)<>\"\",ROW($H$1:$H$31),\"\"),ROW(M30))),\"\")","v":""}]
[null,null,null,null,{"$f":"IF('Campers Page 1'!E47<>0,(CONCATENATE('Campers Page 1'!C47,\" \",'Campers Page 1'!B47)),\"\")","v":""},{"$f":"IF('Campers Page 1'!D47<>0,(CONCATENATE('Campers Page 1'!C47,\" \",'Campers Page 1'!B47)),\"\")","v":""},"End","End",null,{"$f":"IFERROR(INDEX($E$2:$E$162,SMALL(IF(($E$2:$E$162)<>\"\",ROW($E$1:$E$161),\"\"),ROW(J31))),\"\")","v":""},{"$f":"IFERROR(INDEX($F$2:$F$162,SMALL(IF(($F$2:$F$162)<>\"\",ROW($F$1:$F$161),\"\"),ROW(K31))),\"\")","v":""},"End","End"]
[null,null,null,null,{"$f":"IF('Campers Page 1'!E48<>0,(CONCATENATE('Campers Page 1'!C48,\" \",'Campers Page 1'!B48)),\"\")","v":""},{"$f":"IF('Campers Page 1'!D48<>0,(CONCATENATE('Campers Page 1'!C48,\" \",'Campers Page 1'!B48)),\"\")","v":""},null,null,null,{"$f":"IFERROR(INDEX($E$2:$E$162,SMALL(IF(($E$2:$E$162)<>\"\",ROW($E$1:$E$161),\"\"),ROW(J32))),\"\")","v":""},{"$f":"IFERROR(INDEX($F$2:$F$162,SMALL(IF(($F$2:$F$162)<>\"\",ROW($F$1:$F$161),\"\"),ROW(K32))),\"\")","v":""}]
[null,null,null,null,{"$f":"IF('Campers Page 1'!E49<>0,(CONCATENATE('Campers Page 1'!C49,\" \",'Campers Page 1'!B49)),\"\")","v":""},{"$f":"IF('Campers Page 1'!D49<>0,(CONCATENATE('Campers Page 1'!C49,\" \",'Campers Page 1'!B49)),\"\")","v":""},null,null,null,{"$f":"IFERROR(INDEX($E$2:$E$162,SMALL(IF(($E$2:$E$162)<>\"\",ROW($E$1:$E$161),\"\"),ROW(J33))),\"\")","v":""},{"$f":"IFERROR(INDEX($F$2:$F$162,SMALL(IF(($F$2:$F$162)<>\"\",ROW($F$1:$F$161),\"\"),ROW(K33))),\"\")","v":""}]
[null,null,null,null,{"$f":"IF('Campers Page 1'!E50<>0,(CONCATENATE('Campers Page 1'!C50,\" \",'Campers Page 1'!B50)),\"\")","v":""},{"$f":"IF('Campers Page 1'!D50<>0,(CONCATENATE('Campers Page 1'!C50,\" \",'Campers Page 1'!B50)),\"\")","v":""},null,null,null,{"$f":"IFERROR(INDEX($E$2:$E$162,SMALL(IF(($E$2:$E$162)<>\"\",ROW($E$1:$E$161),\"\"),ROW(J34))),\"\")","v":""},{"$f":"IFERROR(INDEX($F$2:$F$162,SMALL(IF(($F$2:$F$162)<>\"\",ROW($F$1:$F$161),\"\"),ROW(K34))),\"\")","v":""}]
[null,null,null,null,{"$f":"IF('Campers Page 1'!E51<>0,(CONCATENATE('Campers Page 1'!C51,\" \",'Campers Page 1'!B51)),\"\")","v":""},{"$f":"IF('Campers Page 1'!D51<>0,(CONCATENATE('Campers Page 1'!C51,\" \",'Campers Page 1'!B51)),\"\")","v":""},null,null,null,{"$f":"IFERROR(INDEX($E$2:$E$162,SMALL(IF(($E$2:$E$162)<>\"\",ROW($E$1:$E$161),\"\"),ROW(J35))),\"\")","v":""},{"$f":"IFERROR(INDEX($F$2:$F$162,SMALL(IF(($F$2:$F$162)<>\"\",ROW($F$1:$F$161),\"\"),ROW(K35))),\"\")","v":""}]
[null,null,null,null,{"$f":"IF('Campers Page 1'!E52<>0,(CONCATENATE('Campers Page 1'!C52,\" \",'Campers Page 1'!B52)),\"\")","v":""},{"$f":"IF('Campers Page 1'!D52<>0,(CONCATENATE('Campers Page 1'!C52,\" \",'Campers Page 1'!B52)),\"\")","v":""},null,null,null,{"$f":"IFERROR(INDEX($E$2:$E$162,SMALL(IF(($E$2:$E$162)<>\"\",ROW($E$1:$E$161),\"\"),ROW(J36))),\"\")","v":""},{"$f":"IFERROR(INDEX($F$2:$F$162,SMALL(IF(($F$2:$F$162)<>\"\",ROW($F$1:$F$161),\"\"),ROW(K36))),\"\")","v":""}]
[null,null,null,null,{"$f":"IF('Campers Page 1'!E53<>0,(CONCATENATE('Campers Page 1'!C53,\" \",'Campers Page 1'!B53)),\"\")","v":""},{"$f":"IF('Campers Page 1'!D53<>0,(CONCATENATE('Campers Page 1'!C53,\" \",'Campers Page 1'!B53)),\"\")","v":""},null,null,null,{"$f":"IFERROR(INDEX($E$2:$E$162,SMALL(IF(($E$2:$E$162)<>\"\",ROW($E$1:$E$161),\"\"),ROW(J37))),\"\")","v":""},{"$f":"IFERROR(INDEX($F$2:$F$162,SMALL(IF(($F$2:$F$162)<>\"\",ROW($F$1:$F$161),\"\"),ROW(K37))),\"\")","v":""}]
[null,null,null,null,{"$f":"IF('Campers Page 1'!E54<>0,(CONCATENATE('Campers Page 1'!C54,\" \",'Campers Page 1'!B54)),\"\")","v":""},{"$f":"IF('Campers Page 1'!D54<>0,(CONCATENATE('Campers Page 1'!C54,\" \",'Campers Page 1'!B54)),\"\")","v":""},null,null,null,{"$f":"IFERROR(INDEX($E$2:$E$162,SMALL(IF(($E$2:$E$162)<>\"\",ROW($E$1:$E$161),\"\"),ROW(J38))),\"\")","v":""},{"$f":"IFERROR(INDEX($F$2:$F$162,SMALL(IF(($F$2:$F$162)<>\"\",ROW($F$1:$F$161),\"\"),ROW(K38))),\"\")","v":""}]
[null,null,null,null,{"$f":"IF('Campers Page 1'!E55<>0,(CONCATENATE('Campers Page 1'!C55,\" \",'Campers Page 1'!B55)),\"\")","v":""},{"$f":"IF('Campers Page 1'!D55<>0,(CONCATENATE('Campers Page 1'!C55,\" \",'Campers Page 1'!B55)),\"\")","v":""},null,null,null,{"$f":"IFERROR(INDEX($E$2:$E$162,SMALL(IF(($E$2:$E$162)<>\"\",ROW($E$1:$E$161),\"\"),ROW(J39))),\"\")","v":""},{"$f":"IFERROR(INDEX($F$2:$F$162,SMALL(IF(($F$2:$F$162)<>\"\",ROW($F$1:$F$161),\"\"),ROW(K39))),\"\")","v":""}]
[null,null,null,null,{"$f":"IF('Campers Page 1'!E56<>0,(CONCATENATE('Campers Page 1'!C56,\" \",'Campers Page 1'!B56)),\"\")","v":""},{"$f":"IF('Campers Page 1'!D56<>0,(CONCATENATE('Campers Page 1'!C56,\" \",'Campers Page 1'!B56)),\"\")","v":""},null,null,null,{"$f":"IFERROR(INDEX($E$2:$E$162,SMALL(IF(($E$2:$E$162)<>\"\",ROW($E$1:$E$161),\"\"),ROW(J40))),\"\")","v":""},{"$f":"IFERROR(INDEX($F$2:$F$162,SMALL(IF(($F$2:$F$162)<>\"\",ROW($F$1:$F$161),\"\"),ROW(K40))),\"\")","v":""}]
[null,null,null,null,{"$f":"IF('Campers Page 1'!N17<>0,(CONCATENATE('Campers Page 1'!L17,\" \",'Campers Page 1'!K17)),\"\")","v":""},{"$f":"IF('Campers Page 1'!M17<>0,(CONCATENATE('Campers Page 1'!L17,\" \",'Campers Page 1'!K17)),\"\")","v":""},null,null,null,{"$f":"IFERROR(INDEX($E$2:$E$162,SMALL(IF(($E$2:$E$162)<>\"\",ROW($E$1:$E$161),\"\"),ROW(J41))),\"\")","v":""},{"$f":"IFERROR(INDEX($F$2:$F$162,SMALL(IF(($F$2:$F$162)<>\"\",ROW($F$1:$F$161),\"\"),ROW(K41))),\"\")","v":""}]
[null,null,null,null,{"$f":"IF('Campers Page 1'!N18<>0,(CONCATENATE('Campers Page 1'!L18,\" \",'Campers Page 1'!K18)),\"\")","v":""},{"$f":"IF('Campers Page 1'!M18<>0,(CONCATENATE('Campers Page 1'!L18,\" \",'Campers Page 1'!K18)),\"\")","v":""},null,null,null,{"$f":"IFERROR(INDEX($E$2:$E$162,SMALL(IF(($E$2:$E$162)<>\"\",ROW($E$1:$E$161),\"\"),ROW(J42))),\"\")","v":""},{"$f":"IFERROR(INDEX($F$2:$F$162,SMALL(IF(($F$2:$F$162)<>\"\",ROW($F$1:$F$161),\"\"),ROW(K42))),\"\")","v":""}]
[null,null,null,null,{"$f":"IF('Campers Page 1'!N19<>0,(CONCATENATE('Campers Page 1'!L19,\" \",'Campers Page 1'!K19)),\"\")","v":""},{"$f":"IF('Campers Page 1'!M19<>0,(CONCATENATE('Campers Page 1'!L19,\" \",'Campers Page 1'!K19)),\"\")","v":""},null,null,null,{"$f":"IFERROR(INDEX($E$2:$E$162,SMALL(IF(($E$2:$E$162)<>\"\",ROW($E$1:$E$161),\"\"),ROW(J43))),\"\")","v":""},{"$f":"IFERROR(INDEX($F$2:$F$162,SMALL(IF(($F$2:$F$162)<>\"\",ROW($F$1:$F$161),\"\"),ROW(K43))),\"\")","v":""}]
[null,null,null,null,{"$f":"IF('Campers Page 1'!N20<>0,(CONCATENATE('Campers Page 1'!L20,\" \",'Campers Page 1'!K20)),\"\")","v":""},{"$f":"IF('Campers Page 1'!M20<>0,(CONCATENATE('Campers Page 1'!L20,\" \",'Campers Page 1'!K20)),\"\")","v":""},null,null,null,{"$f":"IFERROR(INDEX($E$2:$E$162,SMALL(IF(($E$2:$E$162)<>\"\",ROW($E$1:$E$161),\"\"),ROW(J44))),\"\")","v":""},{"$f":"IFERROR(INDEX($F$2:$F$162,SMALL(IF(($F$2:$F$162)<>\"\",ROW($F$1:$F$161),\"\"),ROW(K44))),\"\")","v":""}]
[null,null,null,null,{"$f":"IF('Campers Page 1'!N21<>0,(CONCATENATE('Campers Page 1'!L21,\" \",'Campers Page 1'!K21)),\"\")","v":""},{"$f":"IF('Campers Page 1'!M21<>0,(CONCATENATE('Campers Page 1'!L21,\" \",'Campers Page 1'!K21)),\"\")","v":""},null,null,null,{"$f":"IFERROR(INDEX($E$2:$E$162,SMALL(IF(($E$2:$E$162)<>\"\",ROW($E$1:$E$161),\"\"),ROW(J45))),\"\")","v":""},{"$f":"IFERROR(INDEX($F$2:$F$162,SMALL(IF(($F$2:$F$162)<>\"\",ROW($F$1:$F$161),\"\"),ROW(K45))),\"\")","v":""}]
[null,null,null,null,{"$f":"IF('Campers Page 1'!N22<>0,(CONCATENATE('Campers Page 1'!L22,\" \",'Campers Page 1'!K22)),\"\")","v":""},{"$f":"IF('Campers Page 1'!M22<>0,(CONCATENATE('Campers Page 1'!L22,\" \",'Campers Page 1'!K22)),\"\")","v":""},null,null,null,{"$f":"IFERROR(INDEX($E$2:$E$162,SMALL(IF(($E$2:$E$162)<>\"\",ROW($E$1:$E$161),\"\"),ROW(J46))),\"\")","v":""},{"$f":"IFERROR(INDEX($F$2:$F$162,SMALL(IF(($F$2:$F$162)<>\"\",ROW($F$1:$F$161),\"\"),ROW(K46))),\"\")","v":""}]
[null,null,null,null,{"$f":"IF('Campers Page 1'!N23<>0,(CONCATENATE('Campers Page 1'!L23,\" \",'Campers Page 1'!K23)),\"\")","v":""},{"$f":"IF('Campers Page 1'!M23<>0,(CONCATENATE('Campers Page 1'!L23,\" \",'Campers Page 1'!K23)),\"\")","v":""},null,null,null,{"$f":"IFERROR(INDEX($E$2:$E$162,SMALL(IF(($E$2:$E$162)<>\"\",ROW($E$1:$E$161),\"\"),ROW(J47))),\"\")","v":""},{"$f":"IFERROR(INDEX($F$2:$F$162,SMALL(IF(($F$2:$F$162)<>\"\",ROW($F$1:$F$161),\"\"),ROW(K47))),\"\")","v":""}]
[null,null,null,null,{"$f":"IF('Campers Page 1'!N24<>0,(CONCATENATE('Campers Page 1'!L24,\" \",'Campers Page 1'!K24)),\"\")","v":""},{"$f":"IF('Campers Page 1'!M24<>0,(CONCATENATE('Campers Page 1'!L24,\" \",'Campers Page 1'!K24)),\"\")","v":""},null,null,null,{"$f":"IFERROR(INDEX($E$2:$E$162,SMALL(IF(($E$2:$E$162)<>\"\",ROW($E$1:$E$161),\"\"),ROW(J48))),\"\")","v":""},{"$f":"IFERROR(INDEX($F$2:$F$162,SMALL(IF(($F$2:$F$162)<>\"\",ROW($F$1:$F$161),\"\"),ROW(K48))),\"\")","v":""}]
[null,null,null,null,{"$f":"IF('Campers Page 1'!N25<>0,(CONCATENATE('Campers Page 1'!L25,\" \",'Campers Page 1'!K25)),\"\")","v":""},{"$f":"IF('Campers Page 1'!M25<>0,(CONCATENATE('Campers Page 1'!L25,\" \",'Campers Page 1'!K25)),\"\")","v":""},null,null,null,{"$f":"IFERROR(INDEX($E$2:$E$162,SMALL(IF(($E$2:$E$162)<>\"\",ROW($E$1:$E$161),\"\"),ROW(J49))),\"\")","v":""},{"$f":"IFERROR(INDEX($F$2:$F$162,SMALL(IF(($F$2:$F$162)<>\"\",ROW($F$1:$F$161),\"\"),ROW(K49))),\"\")","v":""}]
[null,null,null,null,{"$f":"IF('Campers Page 1'!N26<>0,(CONCATENATE('Campers Page 1'!L26,\" \",'Campers Page 1'!K26)),\"\")","v":""},{"$f":"IF('Campers Page 1'!M26<>0,(CONCATENATE('Campers Page 1'!L26,\" \",'Campers Page 1'!K26)),\"\")","v":""},null,null,null,{"$f":"IFERROR(INDEX($E$2:$E$162,SMALL(IF(($E$2:$E$162)<>\"\",ROW($E$1:$E$161),\"\"),ROW(J50))),\"\")","v":""},{"$f":"IFERROR(INDEX($F$2:$F$162,SMALL(IF(($F$2:$F$162)<>\"\",ROW($F$1:$F$161),\"\"),ROW(K50))),\"\")","v":""}]
[null,null,null,null,{"$f":"IF('Campers Page 1'!N27<>0,(CONCATENATE('Campers Page 1'!L27,\" \",'Campers Page 1'!K27)),\"\")","v":""},{"$f":"IF('Campers Page 1'!M27<>0,(CONCATENATE('Campers Page 1'!L27,\" \",'Campers Page 1'!K27)),\"\")","v":""},null,null,null,{"$f":"IFERROR(INDEX($E$2:$E$162,SMALL(IF(($E$2:$E$162)<>\"\",ROW($E$1:$E$161),\"\"),ROW(J51))),\"\")","v":""},{"$f":"IFERROR(INDEX($F$2:$F$162,SMALL(IF(($F$2:$F$162)<>\"\",ROW($F$1:$F$161),\"\"),ROW(K51))),\"\")","v":""}]
[null,null,null,null,{"$f":"IF('Campers Page 1'!N28<>0,(CONCATENATE('Campers Page 1'!L28,\" \",'Campers Page 1'!K28)),\"\")","v":""},{"$f":"IF('Campers Page 1'!M28<>0,(CONCATENATE('Campers Page 1'!L28,\" \",'Campers Page 1'!K28)),\"\")","v":""},null,null,null,{"$f":"IFERROR(INDEX($E$2:$E$162,SMALL(IF(($E$2:$E$162)<>\"\",ROW($E$1:$E$161),\"\"),ROW(J52))),\"\")","v":""},{"$f":"IFERROR(INDEX($F$2:$F$162,SMALL(IF(($F$2:$F$162)<>\"\",ROW($F$1:$F$161),\"\"),ROW(K52))),\"\")","v":""}]
[null,null,null,null,{"$f":"IF('Campers Page 1'!N29<>0,(CONCATENATE('Campers Page 1'!L29,\" \",'Campers Page 1'!K29)),\"\")","v":""},{"$f":"IF('Campers Page 1'!M29<>0,(CONCATENATE('Campers Page 1'!L29,\" \",'Campers Page 1'!K29)),\"\")","v":""},null,null,null,{"$f":"IFERROR(INDEX($E$2:$E$162,SMALL(IF(($E$2:$E$162)<>\"\",ROW($E$1:$E$161),\"\"),ROW(J53))),\"\")","v":""},{"$f":"IFERROR(INDEX($F$2:$F$162,SMALL(IF(($F$2:$F$162)<>\"\",ROW($F$1:$F$161),\"\"),ROW(K53))),\"\")","v":""}]
[null,null,null,null,{"$f":"IF('Campers Page 1'!N30<>0,(CONCATENATE('Campers Page 1'!L30,\" \",'Campers Page 1'!K30)),\"\")","v":""},{"$f":"IF('Campers Page 1'!M30<>0,(CONCATENATE('Campers Page 1'!L30,\" \",'Campers Page 1'!K30)),\"\")","v":""},null,null,null,{"$f":"IFERROR(INDEX($E$2:$E$162,SMALL(IF(($E$2:$E$162)<>\"\",ROW($E$1:$E$161),\"\"),ROW(J54))),\"\")","v":""},{"$f":"IFERROR(INDEX($F$2:$F$162,SMALL(IF(($F$2:$F$162)<>\"\",ROW($F$1:$F$161),\"\"),ROW(K54))),\"\")","v":""}]
[null,null,null,null,{"$f":"IF('Campers Page 1'!N31<>0,(CONCATENATE('Campers Page 1'!L31,\" \",'Campers Page 1'!K31)),\"\")","v":""},{"$f":"IF('Campers Page 1'!M31<>0,(CONCATENATE('Campers Page 1'!L31,\" \",'Campers Page 1'!K31)),\"\")","v":""},null,null,null,{"$f":"IFERROR(INDEX($E$2:$E$162,SMALL(IF(($E$2:$E$162)<>\"\",ROW($E$1:$E$161),\"\"),ROW(J55))),\"\")","v":""},{"$f":"IFERROR(INDEX($F$2:$F$162,SMALL(IF(($F$2:$F$162)<>\"\",ROW($F$1:$F$161),\"\"),ROW(K55))),\"\")","v":""}]
[null,null,null,null,{"$f":"IF('Campers Page 1'!N32<>0,(CONCATENATE('Campers Page 1'!L32,\" \",'Campers Page 1'!K32)),\"\")","v":""},{"$f":"IF('Campers Page 1'!M32<>0,(CONCATENATE('Campers Page 1'!L32,\" \",'Campers Page 1'!K32)),\"\")","v":""},null,null,null,{"$f":"IFERROR(INDEX($E$2:$E$162,SMALL(IF(($E$2:$E$162)<>\"\",ROW($E$1:$E$161),\"\"),ROW(J56))),\"\")","v":""},{"$f":"IFERROR(INDEX($F$2:$F$162,SMALL(IF(($F$2:$F$162)<>\"\",ROW($F$1:$F$161),\"\"),ROW(K56))),\"\")","v":""}]
[null,null,null,null,{"$f":"IF('Campers Page 1'!N33<>0,(CONCATENATE('Campers Page 1'!L33,\" \",'Campers Page 1'!K33)),\"\")","v":""},{"$f":"IF('Campers Page 1'!M33<>0,(CONCATENATE('Campers Page 1'!L33,\" \",'Campers Page 1'!K33)),\"\")","v":""},null,null,null,{"$f":"IFERROR(INDEX($E$2:$E$162,SMALL(IF(($E$2:$E$162)<>\"\",ROW($E$1:$E$161),\"\"),ROW(J57))),\"\")","v":""},{"$f":"IFERROR(INDEX($F$2:$F$162,SMALL(IF(($F$2:$F$162)<>\"\",ROW($F$1:$F$161),\"\"),ROW(K57))),\"\")","v":""}]
[null,null,null,null,{"$f":"IF('Campers Page 1'!N34<>0,(CONCATENATE('Campers Page 1'!L34,\" \",'Campers Page 1'!K34)),\"\")","v":""},{"$f":"IF('Campers Page 1'!M34<>0,(CONCATENATE('Campers Page 1'!L34,\" \",'Campers Page 1'!K34)),\"\")","v":""},null,null,null,{"$f":"IFERROR(INDEX($E$2:$E$162,SMALL(IF(($E$2:$E$162)<>\"\",ROW($E$1:$E$161),\"\"),ROW(J58))),\"\")","v":""},{"$f":"IFERROR(INDEX($F$2:$F$162,SMALL(IF(($F$2:$F$162)<>\"\",ROW($F$1:$F$161),\"\"),ROW(K58))),\"\")","v":""}]
[null,null,null,null,{"$f":"IF('Campers Page 1'!N35<>0,(CONCATENATE('Campers Page 1'!L35,\" \",'Campers Page 1'!K35)),\"\")","v":""},{"$f":"IF('Campers Page 1'!M35<>0,(CONCATENATE('Campers Page 1'!L35,\" \",'Campers Page 1'!K35)),\"\")","v":""},null,null,null,{"$f":"IFERROR(INDEX($E$2:$E$162,SMALL(IF(($E$2:$E$162)<>\"\",ROW($E$1:$E$161),\"\"),ROW(J59))),\"\")","v":""},{"$f":"IFERROR(INDEX($F$2:$F$162,SMALL(IF(($F$2:$F$162)<>\"\",ROW($F$1:$F$161),\"\"),ROW(K59))),\"\")","v":""}]
[null,null,null,null,{"$f":"IF('Campers Page 1'!N36<>0,(CONCATENATE('Campers Page 1'!L36,\" \",'Campers Page 1'!K36)),\"\")","v":""},{"$f":"IF('Campers Page 1'!M36<>0,(CONCATENATE('Campers Page 1'!L36,\" \",'Campers Page 1'!K36)),\"\")","v":""},null,null,null,{"$f":"IFERROR(INDEX($E$2:$E$162,SMALL(IF(($E$2:$E$162)<>\"\",ROW($E$1:$E$161),\"\"),ROW(J60))),\"\")","v":""},{"$f":"IFERROR(INDEX($F$2:$F$162,SMALL(IF(($F$2:$F$162)<>\"\",ROW($F$1:$F$161),\"\"),ROW(K60))),\"\")","v":""}]
[null,null,null,null,{"$f":"IF('Campers Page 1'!N37<>0,(CONCATENATE('Campers Page 1'!L37,\" \",'Campers Page 1'!K37)),\"\")","v":""},{"$f":"IF('Campers Page 1'!M37<>0,(CONCATENATE('Campers Page 1'!L37,\" \",'Campers Page 1'!K37)),\"\")","v":""},null,null,null,{"$f":"IFERROR(INDEX($E$2:$E$162,SMALL(IF(($E$2:$E$162)<>\"\",ROW($E$1:$E$161),\"\"),ROW(J61))),\"\")","v":""},{"$f":"IFERROR(INDEX($F$2:$F$162,SMALL(IF(($F$2:$F$162)<>\"\",ROW($F$1:$F$161),\"\"),ROW(K61))),\"\")","v":""}]
[null,null,null,null,{"$f":"IF('Campers Page 1'!N38<>0,(CONCATENATE('Campers Page 1'!L38,\" \",'Campers Page 1'!K38)),\"\")","v":""},{"$f":"IF('Campers Page 1'!M38<>0,(CONCATENATE('Campers Page 1'!L38,\" \",'Campers Page 1'!K38)),\"\")","v":""},null,null,null,{"$f":"IFERROR(INDEX($E$2:$E$162,SMALL(IF(($E$2:$E$162)<>\"\",ROW($E$1:$E$161),\"\"),ROW(J62))),\"\")","v":""},{"$f":"IFERROR(INDEX($F$2:$F$162,SMALL(IF(($F$2:$F$162)<>\"\",ROW($F$1:$F$161),\"\"),ROW(K62))),\"\")","v":""}]
[null,null,null,null,{"$f":"IF('Campers Page 1'!N39<>0,(CONCATENATE('Campers Page 1'!L39,\" \",'Campers Page 1'!K39)),\"\")","v":""},{"$f":"IF('Campers Page 1'!M39<>0,(CONCATENATE('Campers Page 1'!L39,\" \",'Campers Page 1'!K39)),\"\")","v":""},null,null,null,{"$f":"IFERROR(INDEX($E$2:$E$162,SMALL(IF(($E$2:$E$162)<>\"\",ROW($E$1:$E$161),\"\"),ROW(J63))),\"\")","v":""},{"$f":"IFERROR(INDEX($F$2:$F$162,SMALL(IF(($F$2:$F$162)<>\"\",ROW($F$1:$F$161),\"\"),ROW(K63))),\"\")","v":""}]
[null,null,null,null,{"$f":"IF('Campers Page 1'!N40<>0,(CONCATENATE('Campers Page 1'!L40,\" \",'Campers Page 1'!K40)),\"\")","v":""},{"$f":"IF('Campers Page 1'!M40<>0,(CONCATENATE('Campers Page 1'!L40,\" \",'Campers Page 1'!K40)),\"\")","v":""},null,null,null,{"$f":"IFERROR(INDEX($E$2:$E$162,SMALL(IF(($E$2:$E$162)<>\"\",ROW($E$1:$E$161),\"\"),ROW(J64))),\"\")","v":""},{"$f":"IFERROR(INDEX($F$2:$F$162,SMALL(IF(($F$2:$F$162)<>\"\",ROW($F$1:$F$161),\"\"),ROW(K64))),\"\")","v":""}]
[null,null,null,null,{"$f":"IF('Campers Page 1'!N41<>0,(CONCATENATE('Campers Page 1'!L41,\" \",'Campers Page 1'!K41)),\"\")","v":""},{"$f":"IF('Campers Page 1'!M41<>0,(CONCATENATE('Campers Page 1'!L41,\" \",'Campers Page 1'!K41)),\"\")","v":""},null,null,null,{"$f":"IFERROR(INDEX($E$2:$E$162,SMALL(IF(($E$2:$E$162)<>\"\",ROW($E$1:$E$161),\"\"),ROW(J65))),\"\")","v":""},{"$f":"IFERROR(INDEX($F$2:$F$162,SMALL(IF(($F$2:$F$162)<>\"\",ROW($F$1:$F$161),\"\"),ROW(K65))),\"\")","v":""}]
[null,null,null,null,{"$f":"IF('Campers Page 1'!N42<>0,(CONCATENATE('Campers Page 1'!L42,\" \",'Campers Page 1'!K42)),\"\")","v":""},{"$f":"IF('Campers Page 1'!M42<>0,(CONCATENATE('Campers Page 1'!L42,\" \",'Campers Page 1'!K42)),\"\")","v":""},null,null,null,{"$f":"IFERROR(INDEX($E$2:$E$162,SMALL(IF(($E$2:$E$162)<>\"\",ROW($E$1:$E$161),\"\"),ROW(J66))),\"\")","v":""},{"$f":"IFERROR(INDEX($F$2:$F$162,SMALL(IF(($F$2:$F$162)<>\"\",ROW($F$1:$F$161),\"\"),ROW(K66))),\"\")","v":""}]
[null,null,null,null,{"$f":"IF('Campers Page 1'!N43<>0,(CONCATENATE('Campers Page 1'!L43,\" \",'Campers Page 1'!K43)),\"\")","v":""},{"$f":"IF('Campers Page 1'!M43<>0,(CONCATENATE('Campers Page 1'!L43,\" \",'Campers Page 1'!K43)),\"\")","v":""},null,null,null,{"$f":"IFERROR(INDEX($E$2:$E$162,SMALL(IF(($E$2:$E$162)<>\"\",ROW($E$1:$E$161),\"\"),ROW(J67))),\"\")","v":""},{"$f":"IFERROR(INDEX($F$2:$F$162,SMALL(IF(($F$2:$F$162)<>\"\",ROW($F$1:$F$161),\"\"),ROW(K67))),\"\")","v":""}]
[null,null,null,null,{"$f":"IF('Campers Page 1'!N44<>0,(CONCATENATE('Campers Page 1'!L44,\" \",'Campers Page 1'!K44)),\"\")","v":""},{"$f":"IF('Campers Page 1'!M44<>0,(CONCATENATE('Campers Page 1'!L44,\" \",'Campers Page 1'!K44)),\"\")","v":""},null,null,null,{"$f":"IFERROR(INDEX($E$2:$E$162,SMALL(IF(($E$2:$E$162)<>\"\",ROW($E$1:$E$161),\"\"),ROW(J68))),\"\")","v":""},{"$f":"IFERROR(INDEX($F$2:$F$162,SMALL(IF(($F$2:$F$162)<>\"\",ROW($F$1:$F$161),\"\"),ROW(K68))),\"\")","v":""}]
[null,null,null,null,{"$f":"IF('Campers Page 1'!N45<>0,(CONCATENATE('Campers Page 1'!L45,\" \",'Campers Page 1'!K45)),\"\")","v":""},{"$f":"IF('Campers Page 1'!M45<>0,(CONCATENATE('Campers Page 1'!L45,\" \",'Campers Page 1'!K45)),\"\")","v":""},null,null,null,{"$f":"IFERROR(INDEX($E$2:$E$162,SMALL(IF(($E$2:$E$162)<>\"\",ROW($E$1:$E$161),\"\"),ROW(J69))),\"\")","v":""},{"$f":"IFERROR(INDEX($F$2:$F$162,SMALL(IF(($F$2:$F$162)<>\"\",ROW($F$1:$F$161),\"\"),ROW(K69))),\"\")","v":""}]
[null,null,null,null,{"$f":"IF('Campers Page 1'!N46<>0,(CONCATENATE('Campers Page 1'!L46,\" \",'Campers Page 1'!K46)),\"\")","v":""},{"$f":"IF('Campers Page 1'!M46<>0,(CONCATENATE('Campers Page 1'!L46,\" \",'Campers Page 1'!K46)),\"\")","v":""},null,null,null,{"$f":"IFERROR(INDEX($E$2:$E$162,SMALL(IF(($E$2:$E$162)<>\"\",ROW($E$1:$E$161),\"\"),ROW(J70))),\"\")","v":""},{"$f":"IFERROR(INDEX($F$2:$F$162,SMALL(IF(($F$2:$F$162)<>\"\",ROW($F$1:$F$161),\"\"),ROW(K70))),\"\")","v":""}]
[null,null,null,null,{"$f":"IF('Campers Page 1'!N47<>0,(CONCATENATE('Campers Page 1'!L47,\" \",'Campers Page 1'!K47)),\"\")","v":""},{"$f":"IF('Campers Page 1'!M47<>0,(CONCATENATE('Campers Page 1'!L47,\" \",'Campers Page 1'!K47)),\"\")","v":""},null,null,null,{"$f":"IFERROR(INDEX($E$2:$E$162,SMALL(IF(($E$2:$E$162)<>\"\",ROW($E$1:$E$161),\"\"),ROW(J71))),\"\")","v":""},{"$f":"IFERROR(INDEX($F$2:$F$162,SMALL(IF(($F$2:$F$162)<>\"\",ROW($F$1:$F$161),\"\"),ROW(K71))),\"\")","v":""}]
[null,null,null,null,{"$f":"IF('Campers Page 1'!N48<>0,(CONCATENATE('Campers Page 1'!L48,\" \",'Campers Page 1'!K48)),\"\")","v":""},{"$f":"IF('Campers Page 1'!M48<>0,(CONCATENATE('Campers Page 1'!L48,\" \",'Campers Page 1'!K48)),\"\")","v":""},null,null,null,{"$f":"IFERROR(INDEX($E$2:$E$162,SMALL(IF(($E$2:$E$162)<>\"\",ROW($E$1:$E$161),\"\"),ROW(J72))),\"\")","v":""},{"$f":"IFERROR(INDEX($F$2:$F$162,SMALL(IF(($F$2:$F$162)<>\"\",ROW($F$1:$F$161),\"\"),ROW(K72))),\"\")","v":""}]
[null,null,null,null,{"$f":"IF('Campers Page 1'!N49<>0,(CONCATENATE('Campers Page 1'!L49,\" \",'Campers Page 1'!K49)),\"\")","v":""},{"$f":"IF('Campers Page 1'!M49<>0,(CONCATENATE('Campers Page 1'!L49,\" \",'Campers Page 1'!K49)),\"\")","v":""},null,null,null,{"$f":"IFERROR(INDEX($E$2:$E$162,SMALL(IF(($E$2:$E$162)<>\"\",ROW($E$1:$E$161),\"\"),ROW(J73))),\"\")","v":""},{"$f":"IFERROR(INDEX($F$2:$F$162,SMALL(IF(($F$2:$F$162)<>\"\",ROW($F$1:$F$161),\"\"),ROW(K73))),\"\")","v":""}]
[null,null,null,null,{"$f":"IF('Campers Page 1'!N50<>0,(CONCATENATE('Campers Page 1'!L50,\" \",'Campers Page 1'!K50)),\"\")","v":""},{"$f":"IF('Campers Page 1'!M50<>0,(CONCATENATE('Campers Page 1'!L50,\" \",'Campers Page 1'!K50)),\"\")","v":""},null,null,null,{"$f":"IFERROR(INDEX($E$2:$E$162,SMALL(IF(($E$2:$E$162)<>\"\",ROW($E$1:$E$161),\"\"),ROW(J74))),\"\")","v":""},{"$f":"IFERROR(INDEX($F$2:$F$162,SMALL(IF(($F$2:$F$162)<>\"\",ROW($F$1:$F$161),\"\"),ROW(K74))),\"\")","v":""}]
[null,null,null,null,{"$f":"IF('Campers Page 1'!N51<>0,(CONCATENATE('Campers Page 1'!L51,\" \",'Campers Page 1'!K51)),\"\")","v":""},{"$f":"IF('Campers Page 1'!M51<>0,(CONCATENATE('Campers Page 1'!L51,\" \",'Campers Page 1'!K51)),\"\")","v":""},null,null,null,{"$f":"IFERROR(INDEX($E$2:$E$162,SMALL(IF(($E$2:$E$162)<>\"\",ROW($E$1:$E$161),\"\"),ROW(J75))),\"\")","v":""},{"$f":"IFERROR(INDEX($F$2:$F$162,SMALL(IF(($F$2:$F$162)<>\"\",ROW($F$1:$F$161),\"\"),ROW(K75))),\"\")","v":""}]
[null,null,null,null,{"$f":"IF('Campers Page 1'!N52<>0,(CONCATENATE('Campers Page 1'!L52,\" \",'Campers Page 1'!K52)),\"\")","v":""},{"$f":"IF('Campers Page 1'!M52<>0,(CONCATENATE('Campers Page 1'!L52,\" \",'Campers Page 1'!K52)),\"\")","v":""},null,null,null,{"$f":"IFERROR(INDEX($E$2:$E$162,SMALL(IF(($E$2:$E$162)<>\"\",ROW($E$1:$E$161),\"\"),ROW(J76))),\"\")","v":""},{"$f":"IFERROR(INDEX($F$2:$F$162,SMALL(IF(($F$2:$F$162)<>\"\",ROW($F$1:$F$161),\"\"),ROW(K76))),\"\")","v":""}]
[null,null,null,null,{"$f":"IF('Campers Page 1'!N53<>0,(CONCATENATE('Campers Page 1'!L53,\" \",'Campers Page 1'!K53)),\"\")","v":""},{"$f":"IF('Campers Page 1'!M53<>0,(CONCATENATE('Campers Page 1'!L53,\" \",'Campers Page 1'!K53)),\"\")","v":""},null,null,null,{"$f":"IFERROR(INDEX($E$2:$E$162,SMALL(IF(($E$2:$E$162)<>\"\",ROW($E$1:$E$161),\"\"),ROW(J77))),\"\")","v":""},{"$f":"IFERROR(INDEX($F$2:$F$162,SMALL(IF(($F$2:$F$162)<>\"\",ROW($F$1:$F$161),\"\"),ROW(K77))),\"\")","v":""}]
[null,null,null,null,{"$f":"IF('Campers Page 1'!N54<>0,(CONCATENATE('Campers Page 1'!L54,\" \",'Campers Page 1'!K54)),\"\")","v":""},{"$f":"IF('Campers Page 1'!M54<>0,(CONCATENATE('Campers Page 1'!L54,\" \",'Campers Page 1'!K54)),\"\")","v":""},null,null,null,{"$f":"IFERROR(INDEX($E$2:$E$162,SMALL(IF(($E$2:$E$162)<>\"\",ROW($E$1:$E$161),\"\"),ROW(J78))),\"\")","v":""},{"$f":"IFERROR(INDEX($F$2:$F$162,SMALL(IF(($F$2:$F$162)<>\"\",ROW($F$1:$F$161),\"\"),ROW(K78))),\"\")","v":""}]
[null,null,null,null,{"$f":"IF('Campers Page 1'!N55<>0,(CONCATENATE('Campers Page 1'!L55,\" \",'Campers Page 1'!K55)),\"\")","v":""},{"$f":"IF('Campers Page 1'!M55<>0,(CONCATENATE('Campers Page 1'!L55,\" \",'Campers Page 1'!K55)),\"\")","v":""},null,null,null,{"$f":"IFERROR(INDEX($E$2:$E$162,SMALL(IF(($E$2:$E$162)<>\"\",ROW($E$1:$E$161),\"\"),ROW(J79))),\"\")","v":""},{"$f":"IFERROR(INDEX($F$2:$F$162,SMALL(IF(($F$2:$F$162)<>\"\",ROW($F$1:$F$161),\"\"),ROW(K79))),\"\")","v":""}]
[null,null,null,null,{"$f":"IF('Campers Page 2'!E16<>0,(CONCATENATE('Campers Page 2'!C16,\" \",'Campers Page 2'!B16)),\"\")","v":""},{"$f":"IF('Campers Page 2'!D16<>0,(CONCATENATE('Campers Page 2'!C16,\" \",'Campers Page 2'!B16)),\"\")","v":""},null,null,null,{"$f":"IFERROR(INDEX($E$2:$E$162,SMALL(IF(($E$2:$E$162)<>\"\",ROW($E$1:$E$161),\"\"),ROW(J80))),\"\")","v":""},{"$f":"IFERROR(INDEX($F$2:$F$162,SMALL(IF(($F$2:$F$162)<>\"\",ROW($F$1:$F$161),\"\"),ROW(K80))),\"\")","v":""}]
[null,null,null,null,{"$f":"IF('Campers Page 2'!E17<>0,(CONCATENATE('Campers Page 2'!C17,\" \",'Campers Page 2'!B17)),\"\")","v":""},{"$f":"IF('Campers Page 2'!D17<>0,(CONCATENATE('Campers Page 2'!C17,\" \",'Campers Page 2'!B17)),\"\")","v":""},null,null,null,{"$f":"IFERROR(INDEX($E$2:$E$162,SMALL(IF(($E$2:$E$162)<>\"\",ROW($E$1:$E$161),\"\"),ROW(J81))),\"\")","v":""},{"$f":"IFERROR(INDEX($F$2:$F$162,SMALL(IF(($F$2:$F$162)<>\"\",ROW($F$1:$F$161),\"\"),ROW(K81))),\"\")","v":""}]
[null,null,null,null,{"$f":"IF('Campers Page 2'!E18<>0,(CONCATENATE('Campers Page 2'!C18,\" \",'Campers Page 2'!B18)),\"\")","v":""},{"$f":"IF('Campers Page 2'!D18<>0,(CONCATENATE('Campers Page 2'!C18,\" \",'Campers Page 2'!B18)),\"\")","v":""},null,null,null,{"$f":"IFERROR(INDEX($E$2:$E$162,SMALL(IF(($E$2:$E$162)<>\"\",ROW($E$1:$E$161),\"\"),ROW(J82))),\"\")","v":""},{"$f":"IFERROR(INDEX($F$2:$F$162,SMALL(IF(($F$2:$F$162)<>\"\",ROW($F$1:$F$161),\"\"),ROW(K82))),\"\")","v":""}]
[null,null,null,null,{"$f":"IF('Campers Page 2'!E19<>0,(CONCATENATE('Campers Page 2'!C19,\" \",'Campers Page 2'!B19)),\"\")","v":""},{"$f":"IF('Campers Page 2'!D19<>0,(CONCATENATE('Campers Page 2'!C19,\" \",'Campers Page 2'!B19)),\"\")","v":""},null,null,null,{"$f":"IFERROR(INDEX($E$2:$E$162,SMALL(IF(($E$2:$E$162)<>\"\",ROW($E$1:$E$161),\"\"),ROW(J83))),\"\")","v":""},{"$f":"IFERROR(INDEX($F$2:$F$162,SMALL(IF(($F$2:$F$162)<>\"\",ROW($F$1:$F$161),\"\"),ROW(K83))),\"\")","v":""}]
[null,null,null,null,{"$f":"IF('Campers Page 2'!E20<>0,(CONCATENATE('Campers Page 2'!C20,\" \",'Campers Page 2'!B20)),\"\")","v":""},{"$f":"IF('Campers Page 2'!D20<>0,(CONCATENATE('Campers Page 2'!C20,\" \",'Campers Page 2'!B20)),\"\")","v":""},null,null,null,{"$f":"IFERROR(INDEX($E$2:$E$162,SMALL(IF(($E$2:$E$162)<>\"\",ROW($E$1:$E$161),\"\"),ROW(J84))),\"\")","v":""},{"$f":"IFERROR(INDEX($F$2:$F$162,SMALL(IF(($F$2:$F$162)<>\"\",ROW($F$1:$F$161),\"\"),ROW(K84))),\"\")","v":""}]
[null,null,null,null,{"$f":"IF('Campers Page 2'!E21<>0,(CONCATENATE('Campers Page 2'!C21,\" \",'Campers Page 2'!B21)),\"\")","v":""},{"$f":"IF('Campers Page 2'!D21<>0,(CONCATENATE('Campers Page 2'!C21,\" \",'Campers Page 2'!B21)),\"\")","v":""},null,null,null,{"$f":"IFERROR(INDEX($E$2:$E$162,SMALL(IF(($E$2:$E$162)<>\"\",ROW($E$1:$E$161),\"\"),ROW(J85))),\"\")","v":""},{"$f":"IFERROR(INDEX($F$2:$F$162,SMALL(IF(($F$2:$F$162)<>\"\",ROW($F$1:$F$161),\"\"),ROW(K85))),\"\")","v":""}]
[null,null,null,null,{"$f":"IF('Campers Page 2'!E22<>0,(CONCATENATE('Campers Page 2'!C22,\" \",'Campers Page 2'!B22)),\"\")","v":""},{"$f":"IF('Campers Page 2'!D22<>0,(CONCATENATE('Campers Page 2'!C22,\" \",'Campers Page 2'!B22)),\"\")","v":""},null,null,null,{"$f":"IFERROR(INDEX($E$2:$E$162,SMALL(IF(($E$2:$E$162)<>\"\",ROW($E$1:$E$161),\"\"),ROW(J86))),\"\")","v":""},{"$f":"IFERROR(INDEX($F$2:$F$162,SMALL(IF(($F$2:$F$162)<>\"\",ROW($F$1:$F$161),\"\"),ROW(K86))),\"\")","v":""}]
[null,null,null,null,{"$f":"IF('Campers Page 2'!E23<>0,(CONCATENATE('Campers Page 2'!C23,\" \",'Campers Page 2'!B23)),\"\")","v":""},{"$f":"IF('Campers Page 2'!D23<>0,(CONCATENATE('Campers Page 2'!C23,\" \",'Campers Page 2'!B23)),\"\")","v":""},null,null,null,{"$f":"IFERROR(INDEX($E$2:$E$162,SMALL(IF(($E$2:$E$162)<>\"\",ROW($E$1:$E$161),\"\"),ROW(J87))),\"\")","v":""},{"$f":"IFERROR(INDEX($F$2:$F$162,SMALL(IF(($F$2:$F$162)<>\"\",ROW($F$1:$F$161),\"\"),ROW(K87))),\"\")","v":""}]
[null,null,null,null,{"$f":"IF('Campers Page 2'!E24<>0,(CONCATENATE('Campers Page 2'!C24,\" \",'Campers Page 2'!B24)),\"\")","v":""},{"$f":"IF('Campers Page 2'!D24<>0,(CONCATENATE('Campers Page 2'!C24,\" \",'Campers Page 2'!B24)),\"\")","v":""},null,null,null,{"$f":"IFERROR(INDEX($E$2:$E$162,SMALL(IF(($E$2:$E$162)<>\"\",ROW($E$1:$E$161),\"\"),ROW(J88))),\"\")","v":""},{"$f":"IFERROR(INDEX($F$2:$F$162,SMALL(IF(($F$2:$F$162)<>\"\",ROW($F$1:$F$161),\"\"),ROW(K88))),\"\")","v":""}]
[null,null,null,null,{"$f":"IF('Campers Page 2'!E25<>0,(CONCATENATE('Campers Page 2'!C25,\" \",'Campers Page 2'!B25)),\"\")","v":""},{"$f":"IF('Campers Page 2'!D25<>0,(CONCATENATE('Campers Page 2'!C25,\" \",'Campers Page 2'!B25)),\"\")","v":""},null,null,null,{"$f":"IFERROR(INDEX($E$2:$E$162,SMALL(IF(($E$2:$E$162)<>\"\",ROW($E$1:$E$161),\"\"),ROW(J89))),\"\")","v":""},{"$f":"IFERROR(INDEX($F$2:$F$162,SMALL(IF(($F$2:$F$162)<>\"\",ROW($F$1:$F$161),\"\"),ROW(K89))),\"\")","v":""}]
[null,null,null,null,{"$f":"IF('Campers Page 2'!E26<>0,(CONCATENATE('Campers Page 2'!C26,\" \",'Campers Page 2'!B26)),\"\")","v":""},{"$f":"IF('Campers Page 2'!D26<>0,(CONCATENATE('Campers Page 2'!C26,\" \",'Campers Page 2'!B26)),\"\")","v":""},null,null,null,{"$f":"IFERROR(INDEX($E$2:$E$162,SMALL(IF(($E$2:$E$162)<>\"\",ROW($E$1:$E$161),\"\"),ROW(J90))),\"\")","v":""},{"$f":"IFERROR(INDEX($F$2:$F$162,SMALL(IF(($F$2:$F$162)<>\"\",ROW($F$1:$F$161),\"\"),ROW(K90))),\"\")","v":""}]
[null,null,null,null,{"$f":"IF('Campers Page 2'!E27<>0,(CONCATENATE('Campers Page 2'!C27,\" \",'Campers Page 2'!B27)),\"\")","v":""},{"$f":"IF('Campers Page 2'!D27<>0,(CONCATENATE('Campers Page 2'!C27,\" \",'Campers Page 2'!B27)),\"\")","v":""},null,null,null,{"$f":"IFERROR(INDEX($E$2:$E$162,SMALL(IF(($E$2:$E$162)<>\"\",ROW($E$1:$E$161),\"\"),ROW(J91))),\"\")","v":""},{"$f":"IFERROR(INDEX($F$2:$F$162,SMALL(IF(($F$2:$F$162)<>\"\",ROW($F$1:$F$161),\"\"),ROW(K91))),\"\")","v":""}]
[null,null,null,null,{"$f":"IF('Campers Page 2'!E28<>0,(CONCATENATE('Campers Page 2'!C28,\" \",'Campers Page 2'!B28)),\"\")","v":""},{"$f":"IF('Campers Page 2'!D28<>0,(CONCATENATE('Campers Page 2'!C28,\" \",'Campers Page 2'!B28)),\"\")","v":""},null,null,null,{"$f":"IFERROR(INDEX($E$2:$E$162,SMALL(IF(($E$2:$E$162)<>\"\",ROW($E$1:$E$161),\"\"),ROW(J92))),\"\")","v":""},{"$f":"IFERROR(INDEX($F$2:$F$162,SMALL(IF(($F$2:$F$162)<>\"\",ROW($F$1:$F$161),\"\"),ROW(K92))),\"\")","v":""}]
[null,null,null,null,{"$f":"IF('Campers Page 2'!E29<>0,(CONCATENATE('Campers Page 2'!C29,\" \",'Campers Page 2'!B29)),\"\")","v":""},{"$f":"IF('Campers Page 2'!D29<>0,(CONCATENATE('Campers Page 2'!C29,\" \",'Campers Page 2'!B29)),\"\")","v":""},null,null,null,{"$f":"IFERROR(INDEX($E$2:$E$162,SMALL(IF(($E$2:$E$162)<>\"\",ROW($E$1:$E$161),\"\"),ROW(J93))),\"\")","v":""},{"$f":"IFERROR(INDEX($F$2:$F$162,SMALL(IF(($F$2:$F$162)<>\"\",ROW($F$1:$F$161),\"\"),ROW(K93))),\"\")","v":""}]
[null,null,null,null,{"$f":"IF('Campers Page 2'!E30<>0,(CONCATENATE('Campers Page 2'!C30,\" \",'Campers Page 2'!B30)),\"\")","v":""},{"$f":"IF('Campers Page 2'!D30<>0,(CONCATENATE('Campers Page 2'!C30,\" \",'Campers Page 2'!B30)),\"\")","v":""},null,null,null,{"$f":"IFERROR(INDEX($E$2:$E$162,SMALL(IF(($E$2:$E$162)<>\"\",ROW($E$1:$E$161),\"\"),ROW(J94))),\"\")","v":""},{"$f":"IFERROR(INDEX($F$2:$F$162,SMALL(IF(($F$2:$F$162)<>\"\",ROW($F$1:$F$161),\"\"),ROW(K94))),\"\")","v":""}]
[null,null,null,null,{"$f":"IF('Campers Page 2'!E31<>0,(CONCATENATE('Campers Page 2'!C31,\" \",'Campers Page 2'!B31)),\"\")","v":""},{"$f":"IF('Campers Page 2'!D31<>0,(CONCATENATE('Campers Page 2'!C31,\" \",'Campers Page 2'!B31)),\"\")","v":""},null,null,null,{"$f":"IFERROR(INDEX($E$2:$E$162,SMALL(IF(($E$2:$E$162)<>\"\",ROW($E$1:$E$161),\"\"),ROW(J95))),\"\")","v":""},{"$f":"IFERROR(INDEX($F$2:$F$162,SMALL(IF(($F$2:$F$162)<>\"\",ROW($F$1:$F$161),\"\"),ROW(K95))),\"\")","v":""}]
[null,null,null,null,{"$f":"IF('Campers Page 2'!E32<>0,(CONCATENATE('Campers Page 2'!C32,\" \",'Campers Page 2'!B32)),\"\")","v":""},{"$f":"IF('Campers Page 2'!D32<>0,(CONCATENATE('Campers Page 2'!C32,\" \",'Campers Page 2'!B32)),\"\")","v":""},null,null,null,{"$f":"IFERROR(INDEX($E$2:$E$162,SMALL(IF(($E$2:$E$162)<>\"\",ROW($E$1:$E$161),\"\"),ROW(J96))),\"\")","v":""},{"$f":"IFERROR(INDEX($F$2:$F$162,SMALL(IF(($F$2:$F$162)<>\"\",ROW($F$1:$F$161),\"\"),ROW(K96))),\"\")","v":""}]
[null,null,null,null,{"$f":"IF('Campers Page 2'!E33<>0,(CONCATENATE('Campers Page 2'!C33,\" \",'Campers Page 2'!B33)),\"\")","v":""},{"$f":"IF('Campers Page 2'!D33<>0,(CONCATENATE('Campers Page 2'!C33,\" \",'Campers Page 2'!B33)),\"\")","v":""},null,null,null,{"$f":"IFERROR(INDEX($E$2:$E$162,SMALL(IF(($E$2:$E$162)<>\"\",ROW($E$1:$E$161),\"\"),ROW(J97))),\"\")","v":""},{"$f":"IFERROR(INDEX($F$2:$F$162,SMALL(IF(($F$2:$F$162)<>\"\",ROW($F$1:$F$161),\"\"),ROW(K97))),\"\")","v":""}]
[null,null,null,null,{"$f":"IF('Campers Page 2'!E34<>0,(CONCATENATE('Campers Page 2'!C34,\" \",'Campers Page 2'!B34)),\"\")","v":""},{"$f":"IF('Campers Page 2'!D34<>0,(CONCATENATE('Campers Page 2'!C34,\" \",'Campers Page 2'!B34)),\"\")","v":""},null,null,null,{"$f":"IFERROR(INDEX($E$2:$E$162,SMALL(IF(($E$2:$E$162)<>\"\",ROW($E$1:$E$161),\"\"),ROW(J98))),\"\")","v":""},{"$f":"IFERROR(INDEX($F$2:$F$162,SMALL(IF(($F$2:$F$162)<>\"\",ROW($F$1:$F$161),\"\"),ROW(K98))),\"\")","v":""}]
[null,null,null,null,{"$f":"IF('Campers Page 2'!E35<>0,(CONCATENATE('Campers Page 2'!C35,\" \",'Campers Page 2'!B35)),\"\")","v":""},{"$f":"IF('Campers Page 2'!D35<>0,(CONCATENATE('Campers Page 2'!C35,\" \",'Campers Page 2'!B35)),\"\")","v":""},null,null,null,{"$f":"IFERROR(INDEX($E$2:$E$162,SMALL(IF(($E$2:$E$162)<>\"\",ROW($E$1:$E$161),\"\"),ROW(J99))),\"\")","v":""},{"$f":"IFERROR(INDEX($F$2:$F$162,SMALL(IF(($F$2:$F$162)<>\"\",ROW($F$1:$F$161),\"\"),ROW(K99))),\"\")","v":""}]
[null,null,null,null,{"$f":"IF('Campers Page 2'!E36<>0,(CONCATENATE('Campers Page 2'!C36,\" \",'Campers Page 2'!B36)),\"\")","v":""},{"$f":"IF('Campers Page 2'!D36<>0,(CONCATENATE('Campers Page 2'!C36,\" \",'Campers Page 2'!B36)),\"\")","v":""},null,null,null,{"$f":"IFERROR(INDEX($E$2:$E$162,SMALL(IF(($E$2:$E$162)<>\"\",ROW($E$1:$E$161),\"\"),ROW(J100))),\"\")","v":""},{"$f":"IFERROR(INDEX($F$2:$F$162,SMALL(IF(($F$2:$F$162)<>\"\",ROW($F$1:$F$161),\"\"),ROW(K100))),\"\")","v":""}]
[null,null,null,null,{"$f":"IF('Campers Page 2'!E37<>0,(CONCATENATE('Campers Page 2'!C37,\" \",'Campers Page 2'!B37)),\"\")","v":""},{"$f":"IF('Campers Page 2'!D37<>0,(CONCATENATE('Campers Page 2'!C37,\" \",'Campers Page 2'!B37)),\"\")","v":""},null,null,null,{"$f":"IFERROR(INDEX($E$2:$E$162,SMALL(IF(($E$2:$E$162)<>\"\",ROW($E$1:$E$161),\"\"),ROW(J101))),\"\")","v":""},{"$f":"IFERROR(INDEX($F$2:$F$162,SMALL(IF(($F$2:$F$162)<>\"\",ROW($F$1:$F$161),\"\"),ROW(K101))),\"\")","v":""}]
[null,null,null,null,{"$f":"IF('Campers Page 2'!E38<>0,(CONCATENATE('Campers Page 2'!C38,\" \",'Campers Page 2'!B38)),\"\")","v":""},{"$f":"IF('Campers Page 2'!D38<>0,(CONCATENATE('Campers Page 2'!C38,\" \",'Campers Page 2'!B38)),\"\")","v":""},null,null,null,{"$f":"IFERROR(INDEX($E$2:$E$162,SMALL(IF(($E$2:$E$162)<>\"\",ROW($E$1:$E$161),\"\"),ROW(J102))),\"\")","v":""},{"$f":"IFERROR(INDEX($F$2:$F$162,SMALL(IF(($F$2:$F$162)<>\"\",ROW($F$1:$F$161),\"\"),ROW(K102))),\"\")","v":""}]
[null,null,null,null,{"$f":"IF('Campers Page 2'!E39<>0,(CONCATENATE('Campers Page 2'!C39,\" \",'Campers Page 2'!B39)),\"\")","v":""},{"$f":"IF('Campers Page 2'!D39<>0,(CONCATENATE('Campers Page 2'!C39,\" \",'Campers Page 2'!B39)),\"\")","v":""},null,null,null,{"$f":"IFERROR(INDEX($E$2:$E$162,SMALL(IF(($E$2:$E$162)<>\"\",ROW($E$1:$E$161),\"\"),ROW(J103))),\"\")","v":""},{"$f":"IFERROR(INDEX($F$2:$F$162,SMALL(IF(($F$2:$F$162)<>\"\",ROW($F$1:$F$161),\"\"),ROW(K103))),\"\")","v":""}]
[null,null,null,null,{"$f":"IF('Campers Page 2'!E40<>0,(CONCATENATE('Campers Page 2'!C40,\" \",'Campers Page 2'!B40)),\"\")","v":""},{"$f":"IF('Campers Page 2'!D40<>0,(CONCATENATE('Campers Page 2'!C40,\" \",'Campers Page 2'!B40)),\"\")","v":""},null,null,null,{"$f":"IFERROR(INDEX($E$2:$E$162,SMALL(IF(($E$2:$E$162)<>\"\",ROW($E$1:$E$161),\"\"),ROW(J104))),\"\")","v":""},{"$f":"IFERROR(INDEX($F$2:$F$162,SMALL(IF(($F$2:$F$162)<>\"\",ROW($F$1:$F$161),\"\"),ROW(K104))),\"\")","v":""}]
[null,null,null,null,{"$f":"IF('Campers Page 2'!E41<>0,(CONCATENATE('Campers Page 2'!C41,\" \",'Campers Page 2'!B41)),\"\")","v":""},{"$f":"IF('Campers Page 2'!D41<>0,(CONCATENATE('Campers Page 2'!C41,\" \",'Campers Page 2'!B41)),\"\")","v":""},null,null,null,{"$f":"IFERROR(INDEX($E$2:$E$162,SMALL(IF(($E$2:$E$162)<>\"\",ROW($E$1:$E$161),\"\"),ROW(J105))),\"\")","v":""},{"$f":"IFERROR(INDEX($F$2:$F$162,SMALL(IF(($F$2:$F$162)<>\"\",ROW($F$1:$F$161),\"\"),ROW(K105))),\"\")","v":""}]
[null,null,null,null,{"$f":"IF('Campers Page 2'!E42<>0,(CONCATENATE('Campers Page 2'!C42,\" \",'Campers Page 2'!B42)),\"\")","v":""},{"$f":"IF('Campers Page 2'!D42<>0,(CONCATENATE('Campers Page 2'!C42,\" \",'Campers Page 2'!B42)),\"\")","v":""},null,null,null,{"$f":"IFERROR(INDEX($E$2:$E$162,SMALL(IF(($E$2:$E$162)<>\"\",ROW($E$1:$E$161),\"\"),ROW(J106))),\"\")","v":""},{"$f":"IFERROR(INDEX($F$2:$F$162,SMALL(IF(($F$2:$F$162)<>\"\",ROW($F$1:$F$161),\"\"),ROW(K106))),\"\")","v":""}]
[null,null,null,null,{"$f":"IF('Campers Page 2'!E43<>0,(CONCATENATE('Campers Page 2'!C43,\" \",'Campers Page 2'!B43)),\"\")","v":""},{"$f":"IF('Campers Page 2'!D43<>0,(CONCATENATE('Campers Page 2'!C43,\" \",'Campers Page 2'!B43)),\"\")","v":""},null,null,null,{"$f":"IFERROR(INDEX($E$2:$E$162,SMALL(IF(($E$2:$E$162)<>\"\",ROW($E$1:$E$161),\"\"),ROW(J107))),\"\")","v":""},{"$f":"IFERROR(INDEX($F$2:$F$162,SMALL(IF(($F$2:$F$162)<>\"\",ROW($F$1:$F$161),\"\"),ROW(K107))),\"\")","v":""}]
[null,null,null,null,{"$f":"IF('Campers Page 2'!E44<>0,(CONCATENATE('Campers Page 2'!C44,\" \",'Campers Page 2'!B44)),\"\")","v":""},{"$f":"IF('Campers Page 2'!D44<>0,(CONCATENATE('Campers Page 2'!C44,\" \",'Campers Page 2'!B44)),\"\")","v":""},null,null,null,{"$f":"IFERROR(INDEX($E$2:$E$162,SMALL(IF(($E$2:$E$162)<>\"\",ROW($E$1:$E$161),\"\"),ROW(J108))),\"\")","v":""},{"$f":"IFERROR(INDEX($F$2:$F$162,SMALL(IF(($F$2:$F$162)<>\"\",ROW($F$1:$F$161),\"\"),ROW(K108))),\"\")","v":""}]
[null,null,null,null,{"$f":"IF('Campers Page 2'!E45<>0,(CONCATENATE('Campers Page 2'!C45,\" \",'Campers Page 2'!B45)),\"\")","v":""},{"$f":"IF('Campers Page 2'!D45<>0,(CONCATENATE('Campers Page 2'!C45,\" \",'Campers Page 2'!B45)),\"\")","v":""},null,null,null,{"$f":"IFERROR(INDEX($E$2:$E$162,SMALL(IF(($E$2:$E$162)<>\"\",ROW($E$1:$E$161),\"\"),ROW(J109))),\"\")","v":""},{"$f":"IFERROR(INDEX($F$2:$F$162,SMALL(IF(($F$2:$F$162)<>\"\",ROW($F$1:$F$161),\"\"),ROW(K109))),\"\")","v":""}]
[null,null,null,null,{"$f":"IF('Campers Page 2'!E46<>0,(CONCATENATE('Campers Page 2'!C46,\" \",'Campers Page 2'!B46)),\"\")","v":""},{"$f":"IF('Campers Page 2'!D46<>0,(CONCATENATE('Campers Page 2'!C46,\" \",'Campers Page 2'!B46)),\"\")","v":""},null,null,null,{"$f":"IFERROR(INDEX($E$2:$E$162,SMALL(IF(($E$2:$E$162)<>\"\",ROW($E$1:$E$161),\"\"),ROW(J110))),\"\")","v":""},{"$f":"IFERROR(INDEX($F$2:$F$162,SMALL(IF(($F$2:$F$162)<>\"\",ROW($F$1:$F$161),\"\"),ROW(K110))),\"\")","v":""}]
[null,null,null,null,{"$f":"IF('Campers Page 2'!E47<>0,(CONCATENATE('Campers Page 2'!C47,\" \",'Campers Page 2'!B47)),\"\")","v":""},{"$f":"IF('Campers Page 2'!D47<>0,(CONCATENATE('Campers Page 2'!C47,\" \",'Campers Page 2'!B47)),\"\")","v":""},null,null,null,{"$f":"IFERROR(INDEX($E$2:$E$162,SMALL(IF(($E$2:$E$162)<>\"\",ROW($E$1:$E$161),\"\"),ROW(J111))),\"\")","v":""},{"$f":"IFERROR(INDEX($F$2:$F$162,SMALL(IF(($F$2:$F$162)<>\"\",ROW($F$1:$F$161),\"\"),ROW(K111))),\"\")","v":""}]
[null,null,null,null,{"$f":"IF('Campers Page 2'!E48<>0,(CONCATENATE('Campers Page 2'!C48,\" \",'Campers Page 2'!B48)),\"\")","v":""},{"$f":"IF('Campers Page 2'!D48<>0,(CONCATENATE('Campers Page 2'!C48,\" \",'Campers Page 2'!B48)),\"\")","v":""},null,null,null,{"$f":"IFERROR(INDEX($E$2:$E$162,SMALL(IF(($E$2:$E$162)<>\"\",ROW($E$1:$E$161),\"\"),ROW(J112))),\"\")","v":""},{"$f":"IFERROR(INDEX($F$2:$F$162,SMALL(IF(($F$2:$F$162)<>\"\",ROW($F$1:$F$161),\"\"),ROW(K112))),\"\")","v":""}]
[null,null,null,null,{"$f":"IF('Campers Page 2'!E49<>0,(CONCATENATE('Campers Page 2'!C49,\" \",'Campers Page 2'!B49)),\"\")","v":""},{"$f":"IF('Campers Page 2'!D49<>0,(CONCATENATE('Campers Page 2'!C49,\" \",'Campers Page 2'!B49)),\"\")","v":""},null,null,null,{"$f":"IFERROR(INDEX($E$2:$E$162,SMALL(IF(($E$2:$E$162)<>\"\",ROW($E$1:$E$161),\"\"),ROW(J113))),\"\")","v":""},{"$f":"IFERROR(INDEX($F$2:$F$162,SMALL(IF(($F$2:$F$162)<>\"\",ROW($F$1:$F$161),\"\"),ROW(K113))),\"\")","v":""}]
[null,null,null,null,{"$f":"IF('Campers Page 2'!E50<>0,(CONCATENATE('Campers Page 2'!C50,\" \",'Campers Page 2'!B50)),\"\")","v":""},{"$f":"IF('Campers Page 2'!D50<>0,(CONCATENATE('Campers Page 2'!C50,\" \",'Campers Page 2'!B50)),\"\")","v":""},null,null,null,{"$f":"IFERROR(INDEX($E$2:$E$162,SMALL(IF(($E$2:$E$162)<>\"\",ROW($E$1:$E$161),\"\"),ROW(J114))),\"\")","v":""},{"$f":"IFERROR(INDEX($F$2:$F$162,SMALL(IF(($F$2:$F$162)<>\"\",ROW($F$1:$F$161),\"\"),ROW(K114))),\"\")","v":""}]
[null,null,null,null,{"$f":"IF('Campers Page 2'!E51<>0,(CONCATENATE('Campers Page 2'!C51,\" \",'Campers Page 2'!B51)),\"\")","v":""},{"$f":"IF('Campers Page 2'!D51<>0,(CONCATENATE('Campers Page 2'!C51,\" \",'Campers Page 2'!B51)),\"\")","v":""},null,null,null,{"$f":"IFERROR(INDEX($E$2:$E$162,SMALL(IF(($E$2:$E$162)<>\"\",ROW($E$1:$E$161),\"\"),ROW(J115))),\"\")","v":""},{"$f":"IFERROR(INDEX($F$2:$F$162,SMALL(IF(($F$2:$F$162)<>\"\",ROW($F$1:$F$161),\"\"),ROW(K115))),\"\")","v":""}]
[null,null,null,null,{"$f":"IF('Campers Page 2'!E52<>0,(CONCATENATE('Campers Page 2'!C52,\" \",'Campers Page 2'!B52)),\"\")","v":""},{"$f":"IF('Campers Page 2'!D52<>0,(CONCATENATE('Campers Page 2'!C52,\" \",'Campers Page 2'!B52)),\"\")","v":""},null,null,null,{"$f":"IFERROR(INDEX($E$2:$E$162,SMALL(IF(($E$2:$E$162)<>\"\",ROW($E$1:$E$161),\"\"),ROW(J116))),\"\")","v":""},{"$f":"IFERROR(INDEX($F$2:$F$162,SMALL(IF(($F$2:$F$162)<>\"\",ROW($F$1:$F$161),\"\"),ROW(K116))),\"\")","v":""}]
[null,null,null,null,{"$f":"IF('Campers Page 2'!E53<>0,(CONCATENATE('Campers Page 2'!C53,\" \",'Campers Page 2'!B53)),\"\")","v":""},{"$f":"IF('Campers Page 2'!D53<>0,(CONCATENATE('Campers Page 2'!C53,\" \",'Campers Page 2'!B53)),\"\")","v":""},null,null,null,{"$f":"IFERROR(INDEX($E$2:$E$162,SMALL(IF(($E$2:$E$162)<>\"\",ROW($E$1:$E$161),\"\"),ROW(J117))),\"\")","v":""},{"$f":"IFERROR(INDEX($F$2:$F$162,SMALL(IF(($F$2:$F$162)<>\"\",ROW($F$1:$F$161),\"\"),ROW(K117))),\"\")","v":""}]
[null,null,null,null,{"$f":"IF('Campers Page 2'!E54<>0,(CONCATENATE('Campers Page 2'!C54,\" \",'Campers Page 2'!B54)),\"\")","v":""},{"$f":"IF('Campers Page 2'!D54<>0,(CONCATENATE('Campers Page 2'!C54,\" \",'Campers Page 2'!B54)),\"\")","v":""},null,null,null,{"$f":"IFERROR(INDEX($E$2:$E$162,SMALL(IF(($E$2:$E$162)<>\"\",ROW($E$1:$E$161),\"\"),ROW(J118))),\"\")","v":""},{"$f":"IFERROR(INDEX($F$2:$F$162,SMALL(IF(($F$2:$F$162)<>\"\",ROW($F$1:$F$161),\"\"),ROW(K118))),\"\")","v":""}]
[null,null,null,null,{"$f":"IF('Campers Page 2'!E55<>0,(CONCATENATE('Campers Page 2'!C55,\" \",'Campers Page 2'!B55)),\"\")","v":""},{"$f":"IF('Campers Page 2'!D55<>0,(CONCATENATE('Campers Page 2'!C55,\" \",'Campers Page 2'!B55)),\"\")","v":""},null,null,null,{"$f":"IFERROR(INDEX($E$2:$E$162,SMALL(IF(($E$2:$E$162)<>\"\",ROW($E$1:$E$161),\"\"),ROW(J119))),\"\")","v":""},{"$f":"IFERROR(INDEX($F$2:$F$162,SMALL(IF(($F$2:$F$162)<>\"\",ROW($F$1:$F$161),\"\"),ROW(K119))),\"\")","v":""}]
[null,null,null,null,{"$f":"IF('Campers Page 2'!E56<>0,(CONCATENATE('Campers Page 2'!C56,\" \",'Campers Page 2'!B56)),\"\")","v":""},{"$f":"IF('Campers Page 2'!D56<>0,(CONCATENATE('Campers Page 2'!C56,\" \",'Campers Page 2'!B56)),\"\")","v":""},null,null,null,{"$f":"IFERROR(INDEX($E$2:$E$162,SMALL(IF(($E$2:$E$162)<>\"\",ROW($E$1:$E$161),\"\"),ROW(J120))),\"\")","v":""},{"$f":"IFERROR(INDEX($F$2:$F$162,SMALL(IF(($F$2:$F$162)<>\"\",ROW($F$1:$F$161),\"\"),ROW(K120))),\"\")","v":""}]
[null,null,null,null,{"$f":"IF('Campers Page 2'!N16<>0,(CONCATENATE('Campers Page 2'!L16,\" \",'Campers Page 2'!K16)),\"\")","v":""},{"$f":"IF('Campers Page 2'!M16<>0,(CONCATENATE('Campers Page 2'!L16,\" \",'Campers Page 2'!K16)),\"\")","v":""},null,null,null,{"$f":"IFERROR(INDEX($E$2:$E$162,SMALL(IF(($E$2:$E$162)<>\"\",ROW($E$1:$E$161),\"\"),ROW(J121))),\"\")","v":""},{"$f":"IFERROR(INDEX($F$2:$F$162,SMALL(IF(($F$2:$F$162)<>\"\",ROW($F$1:$F$161),\"\"),ROW(K121))),\"\")","v":""}]
[null,null,null,null,{"$f":"IF('Campers Page 2'!N17<>0,(CONCATENATE('Campers Page 2'!L17,\" \",'Campers Page 2'!K17)),\"\")","v":""},{"$f":"IF('Campers Page 2'!M17<>0,(CONCATENATE('Campers Page 2'!L17,\" \",'Campers Page 2'!K17)),\"\")","v":""},null,null,null,{"$f":"IFERROR(INDEX($E$2:$E$162,SMALL(IF(($E$2:$E$162)<>\"\",ROW($E$1:$E$161),\"\"),ROW(J122))),\"\")","v":""},{"$f":"IFERROR(INDEX($F$2:$F$162,SMALL(IF(($F$2:$F$162)<>\"\",ROW($F$1:$F$161),\"\"),ROW(K122))),\"\")","v":""}]
[null,null,null,null,{"$f":"IF('Campers Page 2'!N18<>0,(CONCATENATE('Campers Page 2'!L18,\" \",'Campers Page 2'!K18)),\"\")","v":""},{"$f":"IF('Campers Page 2'!M18<>0,(CONCATENATE('Campers Page 2'!L18,\" \",'Campers Page 2'!K18)),\"\")","v":""},null,null,null,{"$f":"IFERROR(INDEX($E$2:$E$162,SMALL(IF(($E$2:$E$162)<>\"\",ROW($E$1:$E$161),\"\"),ROW(J123))),\"\")","v":""},{"$f":"IFERROR(INDEX($F$2:$F$162,SMALL(IF(($F$2:$F$162)<>\"\",ROW($F$1:$F$161),\"\"),ROW(K123))),\"\")","v":""}]
[null,null,null,null,{"$f":"IF('Campers Page 2'!N19<>0,(CONCATENATE('Campers Page 2'!L19,\" \",'Campers Page 2'!K19)),\"\")","v":""},{"$f":"IF('Campers Page 2'!M19<>0,(CONCATENATE('Campers Page 2'!L19,\" \",'Campers Page 2'!K19)),\"\")","v":""},null,null,null,{"$f":"IFERROR(INDEX($E$2:$E$162,SMALL(IF(($E$2:$E$162)<>\"\",ROW($E$1:$E$161),\"\"),ROW(J124))),\"\")","v":""},{"$f":"IFERROR(INDEX($F$2:$F$162,SMALL(IF(($F$2:$F$162)<>\"\",ROW($F$1:$F$161),\"\"),ROW(K124))),\"\")","v":""}]
[null,null,null,null,{"$f":"IF('Campers Page 2'!N20<>0,(CONCATENATE('Campers Page 2'!L20,\" \",'Campers Page 2'!K20)),\"\")","v":""},{"$f":"IF('Campers Page 2'!M20<>0,(CONCATENATE('Campers Page 2'!L20,\" \",'Campers Page 2'!K20)),\"\")","v":""},null,null,null,{"$f":"IFERROR(INDEX($E$2:$E$162,SMALL(IF(($E$2:$E$162)<>\"\",ROW($E$1:$E$161),\"\"),ROW(J125))),\"\")","v":""},{"$f":"IFERROR(INDEX($F$2:$F$162,SMALL(IF(($F$2:$F$162)<>\"\",ROW($F$1:$F$161),\"\"),ROW(K125))),\"\")","v":""}]
[null,null,null,null,{"$f":"IF('Campers Page 2'!N21<>0,(CONCATENATE('Campers Page 2'!L21,\" \",'Campers Page 2'!K21)),\"\")","v":""},{"$f":"IF('Campers Page 2'!M21<>0,(CONCATENATE('Campers Page 2'!L21,\" \",'Campers Page 2'!K21)),\"\")","v":""},null,null,null,{"$f":"IFERROR(INDEX($E$2:$E$162,SMALL(IF(($E$2:$E$162)<>\"\",ROW($E$1:$E$161),\"\"),ROW(J126))),\"\")","v":""},{"$f":"IFERROR(INDEX($F$2:$F$162,SMALL(IF(($F$2:$F$162)<>\"\",ROW($F$1:$F$161),\"\"),ROW(K126))),\"\")","v":""}]
[null,null,null,null,{"$f":"IF('Campers Page 2'!N22<>0,(CONCATENATE('Campers Page 2'!L22,\" \",'Campers Page 2'!K22)),\"\")","v":""},{"$f":"IF('Campers Page 2'!M22<>0,(CONCATENATE('Campers Page 2'!L22,\" \",'Campers Page 2'!K22)),\"\")","v":""},null,null,null,{"$f":"IFERROR(INDEX($E$2:$E$162,SMALL(IF(($E$2:$E$162)<>\"\",ROW($E$1:$E$161),\"\"),ROW(J127))),\"\")","v":""},{"$f":"IFERROR(INDEX($F$2:$F$162,SMALL(IF(($F$2:$F$162)<>\"\",ROW($F$1:$F$161),\"\"),ROW(K127))),\"\")","v":""}]
[null,null,null,null,{"$f":"IF('Campers Page 2'!N23<>0,(CONCATENATE('Campers Page 2'!L23,\" \",'Campers Page 2'!K23)),\"\")","v":""},{"$f":"IF('Campers Page 2'!M23<>0,(CONCATENATE('Campers Page 2'!L23,\" \",'Campers Page 2'!K23)),\"\")","v":""},null,null,null,{"$f":"IFERROR(INDEX($E$2:$E$162,SMALL(IF(($E$2:$E$162)<>\"\",ROW($E$1:$E$161),\"\"),ROW(J128))),\"\")","v":""},{"$f":"IFERROR(INDEX($F$2:$F$162,SMALL(IF(($F$2:$F$162)<>\"\",ROW($F$1:$F$161),\"\"),ROW(K128))),\"\")","v":""}]
[null,null,null,null,{"$f":"IF('Campers Page 2'!N24<>0,(CONCATENATE('Campers Page 2'!L24,\" \",'Campers Page 2'!K24)),\"\")","v":""},{"$f":"IF('Campers Page 2'!M24<>0,(CONCATENATE('Campers Page 2'!L24,\" \",'Campers Page 2'!K24)),\"\")","v":""},null,null,null,{"$f":"IFERROR(INDEX($E$2:$E$162,SMALL(IF(($E$2:$E$162)<>\"\",ROW($E$1:$E$161),\"\"),ROW(J129))),\"\")","v":""},{"$f":"IFERROR(INDEX($F$2:$F$162,SMALL(IF(($F$2:$F$162)<>\"\",ROW($F$1:$F$161),\"\"),ROW(K129))),\"\")","v":""}]
[null,null,null,null,{"$f":"IF('Campers Page 2'!N25<>0,(CONCATENATE('Campers Page 2'!L25,\" \",'Campers Page 2'!K25)),\"\")","v":""},{"$f":"IF('Campers Page 2'!M25<>0,(CONCATENATE('Campers Page 2'!L25,\" \",'Campers Page 2'!K25)),\"\")","v":""},null,null,null,{"$f":"IFERROR(INDEX($E$2:$E$162,SMALL(IF(($E$2:$E$162)<>\"\",ROW($E$1:$E$161),\"\"),ROW(J130))),\"\")","v":""},{"$f":"IFERROR(INDEX($F$2:$F$162,SMALL(IF(($F$2:$F$162)<>\"\",ROW($F$1:$F$161),\"\"),ROW(K130))),\"\")","v":""}]
[null,null,null,null,{"$f":"IF('Campers Page 2'!N26<>0,(CONCATENATE('Campers Page 2'!L26,\" \",'Campers Page 2'!K26)),\"\")","v":""},{"$f":"IF('Campers Page 2'!M26<>0,(CONCATENATE('Campers Page 2'!L26,\" \",'Campers Page 2'!K26)),\"\")","v":""},null,null,null,{"$f":"IFERROR(INDEX($E$2:$E$162,SMALL(IF(($E$2:$E$162)<>\"\",ROW($E$1:$E$161),\"\"),ROW(J131))),\"\")","v":""},{"$f":"IFERROR(INDEX($F$2:$F$162,SMALL(IF(($F$2:$F$162)<>\"\",ROW($F$1:$F$161),\"\"),ROW(K131))),\"\")","v":""}]
[null,null,null,null,{"$f":"IF('Campers Page 2'!N27<>0,(CONCATENATE('Campers Page 2'!L27,\" \",'Campers Page 2'!K27)),\"\")","v":""},{"$f":"IF('Campers Page 2'!M27<>0,(CONCATENATE('Campers Page 2'!L27,\" \",'Campers Page 2'!K27)),\"\")","v":""},null,null,null,{"$f":"IFERROR(INDEX($E$2:$E$162,SMALL(IF(($E$2:$E$162)<>\"\",ROW($E$1:$E$161),\"\"),ROW(J132))),\"\")","v":""},{"$f":"IFERROR(INDEX($F$2:$F$162,SMALL(IF(($F$2:$F$162)<>\"\",ROW($F$1:$F$161),\"\"),ROW(K132))),\"\")","v":""}]
[null,null,null,null,{"$f":"IF('Campers Page 2'!N28<>0,(CONCATENATE('Campers Page 2'!L28,\" \",'Campers Page 2'!K28)),\"\")","v":""},{"$f":"IF('Campers Page 2'!M28<>0,(CONCATENATE('Campers Page 2'!L28,\" \",'Campers Page 2'!K28)),\"\")","v":""},null,null,null,{"$f":"IFERROR(INDEX($E$2:$E$162,SMALL(IF(($E$2:$E$162)<>\"\",ROW($E$1:$E$161),\"\"),ROW(J133))),\"\")","v":""},{"$f":"IFERROR(INDEX($F$2:$F$162,SMALL(IF(($F$2:$F$162)<>\"\",ROW($F$1:$F$161),\"\"),ROW(K133))),\"\")","v":""}]
[null,null,null,null,{"$f":"IF('Campers Page 2'!N29<>0,(CONCATENATE('Campers Page 2'!L29,\" \",'Campers Page 2'!K29)),\"\")","v":""},{"$f":"IF('Campers Page 2'!M29<>0,(CONCATENATE('Campers Page 2'!L29,\" \",'Campers Page 2'!K29)),\"\")","v":""},null,null,null,{"$f":"IFERROR(INDEX($E$2:$E$162,SMALL(IF(($E$2:$E$162)<>\"\",ROW($E$1:$E$161),\"\"),ROW(J134))),\"\")","v":""},{"$f":"IFERROR(INDEX($F$2:$F$162,SMALL(IF(($F$2:$F$162)<>\"\",ROW($F$1:$F$161),\"\"),ROW(K134))),\"\")","v":""}]
[null,null,null,null,{"$f":"IF('Campers Page 2'!N30<>0,(CONCATENATE('Campers Page 2'!L30,\" \",'Campers Page 2'!K30)),\"\")","v":""},{"$f":"IF('Campers Page 2'!M30<>0,(CONCATENATE('Campers Page 2'!L30,\" \",'Campers Page 2'!K30)),\"\")","v":""},null,null,null,{"$f":"IFERROR(INDEX($E$2:$E$162,SMALL(IF(($E$2:$E$162)<>\"\",ROW($E$1:$E$161),\"\"),ROW(J135))),\"\")","v":""},{"$f":"IFERROR(INDEX($F$2:$F$162,SMALL(IF(($F$2:$F$162)<>\"\",ROW($F$1:$F$161),\"\"),ROW(K135))),\"\")","v":""}]
[null,null,null,null,{"$f":"IF('Campers Page 2'!N31<>0,(CONCATENATE('Campers Page 2'!L31,\" \",'Campers Page 2'!K31)),\"\")","v":""},{"$f":"IF('Campers Page 2'!M31<>0,(CONCATENATE('Campers Page 2'!L31,\" \",'Campers Page 2'!K31)),\"\")","v":""},null,null,null,{"$f":"IFERROR(INDEX($E$2:$E$162,SMALL(IF(($E$2:$E$162)<>\"\",ROW($E$1:$E$161),\"\"),ROW(J136))),\"\")","v":""},{"$f":"IFERROR(INDEX($F$2:$F$162,SMALL(IF(($F$2:$F$162)<>\"\",ROW($F$1:$F$161),\"\"),ROW(K136))),\"\")","v":""}]
[null,null,null,null,{"$f":"IF('Campers Page 2'!N32<>0,(CONCATENATE('Campers Page 2'!L32,\" \",'Campers Page 2'!K32)),\"\")","v":""},{"$f":"IF('Campers Page 2'!M32<>0,(CONCATENATE('Campers Page 2'!L32,\" \",'Campers Page 2'!K32)),\"\")","v":""},null,null,null,{"$f":"IFERROR(INDEX($E$2:$E$162,SMALL(IF(($E$2:$E$162)<>\"\",ROW($E$1:$E$161),\"\"),ROW(J137))),\"\")","v":""},{"$f":"IFERROR(INDEX($F$2:$F$162,SMALL(IF(($F$2:$F$162)<>\"\",ROW($F$1:$F$161),\"\"),ROW(K137))),\"\")","v":""}]
[null,null,null,null,{"$f":"IF('Campers Page 2'!N33<>0,(CONCATENATE('Campers Page 2'!L33,\" \",'Campers Page 2'!K33)),\"\")","v":""},{"$f":"IF('Campers Page 2'!M33<>0,(CONCATENATE('Campers Page 2'!L33,\" \",'Campers Page 2'!K33)),\"\")","v":""},null,null,null,{"$f":"IFERROR(INDEX($E$2:$E$162,SMALL(IF(($E$2:$E$162)<>\"\",ROW($E$1:$E$161),\"\"),ROW(J138))),\"\")","v":""},{"$f":"IFERROR(INDEX($F$2:$F$162,SMALL(IF(($F$2:$F$162)<>\"\",ROW($F$1:$F$161),\"\"),ROW(K138))),\"\")","v":""}]
[null,null,null,null,{"$f":"IF('Campers Page 2'!N34<>0,(CONCATENATE('Campers Page 2'!L34,\" \",'Campers Page 2'!K34)),\"\")","v":""},{"$f":"IF('Campers Page 2'!M34<>0,(CONCATENATE('Campers Page 2'!L34,\" \",'Campers Page 2'!K34)),\"\")","v":""},null,null,null,{"$f":"IFERROR(INDEX($E$2:$E$162,SMALL(IF(($E$2:$E$162)<>\"\",ROW($E$1:$E$161),\"\"),ROW(J139))),\"\")","v":""},{"$f":"IFERROR(INDEX($F$2:$F$162,SMALL(IF(($F$2:$F$162)<>\"\",ROW($F$1:$F$161),\"\"),ROW(K139))),\"\")","v":""}]
[null,null,null,null,{"$f":"IF('Campers Page 2'!N35<>0,(CONCATENATE('Campers Page 2'!L35,\" \",'Campers Page 2'!K35)),\"\")","v":""},{"$f":"IF('Campers Page 2'!M35<>0,(CONCATENATE('Campers Page 2'!L35,\" \",'Campers Page 2'!K35)),\"\")","v":""},null,null,null,{"$f":"IFERROR(INDEX($E$2:$E$162,SMALL(IF(($E$2:$E$162)<>\"\",ROW($E$1:$E$161),\"\"),ROW(J140))),\"\")","v":""},{"$f":"IFERROR(INDEX($F$2:$F$162,SMALL(IF(($F$2:$F$162)<>\"\",ROW($F$1:$F$161),\"\"),ROW(K140))),\"\")","v":""}]
[null,null,null,null,{"$f":"IF('Campers Page 2'!N36<>0,(CONCATENATE('Campers Page 2'!L36,\" \",'Campers Page 2'!K36)),\"\")","v":""},{"$f":"IF('Campers Page 2'!M36<>0,(CONCATENATE('Campers Page 2'!L36,\" \",'Campers Page 2'!K36)),\"\")","v":""},null,null,null,{"$f":"IFERROR(INDEX($E$2:$E$162,SMALL(IF(($E$2:$E$162)<>\"\",ROW($E$1:$E$161),\"\"),ROW(J141))),\"\")","v":""},{"$f":"IFERROR(INDEX($F$2:$F$162,SMALL(IF(($F$2:$F$162)<>\"\",ROW($F$1:$F$161),\"\"),ROW(K141))),\"\")","v":""}]
[null,null,null,null,{"$f":"IF('Campers Page 2'!N37<>0,(CONCATENATE('Campers Page 2'!L37,\" \",'Campers Page 2'!K37)),\"\")","v":""},{"$f":"IF('Campers Page 2'!M37<>0,(CONCATENATE('Campers Page 2'!L37,\" \",'Campers Page 2'!K37)),\"\")","v":""},null,null,null,{"$f":"IFERROR(INDEX($E$2:$E$162,SMALL(IF(($E$2:$E$162)<>\"\",ROW($E$1:$E$161),\"\"),ROW(J142))),\"\")","v":""},{"$f":"IFERROR(INDEX($F$2:$F$162,SMALL(IF(($F$2:$F$162)<>\"\",ROW($F$1:$F$161),\"\"),ROW(K142))),\"\")","v":""}]
[null,null,null,null,{"$f":"IF('Campers Page 2'!N38<>0,(CONCATENATE('Campers Page 2'!L38,\" \",'Campers Page 2'!K38)),\"\")","v":""},{"$f":"IF('Campers Page 2'!M38<>0,(CONCATENATE('Campers Page 2'!L38,\" \",'Campers Page 2'!K38)),\"\")","v":""},null,null,null,{"$f":"IFERROR(INDEX($E$2:$E$162,SMALL(IF(($E$2:$E$162)<>\"\",ROW($E$1:$E$161),\"\"),ROW(J143))),\"\")","v":""},{"$f":"IFERROR(INDEX($F$2:$F$162,SMALL(IF(($F$2:$F$162)<>\"\",ROW($F$1:$F$161),\"\"),ROW(K143))),\"\")","v":""}]
[null,null,null,null,{"$f":"IF('Campers Page 2'!N39<>0,(CONCATENATE('Campers Page 2'!L39,\" \",'Campers Page 2'!K39)),\"\")","v":""},{"$f":"IF('Campers Page 2'!M39<>0,(CONCATENATE('Campers Page 2'!L39,\" \",'Campers Page 2'!K39)),\"\")","v":""},null,null,null,{"$f":"IFERROR(INDEX($E$2:$E$162,SMALL(IF(($E$2:$E$162)<>\"\",ROW($E$1:$E$161),\"\"),ROW(J144))),\"\")","v":""},{"$f":"IFERROR(INDEX($F$2:$F$162,SMALL(IF(($F$2:$F$162)<>\"\",ROW($F$1:$F$161),\"\"),ROW(K144))),\"\")","v":""}]
[null,null,null,null,{"$f":"IF('Campers Page 2'!N40<>0,(CONCATENATE('Campers Page 2'!L40,\" \",'Campers Page 2'!K40)),\"\")","v":""},{"$f":"IF('Campers Page 2'!M40<>0,(CONCATENATE('Campers Page 2'!L40,\" \",'Campers Page 2'!K40)),\"\")","v":""},null,null,null,{"$f":"IFERROR(INDEX($E$2:$E$162,SMALL(IF(($E$2:$E$162)<>\"\",ROW($E$1:$E$161),\"\"),ROW(J145))),\"\")","v":""},{"$f":"IFERROR(INDEX($F$2:$F$162,SMALL(IF(($F$2:$F$162)<>\"\",ROW($F$1:$F$161),\"\"),ROW(K145))),\"\")","v":""}]
[null,null,null,null,{"$f":"IF('Campers Page 2'!N41<>0,(CONCATENATE('Campers Page 2'!L41,\" \",'Campers Page 2'!K41)),\"\")","v":""},{"$f":"IF('Campers Page 2'!M41<>0,(CONCATENATE('Campers Page 2'!L41,\" \",'Campers Page 2'!K41)),\"\")","v":""},null,null,null,{"$f":"IFERROR(INDEX($E$2:$E$162,SMALL(IF(($E$2:$E$162)<>\"\",ROW($E$1:$E$161),\"\"),ROW(J146))),\"\")","v":""},{"$f":"IFERROR(INDEX($F$2:$F$162,SMALL(IF(($F$2:$F$162)<>\"\",ROW($F$1:$F$161),\"\"),ROW(K146))),\"\")","v":""}]
[null,null,null,null,{"$f":"IF('Campers Page 2'!N42<>0,(CONCATENATE('Campers Page 2'!L42,\" \",'Campers Page 2'!K42)),\"\")","v":""},{"$f":"IF('Campers Page 2'!M42<>0,(CONCATENATE('Campers Page 2'!L42,\" \",'Campers Page 2'!K42)),\"\")","v":""},null,null,null,{"$f":"IFERROR(INDEX($E$2:$E$162,SMALL(IF(($E$2:$E$162)<>\"\",ROW($E$1:$E$161),\"\"),ROW(J147))),\"\")","v":""},{"$f":"IFERROR(INDEX($F$2:$F$162,SMALL(IF(($F$2:$F$162)<>\"\",ROW($F$1:$F$161),\"\"),ROW(K147))),\"\")","v":""}]
[null,null,null,null,{"$f":"IF('Campers Page 2'!N43<>0,(CONCATENATE('Campers Page 2'!L43,\" \",'Campers Page 2'!K43)),\"\")","v":""},{"$f":"IF('Campers Page 2'!M43<>0,(CONCATENATE('Campers Page 2'!L43,\" \",'Campers Page 2'!K43)),\"\")","v":""},null,null,null,{"$f":"IFERROR(INDEX($E$2:$E$162,SMALL(IF(($E$2:$E$162)<>\"\",ROW($E$1:$E$161),\"\"),ROW(J148))),\"\")","v":""},{"$f":"IFERROR(INDEX($F$2:$F$162,SMALL(IF(($F$2:$F$162)<>\"\",ROW($F$1:$F$161),\"\"),ROW(K148))),\"\")","v":""}]
[null,null,null,null,{"$f":"IF('Campers Page 2'!N44<>0,(CONCATENATE('Campers Page 2'!L44,\" \",'Campers Page 2'!K44)),\"\")","v":""},{"$f":"IF('Campers Page 2'!M44<>0,(CONCATENATE('Campers Page 2'!L44,\" \",'Campers Page 2'!K44)),\"\")","v":""},null,null,null,{"$f":"IFERROR(INDEX($E$2:$E$162,SMALL(IF(($E$2:$E$162)<>\"\",ROW($E$1:$E$161),\"\"),ROW(J149))),\"\")","v":""},{"$f":"IFERROR(INDEX($F$2:$F$162,SMALL(IF(($F$2:$F$162)<>\"\",ROW($F$1:$F$161),\"\"),ROW(K149))),\"\")","v":""}]
[null,null,null,null,{"$f":"IF('Campers Page 2'!N45<>0,(CONCATENATE('Campers Page 2'!L45,\" \",'Campers Page 2'!K45)),\"\")","v":""},{"$f":"IF('Campers Page 2'!M45<>0,(CONCATENATE('Campers Page 2'!L45,\" \",'Campers Page 2'!K45)),\"\")","v":""},null,null,null,{"$f":"IFERROR(INDEX($E$2:$E$162,SMALL(IF(($E$2:$E$162)<>\"\",ROW($E$1:$E$161),\"\"),ROW(J150))),\"\")","v":""},{"$f":"IFERROR(INDEX($F$2:$F$162,SMALL(IF(($F$2:$F$162)<>\"\",ROW($F$1:$F$161),\"\"),ROW(K150))),\"\")","v":""}]
[null,null,null,null,{"$f":"IF('Campers Page 2'!N46<>0,(CONCATENATE('Campers Page 2'!L46,\" \",'Campers Page 2'!K46)),\"\")","v":""},{"$f":"IF('Campers Page 2'!M46<>0,(CONCATENATE('Campers Page 2'!L46,\" \",'Campers Page 2'!K46)),\"\")","v":""},null,null,null,{"$f":"IFERROR(INDEX($E$2:$E$162,SMALL(IF(($E$2:$E$162)<>\"\",ROW($E$1:$E$161),\"\"),ROW(J151))),\"\")","v":""},{"$f":"IFERROR(INDEX($F$2:$F$162,SMALL(IF(($F$2:$F$162)<>\"\",ROW($F$1:$F$161),\"\"),ROW(K151))),\"\")","v":""}]
[null,null,null,null,{"$f":"IF('Campers Page 2'!N47<>0,(CONCATENATE('Campers Page 2'!L47,\" \",'Campers Page 2'!K47)),\"\")","v":""},{"$f":"IF('Campers Page 2'!M47<>0,(CONCATENATE('Campers Page 2'!L47,\" \",'Campers Page 2'!K47)),\"\")","v":""},null,null,null,{"$f":"IFERROR(INDEX($E$2:$E$162,SMALL(IF(($E$2:$E$162)<>\"\",ROW($E$1:$E$161),\"\"),ROW(J152))),\"\")","v":""},{"$f":"IFERROR(INDEX($F$2:$F$162,SMALL(IF(($F$2:$F$162)<>\"\",ROW($F$1:$F$161),\"\"),ROW(K152))),\"\")","v":""}]
[null,null,null,null,{"$f":"IF('Campers Page 2'!N48<>0,(CONCATENATE('Campers Page 2'!L48,\" \",'Campers Page 2'!K48)),\"\")","v":""},{"$f":"IF('Campers Page 2'!M48<>0,(CONCATENATE('Campers Page 2'!L48,\" \",'Campers Page 2'!K48)),\"\")","v":""},null,null,null,{"$f":"IFERROR(INDEX($E$2:$E$162,SMALL(IF(($E$2:$E$162)<>\"\",ROW($E$1:$E$161),\"\"),ROW(J153))),\"\")","v":""},{"$f":"IFERROR(INDEX($F$2:$F$162,SMALL(IF(($F$2:$F$162)<>\"\",ROW($F$1:$F$161),\"\"),ROW(K153))),\"\")","v":""}]
[null,null,null,null,{"$f":"IF('Campers Page 2'!N49<>0,(CONCATENATE('Campers Page 2'!L49,\" \",'Campers Page 2'!K49)),\"\")","v":""},{"$f":"IF('Campers Page 2'!M49<>0,(CONCATENATE('Campers Page 2'!L49,\" \",'Campers Page 2'!K49)),\"\")","v":""},null,null,null,{"$f":"IFERROR(INDEX($E$2:$E$162,SMALL(IF(($E$2:$E$162)<>\"\",ROW($E$1:$E$161),\"\"),ROW(J154))),\"\")","v":""},{"$f":"IFERROR(INDEX($F$2:$F$162,SMALL(IF(($F$2:$F$162)<>\"\",ROW($F$1:$F$161),\"\"),ROW(K154))),\"\")","v":""}]
[null,null,null,null,{"$f":"IF('Campers Page 2'!N50<>0,(CONCATENATE('Campers Page 2'!L50,\" \",'Campers Page 2'!K50)),\"\")","v":""},{"$f":"IF('Campers Page 2'!M50<>0,(CONCATENATE('Campers Page 2'!L50,\" \",'Campers Page 2'!K50)),\"\")","v":""},null,null,null,{"$f":"IFERROR(INDEX($E$2:$E$162,SMALL(IF(($E$2:$E$162)<>\"\",ROW($E$1:$E$161),\"\"),ROW(J155))),\"\")","v":""},{"$f":"IFERROR(INDEX($F$2:$F$162,SMALL(IF(($F$2:$F$162)<>\"\",ROW($F$1:$F$161),\"\"),ROW(K155))),\"\")","v":""}]
[null,null,null,null,{"$f":"IF('Campers Page 2'!N51<>0,(CONCATENATE('Campers Page 2'!L51,\" \",'Campers Page 2'!K51)),\"\")","v":""},{"$f":"IF('Campers Page 2'!M51<>0,(CONCATENATE('Campers Page 2'!L51,\" \",'Campers Page 2'!K51)),\"\")","v":""},null,null,null,{"$f":"IFERROR(INDEX($E$2:$E$162,SMALL(IF(($E$2:$E$162)<>\"\",ROW($E$1:$E$161),\"\"),ROW(J156))),\"\")","v":""},{"$f":"IFERROR(INDEX($F$2:$F$162,SMALL(IF(($F$2:$F$162)<>\"\",ROW($F$1:$F$161),\"\"),ROW(K156))),\"\")","v":""}]
[null,null,null,null,{"$f":"IF('Campers Page 2'!N52<>0,(CONCATENATE('Campers Page 2'!L52,\" \",'Campers Page 2'!K52)),\"\")","v":""},{"$f":"IF('Campers Page 2'!M52<>0,(CONCATENATE('Campers Page 2'!L52,\" \",'Campers Page 2'!K52)),\"\")","v":""},null,null,null,{"$f":"IFERROR(INDEX($E$2:$E$162,SMALL(IF(($E$2:$E$162)<>\"\",ROW($E$1:$E$161),\"\"),ROW(J157))),\"\")","v":""},{"$f":"IFERROR(INDEX($F$2:$F$162,SMALL(IF(($F$2:$F$162)<>\"\",ROW($F$1:$F$161),\"\"),ROW(K157))),\"\")","v":""}]
[null,null,null,null,{"$f":"IF('Campers Page 2'!N53<>0,(CONCATENATE('Campers Page 2'!L53,\" \",'Campers Page 2'!K53)),\"\")","v":""},{"$f":"IF('Campers Page 2'!M53<>0,(CONCATENATE('Campers Page 2'!L53,\" \",'Campers Page 2'!K53)),\"\")","v":""},null,null,null,{"$f":"IFERROR(INDEX($E$2:$E$162,SMALL(IF(($E$2:$E$162)<>\"\",ROW($E$1:$E$161),\"\"),ROW(J158))),\"\")","v":""},{"$f":"IFERROR(INDEX($F$2:$F$162,SMALL(IF(($F$2:$F$162)<>\"\",ROW($F$1:$F$161),\"\"),ROW(K158))),\"\")","v":""}]
[null,null,null,null,{"$f":"IF('Campers Page 2'!N54<>0,(CONCATENATE('Campers Page 2'!L54,\" \",'Campers Page 2'!K54)),\"\")","v":""},{"$f":"IF('Campers Page 2'!M54<>0,(CONCATENATE('Campers Page 2'!L54,\" \",'Campers Page 2'!K54)),\"\")","v":""},null,null,null,{"$f":"IFERROR(INDEX($E$2:$E$162,SMALL(IF(($E$2:$E$162)<>\"\",ROW($E$1:$E$161),\"\"),ROW(J159))),\"\")","v":""},{"$f":"IFERROR(INDEX($F$2:$F$162,SMALL(IF(($F$2:$F$162)<>\"\",ROW($F$1:$F$161),\"\"),ROW(K159))),\"\")","v":""}]
[null,null,null,null,{"$f":"IF('Campers Page 2'!N55<>0,(CONCATENATE('Campers Page 2'!L55,\" \",'Campers Page 2'!K55)),\"\")","v":""},{"$f":"IF('Campers Page 2'!M55<>0,(CONCATENATE('Campers Page 2'!L55,\" \",'Campers Page 2'!K55)),\"\")","v":""},null,null,null,{"$f":"IFERROR(INDEX($E$2:$E$162,SMALL(IF(($E$2:$E$162)<>\"\",ROW($E$1:$E$161),\"\"),ROW(J160))),\"\")","v":""},{"$f":"IFERROR(INDEX($F$2:$F$162,SMALL(IF(($F$2:$F$162)<>\"\",ROW($F$1:$F$161),\"\"),ROW(K160))),\"\")","v":""}]
[null,null,null,null,"End","End",null,null,null,"End","End"]

{"sheet":"Ethnicity Report","index":5,"n_rows":17,"n_cols":9,"rows_kept":17,"cut":false,"hidden":false,"merged":[[5,1,5,8],[13,2,13,8],[14,2,14,8],[16,1,16,6]]}
[]
[null,"Area #",{"$f":"'Campers Page 1'!L7","v":0}]
[null,"Area Name",{"$f":"'Campers Page 1'!L8","v":0}]
[]
[]
[null,"We collect information from each area on the ethnic background of their campers and leaders. Complete the boxes below as they pertain to your group. When the numbers you entered equals the total campers on the A Form, the Totals column will no longer be highlighted. Thank you for providing this information to aid mission leadership in decision making!"]
[]
[null,"Please put the appropriate number in each box below."]
[]
[null,null,"Caucasian","African American","Latino/Hispanic","Asian/  Pacific Islander","Native American/Native Alaskan","Other/Multi Racial","TOTALS"]
[null,"# of Campers",null,null,null,null,null,null,{"$f":"'Campers Page 2'!M57+'Campers Page 2'!N57","v":0}]
[null,"# of Leaders",null,null,null,null,null,null,{"$f":"'Leaders & Financials'!D43+'Leaders & Financials'!E43","v":0}]
[]
[null,null,{"$f":"IF((SUM(C11:H11)=I11), \" \",\"Double Check Camper Numbers - Does Not Match A Form Total\")","v":" "}]
[null,null,{"$f":"IF((SUM(C12:H12)=I12), \" \",\"Double Check Leader Numbers - Does Not Match A Form Total\")","v":" "}]
[]
[null,"How many special needs/Capernaum type campers are on this trip?"]

{"sheet":"Male Cabin Roster","index":6,"n_rows":120,"n_cols":26,"rows_kept":120,"cut":false,"hidden":false,"merged":[[0,20,2,23],[0,25,2,25],[2,0,2,16],[1,1,1,13],[3,6,3,16],[3,3,3,4],[4,6,4,16],[7,1,7,5],[7,7,7,11],[7,13,7,17],[94,1,94,5],[94,7,94,11],[94,13,94,17],[36,1,36,5],[36,7,36,11],[36,13,36,17],[65,1,65,5],[65,7,65,11],[65,13,65,17]]}
[null,null,null,null,null,null,null,null,null,null,null,null,null,null,null,null,null,null,null,null,"Male Camper Name List                                                                                        (name will disappear when assigned to housing)",null,null,null,null,"Male Leader Name List"]
[null,"YLA Santa Cruz 1st Choice Male Cabin Roster"]
[]
[null,null,"Area #",{"$f":"'Campers Page 1'!L7","v":0},null,null,{"$f":"IF('Hidden Sheet'!C7='Hidden Sheet'!C10,\"\",\"Double Check Leader Names - Total Number Doesn't Match A Form\")","v":""},null,null,null,null,null,null,null,null,null,null,null,null,null,{"$f":"IF('Campers Page 1'!D17<>0,(CONCATENATE('Campers Page 1'!C17,\" \",'Campers Page 1'!B17)),\"\")","v":""},{"$f":"IF('Campers Page 1'!M17<>0,(CONCATENATE('Campers Page 1'!L17,\" \",'Campers Page 1'!K17)),\"\")","v":""},{"$f":"IF('Campers Page 2'!D16<>0,(CONCATENATE('Campers Page 2'!C16,\" \",'Campers Page 2'!B16)),\"\")","v":""},{"$f":"IF('Campers Page 2'!M16<>0,(CONCATENATE('Campers Page 2'!L16,\" \",'Campers Page 2'!K16)),\"\")","v":""},null,{"$f":"IF('Leaders & Financials'!D7<>0,(CONCATENATE('Leaders & Financials'!C7,\" \",'Leaders & Financials'!B7)),\"\")","v":""}]
[null,null,"Area Name",{"$f":"'Campers Page 1'!L8","v":0},null,null,{"$f":"IF('Hidden Sheet'!C8='Hidden Sheet'!C11,\"\",\"Double Check Camper Names - Total Number Doesn't Match A Form\")","v":""},null,null,null,null,null,null,null,null,null,null,null,null,null,{"$f":"IF('Campers Page 1'!D18<>0,(CONCATENATE('Campers Page 1'!C18,\" \",'Campers Page 1'!B18)),\"\")","v":""},{"$f":"IF('Campers Page 1'!M18<>0,(CONCATENATE('Campers Page 1'!L18,\" \",'Campers Page 1'!K18)),\"\")","v":""},{"$f":"IF('Campers Page 2'!D17<>0,(CONCATENATE('Campers Page 2'!C17,\" \",'Campers Page 2'!B17)),\"\")","v":""},{"$f":"IF('Campers Page 2'!M17<>0,(CONCATENATE('Campers Page 2'!L17,\" \",'Campers Page 2'!K17)),\"\")","v":""},null,{"$f":"IF('Leaders & Financials'!D8<>0,(CONCATENATE('Leaders & Financials'!C8,\" \",'Leaders & Financials'!B8)),\"\")","v":""}]
[null,null,null,null,null,null,null,null,null,null,null,null,null,null,null,null,null,null,null,null,{"$f":"IF('Campers Page 1'!D19<>0,(CONCATENATE('Campers Page 1'!C19,\" \",'Campers Page 1'!B19)),\"\")","v":""},{"$f":"IF('Campers Page 1'!M19<>0,(CONCATENATE('Campers Page 1'!L19,\" \",'Campers Page 1'!K19)),\"\")","v":""},{"$f":"IF('Campers Page 2'!D18<>0,(CONCATENATE('Campers Page 2'!C18,\" \",'Campers Page 2'!B18)),\"\")","v":""},{"$f":"IF('Campers Page 2'!M18<>0,(CONCATENATE('Campers Page 2'!L18,\" \",'Campers Page 2'!K18)),\"\")","v":""},null,{"$f":"IF('Leaders & Financials'!D9<>0,(CONCATENATE('Leaders & Financials'!C9,\" \",'Leaders & Financials'!B9)),\"\")","v":""}]
[null,null,null,null,null,null,null,null,null,null,null,null,null,null,null,null,null,null,null,null,{"$f":"IF('Campers Page 1'!D20<>0,(CONCATENATE('Campers Page 1'!C20,\" \",'Campers Page 1'!B20)),\"\")","v":""},{"$f":"IF('Campers Page 1'!M20<>0,(CONCATENATE('Campers Page 1'!L20,\" \",'Campers Page 1'!K20)),\"\")","v":""},{"$f":"IF('Campers Page 2'!D19<>0,(CONCATENATE('Campers Page 2'!C19,\" \",'Campers Page 2'!B19)),\"\")","v":""},{"$f":"IF('Campers Page 2'!M19<>0,(CONCATENATE('Campers Page 2'!L19,\" \",'Campers Page 2'!K19)),\"\")","v":""},null,{"$f":"IF('Leaders & Financials'!D10<>0,(CONCATENATE('Leaders & Financials'!C10,\" \",'Leaders & Financials'!B10)),\"\")","v":""}]
[null,"Male Cabin One",null,null,null,null,null,"Male Cabin Two",null,null,null,null,null,"Male Cabin Three",null,null,null,null,null,null,{"$f":"IF('Campers Page 1'!D21<>0,(CONCATENATE('Campers Page 1'!C21,\" \",'Campers Page 1'!B21)),\"\")","v":""},{"$f":"IF('Campers Page 1'!M21<>0,(CONCATENATE('Campers Page 1'!L21,\" \",'Campers Page 1'!K21)),\"\")","v":""},{"$f":"IF('Campers Page 2'!D20<>0,(CONCATENATE('Campers Page 2'!C20,\" \",'Campers Page 2'!B20)),\"\")","v":""},{"$f":"IF('Campers Page 2'!M20<>0,(CONCATENATE('Campers Page 2'!L20,\" \",'Campers Page 2'!K20)),\"\")","v":""},null,{"$f":"IF('Leaders & Financials'!D11<>0,(CONCATENATE('Leaders & Financials'!C11,\" \",'Leaders & Financials'!B11)),\"\")","v":""}]
[null,null,null,null,null,null,null,null,null,null,null,null,null,null,null,null,null,null,null,null,{"$f":"IF('Campers Page 1'!D22<>0,(CONCATENATE('Campers Page 1'!C22,\" \",'Campers Page 1'!B22)),\"\")","v":""},{"$f":"IF('Campers Page 1'!M22<>0,(CONCATENATE('Campers Page 1'!L22,\" \",'Campers Page 1'!K22)),\"\")","v":""},{"$f":"IF('Campers Page 2'!D21<>0,(CONCATENATE('Campers Page 2'!C21,\" \",'Campers Page 2'!B21)),\"\")","v":""},{"$f":"IF('Campers Page 2'!M21<>0,(CONCATENATE('Campers Page 2'!L21,\" \",'Campers Page 2'!K21)),\"\")","v":""},null,{"$f":"IF('Leaders & Financials'!D12<>0,(CONCATENATE('Leaders & Financials'!C12,\" \",'Leaders & Financials'!B12)),\"\")","v":""}]
[null,null,"1. Leader's Name",null,null,null,null,null,"1. Leader's Name",null,null,null,null,null,"1. Leader's Name",null,null,null,null,null,{"$f":"IF('Campers Page 1'!D23<>0,(CONCATENATE('Campers Page 1'!C23,\" \",'Campers Page 1'!B23)),\"\")","v":""},{"$f":"IF('Campers Page 1'!M23<>0,(CONCATENATE('Campers Page 1'!L23,\" \",'Campers Page 1'!K23)),\"\")","v":""},{"$f":"IF('Campers Page 2'!D22<>0,(CONCATENATE('Campers Page 2'!C22,\" \",'Campers Page 2'!B22)),\"\")","v":""},{"$f":"IF('Campers Page 2'!M22<>0,(CONCATENATE('Campers Page 2'!L22,\" \",'Campers Page 2'!K22)),\"\")","v":""},null,{"$f":"IF('Leaders & Financials'!D13<>0,(CONCATENATE('Leaders & Financials'!C13,\" \",'Leaders & Financials'!B13)),\"\")","v":""}]
[null,null,"2. Leader's Name",null,null,null,null,null,"2. Leader's Name",null,null,null,null,null,"2. Leader's Name",null,null,null,null,null,{"$f":"IF('Campers Page 1'!D24<>0,(CONCATENATE('Campers Page 1'!C24,\" \",'Campers Page 1'!B24)),\"\")","v":""},{"$f":"IF('Campers Page 1'!M24<>0,(CONCATENATE('Campers Page 1'!L24,\" \",'Campers Page 1'!K24)),\"\")","v":""},{"$f":"IF('Campers Page 2'!D23<>0,(CONCATENATE('Campers Page 2'!C23,\" \",'Campers Page 2'!B23)),\"\")","v":""},{"$f":"IF('Campers Page 2'!M23<>0,(CONCATENATE('Campers Page 2'!L23,\" \",'Campers Page 2'!K23)),\"\")","v":""},null,{"$f":"IF('Leaders & Financials'!D14<>0,(CONCATENATE('Leaders & Financials'!C14,\" \",'Leaders & Financials'!B14)),\"\")","v":""}]
[null,null,"3. Leader's Name",null,null,null,null,null,"3. Leader's Name",null,null,null,null,null,"3. Leader's Name",null,null,null,null,null,{"$f":"IF('Campers Page 1'!D25<>0,(CONCATENATE('Campers Page 1'!C25,\" \",'Campers Page 1'!B25)),\"\")","v":""},{"$f":"IF('Campers Page 1'!M25<>0,(CONCATENATE('Campers Page 1'!L25,\" \",'Campers Page 1'!K25)),\"\")","v":""},{"$f":"IF('Campers Page 2'!D24<>0,(CONCATENATE('Campers Page 2'!C24,\" \",'Campers Page 2'!B24)),\"\")","v":""},{"$f":"IF('Campers Page 2'!M24<>0,(CONCATENATE('Campers Page 2'!L24,\" \",'Campers Page 2'!K24)),\"\")","v":""},null,{"$f":"IF('Leaders & Financials'!D15<>0,(CONCATENATE('Leaders & Financials'!C15,\" \",'Leaders & Financials'!B15)),\"\")","v":""}]
[null,null,"4. Leader's Name",null,null,null,null,null,"4. Leader's Name",null,null,null,null,null,"4. Leader's Name",null,null,null,null,null,{"$f":"IF('Campers Page 1'!D26<>0,(CONCATENATE('Campers Page 1'!C26,\" \",'Campers Page 1'!B26)),\"\")","v":""},{"$f":"IF('Campers Page 1'!M26<>0,(CONCATENATE('Campers Page 1'!L26,\" \",'Campers Page 1'!K26)),\"\")","v":""},{"$f":"IF('Campers Page 2'!D25<>0,(CONCATENATE('Campers Page 2'!C25,\" \",'Campers Page 2'!B25)),\"\")","v":""},{"$f":"IF('Campers Page 2'!M25<>0,(CONCATENATE('Campers Page 2'!L25,\" \",'Campers Page 2'!K25)),\"\")","v":""},null,{"$f":"IF('Leaders & Financials'!D16<>0,(CONCATENATE('Leaders & Financials'!C16,\" \",'Leaders & Financials'!B16)),\"\")","v":""}]
[null,null,"5. Leader's Name",null,null,null,null,null,"5. Leader's Name",null,null,null,null,null,"5. Leader's Name",null,null,null,null,null,{"$f":"IF('Campers Page 1'!D27<>0,(CONCATENATE('Campers Page 1'!C27,\" \",'Campers Page 1'!B27)),\"\")","v":""},{"$f":"IF('Campers Page 1'!M27<>0,(CONCATENATE('Campers Page 1'!L27,\" \",'Campers Page 1'!K27)),\"\")","v":""},{"$f":"IF('Campers Page 2'!D26<>0,(CONCATENATE('Campers Page 2'!C26,\" \",'Campers Page 2'!B26)),\"\")","v":""},{"$f":"IF('Campers Page 2'!M26<>0,(CONCATENATE('Campers Page 2'!L26,\" \",'Campers Page 2'!K26)),\"\")","v":""},null,{"$f":"IF('Leaders & Financials'!D17<>0,(CONCATENATE('Leaders & Financials'!C17,\" \",'Leaders & Financials'!B17)),\"\")","v":""}]
[null,null,null,null,null,null,null,null,null,null,null,null,null,null,null,null,null,null,null,null,{"$f":"IF('Campers Page 1'!D28<>0,(CONCATENATE('Campers Page 1'!C28,\" \",'Campers Page 1'!B28)),\"\")","v":""},{"$f":"IF('Campers Page 1'!M28<>0,(CONCATENATE('Campers Page 1'!L28,\" \",'Campers Page 1'!K28)),\"\")","v":""},{"$f":"IF('Campers Page 2'!D27<>0,(CONCATENATE('Campers Page 2'!C27,\" \",'Campers Page 2'!B27)),\"\")","v":""},{"$f":"IF('Campers Page 2'!M27<>0,(CONCATENATE('Campers Page 2'!L27,\" \",'Campers Page 2'!K27)),\"\")","v":""},null,{"$f":"IF('Leaders & Financials'!D18<>0,(CONCATENATE('Leaders & Financials'!C18,\" \",'Leaders & Financials'!B18)),\"\")","v":""}]
[null,null,"1. Camper's Name",null,null,null,null,null,"1. Camper's Name",null,null,null,null,null,"1. Camper's Name",null,null,null,null,null,{"$f":"IF('Campers Page 1'!D29<>0,(CONCATENATE('Campers Page 1'!C29,\" \",'Campers Page 1'!B29)),\"\")","v":""},{"$f":"IF('Campers Page 1'!M29<>0,(CONCATENATE('Campers Page 1'!L29,\" \",'Campers Page 1'!K29)),\"\")","v":""},{"$f":"IF('Campers Page 2'!D28<>0,(CONCATENATE('Campers Page 2'!C28,\" \",'Campers Page 2'!B28)),\"\")","v":""},{"$f":"IF('Campers Page 2'!M28<>0,(CONCATENATE('Campers Page 2'!L28,\" \",'Campers Page 2'!K28)),\"\")","v":""},null,{"$f":"IF('Leaders & Financials'!D19<>0,(CONCATENATE('Leaders & Financials'!C19,\" \",'Leaders & Financials'!B19)),\"\")","v":""}]
[null,null,"2. Camper's Name",null,null,null,null,null,"2. Camper's Name",null,null,null,null,null,"2. Camper's Name",null,null,null,null,null,{"$f":"IF('Campers Page 1'!D30<>0,(CONCATENATE('Campers Page 1'!C30,\" \",'Campers Page 1'!B30)),\"\")","v":""},{"$f":"IF('Campers Page 1'!M30<>0,(CONCATENATE('Campers Page 1'!L30,\" \",'Campers Page 1'!K30)),\"\")","v":""},{"$f":"IF('Campers Page 2'!D29<>0,(CONCATENATE('Campers Page 2'!C29,\" \",'Campers Page 2'!B29)),\"\")","v":""},{"$f":"IF('Campers Page 2'!M29<>0,(CONCATENATE('Campers Page 2'!L29,\" \",'Campers Page 2'!K29)),\"\")","v":""},null,{"$f":"IF('Leaders & Financials'!D20<>0,(CONCATENATE('Leaders & Financials'!C20,\" \",'Leaders & Financials'!B20)),\"\")","v":""}]
[null,null,"3. Camper's Name",null,null,null,null,null,"3. Camper's Name",null,null,null,null,null,"3. Camper's Name",null,null,null,null,null,{"$f":"IF('Campers Page 1'!D31<>0,(CONCATENATE('Campers Page 1'!C31,\" \",'Campers Page 1'!B31)),\"\")","v":""},{"$f":"IF('Campers Page 1'!M31<>0,(CONCATENATE('Campers Page 1'!L31,\" \",'Campers Page 1'!K31)),\"\")","v":""},{"$f":"IF('Campers Page 2'!D30<>0,(CONCATENATE('Campers Page 2'!C30,\" \",'Campers Page 2'!B30)),\"\")","v":""},{"$f":"IF('Campers Page 2'!M30<>0,(CONCATENATE('Campers Page 2'!L30,\" \",'Campers Page 2'!K30)),\"\")","v":""},null,{"$f":"IF('Leaders & Financials'!D21<>0,(CONCATENATE('Leaders & Financials'!C21,\" \",'Leaders & Financials'!B21)),\"\")","v":""}]
[null,null,"4. Camper's Name",null,null,null,null,null,"4. Camper's Name",null,null,null,null,null,"4. Camper's Name",null,null,null,null,null,{"$f":"IF('Campers Page 1'!D32<>0,(CONCATENATE('Campers Page 1'!C32,\" \",'Campers Page 1'!B32)),\"\")","v":""},{"$f":"IF('Campers Page 1'!M32<>0,(CONCATENATE('Campers Page 1'!L32,\" \",'Campers Page 1'!K32)),\"\")","v":""},{"$f":"IF('Campers Page 2'!D31<>0,(CONCATENATE('Campers Page 2'!C31,\" \",'Campers Page 2'!B31)),\"\")","v":""},{"$f":"IF('Campers Page 2'!M31<>0,(CONCATENATE('Campers Page 2'!L31,\" \",'Campers Page 2'!K31)),\"\")","v":""},null,{"$f":"IF('Leaders & Financials'!D22<>0,(CONCATENATE('Leaders & Financials'!C22,\" \",'Leaders & Financials'!B22)),\"\")","v":""}]
[null,null,"5. Camper's Name",null,null,null,null,null,"5. Camper's Name",null,null,null,null,null,"5. Camper's Name",null,null,null,null,null,{"$f":"IF('Campers Page 1'!D33<>0,(CONCATENATE('Campers Page 1'!C33,\" \",'Campers Page 1'!B33)),\"\")","v":""},{"$f":"IF('Campers Page 1'!M33<>0,(CONCATENATE('Campers Page 1'!L33,\" \",'Campers Page 1'!K33)),\"\")","v":""},{"$f":"IF('Campers Page 2'!D32<>0,(CONCATENATE('Campers Page 2'!C32,\" \",'Campers Page 2'!B32)),\"\")","v":""},{"$f":"IF('Campers Page 2'!M32<>0,(CONCATENATE('Campers Page 2'!L32,\" \",'Campers Page 2'!K32)),\"\")","v":""},null,{"$f":"IF('Leaders & Financials'!D23<>0,(CONCATENATE('Leaders & Financials'!C23,\" \",'Leaders & Financials'!B23)),\"\")","v":""}]
[null,null,"6. Camper's Name",null,null,null,null,null,"6. Camper's Name",null,null,null,null,null,"6. Camper's Name",null,null,null,null,null,{"$f":"IF('Campers Page 1'!D34<>0,(CONCATENATE('Campers Page 1'!C34,\" \",'Campers Page 1'!B34)),\"\")","v":""},{"$f":"IF('Campers Page 1'!M34<>0,(CONCATENATE('Campers Page 1'!L34,\" \",'Campers Page 1'!K34)),\"\")","v":""},{"$f":"IF('Campers Page 2'!D33<>0,(CONCATENATE('Campers Page 2'!C33,\" \",'Campers Page 2'!B33)),\"\")","v":""},{"$f":"IF('Campers Page 2'!M33<>0,(CONCATENATE('Campers Page 2'!L33,\" \",'Campers Page 2'!K33)),\"\")","v":""},null,{"$f":"IF('Leaders & Financials'!D24<>0,(CONCATENATE('Leaders & Financials'!C24,\" \",'Leaders & Financials'!B24)),\"\")","v":""}]
[null,null,"7. Camper's Name",null,null,null,null,null,"7. Camper's Name",null,null,null,null,null,"7. Camper's Name",null,null,null,null,null,{"$f":"IF('Campers Page 1'!D35<>0,(CONCATENATE('Campers Page 1'!C35,\" \",'Campers Page 1'!B35)),\"\")","v":""},{"$f":"IF('Campers Page 1'!M35<>0,(CONCATENATE('Campers Page 1'!L35,\" \",'Campers Page 1'!K35)),\"\")","v":""},{"$f":"IF('Campers Page 2'!D34<>0,(CONCATENATE('Campers Page 2'!C34,\" \",'Campers Page 2'!B34)),\"\")","v":""},{"$f":"IF('Campers Page 2'!M34<>0,(CONCATENATE('Campers Page 2'!L34,\" \",'Campers Page 2'!K34)),\"\")","v":""},null,{"$f":"IF('Leaders & Financials'!D25<>0,(CONCATENATE('Leaders & Financials'!C25,\" \",'Leaders & Financials'!B25)),\"\")","v":""}]
[null,null,"8. Camper's Name",null,null,null,null,null,"8. Camper's Name",null,null,null,null,null,"8. Camper's Name",null,null,null,null,null,{"$f":"IF('Campers Page 1'!D36<>0,(CONCATENATE('Campers Page 1'!C36,\" \",'Campers Page 1'!B36)),\"\")","v":""},{"$f":"IF('Campers Page 1'!M36<>0,(CONCATENATE('Campers Page 1'!L36,\" \",'Campers Page 1'!K36)),\"\")","v":""},{"$f":"IF('Campers Page 2'!D35<>0,(CONCATENATE('Campers Page 2'!C35,\" \",'Campers Page 2'!B35)),\"\")","v":""},{"$f":"IF('Campers Page 2'!M35<>0,(CONCATENATE('Campers Page 2'!L35,\" \",'Campers Page 2'!K35)),\"\")","v":""},null,{"$f":"IF('Leaders & Financials'!D26<>0,(CONCATENATE('Leaders & Financials'!C26,\" \",'Leaders & Financials'!B26)),\"\")","v":""}]
[null,null,"9. Camper's Name",null,null,null,null,null,"9. Camper's Name",null,null,null,null,null,"9. Camper's Name",null,null,null,null,null,{"$f":"IF('Campers Page 1'!D37<>0,(CONCATENATE('Campers Page 1'!C37,\" \",'Campers Page 1'!B37)),\"\")","v":""},{"$f":"IF('Campers Page 1'!M37<>0,(CONCATENATE('Campers Page 1'!L37,\" \",'Campers Page 1'!K37)),\"\")","v":""},{"$f":"IF('Campers Page 2'!D36<>0,(CONCATENATE('Campers Page 2'!C36,\" \",'Campers Page 2'!B36)),\"\")","v":""},{"$f":"IF('Campers Page 2'!M36<>0,(CONCATENATE('Campers Page 2'!L36,\" \",'Campers Page 2'!K36)),\"\")","v":""},null,{"$f":"IF('Leaders & Financials'!D32<>0,(CONCATENATE('Leaders & Financials'!C32,\" \",'Leaders & Financials'!B32)),\"\")","v":""}]
[null,null,"10. Camper's Name",null,null,null,null,null,"10. Camper's Name",null,null,null,null,null,"10. Camper's Name",null,null,null,null,null,{"$f":"IF('Campers Page 1'!D38<>0,(CONCATENATE('Campers Page 1'!C38,\" \",'Campers Page 1'!B38)),\"\")","v":""},{"$f":"IF('Campers Page 1'!M38<>0,(CONCATENATE('Campers Page 1'!L38,\" \",'Campers Page 1'!K38)),\"\")","v":""},{"$f":"IF('Campers Page 2'!D37<>0,(CONCATENATE('Campers Page 2'!C37,\" \",'Campers Page 2'!B37)),\"\")","v":""},{"$f":"IF('Campers Page 2'!M37<>0,(CONCATENATE('Campers Page 2'!L37,\" \",'Campers Page 2'!K37)),\"\")","v":""},null,{"$f":"IF('Leaders & Financials'!D33<>0,(CONCATENATE('Leaders & Financials'!C33,\" \",'Leaders & Financials'!B33)),\"\")","v":""}]
[null,null,"11. Camper's Name",null,null,null,null,null,"11. Camper's Name",null,null,null,null,null,"11. Camper's Name",null,null,null,null,null,{"$f":"IF('Campers Page 1'!D39<>0,(CONCATENATE('Campers Page 1'!C39,\" \",'Campers Page 1'!B39)),\"\")","v":""},{"$f":"IF('Campers Page 1'!M39<>0,(CONCATENATE('Campers Page 1'!L39,\" \",'Campers Page 1'!K39)),\"\")","v":""},{"$f":"IF('Campers Page 2'!D38<>0,(CONCATENATE('Campers Page 2'!C38,\" \",'Campers Page 2'!B38)),\"\")","v":""},{"$f":"IF('Campers Page 2'!M38<>0,(CONCATENATE('Campers Page 2'!L38,\" \",'Campers Page 2'!K38)),\"\")","v":""},null,{"$f":"IF('Leaders & Financials'!D34<>0,(CONCATENATE('Leaders & Financials'!C34,\" \",'Leaders & Financials'!B34)),\"\")","v":""}]
[null,null,"12. Camper's Name",null,null,null,null,null,"12. Camper's Name",null,null,null,null,null,"12. Camper's Name",null,null,null,null,null,{"$f":"IF('Campers Page 1'!D40<>0,(CONCATENATE('Campers Page 1'!C40,\" \",'Campers Page 1'!B40)),\"\")","v":""},{"$f":"IF('Campers Page 1'!M40<>0,(CONCATENATE('Campers Page 1'!L40,\" \",'Campers Page 1'!K40)),\"\")","v":""},{"$f":"IF('Campers Page 2'!D39<>0,(CONCATENATE('Campers Page 2'!C39,\" \",'Campers Page 2'!B39)),\"\")","v":""},{"$f":"IF('Campers Page 2'!M39<>0,(CONCATENATE('Campers Page 2'!L39,\" \",'Campers Page 2'!K39)),\"\")","v":""},null,{"$f":"IF('Leaders & Financials'!D35<>0,(CONCATENATE('Leaders & Financials'!C35,\" \",'Leaders & Financials'!B35)),\"\")","v":""}]
[null,null,"13. Camper's Name",null,null,null,null,null,"13. Camper's Name",null,null,null,null,null,"13. Camper's Name",null,null,null,null,null,{"$f":"IF('Campers Page 1'!D41<>0,(CONCATENATE('Campers Page 1'!C41,\" \",'Campers Page 1'!B41)),\"\")","v":""},{"$f":"IF('Campers Page 1'!M41<>0,(CONCATENATE('Campers Page 1'!L41,\" \",'Campers Page 1'!K41)),\"\")","v":""},{"$f":"IF('Campers Page 2'!D40<>0,(CONCATENATE('Campers Page 2'!C40,\" \",'Campers Page 2'!B40)),\"\")","v":""},{"$f":"IF('Campers Page 2'!M40<>0,(CONCATENATE('Campers Page 2'!L40,\" \",'Campers Page 2'!K40)),\"\")","v":""},null,{"$f":"IF('Leaders & Financials'!D36<>0,(CONCATENATE('Leaders & Financials'!C36,\" \",'Leaders & Financials'!B36)),\"\")","v":""}]
[null,null,"14. Camper's Name",null,null,null,null,null,"14. Camper's Name",null,null,null,null,null,"14. Camper's Name",null,null,null,null,null,{"$f":"IF('Campers Page 1'!D42<>0,(CONCATENATE('Campers Page 1'!C42,\" \",'Campers Page 1'!B42)),\"\")","v":""},{"$f":"IF('Campers Page 1'!M42<>0,(CONCATENATE('Campers Page 1'!L42,\" \",'Campers Page 1'!K42)),\"\")","v":""},{"$f":"IF('Campers Page 2'!D41<>0,(CONCATENATE('Campers Page 2'!C41,\" \",'Campers Page 2'!B41)),\"\")","v":""},{"$f":"IF('Campers Page 2'!M41<>0,(CONCATENATE('Campers Page 2'!L41,\" \",'Campers Page 2'!K41)),\"\")","v":""},null,{"$f":"IF('Leaders & Financials'!D37<>0,(CONCATENATE('Leaders & Financials'!C37,\" \",'Leaders & Financials'!B37)),\"\")","v":""}]
[null,null,"15. Camper's Name",null,null,null,null,null,"15. Camper's Name",null,null,null,null,null,"15. Camper's Name",null,null,null,null,null,{"$f":"IF('Campers Page 1'!D43<>0,(CONCATENATE('Campers Page 1'!C43,\" \",'Campers Page 1'!B43)),\"\")","v":""},{"$f":"IF('Campers Page 1'!M43<>0,(CONCATENATE('Campers Page 1'!L43,\" \",'Campers Page 1'!K43)),\"\")","v":""},{"$f":"IF('Campers Page 2'!D42<>0,(CONCATENATE('Campers Page 2'!C42,\" \",'Campers Page 2'!B42)),\"\")","v":""},{"$f":"IF('Campers Page 2'!M42<>0,(CONCATENATE('Campers Page 2'!L42,\" \",'Campers Page 2'!K42)),\"\")","v":""},null,{"$f":"IF('Leaders & Financials'!D38<>0,(CONCATENATE('Leaders & Financials'!C38,\" \",'Leaders & Financials'!B38)),\"\")","v":""}]
[null,null,"16. Camper's Name",null,null,null,null,null,"16. Camper's Name",null,null,null,null,null,"16. Camper's Name",null,null,null,null,null,{"$f":"IF('Campers Page 1'!D44<>0,(CONCATENATE('Campers Page 1'!C44,\" \",'Campers Page 1'!B44)),\"\")","v":""},{"$f":"IF('Campers Page 1'!M44<>0,(CONCATENATE('Campers Page 1'!L44,\" \",'Campers Page 1'!K44)),\"\")","v":""},{"$f":"IF('Campers Page 2'!D43<>0,(CONCATENATE('Campers Page 2'!C43,\" \",'Campers Page 2'!B43)),\"\")","v":""},{"$f":"IF('Campers Page 2'!M43<>0,(CONCATENATE('Campers Page 2'!L43,\" \",'Campers Page 2'!K43)),\"\")","v":""},null,{"$f":"IF('Leaders & Financials'!D39<>0,(CONCATENATE('Leaders & Financials'!C39,\" \",'Leaders & Financials'!B39)),\"\")","v":""}]
[null,null,"17. Camper's Name",null,null,null,null,null,"17. Camper's Name",null,null,null,null,null,"17. Camper's Name",null,null,null,null,null,{"$f":"IF('Campers Page 1'!D45<>0,(CONCATENATE('Campers Page 1'!C45,\" \",'Campers Page 1'!B45)),\"\")","v":""},{"$f":"IF('Campers Page 1'!M45<>0,(CONCATENATE('Campers Page 1'!L45,\" \",'Campers Page 1'!K45)),\"\")","v":""},{"$f":"IF('Campers Page 2'!D44<>0,(CONCATENATE('Campers Page 2'!C44,\" \",'Campers Page 2'!B44)),\"\")","v":""},{"$f":"IF('Campers Page 2'!M44<>0,(CONCATENATE('Campers Page 2'!L44,\" \",'Campers Page 2'!K44)),\"\")","v":""},null,{"$f":"IF('Leaders & Financials'!D40<>0,(CONCATENATE('Leaders & Financials'!C40,\" \",'Leaders & Financials'!B40)),\"\")","v":""}]
[null,null,"18. Camper's Name",null,null,null,null,null,"18. Camper's Name",null,null,null,null,null,"18. Camper's Name",null,null,null,null,null,{"$f":"IF('Campers Page 1'!D46<>0,(CONCATENATE('Campers Page 1'!C46,\" \",'Campers Page 1'!B46)),\"\")","v":""},{"$f":"IF('Campers Page 1'!M46<>0,(CONCATENATE('Campers Page 1'!L46,\" \",'Campers Page 1'!K46)),\"\")","v":""},{"$f":"IF('Campers Page 2'!D45<>0,(CONCATENATE('Campers Page 2'!C45,\" \",'Campers Page 2'!B45)),\"\")","v":""},{"$f":"IF('Campers Page 2'!M45<>0,(CONCATENATE('Campers Page 2'!L45,\" \",'Campers Page 2'!K45)),\"\")","v":""},null,{"$f":"IF('Leaders & Financials'!D41<>0,(CONCATENATE('Leaders & Financials'!C41,\" \",'Leaders & Financials'!B41)),\"\")","v":""}]
[null,null,null,null,null,null,null,null,null,null,null,null,null,null,null,null,null,null,null,null,{"$f":"IF('Campers Page 1'!D47<>0,(CONCATENATE('Campers Page 1'!C47,\" \",'Campers Page 1'!B47)),\"\")","v":""},{"$f":"IF('Campers Page 1'!M47<>0,(CONCATENATE('Campers Page 1'!L47,\" \",'Campers Page 1'!K47)),\"\")","v":""},{"$f":"IF('Campers Page 2'!D46<>0,(CONCATENATE('Campers Page 2'!C46,\" \",'Campers Page 2'!B46)),\"\")","v":""},{"$f":"IF('Campers Page 2'!M46<>0,(CONCATENATE('Campers Page 2'!L46,\" \",'Campers Page 2'!K46)),\"\")","v":""}]
[null,null,null,null,null,null,null,null,null,null,null,null,null,null,null,null,null,null,null,null,{"$f":"IF('Campers Page 1'!D48<>0,(CONCATENATE('Campers Page 1'!C48,\" \",'Campers Page 1'!B48)),\"\")","v":""},{"$f":"IF('Campers Page 1'!M48<>0,(CONCATENATE('Campers Page 1'!L48,\" \",'Campers Page 1'!K48)),\"\")","v":""},{"$f":"IF('Campers Page 2'!D47<>0,(CONCATENATE('Campers Page 2'!C47,\" \",'Campers Page 2'!B47)),\"\")","v":""},{"$f":"IF('Campers Page 2'!M47<>0,(CONCATENATE('Campers Page 2'!L47,\" \",'Campers Page 2'!K47)),\"\")","v":""}]
[null,null,null,null,null,null,null,null,null,null,null,null,null,null,null,null,null,null,null,null,{"$f":"IF('Campers Page 1'!D49<>0,(CONCATENATE('Campers Page 1'!C49,\" \",'Campers Page 1'!B49)),\"\")","v":""},{"$f":"IF('Campers Page 1'!M49<>0,(CONCATENATE('Campers Page 1'!L49,\" \",'Campers Page 1'!K49)),\"\")","v":""},{"$f":"IF('Campers Page 2'!D48<>0,(CONCATENATE('Campers Page 2'!C48,\" \",'Campers Page 2'!B48)),\"\")","v":""},{"$f":"IF('Campers Page 2'!M48<>0,(CONCATENATE('Campers Page 2'!L48,\" \",'Campers Page 2'!K48)),\"\")","v":""}]
[null,"Male Cabin Four",null,null,null,null,null,"Male Cabin Five",null,null,null,null,null,"Male Cabin Six",null,null,null,null,null,null,{"$f":"IF('Campers Page 1'!D50<>0,(CONCATENATE('Campers Page 1'!C50,\" \",'Campers Page 1'!B50)),\"\")","v":""},{"$f":"IF('Campers Page 1'!M50<>0,(CONCATENATE('Campers Page 1'!L50,\" \",'Campers Page 1'!K50)),\"\")","v":""},{"$f":"IF('Campers Page 2'!D49<>0,(CONCATENATE('Campers Page 2'!C49,\" \",'Campers Page 2'!B49)),\"\")","v":""},{"$f":"IF('Campers Page 2'!M49<>0,(CONCATENATE('Campers Page 2'!L49,\" \",'Campers Page 2'!K49)),\"\")","v":""}]
[null,null,null,null,null,null,null,null,null,null,null,null,null,null,null,null,null,null,null,null,{"$f":"IF('Campers Page 1'!D51<>0,(CONCATENATE('Campers Page 1'!C51,\" \",'Campers Page 1'!B51)),\"\")","v":""},{"$f":"IF('Campers Page 1'!M51<>0,(CONCATENATE('Campers Page 1'!L51,\" \",'Campers Page 1'!K51)),\"\")","v":""},{"$f":"IF('Campers Page 2'!D50<>0,(CONCATENATE('Campers Page 2'!C50,\" \",'Campers Page 2'!B50)),\"\")","v":""},{"$f":"IF('Campers Page 2'!M50<>0,(CONCATENATE('Campers Page 2'!L50,\" \",'Campers Page 2'!K50)),\"\")","v":""}]
[null,null,"1. Leader's Name",null,null,null,null,null,"1. Leader's Name",null,null,null,null,null,"1. Leader's Name",null,null,null,null,null,{"$f":"IF('Campers Page 1'!D52<>0,(CONCATENATE('Campers Page 1'!C52,\" \",'Campers Page 1'!B52)),\"\")","v":""},{"$f":"IF('Campers Page 1'!M52<>0,(CONCATENATE('Campers Page 1'!L52,\" \",'Campers Page 1'!K52)),\"\")","v":""},{"$f":"IF('Campers Page 2'!D51<>0,(CONCATENATE('Campers Page 2'!C51,\" \",'Campers Page 2'!B51)),\"\")","v":""},{"$f":"IF('Campers Page 2'!M51<>0,(CONCATENATE('Campers Page 2'!L51,\" \",'Campers Page 2'!K51)),\"\")","v":""}]
[null,null,"2. Leader's Name",null,null,null,null,null,"2. Leader's Name",null,null,null,null,null,"2. Leader's Name",null,null,null,null,null,{"$f":"IF('Campers Page 1'!D53<>0,(CONCATENATE('Campers Page 1'!C53,\" \",'Campers Page 1'!B53)),\"\")","v":""},{"$f":"IF('Campers Page 1'!M53<>0,(CONCATENATE('Campers Page 1'!L53,\" \",'Campers Page 1'!K53)),\"\")","v":""},{"$f":"IF('Campers Page 2'!D52<>0,(CONCATENATE('Campers Page 2'!C52,\" \",'Campers Page 2'!B52)),\"\")","v":""},{"$f":"IF('Campers Page 2'!M52<>0,(CONCATENATE('Campers Page 2'!L52,\" \",'Campers Page 2'!K52)),\"\")","v":""}]
[null,null,"3. Leader's Name",null,null,null,null,null,"3. Leader's Name",null,null,null,null,null,"3. Leader's Name",null,null,null,null,null,{"$f":"IF('Campers Page 1'!D54<>0,(CONCATENATE('Campers Page 1'!C54,\" \",'Campers Page 1'!B54)),\"\")","v":""},{"$f":"IF('Campers Page 1'!M54<>0,(CONCATENATE('Campers Page 1'!L54,\" \",'Campers Page 1'!K54)),\"\")","v":""},{"$f":"IF('Campers Page 2'!D53<>0,(CONCATENATE('Campers Page 2'!C53,\" \",'Campers Page 2'!B53)),\"\")","v":""},{"$f":"IF('Campers Page 2'!M53<>0,(CONCATENATE('Campers Page 2'!L53,\" \",'Campers Page 2'!K53)),\"\")","v":""}]
[null,null,"4. Leader's Name",null,null,null,null,null,"4. Leader's Name",null,null,null,null,null,"4. Leader's Name",null,null,null,null,null,{"$f":"IF('Campers Page 1'!D55<>0,(CONCATENATE('Campers Page 1'!C55,\" \",'Campers Page 1'!B55)),\"\")","v":""},{"$f":"IF('Campers Page 1'!M55<>0,(CONCATENATE('Campers Page 1'!L55,\" \",'Campers Page 1'!K55)),\"\")","v":""},{"$f":"IF('Campers Page 2'!D54<>0,(CONCATENATE('Campers Page 2'!C54,\" \",'Campers Page 2'!B54)),\"\")","v":""},{"$f":"IF('Campers Page 2'!M54<>0,(CONCATENATE('Campers Page 2'!L54,\" \",'Campers Page 2'!K54)),\"\")","v":""}]
[null,null,"5. Leader's Name",null,null,null,null,null,"5. Leader's Name",null,null,null,null,null,"5. Leader's Name",null,null,null,null,null,{"$f":"IF('Campers Page 1'!D56<>0,(CONCATENATE('Campers Page 1'!C56,\" \",'Campers Page 1'!B56)),\"\")","v":""},null,{"$f":"IF('Campers Page 2'!D55<>0,(CONCATENATE('Campers Page 2'!C55,\" \",'Campers Page 2'!B55)),\"\")","v":""},{"$f":"IF('Campers Page 2'!M55<>0,(CONCATENATE('Campers Page 2'!L55,\" \",'Campers Page 2'!K55)),\"\")","v":""}]
[null,null,null,null,null,null,null,null,null,null,null,null,null,null,null,null,null,null,null,null,null,null,{"$f":"IF('Campers Page 2'!D56<>0,(CONCATENATE('Campers Page 2'!C56,\" \",'Campers Page 2'!B56)),\"\")","v":""}]
[null,null,"1. Camper's Name",null,null,null,null,null,"1. Camper's Name",null,null,null,null,null,"1. Camper's Name"]
[null,null,"2. Camper's Name",null,null,null,null,null,"2. Camper's Name",null,null,null,null,null,"2. Camper's Name"]
[null,null,"3. Camper's Name",null,null,null,null,null,"3. Camper's Name",null,null,null,null,null,"3. Camper's Name"]
[null,null,"4. Camper's Name",null,null,null,null,null,"4. Camper's Name",null,null,null,null,null,"4. Camper's Name"]
[null,null,"5. Camper's Name",null,null,null,null,null,"5. Camper's Name",null,null,null,null,null,"5. Camper's Name"]
[null,null,"6. Camper's Name",null,null,null,null,null,"6. Camper's Name",null,null,null,null,null,"6. Camper's Name"]
[null,null,"7. Camper's Name",null,null,null,null,null,"7. Camper's Name",null,null,null,null,null,"7. Camper's Name"]
[null,null,"8. Camper's Name",null,null,null,null,null,"8. Camper's Name",null,null,null,null,null,"8. Camper's Name"]
[null,null,"9. Camper's Name",null,null,null,null,null,"9. Camper's Name",null,null,null,null,null,"9. Camper's Name"]
[null,null,"10. Camper's Name",null,null,null,null,null,"10. Camper's Name",null,null,null,null,null,"10. Camper's Name"]
[null,null,"11. Camper's Name",null,null,null,null,null,"11. Camper's Name",null,null,null,null,null,"11. Camper's Name"]
[null,null,"12. Camper's Name",null,null,null,null,null,"12. Camper's Name",null,null,null,null,null,"12. Camper's Name"]
[null,null,"13. Camper's Name",null,null,null,null,null,"13. Camper's Name",null,null,null,null,null,"13. Camper's Name"]
[null,null,"14. Camper's Name",null,null,null,null,null,"14. Camper's Name",null,null,null,null,null,"14. Camper's Name"]
[null,null,"15. Camper's Name",null,null,null,null,null,"15. Camper's Name",null,null,null,null,null,"15. Camper's Name"]
[null,null,"16. Camper's Name",null,null,null,null,null,"16. Camper's Name",null,null,null,null,null,"16. Camper's Name"]
[null,null,"17. Camper's Name",null,null,null,null,null,"17. Camper's Name",null,null,null,null,null,"17. Camper's Name"]
[null,null,"18. Camper's Name",null,null,null,null,null,"18. Camper's Name",null,null,null,null,null,"18. Camper's Name"]
[]
[]
[]
[null,"Male Cabin Seven",null,null,null,null,null,"Male Cabin Eight",null,null,null,null,null,"Male Cabin Nine"]
[]
[null,null,"1. Leader's Name",null,null,null,null,null,"1. Leader's Name",null,null,null,null,null,"1. Leader's Name"]
[null,null,"2. Leader's Name",null,null,null,null,null,"2. Leader's Name",null,null,null,null,null,"2. Leader's Name"]
[null,null,"3. Leader's Name",null,null,null,null,null,"3. Leader's Name",null,null,null,null,null,"3. Leader's Name"]
[null,null,"4. Leader's Name",null,null,null,null,null,"4. Leader's Name",null,null,null,null,null,"4. Leader's Name"]
[null,null,"5. Leader's Name",null,null,null,null,null,"5. Leader's Name",null,null,null,null,null,"5. Leader's Name"]
[]
[null,null,"1. Camper's Name",null,null,null,null,null,"1. Camper's Name",null,null,null,null,null,"1. Camper's Name"]
[null,null,"2. Camper's Name",null,null,null,null,null,"2. Camper's Name",null,null,null,null,null,"2. Camper's Name"]
[null,null,"3. Camper's Name",null,null,null,null,null,"3. Camper's Name",null,null,null,null,null,"3. Camper's Name"]
[null,null,"4. Camper's Name",null,null,null,null,null,"4. Camper's Name",null,null,null,null,null,"4. Camper's Name"]
[null,null,"5. Camper's Name",null,null,null,null,null,"5. Camper's Name",null,null,null,null,null,"5. Camper's Name"]
[null,null,"6. Camper's Name",null,null,null,null,null,"6. Camper's Name",null,null,null,null,null,"6. Camper's Name"]
[null,null,"7. Camper's Name",null,null,null,null,null,"7. Camper's Name",null,null,null,null,null,"7. Camper's Name"]
[null,null,"8. Camper's Name",null,null,null,null,null,"8. Camper's Name",null,null,null,null,null,"8. Camper's Name"]
[null,null,"9. Camper's Name",null,null,null,null,null,"9. Camper's Name",null,null,null,null,null,"9. Camper's Name"]
[null,null,"10. Camper's Name",null,null,null,null,null,"10. Camper's Name",null,null,null,null,null,"10. Camper's Name"]
[null,null,"11. Camper's Name",null,null,null,null,null,"11. Camper's Name",null,null,null,null,null,"11. Camper's Name"]
[null,null,"12. Camper's Name",null,null,null,null,null,"12. Camper's Name",null,null,null,null,null,"12. Camper's Name"]
[null,null,"13. Camper's Name",null,null,null,null,null,"13. Camper's Name",null,null,null,null,null,"13. Camper's Name"]
[null,null,"14. Camper's Name",null,null,null,null,null,"14. Camper's Name",null,null,null,null,null,"14. Camper's Name"]
[null,null,"15. Camper's Name",null,null,null,null,null,"15. Camper's Name",null,null,null,null,null,"15. Camper's Name"]
[null,null,"16. Camper's Name",null,null,null,null,null,"16. Camper's Name",null,null,null,null,null,"16. Camper's Name"]
[null,null,"17. Camper's Name",null,null,null,null,null,"17. Camper's Name",null,null,null,null,null,"17. Camper's Name"]
[null,null,"18. Camper's Name",null,null,null,null,null,"18. Camper's Name",null,null,null,null,null,"18. Camper's Name"]
[]
[]
[]
[null,"Male Cabin Ten",null,null,null,null,null,"Male Cabin Eleven",null,null,null,null,null,"Male Cabin Twelve"]
[]
[null,null,"1. Leader's Name",null,null,null,null,null,"1. Leader's Name",null,null,null,null,null,"1. Leader's Name"]
[null,null,"2. Leader's Name",null,null,null,null,null,"2. Leader's Name",null,null,null,null,null,"2. Leader's Name"]
[null,null,"3. Leader's Name",null,null,null,null,null,"3. Leader's Name",null,null,null,null,null,"3. Leader's Name"]
[null,null,"4. Leader's Name",null,null,null,null,null,"4. Leader's Name",null,null,null,null,null,"4. Leader's Name"]
[null,null,"5. Leader's Name",null,null,null,null,null,"5. Leader's Name",null,null,null,null,null,"5. Leader's Name"]
[]
[null,null,"1. Camper's Name",null,null,null,null,null,"1. Camper's Name",null,null,null,null,null,"1. Camper's Name"]
[null,null,"2. Camper's Name",null,null,null,null,null,"2. Camper's Name",null,null,null,null,null,"2. Camper's Name"]
[null,null,"3. Camper's Name",null,null,null,null,null,"3. Camper's Name",null,null,null,null,null,"3. Camper's Name"]
[null,null,"4. Camper's Name",null,null,null,null,null,"4. Camper's Name",null,null,null,null,null,"4. Camper's Name"]
[null,null,"5. Camper's Name",null,null,null,null,null,"5. Camper's Name",null,null,null,null,null,"5. Camper's Name"]
[null,null,"6. Camper's Name",null,null,null,null,null,"6. Camper's Name",null,null,null,null,null,"6. Camper's Name"]
[null,null,"7. Camper's Name",null,null,null,null,null,"7. Camper's Name",null,null,null,null,null,"7. Camper's Name"]
[null,null,"8. Camper's Name",null,null,null,null,null,"8. Camper's Name",null,null,null,null,null,"8. Camper's Name"]
[null,null,"9. Camper's Name",null,null,null,null,null,"9. Camper's Name",null,null,null,null,null,"9. Camper's Name"]
[null,null,"10. Camper's Name",null,null,null,null,null,"10. Camper's Name",null,null,null,null,null,"10. Camper's Name"]
[null,null,"11. Camper's Name",null,null,null,null,null,"11. Camper's Name",null,null,null,null,null,"11. Camper's Name"]
[null,null,"12. Camper's Name",null,null,null,null,null,"12. Camper's Name",null,null,null,null,null,"12. Camper's Name"]
[null,null,"13. Camper's Name",null,null,null,null,null,"13. Camper's Name",null,null,null,null,null,"13. Camper's Name"]
[null,null,"14. Camper's Name",null,null,null,null,null,"14. Camper's Name",null,null,null,null,null,"14. Camper's Name"]
[null,null,"15. Camper's Name",null,null,null,null,null,"15. Camper's Name",null,null,null,null,null,"15. Camper's Name"]
[null,null,"16. Camper's Name",null,null,null,null,null,"16. Camper's Name",null,null,null,null,null,"16. Camper's Name"]
[null,null,"17. Camper's Name",null,null,null,null,null,"17. Camper's Name",null,null,null,null,null,"17. Camper's Name"]
[null,null,"18. Camper's Name",null,null,null,null,null,"18. Camper's Name",null,null,null,null,null,"18. Camper's Name"]

{"sheet":"Female Cabin Roster","index":7,"n_rows":120,"n_cols":26,"rows_kept":120,"cut":false,"hidden":false,"merged":[[7,13,7,17],[0,25,2,25],[0,20,2,23],[2,0,2,16],[7,1,7,5],[7,7,7,11],[1,1,1,13],[3,5,3,16],[4,5,4,16],[3,3,3,4],[94,1,94,5],[94,7,94,11],[94,13,94,17],[36,1,36,5],[36,7,36,11],[36,13,36,17],[65,1,65,5],[65,7,65,11],[65,13,65,17]]}
[null,null,null,null,null,null,null,null,null,null,null,null,null,null,null,null,null,null,null,null,"Female Camper Name List                                                                         (name will disappear when assigned to housing)",null,null,null,null,"Female Leader Name List"]
[null,"YLA Santa Cruz 1st Choice Female Cabin Roster"]
[]
[null,null,"Area #",{"$f":"'Campers Page 1'!L7","v":0},null,{"$f":"IF('Hidden Sheet'!C4='Hidden Sheet'!C1,\"\",\"Double Check Leader Names - Total Number Doesn't Match A Form\")","v":""},null,null,null,null,null,null,null,null,null,null,null,null,null,null,{"$f":"IF('Campers Page 1'!E17<>0,(CONCATENATE('Campers Page 1'!C17,\" \",'Campers Page 1'!B17)),\"\")","v":""},{"$f":"IF('Campers Page 1'!N17<>0,(CONCATENATE('Campers Page 1'!L17,\" \",'Campers Page 1'!K17)),\"\")","v":""},{"$f":"IF('Campers Page 2'!E16<>0,(CONCATENATE('Campers Page 2'!C16,\" \",'Campers Page 2'!B16)),\"\")","v":""},{"$f":"IF('Campers Page 2'!N16<>0,(CONCATENATE('Campers Page 2'!L16,\" \",'Campers Page 2'!K16)),\"\")","v":""},null,{"$f":"IF('Leaders & Financials'!E7<>0,(CONCATENATE('Leaders & Financials'!C7,\" \",'Leaders & Financials'!B7)),\"\")","v":""}]
[null,null,"Area Name",{"$f":"'Campers Page 1'!L8","v":0},null,{"$f":"IF('Hidden Sheet'!C5='Hidden Sheet'!C2,\"\",\"Double Check Camper Names - Total Number Doesn't Match A Form\")","v":""},null,null,null,null,null,null,null,null,null,null,null,null,null,null,{"$f":"IF('Campers Page 1'!E18<>0,(CONCATENATE('Campers Page 1'!C18,\" \",'Campers Page 1'!B18)),\"\")","v":""},{"$f":"IF('Campers Page 1'!N18<>0,(CONCATENATE('Campers Page 1'!L18,\" \",'Campers Page 1'!K18)),\"\")","v":""},{"$f":"IF('Campers Page 2'!E17<>0,(CONCATENATE('Campers Page 2'!C17,\" \",'Campers Page 2'!B17)),\"\")","v":""},{"$f":"IF('Campers Page 2'!N17<>0,(CONCATENATE('Campers Page 2'!L17,\" \",'Campers Page 2'!K17)),\"\")","v":""},null,{"$f":"IF('Leaders & Financials'!E8<>0,(CONCATENATE('Leaders & Financials'!C8,\" \",'Leaders & Financials'!B8)),\"\")","v":""}]
[null,null,null,null,null,null,null,null,null,null,null,null,null,null,null,null,null,null,null,null,{"$f":"IF('Campers Page 1'!E19<>0,(CONCATENATE('Campers Page 1'!C19,\" \",'Campers Page 1'!B19)),\"\")","v":""},{"$f":"IF('Campers Page 1'!N19<>0,(CONCATENATE('Campers Page 1'!L19,\" \",'Campers Page 1'!K19)),\"\")","v":""},{"$f":"IF('Campers Page 2'!E18<>0,(CONCATENATE('Campers Page 2'!C18,\" \",'Campers Page 2'!B18)),\"\")","v":""},{"$f":"IF('Campers Page 2'!N18<>0,(CONCATENATE('Campers Page 2'!L18,\" \",'Campers Page 2'!K18)),\"\")","v":""},null,{"$f":"IF('Leaders & Financials'!E9<>0,(CONCATENATE('Leaders & Financials'!C9,\" \",'Leaders & Financials'!B9)),\"\")","v":""}]
[null,null,null,null,null,null,null,null,null,null,null,null,null,null,null,null,null,null,null,null,{"$f":"IF('Campers Page 1'!E20<>0,(CONCATENATE('Campers Page 1'!C20,\" \",'Campers Page 1'!B20)),\"\")","v":""},{"$f":"IF('Campers Page 1'!N20<>0,(CONCATENATE('Campers Page 1'!L20,\" \",'Campers Page 1'!K20)),\"\")","v":""},{"$f":"IF('Campers Page 2'!E19<>0,(CONCATENATE('Campers Page 2'!C19,\" \",'Campers Page 2'!B19)),\"\")","v":""},{"$f":"IF('Campers Page 2'!N19<>0,(CONCATENATE('Campers Page 2'!L19,\" \",'Campers Page 2'!K19)),\"\")","v":""},null,{"$f":"IF('Leaders & Financials'!E10<>0,(CONCATENATE('Leaders & Financials'!C10,\" \",'Leaders & Financials'!B10)),\"\")","v":""}]
[null,"Female Cabin One",null,null,null,null,null,"Female Cabin Two",null,null,null,null,null,"Female Cabin Three",null,null,null,null,null,null,{"$f":"IF('Campers Page 1'!E21<>0,(CONCATENATE('Campers Page 1'!C21,\" \",'Campers Page 1'!B21)),\"\")","v":""},{"$f":"IF('Campers Page 1'!N21<>0,(CONCATENATE('Campers Page 1'!L21,\" \",'Campers Page 1'!K21)),\"\")","v":""},{"$f":"IF('Campers Page 2'!E20<>0,(CONCATENATE('Campers Page 2'!C20,\" \",'Campers Page 2'!B20)),\"\")","v":""},{"$f":"IF('Campers Page 2'!N20<>0,(CONCATENATE('Campers Page 2'!L20,\" \",'Campers Page 2'!K20)),\"\")","v":""},null,{"$f":"IF('Leaders & Financials'!E11<>0,(CONCATENATE('Leaders & Financials'!C11,\" \",'Leaders & Financials'!B11)),\"\")","v":""}]
[null,null,null,null,null,null,null,null,null,null,null,null,null,null,null,null,null,null,null,null,{"$f":"IF('Campers Page 1'!E22<>0,(CONCATENATE('Campers Page 1'!C22,\" \",'Campers Page 1'!B22)),\"\")","v":""},{"$f":"IF('Campers Page 1'!N22<>0,(CONCATENATE('Campers Page 1'!L22,\" \",'Campers Page 1'!K22)),\"\")","v":""},{"$f":"IF('Campers Page 2'!E21<>0,(CONCATENATE('Campers Page 2'!C21,\" \",'Campers Page 2'!B21)),\"\")","v":""},{"$f":"IF('Campers Page 2'!N21<>0,(CONCATENATE('Campers Page 2'!L21,\" \",'Campers Page 2'!K21)),\"\")","v":""},null,{"$f":"IF('Leaders & Financials'!E12<>0,(CONCATENATE('Leaders & Financials'!C12,\" \",'Leaders & Financials'!B12)),\"\")","v":""}]
[null,null,"1. Leader's Name",null,null,null,null,null,"1. Leader's Name",null,null,null,null,null,"1. Leader's Name",null,null,null,null,null,{"$f":"IF('Campers Page 1'!E23<>0,(CONCATENATE('Campers Page 1'!C23,\" \",'Campers Page 1'!B23)),\"\")","v":""},{"$f":"IF('Campers Page 1'!N23<>0,(CONCATENATE('Campers Page 1'!L23,\" \",'Campers Page 1'!K23)),\"\")","v":""},{"$f":"IF('Campers Page 2'!E22<>0,(CONCATENATE('Campers Page 2'!C22,\" \",'Campers Page 2'!B22)),\"\")","v":""},{"$f":"IF('Campers Page 2'!N22<>0,(CONCATENATE('Campers Page 2'!L22,\" \",'Campers Page 2'!K22)),\"\")","v":""},null,{"$f":"IF('Leaders & Financials'!E13<>0,(CONCATENATE('Leaders & Financials'!C13,\" \",'Leaders & Financials'!B13)),\"\")","v":""}]
[null,null,"2. Leader's Name",null,null,null,null,null,"2. Leader's Name",null,null,null,null,null,"2. Leader's Name",null,null,null,null,null,{"$f":"IF('Campers Page 1'!E24<>0,(CONCATENATE('Campers Page 1'!C24,\" \",'Campers Page 1'!B24)),\"\")","v":""},{"$f":"IF('Campers Page 1'!N24<>0,(CONCATENATE('Campers Page 1'!L24,\" \",'Campers Page 1'!K24)),\"\")","v":""},{"$f":"IF('Campers Page 2'!E23<>0,(CONCATENATE('Campers Page 2'!C23,\" \",'Campers Page 2'!B23)),\"\")","v":""},{"$f":"IF('Campers Page 2'!N23<>0,(CONCATENATE('Campers Page 2'!L23,\" \",'Campers Page 2'!K23)),\"\")","v":""},null,{"$f":"IF('Leaders & Financials'!E14<>0,(CONCATENATE('Leaders & Financials'!C14,\" \",'Leaders & Financials'!B14)),\"\")","v":""}]
[null,null,"3. Leader's Name",null,null,null,null,null,"3. Leader's Name",null,null,null,null,null,"3. Leader's Name",null,null,null,null,null,{"$f":"IF('Campers Page 1'!E25<>0,(CONCATENATE('Campers Page 1'!C25,\" \",'Campers Page 1'!B25)),\"\")","v":""},{"$f":"IF('Campers Page 1'!N25<>0,(CONCATENATE('Campers Page 1'!L25,\" \",'Campers Page 1'!K25)),\"\")","v":""},{"$f":"IF('Campers Page 2'!E24<>0,(CONCATENATE('Campers Page 2'!C24,\" \",'Campers Page 2'!B24)),\"\")","v":""},{"$f":"IF('Campers Page 2'!N24<>0,(CONCATENATE('Campers Page 2'!L24,\" \",'Campers Page 2'!K24)),\"\")","v":""},null,{"$f":"IF('Leaders & Financials'!E15<>0,(CONCATENATE('Leaders & Financials'!C15,\" \",'Leaders & Financials'!B15)),\"\")","v":""}]
[null,null,"4. Leader's Name",null,null,null,null,null,"4. Leader's Name",null,null,null,null,null,"4. Leader's Name",null,null,null,null,null,{"$f":"IF('Campers Page 1'!E26<>0,(CONCATENATE('Campers Page 1'!C26,\" \",'Campers Page 1'!B26)),\"\")","v":""},{"$f":"IF('Campers Page 1'!N26<>0,(CONCATENATE('Campers Page 1'!L26,\" \",'Campers Page 1'!K26)),\"\")","v":""},{"$f":"IF('Campers Page 2'!E25<>0,(CONCATENATE('Campers Page 2'!C25,\" \",'Campers Page 2'!B25)),\"\")","v":""},{"$f":"IF('Campers Page 2'!N25<>0,(CONCATENATE('Campers Page 2'!L25,\" \",'Campers Page 2'!K25)),\"\")","v":""},null,{"$f":"IF('Leaders & Financials'!E16<>0,(CONCATENATE('Leaders & Financials'!C16,\" \",'Leaders & Financials'!B16)),\"\")","v":""}]
[null,null,"5. Leader's Name",null,null,null,null,null,"5. Leader's Name",null,null,null,null,null,"5. Leader's Name",null,null,null,null,null,{"$f":"IF('Campers Page 1'!E27<>0,(CONCATENATE('Campers Page 1'!C27,\" \",'Campers Page 1'!B27)),\"\")","v":""},{"$f":"IF('Campers Page 1'!N27<>0,(CONCATENATE('Campers Page 1'!L27,\" \",'Campers Page 1'!K27)),\"\")","v":""},{"$f":"IF('Campers Page 2'!E26<>0,(CONCATENATE('Campers Page 2'!C26,\" \",'Campers Page 2'!B26)),\"\")","v":""},{"$f":"IF('Campers Page 2'!N26<>0,(CONCATENATE('Campers Page 2'!L26,\" \",'Campers Page 2'!K26)),\"\")","v":""},null,{"$f":"IF('Leaders & Financials'!E17<>0,(CONCATENATE('Leaders & Financials'!C17,\" \",'Leaders & Financials'!B17)),\"\")","v":""}]
[null,null,null,null,null,null,null,null,null,null,null,null,null,null,null,null,null,null,null,null,{"$f":"IF('Campers Page 1'!E28<>0,(CONCATENATE('Campers Page 1'!C28,\" \",'Campers Page 1'!B28)),\"\")","v":""},{"$f":"IF('Campers Page 1'!N28<>0,(CONCATENATE('Campers Page 1'!L28,\" \",'Campers Page 1'!K28)),\"\")","v":""},{"$f":"IF('Campers Page 2'!E27<>0,(CONCATENATE('Campers Page 2'!C27,\" \",'Campers Page 2'!B27)),\"\")","v":""},{"$f":"IF('Campers Page 2'!N27<>0,(CONCATENATE('Campers Page 2'!L27,\" \",'Campers Page 2'!K27)),\"\")","v":""},null,{"$f":"IF('Leaders & Financials'!E18<>0,(CONCATENATE('Leaders & Financials'!C18,\" \",'Leaders & Financials'!B18)),\"\")","v":""}]
[null,null,"1. Camper's Name",null,null,null,null,null,"1. Camper's Name",null,null,null,null,null,"1. Camper's Name",null,null,null,null,null,{"$f":"IF('Campers Page 1'!E29<>0,(CONCATENATE('Campers Page 1'!C29,\" \",'Campers Page 1'!B29)),\"\")","v":""},{"$f":"IF('Campers Page 1'!N29<>0,(CONCATENATE('Campers Page 1'!L29,\" \",'Campers Page 1'!K29)),\"\")","v":""},{"$f":"IF('Campers Page 2'!E28<>0,(CONCATENATE('Campers Page 2'!C28,\" \",'Campers Page 2'!B28)),\"\")","v":""},{"$f":"IF('Campers Page 2'!N28<>0,(CONCATENATE('Campers Page 2'!L28,\" \",'Campers Page 2'!K28)),\"\")","v":""},null,{"$f":"IF('Leaders & Financials'!E19<>0,(CONCATENATE('Leaders & Financials'!C19,\" \",'Leaders & Financials'!B19)),\"\")","v":""}]
[null,null,"2. Camper's Name",null,null,null,null,null,"2. Camper's Name",null,null,null,null,null,"2. Camper's Name",null,null,null,null,null,{"$f":"IF('Campers Page 1'!E30<>0,(CONCATENATE('Campers Page 1'!C30,\" \",'Campers Page 1'!B30)),\"\")","v":""},{"$f":"IF('Campers Page 1'!N30<>0,(CONCATENATE('Campers Page 1'!L30,\" \",'Campers Page 1'!K30)),\"\")","v":""},{"$f":"IF('Campers Page 2'!E29<>0,(CONCATENATE('Campers Page 2'!C29,\" \",'Campers Page 2'!B29)),\"\")","v":""},{"$f":"IF('Campers Page 2'!N29<>0,(CONCATENATE('Campers Page 2'!L29,\" \",'Campers Page 2'!K29)),\"\")","v":""},null,{"$f":"IF('Leaders & Financials'!E20<>0,(CONCATENATE('Leaders & Financials'!C20,\" \",'Leaders & Financials'!B20)),\"\")","v":""}]
[null,null,"3. Camper's Name",null,null,null,null,null,"3. Camper's Name",null,null,null,null,null,"3. Camper's Name",null,null,null,null,null,{"$f":"IF('Campers Page 1'!E31<>0,(CONCATENATE('Campers Page 1'!C31,\" \",'Campers Page 1'!B31)),\"\")","v":""},{"$f":"IF('Campers Page 1'!N31<>0,(CONCATENATE('Campers Page 1'!L31,\" \",'Campers Page 1'!K31)),\"\")","v":""},{"$f":"IF('Campers Page 2'!E30<>0,(CONCATENATE('Campers Page 2'!C30,\" \",'Campers Page 2'!B30)),\"\")","v":""},{"$f":"IF('Campers Page 2'!N30<>0,(CONCATENATE('Campers Page 2'!L30,\" \",'Campers Page 2'!K30)),\"\")","v":""},null,{"$f":"IF('Leaders & Financials'!E21<>0,(CONCATENATE('Leaders & Financials'!C21,\" \",'Leaders & Financials'!B21)),\"\")","v":""}]
[null,null,"4. Camper's Name",null,null,null,null,null,"4. Camper's Name",null,null,null,null,null,"4. Camper's Name",null,null,null,null,null,{"$f":"IF('Campers Page 1'!E32<>0,(CONCATENATE('Campers Page 1'!C32,\" \",'Campers Page 1'!B32)),\"\")","v":""},{"$f":"IF('Campers Page 1'!N32<>0,(CONCATENATE('Campers Page 1'!L32,\" \",'Campers Page 1'!K32)),\"\")","v":""},{"$f":"IF('Campers Page 2'!E31<>0,(CONCATENATE('Campers Page 2'!C31,\" \",'Campers Page 2'!B31)),\"\")","v":""},{"$f":"IF('Campers Page 2'!N31<>0,(CONCATENATE('Campers Page 2'!L31,\" \",'Campers Page 2'!K31)),\"\")","v":""},null,{"$f":"IF('Leaders & Financials'!E22<>0,(CONCATENATE('Leaders & Financials'!C22,\" \",'Leaders & Financials'!B22)),\"\")","v":""}]
[null,null,"5. Camper's Name",null,null,null,null,null,"5. Camper's Name",null,null,null,null,null,"5. Camper's Name",null,null,null,null,null,{"$f":"IF('Campers Page 1'!E33<>0,(CONCATENATE('Campers Page 1'!C33,\" \",'Campers Page 1'!B33)),\"\")","v":""},{"$f":"IF('Campers Page 1'!N33<>0,(CONCATENATE('Campers Page 1'!L33,\" \",'Campers Page 1'!K33)),\"\")","v":""},{"$f":"IF('Campers Page 2'!E32<>0,(CONCATENATE('Campers Page 2'!C32,\" \",'Campers Page 2'!B32)),\"\")","v":""},{"$f":"IF('Campers Page 2'!N32<>0,(CONCATENATE('Campers Page 2'!L32,\" \",'Campers Page 2'!K32)),\"\")","v":""},null,{"$f":"IF('Leaders & Financials'!E23<>0,(CONCATENATE('Leaders & Financials'!C23,\" \",'Leaders & Financials'!B23)),\"\")","v":""}]
[null,null,"6. Camper's Name",null,null,null,null,null,"6. Camper's Name",null,null,null,null,null,"6. Camper's Name",null,null,null,null,null,{"$f":"IF('Campers Page 1'!E34<>0,(CONCATENATE('Campers Page 1'!C34,\" \",'Campers Page 1'!B34)),\"\")","v":""},{"$f":"IF('Campers Page 1'!N34<>0,(CONCATENATE('Campers Page 1'!L34,\" \",'Campers Page 1'!K34)),\"\")","v":""},{"$f":"IF('Campers Page 2'!E33<>0,(CONCATENATE('Campers Page 2'!C33,\" \",'Campers Page 2'!B33)),\"\")","v":""},{"$f":"IF('Campers Page 2'!N33<>0,(CONCATENATE('Campers Page 2'!L33,\" \",'Campers Page 2'!K33)),\"\")","v":""},null,{"$f":"IF('Leaders & Financials'!E24<>0,(CONCATENATE('Leaders & Financials'!C24,\" \",'Leaders & Financials'!B24)),\"\")","v":""}]
[null,null,"7. Camper's Name",null,null,null,null,null,"7. Camper's Name",null,null,null,null,null,"7. Camper's Name",null,null,null,null,null,{"$f":"IF('Campers Page 1'!E35<>0,(CONCATENATE('Campers Page 1'!C35,\" \",'Campers Page 1'!B35)),\"\")","v":""},{"$f":"IF('Campers Page 1'!N35<>0,(CONCATENATE('Campers Page 1'!L35,\" \",'Campers Page 1'!K35)),\"\")","v":""},{"$f":"IF('Campers Page 2'!E34<>0,(CONCATENATE('Campers Page 2'!C34,\" \",'Campers Page 2'!B34)),\"\")","v":""},{"$f":"IF('Campers Page 2'!N34<>0,(CONCATENATE('Campers Page 2'!L34,\" \",'Campers Page 2'!K34)),\"\")","v":""},null,{"$f":"IF('Leaders & Financials'!E25<>0,(CONCATENATE('Leaders & Financials'!C25,\" \",'Leaders & Financials'!B25)),\"\")","v":""}]
[null,null,"8. Camper's Name",null,null,null,null,null,"8. Camper's Name",null,null,null,null,null,"8. Camper's Name",null,null,null,null,null,{"$f":"IF('Campers Page 1'!E36<>0,(CONCATENATE('Campers Page 1'!C36,\" \",'Campers Page 1'!B36)),\"\")","v":""},{"$f":"IF('Campers Page 1'!N36<>0,(CONCATENATE('Campers Page 1'!L36,\" \",'Campers Page 1'!K36)),\"\")","v":""},{"$f":"IF('Campers Page 2'!E35<>0,(CONCATENATE('Campers Page 2'!C35,\" \",'Campers Page 2'!B35)),\"\")","v":""},{"$f":"IF('Campers Page 2'!N35<>0,(CONCATENATE('Campers Page 2'!L35,\" \",'Campers Page 2'!K35)),\"\")","v":""},null,{"$f":"IF('Leaders & Financials'!E26<>0,(CONCATENATE('Leaders & Financials'!C26,\" \",'Leaders & Financials'!B26)),\"\")","v":""}]
[null,null,"9. Camper's Name",null,null,null,null,null,"9. Camper's Name",null,null,null,null,null,"9. Camper's Name",null,null,null,null,null,{"$f":"IF('Campers Page 1'!E37<>0,(CONCATENATE('Campers Page 1'!C37,\" \",'Campers Page 1'!B37)),\"\")","v":""},{"$f":"IF('Campers Page 1'!N37<>0,(CONCATENATE('Campers Page 1'!L37,\" \",'Campers Page 1'!K37)),\"\")","v":""},{"$f":"IF('Campers Page 2'!E36<>0,(CONCATENATE('Campers Page 2'!C36,\" \",'Campers Page 2'!B36)),\"\")","v":""},{"$f":"IF('Campers Page 2'!N36<>0,(CONCATENATE('Campers Page 2'!L36,\" \",'Campers Page 2'!K36)),\"\")","v":""},null,{"$f":"IF('Leaders & Financials'!E32<>0,(CONCATENATE('Leaders & Financials'!C32,\" \",'Leaders & Financials'!B32)),\"\")","v":""}]
[null,null,"10. Camper's Name",null,null,null,null,null,"10. Camper's Name",null,null,null,null,null,"10. Camper's Name",null,null,null,null,null,{"$f":"IF('Campers Page 1'!E38<>0,(CONCATENATE('Campers Page 1'!C38,\" \",'Campers Page 1'!B38)),\"\")","v":""},{"$f":"IF('Campers Page 1'!N38<>0,(CONCATENATE('Campers Page 1'!L38,\" \",'Campers Page 1'!K38)),\"\")","v":""},{"$f":"IF('Campers Page 2'!E37<>0,(CONCATENATE('Campers Page 2'!C37,\" \",'Campers Page 2'!B37)),\"\")","v":""},{"$f":"IF('Campers Page 2'!N37<>0,(CONCATENATE('Campers Page 2'!L37,\" \",'Campers Page 2'!K37)),\"\")","v":""},null,{"$f":"IF('Leaders & Financials'!E33<>0,(CONCATENATE('Leaders & Financials'!C33,\" \",'Leaders & Financials'!B33)),\"\")","v":""}]
[null,null,"11. Camper's Name",null,null,null,null,null,"11. Camper's Name",null,null,null,null,null,"11. Camper's Name",null,null,null,null,null,{"$f":"IF('Campers Page 1'!E39<>0,(CONCATENATE('Campers Page 1'!C39,\" \",'Campers Page 1'!B39)),\"\")","v":""},{"$f":"IF('Campers Page 1'!N39<>0,(CONCATENATE('Campers Page 1'!L39,\" \",'Campers Page 1'!K39)),\"\")","v":""},{"$f":"IF('Campers Page 2'!E38<>0,(CONCATENATE('Campers Page 2'!C38,\" \",'Campers Page 2'!B38)),\"\")","v":""},{"$f":"IF('Campers Page 2'!N38<>0,(CONCATENATE('Campers Page 2'!L38,\" \",'Campers Page 2'!K38)),\"\")","v":""},null,{"$f":"IF('Leaders & Financials'!E34<>0,(CONCATENATE('Leaders & Financials'!C34,\" \",'Leaders & Financials'!B34)),\"\")","v":""}]
[null,null,"12. Camper's Name",null,null,null,null,null,"12. Camper's Name",null,null,null,null,null,"12. Camper's Name",null,null,null,null,null,{"$f":"IF('Campers Page 1'!E40<>0,(CONCATENATE('Campers Page 1'!C40,\" \",'Campers Page 1'!B40)),\"\")","v":""},{"$f":"IF('Campers Page 1'!N40<>0,(CONCATENATE('Campers Page 1'!L40,\" \",'Campers Page 1'!K40)),\"\")","v":""},{"$f":"IF('Campers Page 2'!E39<>0,(CONCATENATE('Campers Page 2'!C39,\" \",'Campers Page 2'!B39)),\"\")","v":""},{"$f":"IF('Campers Page 2'!N39<>0,(CONCATENATE('Campers Page 2'!L39,\" \",'Campers Page 2'!K39)),\"\")","v":""},null,{"$f":"IF('Leaders & Financials'!E35<>0,(CONCATENATE('Leaders & Financials'!C35,\" \",'Leaders & Financials'!B35)),\"\")","v":""}]
[null,null,"13. Camper's Name",null,null,null,null,null,"13. Camper's Name",null,null,null,null,null,"13. Camper's Name",null,null,null,null,null,{"$f":"IF('Campers Page 1'!E41<>0,(CONCATENATE('Campers Page 1'!C41,\" \",'Campers Page 1'!B41)),\"\")","v":""},{"$f":"IF('Campers Page 1'!N41<>0,(CONCATENATE('Campers Page 1'!L41,\" \",'Campers Page 1'!K41)),\"\")","v":""},{"$f":"IF('Campers Page 2'!E40<>0,(CONCATENATE('Campers Page 2'!C40,\" \",'Campers Page 2'!B40)),\"\")","v":""},{"$f":"IF('Campers Page 2'!N40<>0,(CONCATENATE('Campers Page 2'!L40,\" \",'Campers Page 2'!K40)),\"\")","v":""},null,{"$f":"IF('Leaders & Financials'!E36<>0,(CONCATENATE('Leaders & Financials'!C36,\" \",'Leaders & Financials'!B36)),\"\")","v":""}]
[null,null,"14. Camper's Name",null,null,null,null,null,"14. Camper's Name",null,null,null,null,null,"14. Camper's Name",null,null,null,null,null,{"$f":"IF('Campers Page 1'!E42<>0,(CONCATENATE('Campers Page 1'!C42,\" \",'Campers Page 1'!B42)),\"\")","v":""},{"$f":"IF('Campers Page 1'!N42<>0,(CONCATENATE('Campers Page 1'!L42,\" \",'Campers Page 1'!K42)),\"\")","v":""},{"$f":"IF('Campers Page 2'!E41<>0,(CONCATENATE('Campers Page 2'!C41,\" \",'Campers Page 2'!B41)),\"\")","v":""},{"$f":"IF('Campers Page 2'!N41<>0,(CONCATENATE('Campers Page 2'!L41,\" \",'Campers Page 2'!K41)),\"\")","v":""},null,{"$f":"IF('Leaders & Financials'!E37<>0,(CONCATENATE('Leaders & Financials'!C37,\" \",'Leaders & Financials'!B37)),\"\")","v":""}]
[null,null,"15. Camper's Name",null,null,null,null,null,"15. Camper's Name",null,null,null,null,null,"15. Camper's Name",null,null,null,null,null,{"$f":"IF('Campers Page 1'!E43<>0,(CONCATENATE('Campers Page 1'!C43,\" \",'Campers Page 1'!B43)),\"\")","v":""},{"$f":"IF('Campers Page 1'!N43<>0,(CONCATENATE('Campers Page 1'!L43,\" \",'Campers Page 1'!K43)),\"\")","v":""},{"$f":"IF('Campers Page 2'!E42<>0,(CONCATENATE('Campers Page 2'!C42,\" \",'Campers Page 2'!B42)),\"\")","v":""},{"$f":"IF('Campers Page 2'!N42<>0,(CONCATENATE('Campers Page 2'!L42,\" \",'Campers Page 2'!K42)),\"\")","v":""},null,{"$f":"IF('Leaders & Financials'!E38<>0,(CONCATENATE('Leaders & Financials'!C38,\" \",'Leaders & Financials'!B38)),\"\")","v":""}]
[null,null,"16. Camper's Name",null,null,null,null,null,"16. Camper's Name",null,null,null,null,null,"16. Camper's Name",null,null,null,null,null,{"$f":"IF('Campers Page 1'!E44<>0,(CONCATENATE('Campers Page 1'!C44,\" \",'Campers Page 1'!B44)),\"\")","v":""},{"$f":"IF('Campers Page 1'!N44<>0,(CONCATENATE('Campers Page 1'!L44,\" \",'Campers Page 1'!K44)),\"\")","v":""},{"$f":"IF('Campers Page 2'!E43<>0,(CONCATENATE('Campers Page 2'!C43,\" \",'Campers Page 2'!B43)),\"\")","v":""},{"$f":"IF('Campers Page 2'!N43<>0,(CONCATENATE('Campers Page 2'!L43,\" \",'Campers Page 2'!K43)),\"\")","v":""},null,{"$f":"IF('Leaders & Financials'!E39<>0,(CONCATENATE('Leaders & Financials'!C39,\" \",'Leaders & Financials'!B39)),\"\")","v":""}]
[null,null,"17. Camper's Name",null,null,null,null,null,"17. Camper's Name",null,null,null,null,null,"17. Camper's Name",null,null,null,null,null,{"$f":"IF('Campers Page 1'!E45<>0,(CONCATENATE('Campers Page 1'!C45,\" \",'Campers Page 1'!B45)),\"\")","v":""},{"$f":"IF('Campers Page 1'!N45<>0,(CONCATENATE('Campers Page 1'!L45,\" \",'Campers Page 1'!K45)),\"\")","v":""},{"$f":"IF('Campers Page 2'!E44<>0,(CONCATENATE('Campers Page 2'!C44,\" \",'Campers Page 2'!B44)),\"\")","v":""},{"$f":"IF('Campers Page 2'!N44<>0,(CONCATENATE('Campers Page 2'!L44,\" \",'Campers Page 2'!K44)),\"\")","v":""},null,{"$f":"IF('Leaders & Financials'!E40<>0,(CONCATENATE('Leaders & Financials'!C40,\" \",'Leaders & Financials'!B40)),\"\")","v":""}]
[null,null,"18. Camper's Name",null,null,null,null,null,"18. Camper's Name",null,null,null,null,null,"18. Camper's Name",null,null,null,null,null,{"$f":"IF('Campers Page 1'!E46<>0,(CONCATENATE('Campers Page 1'!C46,\" \",'Campers Page 1'!B46)),\"\")","v":""},{"$f":"IF('Campers Page 1'!N46<>0,(CONCATENATE('Campers Page 1'!L46,\" \",'Campers Page 1'!K46)),\"\")","v":""},{"$f":"IF('Campers Page 2'!E45<>0,(CONCATENATE('Campers Page 2'!C45,\" \",'Campers Page 2'!B45)),\"\")","v":""},{"$f":"IF('Campers Page 2'!N45<>0,(CONCATENATE('Campers Page 2'!L45,\" \",'Campers Page 2'!K45)),\"\")","v":""},null,{"$f":"IF('Leaders & Financials'!E41<>0,(CONCATENATE('Leaders & Financials'!C41,\" \",'Leaders & Financials'!B41)),\"\")","v":""}]
[null,null,null,null,null,null,null,null,null,null,null,null,null,null,null,null,null,null,null,null,{"$f":"IF('Campers Page 1'!E47<>0,(CONCATENATE('Campers Page 1'!C47,\" \",'Campers Page 1'!B47)),\"\")","v":""},{"$f":"IF('Campers Page 1'!N47<>0,(CONCATENATE('Campers Page 1'!L47,\" \",'Campers Page 1'!K47)),\"\")","v":""},{"$f":"IF('Campers Page 2'!E46<>0,(CONCATENATE('Campers Page 2'!C46,\" \",'Campers Page 2'!B46)),\"\")","v":""},{"$f":"IF('Campers Page 2'!N46<>0,(CONCATENATE('Campers Page 2'!L46,\" \",'Campers Page 2'!K46)),\"\")","v":""}]
[null,null,null,null,null,null,null,null,null,null,null,null,null,null,null,null,null,null,null,null,{"$f":"IF('Campers Page 1'!E48<>0,(CONCATENATE('Campers Page 1'!C48,\" \",'Campers Page 1'!B48)),\"\")","v":""},{"$f":"IF('Campers Page 1'!N48<>0,(CONCATENATE('Campers Page 1'!L48,\" \",'Campers Page 1'!K48)),\"\")","v":""},{"$f":"IF('Campers Page 2'!E47<>0,(CONCATENATE('Campers Page 2'!C47,\" \",'Campers Page 2'!B47)),\"\")","v":""},{"$f":"IF('Campers Page 2'!N47<>0,(CONCATENATE('Campers Page 2'!L47,\" \",'Campers Page 2'!K47)),\"\")","v":""}]
[null,null,null,null,null,null,null,null,null,null,null,null,null,null,null,null,null,null,null,null,{"$f":"IF('Campers Page 1'!E49<>0,(CONCATENATE('Campers Page 1'!C49,\" \",'Campers Page 1'!B49)),\"\")","v":""},{"$f":"IF('Campers Page 1'!N49<>0,(CONCATENATE('Campers Page 1'!L49,\" \",'Campers Page 1'!K49)),\"\")","v":""},{"$f":"IF('Campers Page 2'!E48<>0,(CONCATENATE('Campers Page 2'!C48,\" \",'Campers Page 2'!B48)),\"\")","v":""},{"$f":"IF('Campers Page 2'!N48<>0,(CONCATENATE('Campers Page 2'!L48,\" \",'Campers Page 2'!K48)),\"\")","v":""}]
[null,"Female Cabin Four",null,null,null,null,null,"Female Cabin Five",null,null,null,null,null,"Female Cabin Six",null,null,null,null,null,null,{"$f":"IF('Campers Page 1'!E50<>0,(CONCATENATE('Campers Page 1'!C50,\" \",'Campers Page 1'!B50)),\"\")","v":""},{"$f":"IF('Campers Page 1'!N50<>0,(CONCATENATE('Campers Page 1'!L50,\" \",'Campers Page 1'!K50)),\"\")","v":""},{"$f":"IF('Campers Page 2'!E49<>0,(CONCATENATE('Campers Page 2'!C49,\" \",'Campers Page 2'!B49)),\"\")","v":""},{"$f":"IF('Campers Page 2'!N49<>0,(CONCATENATE('Campers Page 2'!L49,\" \",'Campers Page 2'!K49)),\"\")","v":""}]
[null,null,null,null,null,null,null,null,null,null,null,null,null,null,null,null,null,null,null,null,{"$f":"IF('Campers Page 1'!E51<>0,(CONCATENATE('Campers Page 1'!C51,\" \",'Campers Page 1'!B51)),\"\")","v":""},{"$f":"IF('Campers Page 1'!N51<>0,(CONCATENATE('Campers Page 1'!L51,\" \",'Campers Page 1'!K51)),\"\")","v":""},{"$f":"IF('Campers Page 2'!E50<>0,(CONCATENATE('Campers Page 2'!C50,\" \",'Campers Page 2'!B50)),\"\")","v":""},{"$f":"IF('Campers Page 2'!N50<>0,(CONCATENATE('Campers Page 2'!L50,\" \",'Campers Page 2'!K50)),\"\")","v":""}]
[null,null,"1. Leader's Name",null,null,null,null,null,"1. Leader's Name",null,null,null,null,null,"1. Leader's Name",null,null,null,null,null,{"$f":"IF('Campers Page 1'!E52<>0,(CONCATENATE('Campers Page 1'!C52,\" \",'Campers Page 1'!B52)),\"\")","v":""},{"$f":"IF('Campers Page 1'!N52<>0,(CONCATENATE('Campers Page 1'!L52,\" \",'Campers Page 1'!K52)),\"\")","v":""},{"$f":"IF('Campers Page 2'!E51<>0,(CONCATENATE('Campers Page 2'!C51,\" \",'Campers Page 2'!B51)),\"\")","v":""},{"$f":"IF('Campers Page 2'!N51<>0,(CONCATENATE('Campers Page 2'!L51,\" \",'Campers Page 2'!K51)),\"\")","v":""}]
[null,null,"2. Leader's Name",null,null,null,null,null,"2. Leader's Name",null,null,null,null,null,"2. Leader's Name",null,null,null,null,null,{"$f":"IF('Campers Page 1'!E53<>0,(CONCATENATE('Campers Page 1'!C53,\" \",'Campers Page 1'!B53)),\"\")","v":""},{"$f":"IF('Campers Page 1'!N53<>0,(CONCATENATE('Campers Page 1'!L53,\" \",'Campers Page 1'!K53)),\"\")","v":""},{"$f":"IF('Campers Page 2'!E52<>0,(CONCATENATE('Campers Page 2'!C52,\" \",'Campers Page 2'!B52)),\"\")","v":""},{"$f":"IF('Campers Page 2'!N52<>0,(CONCATENATE('Campers Page 2'!L52,\" \",'Campers Page 2'!K52)),\"\")","v":""}]
[null,null,"3. Leader's Name",null,null,null,null,null,"3. Leader's Name",null,null,null,null,null,"3. Leader's Name",null,null,null,null,null,{"$f":"IF('Campers Page 1'!E54<>0,(CONCATENATE('Campers Page 1'!C54,\" \",'Campers Page 1'!B54)),\"\")","v":""},{"$f":"IF('Campers Page 1'!N54<>0,(CONCATENATE('Campers Page 1'!L54,\" \",'Campers Page 1'!K54)),\"\")","v":""},{"$f":"IF('Campers Page 2'!E53<>0,(CONCATENATE('Campers Page 2'!C53,\" \",'Campers Page 2'!B53)),\"\")","v":""},{"$f":"IF('Campers Page 2'!N53<>0,(CONCATENATE('Campers Page 2'!L53,\" \",'Campers Page 2'!K53)),\"\")","v":""}]
[null,null,"4. Leader's Name",null,null,null,null,null,"4. Leader's Name",null,null,null,null,null,"4. Leader's Name",null,null,null,null,null,{"$f":"IF('Campers Page 1'!E55<>0,(CONCATENATE('Campers Page 1'!C55,\" \",'Campers Page 1'!B55)),\"\")","v":""},{"$f":"IF('Campers Page 1'!N55<>0,(CONCATENATE('Campers Page 1'!L55,\" \",'Campers Page 1'!K55)),\"\")","v":""},{"$f":"IF('Campers Page 2'!E54<>0,(CONCATENATE('Campers Page 2'!C54,\" \",'Campers Page 2'!B54)),\"\")","v":""},{"$f":"IF('Campers Page 2'!N54<>0,(CONCATENATE('Campers Page 2'!L54,\" \",'Campers Page 2'!K54)),\"\")","v":""}]
[null,null,"5. Leader's Name",null,null,null,null,null,"5. Leader's Name",null,null,null,null,null,"5. Leader's Name",null,null,null,null,null,{"$f":"IF('Campers Page 1'!E56<>0,(CONCATENATE('Campers Page 1'!C56,\" \",'Campers Page 1'!B56)),\"\")","v":""},null,{"$f":"IF('Campers Page 2'!E55<>0,(CONCATENATE('Campers Page 2'!C55,\" \",'Campers Page 2'!B55)),\"\")","v":""},{"$f":"IF('Campers Page 2'!N55<>0,(CONCATENATE('Campers Page 2'!L55,\" \",'Campers Page 2'!K55)),\"\")","v":""}]
[null,null,null,null,null,null,null,null,null,null,null,null,null,null,null,null,null,null,null,null,null,null,{"$f":"IF('Campers Page 2'!E56<>0,(CONCATENATE('Campers Page 2'!C56,\" \",'Campers Page 2'!B56)),\"\")","v":""}]
[null,null,"1. Camper's Name",null,null,null,null,null,"1. Camper's Name",null,null,null,null,null,"1. Camper's Name"]
[null,null,"2. Camper's Name",null,null,null,null,null,"2. Camper's Name",null,null,null,null,null,"2. Camper's Name"]
[null,null,"3. Camper's Name",null,null,null,null,null,"3. Camper's Name",null,null,null,null,null,"3. Camper's Name"]
[null,null,"4. Camper's Name",null,null,null,null,null,"4. Camper's Name",null,null,null,null,null,"4. Camper's Name"]
[null,null,"5. Camper's Name",null,null,null,null,null,"5. Camper's Name",null,null,null,null,null,"5. Camper's Name"]
[null,null,"6. Camper's Name",null,null,null,null,null,"6. Camper's Name",null,null,null,null,null,"6. Camper's Name"]
[null,null,"7. Camper's Name",null,null,null,null,null,"7. Camper's Name",null,null,null,null,null,"7. Camper's Name"]
[null,null,"8. Camper's Name",null,null,null,null,null,"8. Camper's Name",null,null,null,null,null,"8. Camper's Name"]
[null,null,"9. Camper's Name",null,null,null,null,null,"9. Camper's Name",null,null,null,null,null,"9. Camper's Name"]
[null,null,"10. Camper's Name",null,null,null,null,null,"10. Camper's Name",null,null,null,null,null,"10. Camper's Name"]
[null,null,"11. Camper's Name",null,null,null,null,null,"11. Camper's Name",null,null,null,null,null,"11. Camper's Name"]
[null,null,"12. Camper's Name",null,null,null,null,null,"12. Camper's Name",null,null,null,null,null,"12. Camper's Name"]
[null,null,"13. Camper's Name",null,null,null,null,null,"13. Camper's Name",null,null,null,null,null,"13. Camper's Name"]
[null,null,"14. Camper's Name",null,null,null,null,null,"14. Camper's Name",null,null,null,null,null,"14. Camper's Name"]
[null,null,"15. Camper's Name",null,null,null,null,null,"15. Camper's Name",null,null,null,null,null,"15. Camper's Name"]
[null,null,"16. Camper's Name",null,null,null,null,null,"16. Camper's Name",null,null,null,null,null,"16. Camper's Name"]
[null,null,"17. Camper's Name",null,null,null,null,null,"17. Camper's Name",null,null,null,null,null,"17. Camper's Name"]
[null,null,"18. Camper's Name",null,null,null,null,null,"18. Camper's Name",null,null,null,null,null,"18. Camper's Name"]
[]
[]
[]
[null,"Female Cabin Seven",null,null,null,null,null,"Female Cabin Eight",null,null,null,null,null,"Female Cabin Nine"]
[]
[null,null,"1. Leader's Name",null,null,null,null,null,"1. Leader's Name",null,null,null,null,null,"1. Leader's Name"]
[null,null,"2. Leader's Name",null,null,null,null,null,"2. Leader's Name",null,null,null,null,null,"2. Leader's Name"]
[null,null,"3. Leader's Name",null,null,null,null,null,"3. Leader's Name",null,null,null,null,null,"3. Leader's Name"]
[null,null,"4. Leader's Name",null,null,null,null,null,"4. Leader's Name",null,null,null,null,null,"4. Leader's Name"]
[null,null,"5. Leader's Name",null,null,null,null,null,"5. Leader's Name",null,null,null,null,null,"5. Leader's Name"]
[]
[null,null,"1. Camper's Name",null,null,null,null,null,"1. Camper's Name",null,null,null,null,null,"1. Camper's Name"]
[null,null,"2. Camper's Name",null,null,null,null,null,"2. Camper's Name",null,null,null,null,null,"2. Camper's Name"]
[null,null,"3. Camper's Name",null,null,null,null,null,"3. Camper's Name",null,null,null,null,null,"3. Camper's Name"]
[null,null,"4. Camper's Name",null,null,null,null,null,"4. Camper's Name",null,null,null,null,null,"4. Camper's Name"]
[null,null,"5. Camper's Name",null,null,null,null,null,"5. Camper's Name",null,null,null,null,null,"5. Camper's Name"]
[null,null,"6. Camper's Name",null,null,null,null,null,"6. Camper's Name",null,null,null,null,null,"6. Camper's Name"]
[null,null,"7. Camper's Name",null,null,null,null,null,"7. Camper's Name",null,null,null,null,null,"7. Camper's Name"]
[null,null,"8. Camper's Name",null,null,null,null,null,"8. Camper's Name",null,null,null,null,null,"8. Camper's Name"]
[null,null,"9. Camper's Name",null,null,null,null,null,"9. Camper's Name",null,null,null,null,null,"9. Camper's Name"]
[null,null,"10. Camper's Name",null,null,null,null,null,"10. Camper's Name",null,null,null,null,null,"10. Camper's Name"]
[null,null,"11. Camper's Name",null,null,null,null,null,"11. Camper's Name",null,null,null,null,null,"11. Camper's Name"]
[null,null,"12. Camper's Name",null,null,null,null,null,"12. Camper's Name",null,null,null,null,null,"12. Camper's Name"]
[null,null,"13. Camper's Name",null,null,null,null,null,"13. Camper's Name",null,null,null,null,null,"13. Camper's Name"]
[null,null,"14. Camper's Name",null,null,null,null,null,"14. Camper's Name",null,null,null,null,null,"14. Camper's Name"]
[null,null,"15. Camper's Name",null,null,null,null,null,"15. Camper's Name",null,null,null,null,null,"15. Camper's Name"]
[null,null,"16. Camper's Name",null,null,null,null,null,"16. Camper's Name",null,null,null,null,null,"16. Camper's Name"]
[null,null,"17. Camper's Name",null,null,null,null,null,"17. Camper's Name",null,null,null,null,null,"17. Camper's Name"]
[null,null,"18. Camper's Name",null,null,null,null,null,"18. Camper's Name",null,null,null,null,null,"18. Camper's Name"]
[]
[]
[]
[null,"Female Cabin Ten",null,null,null,null,null,"Female Cabin Eleven",null,null,null,null,null,"Female Cabin Twelve"]
[]
[null,null,"1. Leader's Name",null,null,null,null,null,"1. Leader's Name",null,null,null,null,null,"1. Leader's Name"]
[null,null,"2. Leader's Name",null,null,null,null,null,"2. Leader's Name",null,null,null,null,null,"2. Leader's Name"]
[null,null,"3. Leader's Name",null,null,null,null,null,"3. Leader's Name",null,null,null,null,null,"3. Leader's Name"]
[null,null,"4. Leader's Name",null,null,null,null,null,"4. Leader's Name",null,null,null,null,null,"4. Leader's Name"]
[null,null,"5. Leader's Name",null,null,null,null,null,"5. Leader's Name",null,null,null,null,null,"5. Leader's Name"]
[]
[null,null,"1. Camper's Name",null,null,null,null,null,"1. Camper's Name",null,null,null,null,null,"1. Camper's Name"]
[null,null,"2. Camper's Name",null,null,null,null,null,"2. Camper's Name",null,null,null,null,null,"2. Camper's Name"]
[null,null,"3. Camper's Name",null,null,null,null,null,"3. Camper's Name",null,null,null,null,null,"3. Camper's Name"]
[null,null,"4. Camper's Name",null,null,null,null,null,"4. Camper's Name",null,null,null,null,null,"4. Camper's Name"]
[null,null,"5. Camper's Name",null,null,null,null,null,"5. Camper's Name",null,null,null,null,null,"5. Camper's Name"]
[null,null,"6. Camper's Name",null,null,null,null,null,"6. Camper's Name",null,null,null,null,null,"6. Camper's Name"]
[null,null,"7. Camper's Name",null,null,null,null,null,"7. Camper's Name",null,null,null,null,null,"7. Camper's Name"]
[null,null,"8. Camper's Name",null,null,null,null,null,"8. Camper's Name",null,null,null,null,null,"8. Camper's Name"]
[null,null,"9. Camper's Name",null,null,null,null,null,"9. Camper's Name",null,null,null,null,null,"9. Camper's Name"]
[null,null,"10. Camper's Name",null,null,null,null,null,"10. Camper's Name",null,null,null,null,null,"10. Camper's Name"]
[null,null,"11. Camper's Name",null,null,null,null,null,"11. Camper's Name",null,null,null,null,null,"11. Camper's Name"]
[null,null,"12. Camper's Name",null,null,null,null,null,"12. Camper's Name",null,null,null,null,null,"12. Camper's Name"]
[null,null,"13. Camper's Name",null,null,null,null,null,"13. Camper's Name",null,null,null,null,null,"13. Camper's Name"]
[null,null,"14. Camper's Name",null,null,null,null,null,"14. Camper's Name",null,null,null,null,null,"14. Camper's Name"]
[null,null,"15. Camper's Name",null,null,null,null,null,"15. Camper's Name",null,null,null,null,null,"15. Camper's Name"]
[null,null,"16. Camper's Name",null,null,null,null,null,"16. Camper's Name",null,null,null,null,null,"16. Camper's Name"]
[null,null,"17. Camper's Name",null,null,null,null,null,"17. Camper's Name",null,null,null,null,null,"17. Camper's Name"]
[null,null,"18. Camper's Name",null,null,null,null,null,"18. Camper's Name",null,null,null,null,null,"18. Camper's Name"]

{"sheet":"Housing Request","index":8,"n_rows":60,"n_cols":14,"rows_kept":60,"cut":false,"hidden":false,"merged":[[3,4,3,14],[2,4,2,14],[57,8,57,9],[58,8,58,9],[59,8,59,9],[55,8,55,9],[56,8,56,9],[27,8,27,9],[23,8,23,9],[24,8,24,9],[25,8,25,9],[26,8,26,9],[11,5,11,6],[28,8,28,9],[29,8,29,9],[30,8,30,9],[51,2,51,3],[51,8,51,9],[52,2,52,3],[52,8,52,9],[53,2,53,3],[53,8,53,9],[48,2,48,3],[48,8,48,9],[49,2,49,3],[49,8,49,9],[50,2,50,3],[50,8,50,9],[45,2,45,3],[45,8,45,9],[46,2,46,3],[46,8,46,9],[47,2,47,3],[47,8,47,9],[42,2,42,3],[42,8,42,9],[43,2,43,3],[43,8,43,9],[44,2,44,3],[44,8,44,9],[38,2,38,3],[35,8,35,9],[34,8,34,9],[36,8,36,9],[37,8,37,9],[38,8,38,9],[34,2,34,3],[35,2,35,3],[12,5,12,6],[21,2,21,3],[22,2,22,3],[36,2,36,3],[37,2,37,3],[0,4,0,14],[57,2,57,3],[58,2,58,3],[1,4,1,14],[27,2,27,3],[28,2,28,3],[29,2,29,3],[23,2,23,3],[24,2,24,3],[25,2,25,3],[26,2,26,3],[4,1,4,2],[6,1,6,2],[8,1,8,2],[22,8,22,9],[17,1,17,13],[59,2,59,3],[55,2,55,3],[56,2,56,3],[8,11,8,12],[6,4,6,5],[8,4,8,6],[6,11,6,12],[30,2,30,3],[31,2,31,3],[32,2,32,3],[6,7,6,8],[21,8,21,9],[31,8,31,9],[32,8,32,9],[15,1,15,13],[10,5,10,6]]}
[null,null,null,null,"HOUSING REQUEST FORM"]
[null,null,null,null,{"$f":"'Campers Page 1'!C7","v":"YL Adventures Santa Cruz"}]
[null,null,null,null,{"$f":"IF('Hidden Sheet'!C2+'Hidden Sheet'!C1='Hidden Sheet'!C5+'Hidden Sheet'!C4,\"\",\"Please complete your female cabin request on the Female Cabin Roster tab.\")","v":""}]
[null,null,null,null,{"$f":"IF('Hidden Sheet'!C8+'Hidden Sheet'!C7='Hidden Sheet'!C11+'Hidden Sheet'!C10,\"\",\"Please complete your male cabin request on the Male Cabin Roster tab.\")","v":""}]
[null,"Area Number",null,null,{"$f":"'Campers Page 1'!L7","v":0},null,null,null,null,null,"Area Name",{"$f":"'Campers Page 1'!L8","v":0}]
[]
[null,"Camp Dates",null,null,{"$f":"'Campers Page 1'!C9","v":"00:00:00"},null,"to",{"$f":"'Campers Page 1'!E9","v":"00:00:00"},null,"Preferred Area Name"]
[]
[null,"Trip Leader",null,null,null,null,null,null,null,null,"Phone Number"]
[]
[null,"Number of Male Campers",null,null,null,{"$f":"'Campers Page 2'!M57","v":0},null,null,"Number of Female Campers",null,null,{"$f":"'Campers Page 2'!N57","v":0}]
[null,"Number of Male Leaders",null,null,null,{"$f":"'Leaders & Financials'!D43","v":0},null,null,"Number of Female Leaders",null,null,{"$f":"'Leaders & Financials'!E43","v":0}]
[null,"Total Number of Males",null,null,null,{"$f":"F11+F12","v":0},null,null,"Total Number of Females",null,null,{"$f":"L11+L12","v":0}]
[]
[null,"Do you have any campers or leaders with disabilities that need special housing? Explain."]
[]
[null,"Any other items that Head Leaders should be aware of?"]
[]
[]
[null,"Male Housing Requests",null,null,null,"(Cabin Total Should equal the number of campers and leaders to be housed in each cabin.)"]
[null,"First Choice Male Housing"]
[null,"Cabin Total",{"$f":"COUNTA('Male Cabin Roster'!E10:E33)","v":0},null,null,"Leader Names",null,null,{"$f":"'Male Cabin Roster'!$E10","v":0},null,{"$f":"'Male Cabin Roster'!E11","v":0},{"$f":"'Male Cabin Roster'!E12","v":0},{"$f":"'Male Cabin Roster'!E13","v":0},{"$f":"'Male Cabin Roster'!E14","v":0}]
[null,"Cabin Total",{"$f":"COUNTA('Male Cabin Roster'!K10:K33)","v":0},null,null,"Leader Names",null,null,{"$f":"'Male Cabin Roster'!K10","v":0},null,{"$f":"'Male Cabin Roster'!K11","v":0},{"$f":"'Male Cabin Roster'!K12","v":0},{"$f":"'Male Cabin Roster'!K13","v":0},{"$f":"'Male Cabin Roster'!K14","v":0}]
[null,"Cabin Total",{"$f":"COUNTA('Male Cabin Roster'!Q10:Q33)","v":0},null,null,"Leader Names",null,null,{"$f":"'Male Cabin Roster'!Q10","v":0},null,{"$f":"'Male Cabin Roster'!Q11","v":0},{"$f":"'Male Cabin Roster'!Q12","v":0},{"$f":"'Male Cabin Roster'!Q13","v":0},{"$f":"'Male Cabin Roster'!Q14","v":0}]
[null,"Cabin Total",{"$f":"COUNTA('Male Cabin Roster'!E39:E62)","v":0},null,null,"Leader Names",null,null,{"$f":"'Male Cabin Roster'!E39","v":0},null,{"$f":"'Male Cabin Roster'!E40","v":0},{"$f":"'Male Cabin Roster'!E41","v":0},{"$f":"'Male Cabin Roster'!E42","v":0},{"$f":"'Male Cabin Roster'!E43","v":0}]
[null,"Cabin Total",{"$f":"COUNTA('Male Cabin Roster'!K39:K62)","v":0},null,null,"Leader Names",null,null,{"$f":"'Male Cabin Roster'!K39","v":0},null,{"$f":"'Male Cabin Roster'!K40","v":0},{"$f":"'Male Cabin Roster'!K41","v":0},{"$f":"'Male Cabin Roster'!K42","v":0},{"$f":"'Male Cabin Roster'!K43","v":0}]
[null,"Cabin Total",{"$f":"COUNTA('Male Cabin Roster'!Q39:Q62)","v":0},null,null,"Leader Names",null,null,{"$f":"'Male Cabin Roster'!Q39","v":0},null,{"$f":"'Male Cabin Roster'!Q40","v":0},{"$f":"'Male Cabin Roster'!Q41","v":0},{"$f":"'Male Cabin Roster'!Q42","v":0},{"$f":"'Male Cabin Roster'!Q43","v":0}]
[null,"Cabin Total",{"$f":"COUNTA('Male Cabin Roster'!E68:E91)","v":0},null,null,"Leader Names",null,null,{"$f":"'Male Cabin Roster'!E68","v":0},null,{"$f":"'Male Cabin Roster'!E69","v":0},{"$f":"'Male Cabin Roster'!E70","v":0},{"$f":"'Male Cabin Roster'!E71","v":0},{"$f":"'Male Cabin Roster'!E72","v":0}]
[null,"Cabin Total",{"$f":"COUNTA('Male Cabin Roster'!K68:K91)","v":0},null,null,"Leader Names",null,null,{"$f":"'Male Cabin Roster'!K68","v":0},null,{"$f":"'Male Cabin Roster'!K69","v":0},{"$f":"'Male Cabin Roster'!K70","v":0},{"$f":"'Male Cabin Roster'!K71","v":0},{"$f":"'Male Cabin Roster'!K72","v":0}]
[null,"Cabin Total",{"$f":"COUNTA('Male Cabin Roster'!Q68:Q91)","v":0},null,null,"Leader Names",null,null,{"$f":"'Male Cabin Roster'!Q68","v":0},null,{"$f":"'Male Cabin Roster'!Q69","v":0},{"$f":"'Male Cabin Roster'!Q70","v":0},{"$f":"'Male Cabin Roster'!Q71","v":0},{"$f":"'Male Cabin Roster'!Q72","v":0}]
[null,"Cabin Total",{"$f":"COUNTA('Male Cabin Roster'!E97:E120)","v":0},null,null,"Leader Names",null,null,{"$f":"'Male Cabin Roster'!E97","v":0},null,{"$f":"'Male Cabin Roster'!E98","v":0},{"$f":"'Male Cabin Roster'!E99","v":0},{"$f":"'Male Cabin Roster'!E100","v":0},{"$f":"'Male Cabin Roster'!E101","v":0}]
[null,"Cabin Total",{"$f":"COUNTA('Male Cabin Roster'!K97:K120)","v":0},null,null,"Leader Names",null,null,{"$f":"'Male Cabin Roster'!K97","v":0},null,{"$f":"'Male Cabin Roster'!K98","v":0},{"$f":"'Male Cabin Roster'!K99","v":0},{"$f":"'Male Cabin Roster'!K100","v":0},{"$f":"'Male Cabin Roster'!K101","v":0}]
[null,"Cabin Total",{"$f":"COUNTA('Male Cabin Roster'!Q97:Q120)","v":0},null,null,"Leader Names",null,null,{"$f":"'Male Cabin Roster'!Q97","v":0},null,{"$f":"'Male Cabin Roster'!Q98","v":0},{"$f":"'Male Cabin Roster'!Q99","v":0},{"$f":"'Male Cabin Roster'!Q100","v":0},{"$f":"'Male Cabin Roster'!Q101","v":0}]
[null,"Second Choice Male Housing"]
[null,"Cabin Total",null,null,null,"Leader Names"]
[null,"Cabin Total",null,null,null,"Leader Names"]
[null,"Cabin Total",null,null,null,"Leader Names"]
[null,"Cabin Total",null,null,null,"Leader Names"]
[null,"Cabin Total",null,null,null,"Leader Names"]
[]
[null,"Female Housing Requests",null,null,null,"(Cabin Total Should equal the number of campers and leaders to be housed in each cabin.)"]
[null,"First Choice Female Housing"]
[null,"Cabin Total",{"$f":"COUNTA('Female Cabin Roster'!E10:E33)","v":0},null,null,"Leader Names",null,null,{"$f":"'Female Cabin Roster'!E10","v":0},null,{"$f":"'Female Cabin Roster'!E11","v":0},{"$f":"'Female Cabin Roster'!E12","v":0},{"$f":"'Female Cabin Roster'!E13","v":0},{"$f":"'Female Cabin Roster'!E14","v":0}]
[null,"Cabin Total",{"$f":"COUNTA('Female Cabin Roster'!K10:K33)","v":0},null,null,"Leader Names",null,null,{"$f":"'Female Cabin Roster'!K10","v":0},null,{"$f":"'Female Cabin Roster'!K11","v":0},{"$f":"'Female Cabin Roster'!K12","v":0},{"$f":"'Female Cabin Roster'!K13","v":0},{"$f":"'Female Cabin Roster'!K14","v":0}]
[null,"Cabin Total",{"$f":"COUNTA('Female Cabin Roster'!Q10:Q33)","v":0},null,null,"Leader Names",null,null,{"$f":"'Female Cabin Roster'!$Q10","v":0},null,{"$f":"'Female Cabin Roster'!Q11","v":0},{"$f":"'Female Cabin Roster'!Q12","v":0},{"$f":"'Female Cabin Roster'!Q13","v":0},{"$f":"'Female Cabin Roster'!Q14","v":0}]
[null,"Cabin Total",{"$f":"COUNTA('Female Cabin Roster'!E39:E62)","v":0},null,null,"Leader Names",null,null,{"$f":"'Female Cabin Roster'!E39","v":0},null,{"$f":"'Female Cabin Roster'!E40","v":0},{"$f":"'Female Cabin Roster'!E41","v":0},{"$f":"'Female Cabin Roster'!E42","v":0},{"$f":"'Female Cabin Roster'!E43","v":0}]
[null,"Cabin Total",{"$f":"COUNTA('Female Cabin Roster'!K39:K62)","v":0},null,null,"Leader Names",null,null,{"$f":"'Female Cabin Roster'!K39","v":0},null,{"$f":"'Female Cabin Roster'!K40","v":0},{"$f":"'Female Cabin Roster'!K41","v":0},{"$f":"'Female Cabin Roster'!K42","v":0},{"$f":"'Female Cabin Roster'!K43","v":0}]
[null,"Cabin Total",{"$f":"COUNTA('Female Cabin Roster'!Q39:Q62)","v":0},null,null,"Leader Names",null,null,{"$f":"'Female Cabin Roster'!Q39","v":0},null,{"$f":"'Female Cabin Roster'!Q40","v":0},{"$f":"'Female Cabin Roster'!Q41","v":0},{"$f":"'Female Cabin Roster'!Q42","v":0},{"$f":"'Female Cabin Roster'!Q43","v":0}]
[null,"Cabin Total",{"$f":"COUNTA('Female Cabin Roster'!E68:E91)","v":0},null,null,"Leader Names",null,null,{"$f":"'Female Cabin Roster'!E68","v":0},null,{"$f":"'Female Cabin Roster'!E69","v":0},{"$f":"'Female Cabin Roster'!E70","v":0},{"$f":"'Female Cabin Roster'!E71","v":0},{"$f":"'Female Cabin Roster'!E72","v":0}]
[null,"Cabin Total",{"$f":"COUNTA('Female Cabin Roster'!K68:K91)","v":0},null,null,"Leader Names",null,null,{"$f":"'Female Cabin Roster'!K68","v":0},null,{"$f":"'Female Cabin Roster'!K69","v":0},{"$f":"'Female Cabin Roster'!K70","v":0},{"$f":"'Female Cabin Roster'!K71","v":0},{"$f":"'Female Cabin Roster'!K72","v":0}]
[null,"Cabin Total",{"$f":"COUNTA('Female Cabin Roster'!Q68:Q91)","v":0},null,null,"Leader Names",null,null,{"$f":"'Female Cabin Roster'!Q68","v":0},null,{"$f":"'Female Cabin Roster'!Q69","v":0},{"$f":"'Female Cabin Roster'!Q70","v":0},{"$f":"'Female Cabin Roster'!Q71","v":0},{"$f":"'Female Cabin Roster'!Q72","v":0}]
[null,"Cabin Total",{"$f":"COUNTA('Female Cabin Roster'!E97:E120)","v":0},null,null,"Leader Names",null,null,{"$f":"'Female Cabin Roster'!E97","v":0},null,{"$f":"'Female Cabin Roster'!E98","v":0},{"$f":"'Female Cabin Roster'!E99","v":0},{"$f":"'Female Cabin Roster'!E100","v":0},{"$f":"'Female Cabin Roster'!E101","v":0}]
[null,"Cabin Total",{"$f":"COUNTA('Female Cabin Roster'!K97:K120)","v":0},null,null,"Leader Names",null,null,{"$f":"'Female Cabin Roster'!K97","v":0},null,{"$f":"'Female Cabin Roster'!K98","v":0},{"$f":"'Female Cabin Roster'!K99","v":0},{"$f":"'Female Cabin Roster'!K100","v":0},{"$f":"'Female Cabin Roster'!K101","v":0}]
[null,"Cabin Total",{"$f":"COUNTA('Female Cabin Roster'!Q97:Q120)","v":0},null,null,"Leader Names",null,null,{"$f":"'Female Cabin Roster'!Q97","v":0},null,{"$f":"'Female Cabin Roster'!Q98","v":0},{"$f":"'Female Cabin Roster'!Q99","v":0},{"$f":"'Female Cabin Roster'!Q100","v":0},{"$f":"'Female Cabin Roster'!Q101","v":0}]
[null,"Second Choice Female Housing"]
[null,"Cabin Total",null,null,null,"Leader Names"]
[null,"Cabin Total",null,null,null,"Leader Names"]
[null,"Cabin Total",null,null,null,"Leader Names"]
[null,"Cabin Total",null,null,null,"Leader Names"]
[null,"Cabin Total",null,null,null,"Leader Names"]

{"sheet":"Housing List","index":9,"n_rows":552,"n_cols":7,"rows_kept":552,"cut":false,"hidden":true,"merged":[]}
[{"$f":"'Housing Request'!$E$5","v":0},{"$f":"'Female Cabin Roster'!E10","v":0},"F","Leader",{"$f":"'Female Cabin Roster'!$B$8","v":"Female Cabin One"},{"$f":"IF(G1<=6,\"SS\",(IF(G1<300,\"BA\",\"HS\")))","v":{"$error":"#VALUE!"}},{"$f":"INT(LEFT(E1,3))","v":{"$error":"#VALUE!"}}]
[{"$f":"'Housing Request'!$E$5","v":0},{"$f":"'Female Cabin Roster'!E11","v":0},"F","Leader",{"$f":"'Female Cabin Roster'!$B$8","v":"Female Cabin One"},{"$error":"#VALUE!"},{"$error":"#VALUE!"}]
[{"$f":"'Housing Request'!$E$5","v":0},{"$f":"'Female Cabin Roster'!E12","v":0},"F","Leader",{"$f":"'Female Cabin Roster'!$B$8","v":"Female Cabin One"},{"$error":"#VALUE!"},{"$error":"#VALUE!"}]
[{"$f":"'Housing Request'!$E$5","v":0},{"$f":"'Female Cabin Roster'!E13","v":0},"F","Leader",{"$f":"'Female Cabin Roster'!$B$8","v":"Female Cabin One"},{"$error":"#VALUE!"},{"$error":"#VALUE!"}]
[{"$f":"'Housing Request'!$E$5","v":0},{"$f":"'Female Cabin Roster'!E14","v":0},"F","Leader",{"$f":"'Female Cabin Roster'!$B$8","v":"Female Cabin One"},{"$error":"#VALUE!"},{"$error":"#VALUE!"}]
[{"$f":"'Housing Request'!$E$5","v":0},{"$f":"'Female Cabin Roster'!E16","v":0},"F","Camper",{"$f":"'Female Cabin Roster'!$B$8","v":"Female Cabin One"},{"$error":"#VALUE!"},{"$error":"#VALUE!"}]
[{"$f":"'Housing Request'!$E$5","v":0},{"$f":"'Female Cabin Roster'!E17","v":0},"F","Camper",{"$f":"'Female Cabin Roster'!$B$8","v":"Female Cabin One"},{"$error":"#VALUE!"},{"$error":"#VALUE!"}]
[{"$f":"'Housing Request'!$E$5","v":0},{"$f":"'Female Cabin Roster'!E18","v":0},"F","Camper",{"$f":"'Female Cabin Roster'!$B$8","v":"Female Cabin One"},{"$error":"#VALUE!"},{"$error":"#VALUE!"}]
[{"$f":"'Housing Request'!$E$5","v":0},{"$f":"'Female Cabin Roster'!E19","v":0},"F","Camper",{"$f":"'Female Cabin Roster'!$B$8","v":"Female Cabin One"},{"$error":"#VALUE!"},{"$error":"#VALUE!"}]
[{"$f":"'Housing Request'!$E$5","v":0},{"$f":"'Female Cabin Roster'!E20","v":0},"F","Camper",{"$f":"'Female Cabin Roster'!$B$8","v":"Female Cabin One"},{"$error":"#VALUE!"},{"$error":"#VALUE!"}]
[{"$f":"'Housing Request'!$E$5","v":0},{"$f":"'Female Cabin Roster'!E21","v":0},"F","Camper",{"$f":"'Female Cabin Roster'!$B$8","v":"Female Cabin One"},{"$error":"#VALUE!"},{"$error":"#VALUE!"}]
[{"$f":"'Housing Request'!$E$5","v":0},{"$f":"'Female Cabin Roster'!E22","v":0},"F","Camper",{"$f":"'Female Cabin Roster'!$B$8","v":"Female Cabin One"},{"$error":"#VALUE!"},{"$error":"#VALUE!"}]
[{"$f":"'Housing Request'!$E$5","v":0},{"$f":"'Female Cabin Roster'!E23","v":0},"F","Camper",{"$f":"'Female Cabin Roster'!$B$8","v":"Female Cabin One"},{"$error":"#VALUE!"},{"$error":"#VALUE!"}]
[{"$f":"'Housing Request'!$E$5","v":0},{"$f":"'Female Cabin Roster'!E24","v":0},"F","Camper",{"$f":"'Female Cabin Roster'!$B$8","v":"Female Cabin One"},{"$error":"#VALUE!"},{"$error":"#VALUE!"}]
[{"$f":"'Housing Request'!$E$5","v":0},{"$f":"'Female Cabin Roster'!E25","v":0},"F","Camper",{"$f":"'Female Cabin Roster'!$B$8","v":"Female Cabin One"},{"$error":"#VALUE!"},{"$error":"#VALUE!"}]
[{"$f":"'Housing Request'!$E$5","v":0},{"$f":"'Female Cabin Roster'!E26","v":0},"F","Camper",{"$f":"'Female Cabin Roster'!$B$8","v":"Female Cabin One"},{"$error":"#VALUE!"},{"$error":"#VALUE!"}]
[{"$f":"'Housing Request'!$E$5","v":0},{"$f":"'Female Cabin Roster'!E27","v":0},"F","Camper",{"$f":"'Female Cabin Roster'!$B$8","v":"Female Cabin One"},{"$error":"#VALUE!"},{"$error":"#VALUE!"}]
[{"$f":"'Housing Request'!$E$5","v":0},{"$f":"'Female Cabin Roster'!E28","v":0},"F","Camper",{"$f":"'Female Cabin Roster'!$B$8","v":"Female Cabin One"},{"$error":"#VALUE!"},{"$error":"#VALUE!"}]
[{"$f":"'Housing Request'!$E$5","v":0},{"$f":"'Female Cabin Roster'!E29","v":0},"F","Camper",{"$f":"'Female Cabin Roster'!$B$8","v":"Female Cabin One"},{"$error":"#VALUE!"},{"$error":"#VALUE!"}]
[{"$f":"'Housing Request'!$E$5","v":0},{"$f":"'Female Cabin Roster'!E30","v":0},"F","Camper",{"$f":"'Female Cabin Roster'!$B$8","v":"Female Cabin One"},{"$error":"#VALUE!"},{"$error":"#VALUE!"}]
[{"$f":"'Housing Request'!$E$5","v":0},{"$f":"'Female Cabin Roster'!E31","v":0},"F","Camper",{"$f":"'Female Cabin Roster'!$B$8","v":"Female Cabin One"},{"$error":"#VALUE!"},{"$error":"#VALUE!"}]
[{"$f":"'Housing Request'!$E$5","v":0},{"$f":"'Female Cabin Roster'!E32","v":0},"F","Camper",{"$f":"'Female Cabin Roster'!$B$8","v":"Female Cabin One"},{"$error":"#VALUE!"},{"$error":"#VALUE!"}]
[{"$f":"'Housing Request'!$E$5","v":0},{"$f":"'Female Cabin Roster'!E33","v":0},"F","Camper",{"$f":"'Female Cabin Roster'!$B$8","v":"Female Cabin One"},{"$error":"#VALUE!"},{"$error":"#VALUE!"}]
[{"$f":"'Housing Request'!$E$5","v":0},{"$f":"'Female Cabin Roster'!K10","v":0},"F","Leader",{"$f":"'Female Cabin Roster'!$H$8","v":"Female Cabin Two"},{"$error":"#VALUE!"},{"$error":"#VALUE!"}]
[{"$f":"'Housing Request'!$E$5","v":0},{"$f":"'Female Cabin Roster'!K11","v":0},"F","Leader",{"$f":"'Female Cabin Roster'!$H$8","v":"Female Cabin Two"},{"$error":"#VALUE!"},{"$error":"#VALUE!"}]
[{"$f":"'Housing Request'!$E$5","v":0},{"$f":"'Female Cabin Roster'!K12","v":0},"F","Leader",{"$f":"'Female Cabin Roster'!$H$8","v":"Female Cabin Two"},{"$error":"#VALUE!"},{"$error":"#VALUE!"}]
[{"$f":"'Housing Request'!$E$5","v":0},{"$f":"'Female Cabin Roster'!K13","v":0},"F","Leader",{"$f":"'Female Cabin Roster'!$H$8","v":"Female Cabin Two"},{"$error":"#VALUE!"},{"$error":"#VALUE!"}]
[{"$f":"'Housing Request'!$E$5","v":0},{"$f":"'Female Cabin Roster'!K14","v":0},"F","Leader",{"$f":"'Female Cabin Roster'!$H$8","v":"Female Cabin Two"},{"$error":"#VALUE!"},{"$error":"#VALUE!"}]
[{"$f":"'Housing Request'!$E$5","v":0},{"$f":"'Female Cabin Roster'!K16","v":0},"F","Camper",{"$f":"'Female Cabin Roster'!$H$8","v":"Female Cabin Two"},{"$error":"#VALUE!"},{"$error":"#VALUE!"}]
[{"$f":"'Housing Request'!$E$5","v":0},{"$f":"'Female Cabin Roster'!K17","v":0},"F","Camper",{"$f":"'Female Cabin Roster'!$H$8","v":"Female Cabin Two"},{"$error":"#VALUE!"},{"$error":"#VALUE!"}]
[{"$f":"'Housing Request'!$E$5","v":0},{"$f":"'Female Cabin Roster'!K18","v":0},"F","Camper",{"$f":"'Female Cabin Roster'!$H$8","v":"Female Cabin Two"},{"$error":"#VALUE!"},{"$error":"#VALUE!"}]
[{"$f":"'Housing Request'!$E$5","v":0},{"$f":"'Female Cabin Roster'!K19","v":0},"F","Camper",{"$f":"'Female Cabin Roster'!$H$8","v":"Female Cabin Two"},{"$error":"#VALUE!"},{"$error":"#VALUE!"}]
[{"$f":"'Housing Request'!$E$5","v":0},{"$f":"'Female Cabin Roster'!K20","v":0},"F","Camper",{"$f":"'Female Cabin Roster'!$H$8","v":"Female Cabin Two"},{"$error":"#VALUE!"},{"$error":"#VALUE!"}]
[{"$f":"'Housing Request'!$E$5","v":0},{"$f":"'Female Cabin Roster'!K21","v":0},"F","Camper",{"$f":"'Female Cabin Roster'!$H$8","v":"Female Cabin Two"},{"$error":"#VALUE!"},{"$error":"#VALUE!"}]
[{"$f":"'Housing Request'!$E$5","v":0},{"$f":"'Female Cabin Roster'!K22","v":0},"F","Camper",{"$f":"'Female Cabin Roster'!$H$8","v":"Female Cabin Two"},{"$error":"#VALUE!"},{"$error":"#VALUE!"}]
[{"$f":"'Housing Request'!$E$5","v":0},{"$f":"'Female Cabin Roster'!K23","v":0},"F","Camper",{"$f":"'Female Cabin Roster'!$H$8","v":"Female Cabin Two"},{"$error":"#VALUE!"},{"$error":"#VALUE!"}]
[{"$f":"'Housing Request'!$E$5","v":0},{"$f":"'Female Cabin Roster'!K24","v":0},"F","Camper",{"$f":"'Female Cabin Roster'!$H$8","v":"Female Cabin Two"},{"$error":"#VALUE!"},{"$error":"#VALUE!"}]
[{"$f":"'Housing Request'!$E$5","v":0},{"$f":"'Female Cabin Roster'!K25","v":0},"F","Camper",{"$f":"'Female Cabin Roster'!$H$8","v":"Female Cabin Two"},{"$error":"#VALUE!"},{"$error":"#VALUE!"}]
[{"$f":"'Housing Request'!$E$5","v":0},{"$f":"'Female Cabin Roster'!K26","v":0},"F","Camper",{"$f":"'Female Cabin Roster'!$H$8","v":"Female Cabin Two"},{"$error":"#VALUE!"},{"$error":"#VALUE!"}]
[{"$f":"'Housing Request'!$E$5","v":0},{"$f":"'Female Cabin Roster'!K27","v":0},"F","Camper",{"$f":"'Female Cabin Roster'!$H$8","v":"Female Cabin Two"},{"$error":"#VALUE!"},{"$error":"#VALUE!"}]
[{"$f":"'Housing Request'!$E$5","v":0},{"$f":"'Female Cabin Roster'!K28","v":0},"F","Camper",{"$f":"'Female Cabin Roster'!$H$8","v":"Female Cabin Two"},{"$error":"#VALUE!"},{"$error":"#VALUE!"}]
[{"$f":"'Housing Request'!$E$5","v":0},{"$f":"'Female Cabin Roster'!K29","v":0},"F","Camper",{"$f":"'Female Cabin Roster'!$H$8","v":"Female Cabin Two"},{"$error":"#VALUE!"},{"$error":"#VALUE!"}]
[{"$f":"'Housing Request'!$E$5","v":0},{"$f":"'Female Cabin Roster'!K30","v":0},"F","Camper",{"$f":"'Female Cabin Roster'!$H$8","v":"Female Cabin Two"},{"$error":"#VALUE!"},{"$error":"#VALUE!"}]
[{"$f":"'Housing Request'!$E$5","v":0},{"$f":"'Female Cabin Roster'!K31","v":0},"F","Camper",{"$f":"'Female Cabin Roster'!$H$8","v":"Female Cabin Two"},{"$error":"#VALUE!"},{"$error":"#VALUE!"}]
[{"$f":"'Housing Request'!$E$5","v":0},{"$f":"'Female Cabin Roster'!K32","v":0},"F","Camper",{"$f":"'Female Cabin Roster'!$H$8","v":"Female Cabin Two"},{"$error":"#VALUE!"},{"$error":"#VALUE!"}]
[{"$f":"'Housing Request'!$E$5","v":0},{"$f":"'Female Cabin Roster'!K33","v":0},"F","Camper",{"$f":"'Female Cabin Roster'!$H$8","v":"Female Cabin Two"},{"$error":"#VALUE!"},{"$error":"#VALUE!"}]
[{"$f":"'Housing Request'!$E$5","v":0},{"$f":"'Female Cabin Roster'!Q10","v":0},"F","Leader",{"$f":"'Female Cabin Roster'!$N$8","v":"Female Cabin Three"},{"$error":"#VALUE!"},{"$error":"#VALUE!"}]
[{"$f":"'Housing Request'!$E$5","v":0},{"$f":"'Female Cabin Roster'!Q11","v":0},"F","Leader",{"$f":"'Female Cabin Roster'!$N$8","v":"Female Cabin Three"},{"$error":"#VALUE!"},{"$error":"#VALUE!"}]
[{"$f":"'Housing Request'!$E$5","v":0},{"$f":"'Female Cabin Roster'!Q12","v":0},"F","Leader",{"$f":"'Female Cabin Roster'!$N$8","v":"Female Cabin Three"},{"$error":"#VALUE!"},{"$error":"#VALUE!"}]
[{"$f":"'Housing Request'!$E$5","v":0},{"$f":"'Female Cabin Roster'!Q13","v":0},"F","Leader",{"$f":"'Female Cabin Roster'!$N$8","v":"Female Cabin Three"},{"$error":"#VALUE!"},{"$error":"#VALUE!"}]
[{"$f":"'Housing Request'!$E$5","v":0},{"$f":"'Female Cabin Roster'!Q14","v":0},"F","Leader",{"$f":"'Female Cabin Roster'!$N$8","v":"Female Cabin Three"},{"$error":"#VALUE!"},{"$error":"#VALUE!"}]
[{"$f":"'Housing Request'!$E$5","v":0},{"$f":"'Female Cabin Roster'!Q16","v":0},"F","Camper",{"$f":"'Female Cabin Roster'!$N$8","v":"Female Cabin Three"},{"$error":"#VALUE!"},{"$error":"#VALUE!"}]
[{"$f":"'Housing Request'!$E$5","v":0},{"$f":"'Female Cabin Roster'!Q17","v":0},"F","Camper",{"$f":"'Female Cabin Roster'!$N$8","v":"Female Cabin Three"},{"$error":"#VALUE!"},{"$error":"#VALUE!"}]
[{"$f":"'Housing Request'!$E$5","v":0},{"$f":"'Female Cabin Roster'!Q18","v":0},"F","Camper",{"$f":"'Female Cabin Roster'!$N$8","v":"Female Cabin Three"},{"$error":"#VALUE!"},{"$error":"#VALUE!"}]
[{"$f":"'Housing Request'!$E$5","v":0},{"$f":"'Female Cabin Roster'!Q19","v":0},"F","Camper",{"$f":"'Female Cabin Roster'!$N$8","v":"Female Cabin Three"},{"$error":"#VALUE!"},{"$error":"#VALUE!"}]
[{"$f":"'Housing Request'!$E$5","v":0},{"$f":"'Female Cabin Roster'!Q20","v":0},"F","Camper",{"$f":"'Female Cabin Roster'!$N$8","v":"Female Cabin Three"},{"$error":"#VALUE!"},{"$error":"#VALUE!"}]
[{"$f":"'Housing Request'!$E$5","v":0},{"$f":"'Female Cabin Roster'!Q21","v":0},"F","Camper",{"$f":"'Female Cabin Roster'!$N$8","v":"Female Cabin Three"},{"$error":"#VALUE!"},{"$error":"#VALUE!"}]
[{"$f":"'Housing Request'!$E$5","v":0},{"$f":"'Female Cabin Roster'!Q22","v":0},"F","Camper",{"$f":"'Female Cabin Roster'!$N$8","v":"Female Cabin Three"},{"$error":"#VALUE!"},{"$error":"#VALUE!"}]
[{"$f":"'Housing Request'!$E$5","v":0},{"$f":"'Female Cabin Roster'!Q23","v":0},"F","Camper",{"$f":"'Female Cabin Roster'!$N$8","v":"Female Cabin Three"},{"$error":"#VALUE!"},{"$error":"#VALUE!"}]
[{"$f":"'Housing Request'!$E$5","v":0},{"$f":"'Female Cabin Roster'!Q24","v":0},"F","Camper",{"$f":"'Female Cabin Roster'!$N$8","v":"Female Cabin Three"},{"$error":"#VALUE!"},{"$error":"#VALUE!"}]
[{"$f":"'Housing Request'!$E$5","v":0},{"$f":"'Female Cabin Roster'!Q25","v":0},"F","Camper",{"$f":"'Female Cabin Roster'!$N$8","v":"Female Cabin Three"},{"$error":"#VALUE!"},{"$error":"#VALUE!"}]
[{"$f":"'Housing Request'!$E$5","v":0},{"$f":"'Female Cabin Roster'!Q26","v":0},"F","Camper",{"$f":"'Female Cabin Roster'!$N$8","v":"Female Cabin Three"},{"$error":"#VALUE!"},{"$error":"#VALUE!"}]
[{"$f":"'Housing Request'!$E$5","v":0},{"$f":"'Female Cabin Roster'!Q27","v":0},"F","Camper",{"$f":"'Female Cabin Roster'!$N$8","v":"Female Cabin Three"},{"$error":"#VALUE!"},{"$error":"#VALUE!"}]
[{"$f":"'Housing Request'!$E$5","v":0},{"$f":"'Female Cabin Roster'!Q28","v":0},"F","Camper",{"$f":"'Female Cabin Roster'!$N$8","v":"Female Cabin Three"},{"$error":"#VALUE!"},{"$error":"#VALUE!"}]
[{"$f":"'Housing Request'!$E$5","v":0},{"$f":"'Female Cabin Roster'!Q29","v":0},"F","Camper",{"$f":"'Female Cabin Roster'!$N$8","v":"Female Cabin Three"},{"$f":"IF(G65<=6,\"SS\",(IF(G65<300,\"BA\",\"HS\")))","v":{"$error":"#VALUE!"}},{"$f":"INT(LEFT(E65,3))","v":{"$error":"#VALUE!"}}]
[{"$f":"'Housing Request'!$E$5","v":0},{"$f":"'Female Cabin Roster'!Q30","v":0},"F","Camper",{"$f":"'Female Cabin Roster'!$N$8","v":"Female Cabin Three"},{"$error":"#VALUE!"},{"$error":"#VALUE!"}]
[{"$f":"'Housing Request'!$E$5","v":0},{"$f":"'Female Cabin Roster'!Q31","v":0},"F","Camper",{"$f":"'Female Cabin Roster'!$N$8","v":"Female Cabin Three"},{"$error":"#VALUE!"},{"$error":"#VALUE!"}]
[{"$f":"'Housing Request'!$E$5","v":0},{"$f":"'Female Cabin Roster'!Q32","v":0},"F","Camper",{"$f":"'Female Cabin Roster'!$N$8","v":"Female Cabin Three"},{"$error":"#VALUE!"},{"$error":"#VALUE!"}]
[{"$f":"'Housing Request'!$E$5","v":0},{"$f":"'Female Cabin Roster'!Q33","v":0},"F","Camper",{"$f":"'Female Cabin Roster'!$N$8","v":"Female Cabin Three"},{"$error":"#VALUE!"},{"$error":"#VALUE!"}]
[{"$f":"'Housing Request'!$E$5","v":0},{"$f":"'Female Cabin Roster'!E39","v":0},"F","Leader",{"$f":"'Female Cabin Roster'!$B$37","v":"Female Cabin Four"},{"$error":"#VALUE!"},{"$error":"#VALUE!"}]
[{"$f":"'Housing Request'!$E$5","v":0},{"$f":"'Female Cabin Roster'!E40","v":0},"F","Leader",{"$f":"'Female Cabin Roster'!$B$37","v":"Female Cabin Four"},{"$error":"#VALUE!"},{"$error":"#VALUE!"}]
[{"$f":"'Housing Request'!$E$5","v":0},{"$f":"'Female Cabin Roster'!E41","v":0},"F","Leader",{"$f":"'Female Cabin Roster'!$B$37","v":"Female Cabin Four"},{"$error":"#VALUE!"},{"$error":"#VALUE!"}]
[{"$f":"'Housing Request'!$E$5","v":0},{"$f":"'Female Cabin Roster'!E42","v":0},"F","Leader",{"$f":"'Female Cabin Roster'!$B$37","v":"Female Cabin Four"},{"$error":"#VALUE!"},{"$error":"#VALUE!"}]
[{"$f":"'Housing Request'!$E$5","v":0},{"$f":"'Female Cabin Roster'!E43","v":0},"F","Leader",{"$f":"'Female Cabin Roster'!$B$37","v":"Female Cabin Four"},{"$error":"#VALUE!"},{"$error":"#VALUE!"}]
[{"$f":"'Housing Request'!$E$5","v":0},{"$f":"'Female Cabin Roster'!E45","v":0},"F","Camper",{"$f":"'Female Cabin Roster'!$B$37","v":"Female Cabin Four"},{"$error":"#VALUE!"},{"$error":"#VALUE!"}]
[{"$f":"'Housing Request'!$E$5","v":0},{"$f":"'Female Cabin Roster'!E46","v":0},"F","Camper",{"$f":"'Female Cabin Roster'!$B$37","v":"Female Cabin Four"},{"$error":"#VALUE!"},{"$error":"#VALUE!"}]
[{"$f":"'Housing Request'!$E$5","v":0},{"$f":"'Female Cabin Roster'!E47","v":0},"F","Camper",{"$f":"'Female Cabin Roster'!$B$37","v":"Female Cabin Four"},{"$error":"#VALUE!"},{"$error":"#VALUE!"}]
[{"$f":"'Housing Request'!$E$5","v":0},{"$f":"'Female Cabin Roster'!E48","v":0},"F","Camper",{"$f":"'Female Cabin Roster'!$B$37","v":"Female Cabin Four"},{"$error":"#VALUE!"},{"$error":"#VALUE!"}]
[{"$f":"'Housing Request'!$E$5","v":0},{"$f":"'Female Cabin Roster'!E49","v":0},"F","Camper",{"$f":"'Female Cabin Roster'!$B$37","v":"Female Cabin Four"},{"$error":"#VALUE!"},{"$error":"#VALUE!"}]
[{"$f":"'Housing Request'!$E$5","v":0},{"$f":"'Female Cabin Roster'!E50","v":0},"F","Camper",{"$f":"'Female Cabin Roster'!$B$37","v":"Female Cabin Four"},{"$error":"#VALUE!"},{"$error":"#VALUE!"}]
[{"$f":"'Housing Request'!$E$5","v":0},{"$f":"'Female Cabin Roster'!E51","v":0},"F","Camper",{"$f":"'Female Cabin Roster'!$B$37","v":"Female Cabin Four"},{"$error":"#VALUE!"},{"$error":"#VALUE!"}]
[{"$f":"'Housing Request'!$E$5","v":0},{"$f":"'Female Cabin Roster'!E52","v":0},"F","Camper",{"$f":"'Female Cabin Roster'!$B$37","v":"Female Cabin Four"},{"$error":"#VALUE!"},{"$error":"#VALUE!"}]
[{"$f":"'Housing Request'!$E$5","v":0},{"$f":"'Female Cabin Roster'!E53","v":0},"F","Camper",{"$f":"'Female Cabin Roster'!$B$37","v":"Female Cabin Four"},{"$error":"#VALUE!"},{"$error":"#VALUE!"}]
[{"$f":"'Housing Request'!$E$5","v":0},{"$f":"'Female Cabin Roster'!E54","v":0},"F","Camper",{"$f":"'Female Cabin Roster'!$B$37","v":"Female Cabin Four"},{"$error":"#VALUE!"},{"$error":"#VALUE!"}]
[{"$f":"'Housing Request'!$E$5","v":0},{"$f":"'Female Cabin Roster'!E55","v":0},"F","Camper",{"$f":"'Female Cabin Roster'!$B$37","v":"Female Cabin Four"},{"$error":"#VALUE!"},{"$error":"#VALUE!"}]
[{"$f":"'Housing Request'!$E$5","v":0},{"$f":"'Female Cabin Roster'!E56","v":0},"F","Camper",{"$f":"'Female Cabin Roster'!$B$37","v":"Female Cabin Four"},{"$error":"#VALUE!"},{"$error":"#VALUE!"}]
[{"$f":"'Housing Request'!$E$5","v":0},{"$f":"'Female Cabin Roster'!E57","v":0},"F","Camper",{"$f":"'Female Cabin Roster'!$B$37","v":"Female Cabin Four"},{"$error":"#VALUE!"},{"$error":"#VALUE!"}]
[{"$f":"'Housing Request'!$E$5","v":0},{"$f":"'Female Cabin Roster'!E58","v":0},"F","Camper",{"$f":"'Female Cabin Roster'!$B$37","v":"Female Cabin Four"},{"$error":"#VALUE!"},{"$error":"#VALUE!"}]
[{"$f":"'Housing Request'!$E$5","v":0},{"$f":"'Female Cabin Roster'!E59","v":0},"F","Camper",{"$f":"'Female Cabin Roster'!$B$37","v":"Female Cabin Four"},{"$error":"#VALUE!"},{"$error":"#VALUE!"}]
[{"$f":"'Housing Request'!$E$5","v":0},{"$f":"'Female Cabin Roster'!E60","v":0},"F","Camper",{"$f":"'Female Cabin Roster'!$B$37","v":"Female Cabin Four"},{"$error":"#VALUE!"},{"$error":"#VALUE!"}]
[{"$f":"'Housing Request'!$E$5","v":0},{"$f":"'Female Cabin Roster'!E61","v":0},"F","Camper",{"$f":"'Female Cabin Roster'!$B$37","v":"Female Cabin Four"},{"$error":"#VALUE!"},{"$error":"#VALUE!"}]
[{"$f":"'Housing Request'!$E$5","v":0},{"$f":"'Female Cabin Roster'!E62","v":0},"F","Camper",{"$f":"'Female Cabin Roster'!$B$37","v":"Female Cabin Four"},{"$error":"#VALUE!"},{"$error":"#VALUE!"}]
[{"$f":"'Housing Request'!$E$5","v":0},{"$f":"'Female Cabin Roster'!K39","v":0},"F","Leader",{"$f":"'Female Cabin Roster'!$H$37","v":"Female Cabin Five"},{"$error":"#VALUE!"},{"$error":"#VALUE!"}]
[{"$f":"'Housing Request'!$E$5","v":0},{"$f":"'Female Cabin Roster'!K40","v":0},"F","Leader",{"$f":"'Female Cabin Roster'!$H$37","v":"Female Cabin Five"},{"$error":"#VALUE!"},{"$error":"#VALUE!"}]
[{"$f":"'Housing Request'!$E$5","v":0},{"$f":"'Female Cabin Roster'!K41","v":0},"F","Leader",{"$f":"'Female Cabin Roster'!$H$37","v":"Female Cabin Five"},{"$error":"#VALUE!"},{"$error":"#VALUE!"}]
[{"$f":"'Housing Request'!$E$5","v":0},{"$f":"'Female Cabin Roster'!K42","v":0},"F","Leader",{"$f":"'Female Cabin Roster'!$H$37","v":"Female Cabin Five"},{"$error":"#VALUE!"},{"$error":"#VALUE!"}]
[{"$f":"'Housing Request'!$E$5","v":0},{"$f":"'Female Cabin Roster'!K43","v":0},"F","Leader",{"$f":"'Female Cabin Roster'!$H$37","v":"Female Cabin Five"},{"$error":"#VALUE!"},{"$error":"#VALUE!"}]
[{"$f":"'Housing Request'!$E$5","v":0},{"$f":"'Female Cabin Roster'!K45","v":0},"F","Camper",{"$f":"'Female Cabin Roster'!$H$37","v":"Female Cabin Five"},{"$error":"#VALUE!"},{"$error":"#VALUE!"}]
[{"$f":"'Housing Request'!$E$5","v":0},{"$f":"'Female Cabin Roster'!K46","v":0},"F","Camper",{"$f":"'Female Cabin Roster'!$H$37","v":"Female Cabin Five"},{"$error":"#VALUE!"},{"$error":"#VALUE!"}]
[{"$f":"'Housing Request'!$E$5","v":0},{"$f":"'Female Cabin Roster'!K47","v":0},"F","Camper",{"$f":"'Female Cabin Roster'!$H$37","v":"Female Cabin Five"},{"$error":"#VALUE!"},{"$error":"#VALUE!"}]
[{"$f":"'Housing Request'!$E$5","v":0},{"$f":"'Female Cabin Roster'!K48","v":0},"F","Camper",{"$f":"'Female Cabin Roster'!$H$37","v":"Female Cabin Five"},{"$error":"#VALUE!"},{"$error":"#VALUE!"}]
[{"$f":"'Housing Request'!$E$5","v":0},{"$f":"'Female Cabin Roster'!K49","v":0},"F","Camper",{"$f":"'Female Cabin Roster'!$H$37","v":"Female Cabin Five"},{"$error":"#VALUE!"},{"$error":"#VALUE!"}]
[{"$f":"'Housing Request'!$E$5","v":0},{"$f":"'Female Cabin Roster'!K50","v":0},"F","Camper",{"$f":"'Female Cabin Roster'!$H$37","v":"Female Cabin Five"},{"$error":"#VALUE!"},{"$error":"#VALUE!"}]
[{"$f":"'Housing Request'!$E$5","v":0},{"$f":"'Female Cabin Roster'!K51","v":0},"F","Camper",{"$f":"'Female Cabin Roster'!$H$37","v":"Female Cabin Five"},{"$error":"#VALUE!"},{"$error":"#VALUE!"}]
[{"$f":"'Housing Request'!$E$5","v":0},{"$f":"'Female Cabin Roster'!K52","v":0},"F","Camper",{"$f":"'Female Cabin Roster'!$H$37","v":"Female Cabin Five"},{"$error":"#VALUE!"},{"$error":"#VALUE!"}]
[{"$f":"'Housing Request'!$E$5","v":0},{"$f":"'Female Cabin Roster'!K53","v":0},"F","Camper",{"$f":"'Female Cabin Roster'!$H$37","v":"Female Cabin Five"},{"$error":"#VALUE!"},{"$error":"#VALUE!"}]
[{"$f":"'Housing Request'!$E$5","v":0},{"$f":"'Female Cabin Roster'!K54","v":0},"F","Camper",{"$f":"'Female Cabin Roster'!$H$37","v":"Female Cabin Five"},{"$error":"#VALUE!"},{"$error":"#VALUE!"}]
[{"$f":"'Housing Request'!$E$5","v":0},{"$f":"'Female Cabin Roster'!K55","v":0},"F","Camper",{"$f":"'Female Cabin Roster'!$H$37","v":"Female Cabin Five"},{"$error":"#VALUE!"},{"$error":"#VALUE!"}]
[{"$f":"'Housing Request'!$E$5","v":0},{"$f":"'Female Cabin Roster'!K56","v":0},"F","Camper",{"$f":"'Female Cabin Roster'!$H$37","v":"Female Cabin Five"},{"$error":"#VALUE!"},{"$error":"#VALUE!"}]
[{"$f":"'Housing Request'!$E$5","v":0},{"$f":"'Female Cabin Roster'!K57","v":0},"F","Camper",{"$f":"'Female Cabin Roster'!$H$37","v":"Female Cabin Five"},{"$error":"#VALUE!"},{"$error":"#VALUE!"}]
[{"$f":"'Housing Request'!$E$5","v":0},{"$f":"'Female Cabin Roster'!K58","v":0},"F","Camper",{"$f":"'Female Cabin Roster'!$H$37","v":"Female Cabin Five"},{"$error":"#VALUE!"},{"$error":"#VALUE!"}]
[{"$f":"'Housing Request'!$E$5","v":0},{"$f":"'Female Cabin Roster'!K59","v":0},"F","Camper",{"$f":"'Female Cabin Roster'!$H$37","v":"Female Cabin Five"},{"$error":"#VALUE!"},{"$error":"#VALUE!"}]
[{"$f":"'Housing Request'!$E$5","v":0},{"$f":"'Female Cabin Roster'!K60","v":0},"F","Camper",{"$f":"'Female Cabin Roster'!$H$37","v":"Female Cabin Five"},{"$error":"#VALUE!"},{"$error":"#VALUE!"}]
[{"$f":"'Housing Request'!$E$5","v":0},{"$f":"'Female Cabin Roster'!K61","v":0},"F","Camper",{"$f":"'Female Cabin Roster'!$H$37","v":"Female Cabin Five"},{"$error":"#VALUE!"},{"$error":"#VALUE!"}]
[{"$f":"'Housing Request'!$E$5","v":0},{"$f":"'Female Cabin Roster'!K62","v":0},"F","Camper",{"$f":"'Female Cabin Roster'!$H$37","v":"Female Cabin Five"},{"$error":"#VALUE!"},{"$error":"#VALUE!"}]
[{"$f":"'Housing Request'!$E$5","v":0},{"$f":"'Female Cabin Roster'!Q39","v":0},"F","Leader",{"$f":"'Female Cabin Roster'!$N$37","v":"Female Cabin Six"},{"$error":"#VALUE!"},{"$error":"#VALUE!"}]
[{"$f":"'Housing Request'!$E$5","v":0},{"$f":"'Female Cabin Roster'!Q40","v":0},"F","Leader",{"$f":"'Female Cabin Roster'!$N$37","v":"Female Cabin Six"},{"$error":"#VALUE!"},{"$error":"#VALUE!"}]
[{"$f":"'Housing Request'!$E$5","v":0},{"$f":"'Female Cabin Roster'!Q41","v":0},"F","Leader",{"$f":"'Female Cabin Roster'!$N$37","v":"Female Cabin Six"},{"$error":"#VALUE!"},{"$error":"#VALUE!"}]
[{"$f":"'Housing Request'!$E$5","v":0},{"$f":"'Female Cabin Roster'!Q42","v":0},"F","Leader",{"$f":"'Female Cabin Roster'!$N$37","v":"Female Cabin Six"},{"$error":"#VALUE!"},{"$error":"#VALUE!"}]
[{"$f":"'Housing Request'!$E$5","v":0},{"$f":"'Female Cabin Roster'!Q43","v":0},"F","Leader",{"$f":"'Female Cabin Roster'!$N$37","v":"Female Cabin Six"},{"$error":"#VALUE!"},{"$error":"#VALUE!"}]
[{"$f":"'Housing Request'!$E$5","v":0},{"$f":"'Female Cabin Roster'!Q45","v":0},"F","Camper",{"$f":"'Female Cabin Roster'!$N$37","v":"Female Cabin Six"},{"$error":"#VALUE!"},{"$error":"#VALUE!"}]
[{"$f":"'Housing Request'!$E$5","v":0},{"$f":"'Female Cabin Roster'!Q46","v":0},"F","Camper",{"$f":"'Female Cabin Roster'!$N$37","v":"Female Cabin Six"},{"$error":"#VALUE!"},{"$error":"#VALUE!"}]
[{"$f":"'Housing Request'!$E$5","v":0},{"$f":"'Female Cabin Roster'!Q47","v":0},"F","Camper",{"$f":"'Female Cabin Roster'!$N$37","v":"Female Cabin Six"},{"$error":"#VALUE!"},{"$error":"#VALUE!"}]
[{"$f":"'Housing Request'!$E$5","v":0},{"$f":"'Female Cabin Roster'!Q48","v":0},"F","Camper",{"$f":"'Female Cabin Roster'!$N$37","v":"Female Cabin Six"},{"$error":"#VALUE!"},{"$error":"#VALUE!"}]
[{"$f":"'Housing Request'!$E$5","v":0},{"$f":"'Female Cabin Roster'!Q49","v":0},"F","Camper",{"$f":"'Female Cabin Roster'!$N$37","v":"Female Cabin Six"},{"$error":"#VALUE!"},{"$error":"#VALUE!"}]
[{"$f":"'Housing Request'!$E$5","v":0},{"$f":"'Female Cabin Roster'!Q50","v":0},"F","Camper",{"$f":"'Female Cabin Roster'!$N$37","v":"Female Cabin Six"},{"$error":"#VALUE!"},{"$error":"#VALUE!"}]
[{"$f":"'Housing Request'!$E$5","v":0},{"$f":"'Female Cabin Roster'!Q51","v":0},"F","Camper",{"$f":"'Female Cabin Roster'!$N$37","v":"Female Cabin Six"},{"$error":"#VALUE!"},{"$error":"#VALUE!"}]
[{"$f":"'Housing Request'!$E$5","v":0},{"$f":"'Female Cabin Roster'!Q52","v":0},"F","Camper",{"$f":"'Female Cabin Roster'!$N$37","v":"Female Cabin Six"},{"$error":"#VALUE!"},{"$error":"#VALUE!"}]
[{"$f":"'Housing Request'!$E$5","v":0},{"$f":"'Female Cabin Roster'!Q53","v":0},"F","Camper",{"$f":"'Female Cabin Roster'!$N$37","v":"Female Cabin Six"},{"$f":"IF(G129<=6,\"SS\",(IF(G129<300,\"BA\",\"HS\")))","v":{"$error":"#VALUE!"}},{"$f":"INT(LEFT(E129,3))","v":{"$error":"#VALUE!"}}]
[{"$f":"'Housing Request'!$E$5","v":0},{"$f":"'Female Cabin Roster'!Q54","v":0},"F","Camper",{"$f":"'Female Cabin Roster'!$N$37","v":"Female Cabin Six"},{"$error":"#VALUE!"},{"$error":"#VALUE!"}]
[{"$f":"'Housing Request'!$E$5","v":0},{"$f":"'Female Cabin Roster'!Q55","v":0},"F","Camper",{"$f":"'Female Cabin Roster'!$N$37","v":"Female Cabin Six"},{"$error":"#VALUE!"},{"$error":"#VALUE!"}]
[{"$f":"'Housing Request'!$E$5","v":0},{"$f":"'Female Cabin Roster'!Q56","v":0},"F","Camper",{"$f":"'Female Cabin Roster'!$N$37","v":"Female Cabin Six"},{"$error":"#VALUE!"},{"$error":"#VALUE!"}]
[{"$f":"'Housing Request'!$E$5","v":0},{"$f":"'Female Cabin Roster'!Q57","v":0},"F","Camper",{"$f":"'Female Cabin Roster'!$N$37","v":"Female Cabin Six"},{"$error":"#VALUE!"},{"$error":"#VALUE!"}]
[{"$f":"'Housing Request'!$E$5","v":0},{"$f":"'Female Cabin Roster'!Q58","v":0},"F","Camper",{"$f":"'Female Cabin Roster'!$N$37","v":"Female Cabin Six"},{"$error":"#VALUE!"},{"$error":"#VALUE!"}]
[{"$f":"'Housing Request'!$E$5","v":0},{"$f":"'Female Cabin Roster'!Q59","v":0},"F","Camper",{"$f":"'Female Cabin Roster'!$N$37","v":"Female Cabin Six"},{"$error":"#VALUE!"},{"$error":"#VALUE!"}]
[{"$f":"'Housing Request'!$E$5","v":0},{"$f":"'Female Cabin Roster'!Q60","v":0},"F","Camper",{"$f":"'Female Cabin Roster'!$N$37","v":"Female Cabin Six"},{"$error":"#VALUE!"},{"$error":"#VALUE!"}]
[{"$f":"'Housing Request'!$E$5","v":0},{"$f":"'Female Cabin Roster'!Q61","v":0},"F","Camper",{"$f":"'Female Cabin Roster'!$N$37","v":"Female Cabin Six"},{"$error":"#VALUE!"},{"$error":"#VALUE!"}]
[{"$f":"'Housing Request'!$E$5","v":0},{"$f":"'Female Cabin Roster'!Q62","v":0},"F","Camper",{"$f":"'Female Cabin Roster'!$N$37","v":"Female Cabin Six"},{"$error":"#VALUE!"},{"$error":"#VALUE!"}]
[{"$f":"'Housing Request'!$E$5","v":0},{"$f":"'Female Cabin Roster'!E68","v":0},"F","Leader",{"$f":"'Female Cabin Roster'!$B$66","v":"Female Cabin Seven"},{"$error":"#VALUE!"},{"$error":"#VALUE!"}]
[{"$f":"'Housing Request'!$E$5","v":0},{"$f":"'Female Cabin Roster'!E69","v":0},"F","Leader",{"$f":"'Female Cabin Roster'!$B$66","v":"Female Cabin Seven"},{"$error":"#VALUE!"},{"$error":"#VALUE!"}]
[{"$f":"'Housing Request'!$E$5","v":0},{"$f":"'Female Cabin Roster'!E70","v":0},"F","Leader",{"$f":"'Female Cabin Roster'!$B$66","v":"Female Cabin Seven"},{"$error":"#VALUE!"},{"$error":"#VALUE!"}]
[{"$f":"'Housing Request'!$E$5","v":0},{"$f":"'Female Cabin Roster'!E71","v":0},"F","Leader",{"$f":"'Female Cabin Roster'!$B$66","v":"Female Cabin Seven"},{"$error":"#VALUE!"},{"$error":"#VALUE!"}]
[{"$f":"'Housing Request'!$E$5","v":0},{"$f":"'Female Cabin Roster'!E72","v":0},"F","Leader",{"$f":"'Female Cabin Roster'!$B$66","v":"Female Cabin Seven"},{"$error":"#VALUE!"},{"$error":"#VALUE!"}]
[{"$f":"'Housing Request'!$E$5","v":0},{"$f":"'Female Cabin Roster'!E74","v":0},"F","Camper",{"$f":"'Female Cabin Roster'!$B$66","v":"Female Cabin Seven"},{"$error":"#VALUE!"},{"$error":"#VALUE!"}]
[{"$f":"'Housing Request'!$E$5","v":0},{"$f":"'Female Cabin Roster'!E75","v":0},"F","Camper",{"$f":"'Female Cabin Roster'!$B$66","v":"Female Cabin Seven"},{"$error":"#VALUE!"},{"$error":"#VALUE!"}]
[{"$f":"'Housing Request'!$E$5","v":0},{"$f":"'Female Cabin Roster'!E76","v":0},"F","Camper",{"$f":"'Female Cabin Roster'!$B$66","v":"Female Cabin Seven"},{"$error":"#VALUE!"},{"$error":"#VALUE!"}]
[{"$f":"'Housing Request'!$E$5","v":0},{"$f":"'Female Cabin Roster'!E77","v":0},"F","Camper",{"$f":"'Female Cabin Roster'!$B$66","v":"Female Cabin Seven"},{"$error":"#VALUE!"},{"$error":"#VALUE!"}]
[{"$f":"'Housing Request'!$E$5","v":0},{"$f":"'Female Cabin Roster'!E78","v":0},"F","Camper",{"$f":"'Female Cabin Roster'!$B$66","v":"Female Cabin Seven"},{"$error":"#VALUE!"},{"$error":"#VALUE!"}]
[{"$f":"'Housing Request'!$E$5","v":0},{"$f":"'Female Cabin Roster'!E79","v":0},"F","Camper",{"$f":"'Female Cabin Roster'!$B$66","v":"Female Cabin Seven"},{"$error":"#VALUE!"},{"$error":"#VALUE!"}]
[{"$f":"'Housing Request'!$E$5","v":0},{"$f":"'Female Cabin Roster'!E80","v":0},"F","Camper",{"$f":"'Female Cabin Roster'!$B$66","v":"Female Cabin Seven"},{"$error":"#VALUE!"},{"$error":"#VALUE!"}]
[{"$f":"'Housing Request'!$E$5","v":0},{"$f":"'Female Cabin Roster'!E81","v":0},"F","Camper",{"$f":"'Female Cabin Roster'!$B$66","v":"Female Cabin Seven"},{"$error":"#VALUE!"},{"$error":"#VALUE!"}]
[{"$f":"'Housing Request'!$E$5","v":0},{"$f":"'Female Cabin Roster'!E82","v":0},"F","Camper",{"$f":"'Female Cabin Roster'!$B$66","v":"Female Cabin Seven"},{"$error":"#VALUE!"},{"$error":"#VALUE!"}]
[{"$f":"'Housing Request'!$E$5","v":0},{"$f":"'Female Cabin Roster'!E83","v":0},"F","Camper",{"$f":"'Female Cabin Roster'!$B$66","v":"Female Cabin Seven"},{"$error":"#VALUE!"},{"$error":"#VALUE!"}]
[{"$f":"'Housing Request'!$E$5","v":0},{"$f":"'Female Cabin Roster'!E84","v":0},"F","Camper",{"$f":"'Female Cabin Roster'!$B$66","v":"Female Cabin Seven"},{"$error":"#VALUE!"},{"$error":"#VALUE!"}]
[{"$f":"'Housing Request'!$E$5","v":0},{"$f":"'Female Cabin Roster'!E85","v":0},"F","Camper",{"$f":"'Female Cabin Roster'!$B$66","v":"Female Cabin Seven"},{"$error":"#VALUE!"},{"$error":"#VALUE!"}]
[{"$f":"'Housing Request'!$E$5","v":0},{"$f":"'Female Cabin Roster'!E86","v":0},"F","Camper",{"$f":"'Female Cabin Roster'!$B$66","v":"Female Cabin Seven"},{"$error":"#VALUE!"},{"$error":"#VALUE!"}]
[{"$f":"'Housing Request'!$E$5","v":0},{"$f":"'Female Cabin Roster'!E87","v":0},"F","Camper",{"$f":"'Female Cabin Roster'!$B$66","v":"Female Cabin Seven"},{"$error":"#VALUE!"},{"$error":"#VALUE!"}]
[{"$f":"'Housing Request'!$E$5","v":0},{"$f":"'Female Cabin Roster'!E88","v":0},"F","Camper",{"$f":"'Female Cabin Roster'!$B$66","v":"Female Cabin Seven"},{"$error":"#VALUE!"},{"$error":"#VALUE!"}]
[{"$f":"'Housing Request'!$E$5","v":0},{"$f":"'Female Cabin Roster'!E89","v":0},"F","Camper",{"$f":"'Female Cabin Roster'!$B$66","v":"Female Cabin Seven"},{"$error":"#VALUE!"},{"$error":"#VALUE!"}]
[{"$f":"'Housing Request'!$E$5","v":0},{"$f":"'Female Cabin Roster'!E90","v":0},"F","Camper",{"$f":"'Female Cabin Roster'!$B$66","v":"Female Cabin Seven"},{"$error":"#VALUE!"},{"$error":"#VALUE!"}]
[{"$f":"'Housing Request'!$E$5","v":0},{"$f":"'Female Cabin Roster'!E91","v":0},"F","Camper",{"$f":"'Female Cabin Roster'!$B$66","v":"Female Cabin Seven"},{"$error":"#VALUE!"},{"$error":"#VALUE!"}]
[{"$f":"'Housing Request'!$E$5","v":0},{"$f":"'Female Cabin Roster'!K68","v":0},"F","Leader",{"$f":"'Female Cabin Roster'!$H$66","v":"Female Cabin Eight"},{"$error":"#VALUE!"},{"$error":"#VALUE!"}]
[{"$f":"'Housing Request'!$E$5","v":0},{"$f":"'Female Cabin Roster'!K69","v":0},"F","Leader",{"$f":"'Female Cabin Roster'!$H$66","v":"Female Cabin Eight"},{"$error":"#VALUE!"},{"$error":"#VALUE!"}]
[{"$f":"'Housing Request'!$E$5","v":0},{"$f":"'Female Cabin Roster'!K70","v":0},"F","Leader",{"$f":"'Female Cabin Roster'!$H$66","v":"Female Cabin Eight"},{"$error":"#VALUE!"},{"$error":"#VALUE!"}]
[{"$f":"'Housing Request'!$E$5","v":0},{"$f":"'Female Cabin Roster'!K71","v":0},"F","Leader",{"$f":"'Female Cabin Roster'!$H$66","v":"Female Cabin Eight"},{"$error":"#VALUE!"},{"$error":"#VALUE!"}]
[{"$f":"'Housing Request'!$E$5","v":0},{"$f":"'Female Cabin Roster'!K72","v":0},"F","Leader",{"$f":"'Female Cabin Roster'!$H$66","v":"Female Cabin Eight"},{"$error":"#VALUE!"},{"$error":"#VALUE!"}]
[{"$f":"'Housing Request'!$E$5","v":0},{"$f":"'Female Cabin Roster'!K74","v":0},"F","Camper",{"$f":"'Female Cabin Roster'!$H$66","v":"Female Cabin Eight"},{"$error":"#VALUE!"},{"$error":"#VALUE!"}]
[{"$f":"'Housing Request'!$E$5","v":0},{"$f":"'Female Cabin Roster'!K75","v":0},"F","Camper",{"$f":"'Female Cabin Roster'!$H$66","v":"Female Cabin Eight"},{"$error":"#VALUE!"},{"$error":"#VALUE!"}]
[{"$f":"'Housing Request'!$E$5","v":0},{"$f":"'Female Cabin Roster'!K76","v":0},"F","Camper",{"$f":"'Female Cabin Roster'!$H$66","v":"Female Cabin Eight"},{"$error":"#VALUE!"},{"$error":"#VALUE!"}]
[{"$f":"'Housing Request'!$E$5","v":0},{"$f":"'Female Cabin Roster'!K77","v":0},"F","Camper",{"$f":"'Female Cabin Roster'!$H$66","v":"Female Cabin Eight"},{"$error":"#VALUE!"},{"$error":"#VALUE!"}]
[{"$f":"'Housing Request'!$E$5","v":0},{"$f":"'Female Cabin Roster'!K78","v":0},"F","Camper",{"$f":"'Female Cabin Roster'!$H$66","v":"Female Cabin Eight"},{"$error":"#VALUE!"},{"$error":"#VALUE!"}]
[{"$f":"'Housing Request'!$E$5","v":0},{"$f":"'Female Cabin Roster'!K79","v":0},"F","Camper",{"$f":"'Female Cabin Roster'!$H$66","v":"Female Cabin Eight"},{"$error":"#VALUE!"},{"$error":"#VALUE!"}]
[{"$f":"'Housing Request'!$E$5","v":0},{"$f":"'Female Cabin Roster'!K80","v":0},"F","Camper",{"$f":"'Female Cabin Roster'!$H$66","v":"Female Cabin Eight"},{"$error":"#VALUE!"},{"$error":"#VALUE!"}]
[{"$f":"'Housing Request'!$E$5","v":0},{"$f":"'Female Cabin Roster'!K81","v":0},"F","Camper",{"$f":"'Female Cabin Roster'!$H$66","v":"Female Cabin Eight"},{"$error":"#VALUE!"},{"$error":"#VALUE!"}]
[{"$f":"'Housing Request'!$E$5","v":0},{"$f":"'Female Cabin Roster'!K82","v":0},"F","Camper",{"$f":"'Female Cabin Roster'!$H$66","v":"Female Cabin Eight"},{"$error":"#VALUE!"},{"$error":"#VALUE!"}]
[{"$f":"'Housing Request'!$E$5","v":0},{"$f":"'Female Cabin Roster'!K83","v":0},"F","Camper",{"$f":"'Female Cabin Roster'!$H$66","v":"Female Cabin Eight"},{"$error":"#VALUE!"},{"$error":"#VALUE!"}]
[{"$f":"'Housing Request'!$E$5","v":0},{"$f":"'Female Cabin Roster'!K84","v":0},"F","Camper",{"$f":"'Female Cabin Roster'!$H$66","v":"Female Cabin Eight"},{"$error":"#VALUE!"},{"$error":"#VALUE!"}]
[{"$f":"'Housing Request'!$E$5","v":0},{"$f":"'Female Cabin Roster'!K85","v":0},"F","Camper",{"$f":"'Female Cabin Roster'!$H$66","v":"Female Cabin Eight"},{"$error":"#VALUE!"},{"$error":"#VALUE!"}]
[{"$f":"'Housing Request'!$E$5","v":0},{"$f":"'Female Cabin Roster'!K86","v":0},"F","Camper",{"$f":"'Female Cabin Roster'!$H$66","v":"Female Cabin Eight"},{"$error":"#VALUE!"},{"$error":"#VALUE!"}]
[{"$f":"'Housing Request'!$E$5","v":0},{"$f":"'Female Cabin Roster'!K87","v":0},"F","Camper",{"$f":"'Female Cabin Roster'!$H$66","v":"Female Cabin Eight"},{"$error":"#VALUE!"},{"$error":"#VALUE!"}]
[{"$f":"'Housing Request'!$E$5","v":0},{"$f":"'Female Cabin Roster'!K88","v":0},"F","Camper",{"$f":"'Female Cabin Roster'!$H$66","v":"Female Cabin Eight"},{"$error":"#VALUE!"},{"$error":"#VALUE!"}]
[{"$f":"'Housing Request'!$E$5","v":0},{"$f":"'Female Cabin Roster'!K89","v":0},"F","Camper",{"$f":"'Female Cabin Roster'!$H$66","v":"Female Cabin Eight"},{"$error":"#VALUE!"},{"$error":"#VALUE!"}]
[{"$f":"'Housing Request'!$E$5","v":0},{"$f":"'Female Cabin Roster'!K90","v":0},"F","Camper",{"$f":"'Female Cabin Roster'!$H$66","v":"Female Cabin Eight"},{"$error":"#VALUE!"},{"$error":"#VALUE!"}]
[{"$f":"'Housing Request'!$E$5","v":0},{"$f":"'Female Cabin Roster'!K91","v":0},"F","Camper",{"$f":"'Female Cabin Roster'!$H$66","v":"Female Cabin Eight"},{"$error":"#VALUE!"},{"$error":"#VALUE!"}]
[{"$f":"'Housing Request'!$E$5","v":0},{"$f":"'Female Cabin Roster'!Q68","v":0},"F","Leader",{"$f":"'Female Cabin Roster'!$N$66","v":"Female Cabin Nine"},{"$error":"#VALUE!"},{"$error":"#VALUE!"}]
[{"$f":"'Housing Request'!$E$5","v":0},{"$f":"'Female Cabin Roster'!Q69","v":0},"F","Leader",{"$f":"'Female Cabin Roster'!$N$66","v":"Female Cabin Nine"},{"$error":"#VALUE!"},{"$error":"#VALUE!"}]
[{"$f":"'Housing Request'!$E$5","v":0},{"$f":"'Female Cabin Roster'!Q70","v":0},"F","Leader",{"$f":"'Female Cabin Roster'!$N$66","v":"Female Cabin Nine"},{"$error":"#VALUE!"},{"$error":"#VALUE!"}]
[{"$f":"'Housing Request'!$E$5","v":0},{"$f":"'Female Cabin Roster'!Q71","v":0},"F","Leader",{"$f":"'Female Cabin Roster'!$N$66","v":"Female Cabin Nine"},{"$error":"#VALUE!"},{"$error":"#VALUE!"}]
[{"$f":"'Housing Request'!$E$5","v":0},{"$f":"'Female Cabin Roster'!Q72","v":0},"F","Leader",{"$f":"'Female Cabin Roster'!$N$66","v":"Female Cabin Nine"},{"$error":"#VALUE!"},{"$error":"#VALUE!"}]
[{"$f":"'Housing Request'!$E$5","v":0},{"$f":"'Female Cabin Roster'!Q74","v":0},"F","Camper",{"$f":"'Female Cabin Roster'!$N$66","v":"Female Cabin Nine"},{"$error":"#VALUE!"},{"$error":"#VALUE!"}]
[{"$f":"'Housing Request'!$E$5","v":0},{"$f":"'Female Cabin Roster'!Q75","v":0},"F","Camper",{"$f":"'Female Cabin Roster'!$N$66","v":"Female Cabin Nine"},{"$error":"#VALUE!"},{"$error":"#VALUE!"}]
[{"$f":"'Housing Request'!$E$5","v":0},{"$f":"'Female Cabin Roster'!Q76","v":0},"F","Camper",{"$f":"'Female Cabin Roster'!$N$66","v":"Female Cabin Nine"},{"$error":"#VALUE!"},{"$error":"#VALUE!"}]
[{"$f":"'Housing Request'!$E$5","v":0},{"$f":"'Female Cabin Roster'!Q77","v":0},"F","Camper",{"$f":"'Female Cabin Roster'!$N$66","v":"Female Cabin Nine"},{"$f":"IF(G193<=6,\"SS\",(IF(G193<300,\"BA\",\"HS\")))","v":{"$error":"#VALUE!"}},{"$f":"INT(LEFT(E193,3))","v":{"$error":"#VALUE!"}}]
[{"$f":"'Housing Request'!$E$5","v":0},{"$f":"'Female Cabin Roster'!Q78","v":0},"F","Camper",{"$f":"'Female Cabin Roster'!$N$66","v":"Female Cabin Nine"},{"$error":"#VALUE!"},{"$error":"#VALUE!"}]
[{"$f":"'Housing Request'!$E$5","v":0},{"$f":"'Female Cabin Roster'!Q79","v":0},"F","Camper",{"$f":"'Female Cabin Roster'!$N$66","v":"Female Cabin Nine"},{"$error":"#VALUE!"},{"$error":"#VALUE!"}]
[{"$f":"'Housing Request'!$E$5","v":0},{"$f":"'Female Cabin Roster'!Q80","v":0},"F","Camper",{"$f":"'Female Cabin Roster'!$N$66","v":"Female Cabin Nine"},{"$error":"#VALUE!"},{"$error":"#VALUE!"}]
[{"$f":"'Housing Request'!$E$5","v":0},{"$f":"'Female Cabin Roster'!Q81","v":0},"F","Camper",{"$f":"'Female Cabin Roster'!$N$66","v":"Female Cabin Nine"},{"$error":"#VALUE!"},{"$error":"#VALUE!"}]
[{"$f":"'Housing Request'!$E$5","v":0},{"$f":"'Female Cabin Roster'!Q82","v":0},"F","Camper",{"$f":"'Female Cabin Roster'!$N$66","v":"Female Cabin Nine"},{"$error":"#VALUE!"},{"$error":"#VALUE!"}]
[{"$f":"'Housing Request'!$E$5","v":0},{"$f":"'Female Cabin Roster'!Q83","v":0},"F","Camper",{"$f":"'Female Cabin Roster'!$N$66","v":"Female Cabin Nine"},{"$error":"#VALUE!"},{"$error":"#VALUE!"}]
[{"$f":"'Housing Request'!$E$5","v":0},{"$f":"'Female Cabin Roster'!Q84","v":0},"F","Camper",{"$f":"'Female Cabin Roster'!$N$66","v":"Female Cabin Nine"},{"$error":"#VALUE!"},{"$error":"#VALUE!"}]
[{"$f":"'Housing Request'!$E$5","v":0},{"$f":"'Female Cabin Roster'!Q85","v":0},"F","Camper",{"$f":"'Female Cabin Roster'!$N$66","v":"Female Cabin Nine"},{"$error":"#VALUE!"},{"$error":"#VALUE!"}]
[{"$f":"'Housing Request'!$E$5","v":0},{"$f":"'Female Cabin Roster'!Q86","v":0},"F","Camper",{"$f":"'Female Cabin Roster'!$N$66","v":"Female Cabin Nine"},{"$error":"#VALUE!"},{"$error":"#VALUE!"}]
[{"$f":"'Housing Request'!$E$5","v":0},{"$f":"'Female Cabin Roster'!Q87","v":0},"F","Camper",{"$f":"'Female Cabin Roster'!$N$66","v":"Female Cabin Nine"},{"$error":"#VALUE!"},{"$error":"#VALUE!"}]
[{"$f":"'Housing Request'!$E$5","v":0},{"$f":"'Female Cabin Roster'!Q88","v":0},"F","Camper",{"$f":"'Female Cabin Roster'!$N$66","v":"Female Cabin Nine"},{"$error":"#VALUE!"},{"$error":"#VALUE!"}]
[{"$f":"'Housing Request'!$E$5","v":0},{"$f":"'Female Cabin Roster'!Q89","v":0},"F","Camper",{"$f":"'Female Cabin Roster'!$N$66","v":"Female Cabin Nine"},{"$error":"#VALUE!"},{"$error":"#VALUE!"}]
[{"$f":"'Housing Request'!$E$5","v":0},{"$f":"'Female Cabin Roster'!Q90","v":0},"F","Camper",{"$f":"'Female Cabin Roster'!$N$66","v":"Female Cabin Nine"},{"$error":"#VALUE!"},{"$error":"#VALUE!"}]
[{"$f":"'Housing Request'!$E$5","v":0},{"$f":"'Female Cabin Roster'!Q91","v":0},"F","Camper",{"$f":"'Female Cabin Roster'!$N$66","v":"Female Cabin Nine"},{"$error":"#VALUE!"},{"$error":"#VALUE!"}]
[{"$f":"'Housing Request'!$E$5","v":0},{"$f":"'Female Cabin Roster'!E97","v":0},"F","Leader",{"$f":"'Female Cabin Roster'!$B$95","v":"Female Cabin Ten"},{"$error":"#VALUE!"},{"$error":"#VALUE!"}]
[{"$f":"'Housing Request'!$E$5","v":0},{"$f":"'Female Cabin Roster'!E98","v":0},"F","Leader",{"$f":"'Female Cabin Roster'!$B$95","v":"Female Cabin Ten"},{"$error":"#VALUE!"},{"$error":"#VALUE!"}]
[{"$f":"'Housing Request'!$E$5","v":0},{"$f":"'Female Cabin Roster'!E99","v":0},"F","Leader",{"$f":"'Female Cabin Roster'!$B$95","v":"Female Cabin Ten"},{"$error":"#VALUE!"},{"$error":"#VALUE!"}]
[{"$f":"'Housing Request'!$E$5","v":0},{"$f":"'Female Cabin Roster'!E100","v":0},"F","Leader",{"$f":"'Female Cabin Roster'!$B$95","v":"Female Cabin Ten"},{"$error":"#VALUE!"},{"$error":"#VALUE!"}]
[{"$f":"'Housing Request'!$E$5","v":0},{"$f":"'Female Cabin Roster'!E101","v":0},"F","Leader",{"$f":"'Female Cabin Roster'!$B$95","v":"Female Cabin Ten"},{"$error":"#VALUE!"},{"$error":"#VALUE!"}]
[{"$f":"'Housing Request'!$E$5","v":0},{"$f":"'Female Cabin Roster'!E103","v":0},"F","Camper",{"$f":"'Female Cabin Roster'!$B$95","v":"Female Cabin Ten"},{"$error":"#VALUE!"},{"$error":"#VALUE!"}]
[{"$f":"'Housing Request'!$E$5","v":0},{"$f":"'Female Cabin Roster'!E104","v":0},"F","Camper",{"$f":"'Female Cabin Roster'!$B$95","v":"Female Cabin Ten"},{"$error":"#VALUE!"},{"$error":"#VALUE!"}]
[{"$f":"'Housing Request'!$E$5","v":0},{"$f":"'Female Cabin Roster'!E105","v":0},"F","Camper",{"$f":"'Female Cabin Roster'!$B$95","v":"Female Cabin Ten"},{"$error":"#VALUE!"},{"$error":"#VALUE!"}]
[{"$f":"'Housing Request'!$E$5","v":0},{"$f":"'Female Cabin Roster'!E106","v":0},"F","Camper",{"$f":"'Female Cabin Roster'!$B$95","v":"Female Cabin Ten"},{"$error":"#VALUE!"},{"$error":"#VALUE!"}]
[{"$f":"'Housing Request'!$E$5","v":0},{"$f":"'Female Cabin Roster'!E107","v":0},"F","Camper",{"$f":"'Female Cabin Roster'!$B$95","v":"Female Cabin Ten"},{"$error":"#VALUE!"},{"$error":"#VALUE!"}]
[{"$f":"'Housing Request'!$E$5","v":0},{"$f":"'Female Cabin Roster'!E108","v":0},"F","Camper",{"$f":"'Female Cabin Roster'!$B$95","v":"Female Cabin Ten"},{"$error":"#VALUE!"},{"$error":"#VALUE!"}]
[{"$f":"'Housing Request'!$E$5","v":0},{"$f":"'Female Cabin Roster'!E109","v":0},"F","Camper",{"$f":"'Female Cabin Roster'!$B$95","v":"Female Cabin Ten"},{"$error":"#VALUE!"},{"$error":"#VALUE!"}]
[{"$f":"'Housing Request'!$E$5","v":0},{"$f":"'Female Cabin Roster'!E110","v":0},"F","Camper",{"$f":"'Female Cabin Roster'!$B$95","v":"Female Cabin Ten"},{"$error":"#VALUE!"},{"$error":"#VALUE!"}]
[{"$f":"'Housing Request'!$E$5","v":0},{"$f":"'Female Cabin Roster'!E111","v":0},"F","Camper",{"$f":"'Female Cabin Roster'!$B$95","v":"Female Cabin Ten"},{"$error":"#VALUE!"},{"$error":"#VALUE!"}]
[{"$f":"'Housing Request'!$E$5","v":0},{"$f":"'Female Cabin Roster'!E112","v":0},"F","Camper",{"$f":"'Female Cabin Roster'!$B$95","v":"Female Cabin Ten"},{"$error":"#VALUE!"},{"$error":"#VALUE!"}]
[{"$f":"'Housing Request'!$E$5","v":0},{"$f":"'Female Cabin Roster'!E113","v":0},"F","Camper",{"$f":"'Female Cabin Roster'!$B$95","v":"Female Cabin Ten"},{"$error":"#VALUE!"},{"$error":"#VALUE!"}]
[{"$f":"'Housing Request'!$E$5","v":0},{"$f":"'Female Cabin Roster'!E114","v":0},"F","Camper",{"$f":"'Female Cabin Roster'!$B$95","v":"Female Cabin Ten"},{"$error":"#VALUE!"},{"$error":"#VALUE!"}]
[{"$f":"'Housing Request'!$E$5","v":0},{"$f":"'Female Cabin Roster'!E115","v":0},"F","Camper",{"$f":"'Female Cabin Roster'!$B$95","v":"Female Cabin Ten"},{"$error":"#VALUE!"},{"$error":"#VALUE!"}]
[{"$f":"'Housing Request'!$E$5","v":0},{"$f":"'Female Cabin Roster'!E116","v":0},"F","Camper",{"$f":"'Female Cabin Roster'!$B$95","v":"Female Cabin Ten"},{"$error":"#VALUE!"},{"$error":"#VALUE!"}]
[{"$f":"'Housing Request'!$E$5","v":0},{"$f":"'Female Cabin Roster'!E117","v":0},"F","Camper",{"$f":"'Female Cabin Roster'!$B$95","v":"Female Cabin Ten"},{"$error":"#VALUE!"},{"$error":"#VALUE!"}]
[{"$f":"'Housing Request'!$E$5","v":0},{"$f":"'Female Cabin Roster'!E118","v":0},"F","Camper",{"$f":"'Female Cabin Roster'!$B$95","v":"Female Cabin Ten"},{"$error":"#VALUE!"},{"$error":"#VALUE!"}]
[{"$f":"'Housing Request'!$E$5","v":0},{"$f":"'Female Cabin Roster'!E119","v":0},"F","Camper",{"$f":"'Female Cabin Roster'!$B$95","v":"Female Cabin Ten"},{"$error":"#VALUE!"},{"$error":"#VALUE!"}]
[{"$f":"'Housing Request'!$E$5","v":0},{"$f":"'Female Cabin Roster'!E120","v":0},"F","Camper",{"$f":"'Female Cabin Roster'!$B$95","v":"Female Cabin Ten"},{"$error":"#VALUE!"},{"$error":"#VALUE!"}]
[{"$f":"'Housing Request'!$E$5","v":0},{"$f":"'Female Cabin Roster'!K97","v":0},"F","Leader",{"$f":"'Female Cabin Roster'!$H$95","v":"Female Cabin Eleven"},{"$error":"#VALUE!"},{"$error":"#VALUE!"}]
[{"$f":"'Housing Request'!$E$5","v":0},{"$f":"'Female Cabin Roster'!K98","v":0},"F","Leader",{"$f":"'Female Cabin Roster'!$H$95","v":"Female Cabin Eleven"},{"$error":"#VALUE!"},{"$error":"#VALUE!"}]
[{"$f":"'Housing Request'!$E$5","v":0},{"$f":"'Female Cabin Roster'!K99","v":0},"F","Leader",{"$f":"'Female Cabin Roster'!$H$95","v":"Female Cabin Eleven"},{"$error":"#VALUE!"},{"$error":"#VALUE!"}]
[{"$f":"'Housing Request'!$E$5","v":0},{"$f":"'Female Cabin Roster'!K100","v":0},"F","Leader",{"$f":"'Female Cabin Roster'!$H$95","v":"Female Cabin Eleven"},{"$error":"#VALUE!"},{"$error":"#VALUE!"}]
[{"$f":"'Housing Request'!$E$5","v":0},{"$f":"'Female Cabin Roster'!K101","v":0},"F","Leader",{"$f":"'Female Cabin Roster'!$H$95","v":"Female Cabin Eleven"},{"$error":"#VALUE!"},{"$error":"#VALUE!"}]
[{"$f":"'Housing Request'!$E$5","v":0},{"$f":"'Female Cabin Roster'!K103","v":0},"F","Camper",{"$f":"'Female Cabin Roster'!$H$95","v":"Female Cabin Eleven"},{"$error":"#VALUE!"},{"$error":"#VALUE!"}]
[{"$f":"'Housing Request'!$E$5","v":0},{"$f":"'Female Cabin Roster'!K104","v":0},"F","Camper",{"$f":"'Female Cabin Roster'!$H$95","v":"Female Cabin Eleven"},{"$error":"#VALUE!"},{"$error":"#VALUE!"}]
[{"$f":"'Housing Request'!$E$5","v":0},{"$f":"'Female Cabin Roster'!K105","v":0},"F","Camper",{"$f":"'Female Cabin Roster'!$H$95","v":"Female Cabin Eleven"},{"$error":"#VALUE!"},{"$error":"#VALUE!"}]
[{"$f":"'Housing Request'!$E$5","v":0},{"$f":"'Female Cabin Roster'!K106","v":0},"F","Camper",{"$f":"'Female Cabin Roster'!$H$95","v":"Female Cabin Eleven"},{"$error":"#VALUE!"},{"$error":"#VALUE!"}]
[{"$f":"'Housing Request'!$E$5","v":0},{"$f":"'Female Cabin Roster'!K107","v":0},"F","Camper",{"$f":"'Female Cabin Roster'!$H$95","v":"Female Cabin Eleven"},{"$error":"#VALUE!"},{"$error":"#VALUE!"}]
[{"$f":"'Housing Request'!$E$5","v":0},{"$f":"'Female Cabin Roster'!K108","v":0},"F","Camper",{"$f":"'Female Cabin Roster'!$H$95","v":"Female Cabin Eleven"},{"$error":"#VALUE!"},{"$error":"#VALUE!"}]
[{"$f":"'Housing Request'!$E$5","v":0},{"$f":"'Female Cabin Roster'!K109","v":0},"F","Camper",{"$f":"'Female Cabin Roster'!$H$95","v":"Female Cabin Eleven"},{"$error":"#VALUE!"},{"$error":"#VALUE!"}]
[{"$f":"'Housing Request'!$E$5","v":0},{"$f":"'Female Cabin Roster'!K110","v":0},"F","Camper",{"$f":"'Female Cabin Roster'!$H$95","v":"Female Cabin Eleven"},{"$error":"#VALUE!"},{"$error":"#VALUE!"}]
[{"$f":"'Housing Request'!$E$5","v":0},{"$f":"'Female Cabin Roster'!K111","v":0},"F","Camper",{"$f":"'Female Cabin Roster'!$H$95","v":"Female Cabin Eleven"},{"$error":"#VALUE!"},{"$error":"#VALUE!"}]
[{"$f":"'Housing Request'!$E$5","v":0},{"$f":"'Female Cabin Roster'!K112","v":0},"F","Camper",{"$f":"'Female Cabin Roster'!$H$95","v":"Female Cabin Eleven"},{"$error":"#VALUE!"},{"$error":"#VALUE!"}]
[{"$f":"'Housing Request'!$E$5","v":0},{"$f":"'Female Cabin Roster'!K113","v":0},"F","Camper",{"$f":"'Female Cabin Roster'!$H$95","v":"Female Cabin Eleven"},{"$error":"#VALUE!"},{"$error":"#VALUE!"}]
[{"$f":"'Housing Request'!$E$5","v":0},{"$f":"'Female Cabin Roster'!K114","v":0},"F","Camper",{"$f":"'Female Cabin Roster'!$H$95","v":"Female Cabin Eleven"},{"$error":"#VALUE!"},{"$error":"#VALUE!"}]
[{"$f":"'Housing Request'!$E$5","v":0},{"$f":"'Female Cabin Roster'!K115","v":0},"F","Camper",{"$f":"'Female Cabin Roster'!$H$95","v":"Female Cabin Eleven"},{"$error":"#VALUE!"},{"$error":"#VALUE!"}]
[{"$f":"'Housing Request'!$E$5","v":0},{"$f":"'Female Cabin Roster'!K116","v":0},"F","Camper",{"$f":"'Female Cabin Roster'!$H$95","v":"Female Cabin Eleven"},{"$error":"#VALUE!"},{"$error":"#VALUE!"}]
[{"$f":"'Housing Request'!$E$5","v":0},{"$f":"'Female Cabin Roster'!K117","v":0},"F","Camper",{"$f":"'Female Cabin Roster'!$H$95","v":"Female Cabin Eleven"},{"$error":"#VALUE!"},{"$error":"#VALUE!"}]
[{"$f":"'Housing Request'!$E$5","v":0},{"$f":"'Female Cabin Roster'!K118","v":0},"F","Camper",{"$f":"'Female Cabin Roster'!$H$95","v":"Female Cabin Eleven"},{"$error":"#VALUE!"},{"$error":"#VALUE!"}]
[{"$f":"'Housing Request'!$E$5","v":0},{"$f":"'Female Cabin Roster'!K119","v":0},"F","Camper",{"$f":"'Female Cabin Roster'!$H$95","v":"Female Cabin Eleven"},{"$error":"#VALUE!"},{"$error":"#VALUE!"}]
[{"$f":"'Housing Request'!$E$5","v":0},{"$f":"'Female Cabin Roster'!K120","v":0},"F","Camper",{"$f":"'Female Cabin Roster'!$H$95","v":"Female Cabin Eleven"},{"$error":"#VALUE!"},{"$error":"#VALUE!"}]
[{"$f":"'Housing Request'!$E$5","v":0},{"$f":"'Female Cabin Roster'!Q97","v":0},"F","Leader",{"$f":"'Female Cabin Roster'!$N$95","v":"Female Cabin Twelve"},{"$error":"#VALUE!"},{"$error":"#VALUE!"}]
[{"$f":"'Housing Request'!$E$5","v":0},{"$f":"'Female Cabin Roster'!Q98","v":0},"F","Leader",{"$f":"'Female Cabin Roster'!$N$95","v":"Female Cabin Twelve"},{"$error":"#VALUE!"},{"$error":"#VALUE!"}]
[{"$f":"'Housing Request'!$E$5","v":0},{"$f":"'Female Cabin Roster'!Q99","v":0},"F","Leader",{"$f":"'Female Cabin Roster'!$N$95","v":"Female Cabin Twelve"},{"$error":"#VALUE!"},{"$error":"#VALUE!"}]
[{"$f":"'Housing Request'!$E$5","v":0},{"$f":"'Female Cabin Roster'!Q100","v":0},"F","Leader",{"$f":"'Female Cabin Roster'!$N$95","v":"Female Cabin Twelve"},{"$f":"IF(G257<=6,\"SS\",(IF(G257<300,\"BA\",\"HS\")))","v":{"$error":"#VALUE!"}},{"$f":"INT(LEFT(E257,3))","v":{"$error":"#VALUE!"}}]
[{"$f":"'Housing Request'!$E$5","v":0},{"$f":"'Female Cabin Roster'!Q101","v":0},"F","Leader",{"$f":"'Female Cabin Roster'!$N$95","v":"Female Cabin Twelve"},{"$error":"#VALUE!"},{"$error":"#VALUE!"}]
[{"$f":"'Housing Request'!$E$5","v":0},{"$f":"'Female Cabin Roster'!Q103","v":0},"F","Camper",{"$f":"'Female Cabin Roster'!$N$95","v":"Female Cabin Twelve"},{"$error":"#VALUE!"},{"$error":"#VALUE!"}]
[{"$f":"'Housing Request'!$E$5","v":0},{"$f":"'Female Cabin Roster'!Q104","v":0},"F","Camper",{"$f":"'Female Cabin Roster'!$N$95","v":"Female Cabin Twelve"},{"$error":"#VALUE!"},{"$error":"#VALUE!"}]
[{"$f":"'Housing Request'!$E$5","v":0},{"$f":"'Female Cabin Roster'!Q105","v":0},"F","Camper",{"$f":"'Female Cabin Roster'!$N$95","v":"Female Cabin Twelve"},{"$error":"#VALUE!"},{"$error":"#VALUE!"}]
[{"$f":"'Housing Request'!$E$5","v":0},{"$f":"'Female Cabin Roster'!Q106","v":0},"F","Camper",{"$f":"'Female Cabin Roster'!$N$95","v":"Female Cabin Twelve"},{"$error":"#VALUE!"},{"$error":"#VALUE!"}]
[{"$f":"'Housing Request'!$E$5","v":0},{"$f":"'Female Cabin Roster'!Q107","v":0},"F","Camper",{"$f":"'Female Cabin Roster'!$N$95","v":"Female Cabin Twelve"},{"$error":"#VALUE!"},{"$error":"#VALUE!"}]
[{"$f":"'Housing Request'!$E$5","v":0},{"$f":"'Female Cabin Roster'!Q108","v":0},"F","Camper",{"$f":"'Female Cabin Roster'!$N$95","v":"Female Cabin Twelve"},{"$error":"#VALUE!"},{"$error":"#VALUE!"}]
[{"$f":"'Housing Request'!$E$5","v":0},{"$f":"'Female Cabin Roster'!Q109","v":0},"F","Camper",{"$f":"'Female Cabin Roster'!$N$95","v":"Female Cabin Twelve"},{"$error":"#VALUE!"},{"$error":"#VALUE!"}]
[{"$f":"'Housing Request'!$E$5","v":0},{"$f":"'Female Cabin Roster'!Q110","v":0},"F","Camper",{"$f":"'Female Cabin Roster'!$N$95","v":"Female Cabin Twelve"},{"$error":"#VALUE!"},{"$error":"#VALUE!"}]
[{"$f":"'Housing Request'!$E$5","v":0},{"$f":"'Female Cabin Roster'!Q111","v":0},"F","Camper",{"$f":"'Female Cabin Roster'!$N$95","v":"Female Cabin Twelve"},{"$error":"#VALUE!"},{"$error":"#VALUE!"}]
[{"$f":"'Housing Request'!$E$5","v":0},{"$f":"'Female Cabin Roster'!Q112","v":0},"F","Camper",{"$f":"'Female Cabin Roster'!$N$95","v":"Female Cabin Twelve"},{"$error":"#VALUE!"},{"$error":"#VALUE!"}]
[{"$f":"'Housing Request'!$E$5","v":0},{"$f":"'Female Cabin Roster'!Q113","v":0},"F","Camper",{"$f":"'Female Cabin Roster'!$N$95","v":"Female Cabin Twelve"},{"$error":"#VALUE!"},{"$error":"#VALUE!"}]
[{"$f":"'Housing Request'!$E$5","v":0},{"$f":"'Female Cabin Roster'!Q114","v":0},"F","Camper",{"$f":"'Female Cabin Roster'!$N$95","v":"Female Cabin Twelve"},{"$error":"#VALUE!"},{"$error":"#VALUE!"}]
[{"$f":"'Housing Request'!$E$5","v":0},{"$f":"'Female Cabin Roster'!Q115","v":0},"F","Camper",{"$f":"'Female Cabin Roster'!$N$95","v":"Female Cabin Twelve"},{"$error":"#VALUE!"},{"$error":"#VALUE!"}]
[{"$f":"'Housing Request'!$E$5","v":0},{"$f":"'Female Cabin Roster'!Q116","v":0},"F","Camper",{"$f":"'Female Cabin Roster'!$N$95","v":"Female Cabin Twelve"},{"$error":"#VALUE!"},{"$error":"#VALUE!"}]
[{"$f":"'Housing Request'!$E$5","v":0},{"$f":"'Female Cabin Roster'!Q117","v":0},"F","Camper",{"$f":"'Female Cabin Roster'!$N$95","v":"Female Cabin Twelve"},{"$error":"#VALUE!"},{"$error":"#VALUE!"}]
[{"$f":"'Housing Request'!$E$5","v":0},{"$f":"'Female Cabin Roster'!Q118","v":0},"F","Camper",{"$f":"'Female Cabin Roster'!$N$95","v":"Female Cabin Twelve"},{"$error":"#VALUE!"},{"$error":"#VALUE!"}]
[{"$f":"'Housing Request'!$E$5","v":0},{"$f":"'Female Cabin Roster'!Q119","v":0},"F","Camper",{"$f":"'Female Cabin Roster'!$N$95","v":"Female Cabin Twelve"},{"$error":"#VALUE!"},{"$error":"#VALUE!"}]
[{"$f":"'Housing Request'!$E$5","v":0},{"$f":"'Female Cabin Roster'!Q120","v":0},"F","Camper",{"$f":"'Female Cabin Roster'!$N$95","v":"Female Cabin Twelve"},{"$error":"#VALUE!"},{"$error":"#VALUE!"}]
[{"$f":"'Housing Request'!$E$5","v":0},{"$f":"'Male Cabin Roster'!E10","v":0},"M","Leader",{"$f":"'Male Cabin Roster'!$B$8","v":"Male Cabin One"},{"$error":"#VALUE!"},{"$error":"#VALUE!"}]
[{"$f":"'Housing Request'!$E$5","v":0},{"$f":"'Male Cabin Roster'!E11","v":0},"M","Leader",{"$f":"'Male Cabin Roster'!$B$8","v":"Male Cabin One"},{"$error":"#VALUE!"},{"$error":"#VALUE!"}]
[{"$f":"'Housing Request'!$E$5","v":0},{"$f":"'Male Cabin Roster'!E12","v":0},"M","Leader",{"$f":"'Male Cabin Roster'!$B$8","v":"Male Cabin One"},{"$error":"#VALUE!"},{"$error":"#VALUE!"}]
[{"$f":"'Housing Request'!$E$5","v":0},{"$f":"'Male Cabin Roster'!E13","v":0},"M","Leader",{"$f":"'Male Cabin Roster'!$B$8","v":"Male Cabin One"},{"$error":"#VALUE!"},{"$error":"#VALUE!"}]
[{"$f":"'Housing Request'!$E$5","v":0},{"$f":"'Male Cabin Roster'!E14","v":0},"M","Leader",{"$f":"'Male Cabin Roster'!$B$8","v":"Male Cabin One"},{"$error":"#VALUE!"},{"$error":"#VALUE!"}]
[{"$f":"'Housing Request'!$E$5","v":0},{"$f":"'Male Cabin Roster'!E16","v":0},"M","Camper",{"$f":"'Male Cabin Roster'!$B$8","v":"Male Cabin One"},{"$error":"#VALUE!"},{"$error":"#VALUE!"}]
[{"$f":"'Housing Request'!$E$5","v":0},{"$f":"'Male Cabin Roster'!E17","v":0},"M","Camper",{"$f":"'Male Cabin Roster'!$B$8","v":"Male Cabin One"},{"$error":"#VALUE!"},{"$error":"#VALUE!"}]
[{"$f":"'Housing Request'!$E$5","v":0},{"$f":"'Male Cabin Roster'!E18","v":0},"M","Camper",{"$f":"'Male Cabin Roster'!$B$8","v":"Male Cabin One"},{"$error":"#VALUE!"},{"$error":"#VALUE!"}]
[{"$f":"'Housing Request'!$E$5","v":0},{"$f":"'Male Cabin Roster'!E19","v":0},"M","Camper",{"$f":"'Male Cabin Roster'!$B$8","v":"Male Cabin One"},{"$error":"#VALUE!"},{"$error":"#VALUE!"}]
[{"$f":"'Housing Request'!$E$5","v":0},{"$f":"'Male Cabin Roster'!E20","v":0},"M","Camper",{"$f":"'Male Cabin Roster'!$B$8","v":"Male Cabin One"},{"$error":"#VALUE!"},{"$error":"#VALUE!"}]
[{"$f":"'Housing Request'!$E$5","v":0},{"$f":"'Male Cabin Roster'!E21","v":0},"M","Camper",{"$f":"'Male Cabin Roster'!$B$8","v":"Male Cabin One"},{"$error":"#VALUE!"},{"$error":"#VALUE!"}]
[{"$f":"'Housing Request'!$E$5","v":0},{"$f":"'Male Cabin Roster'!E22","v":0},"M","Camper",{"$f":"'Male Cabin Roster'!$B$8","v":"Male Cabin One"},{"$error":"#VALUE!"},{"$error":"#VALUE!"}]
[{"$f":"'Housing Request'!$E$5","v":0},{"$f":"'Male Cabin Roster'!E23","v":0},"M","Camper",{"$f":"'Male Cabin Roster'!$B$8","v":"Male Cabin One"},{"$error":"#VALUE!"},{"$error":"#VALUE!"}]
[{"$f":"'Housing Request'!$E$5","v":0},{"$f":"'Male Cabin Roster'!E24","v":0},"M","Camper",{"$f":"'Male Cabin Roster'!$B$8","v":"Male Cabin One"},{"$error":"#VALUE!"},{"$error":"#VALUE!"}]
[{"$f":"'Housing Request'!$E$5","v":0},{"$f":"'Male Cabin Roster'!E25","v":0},"M","Camper",{"$f":"'Male Cabin Roster'!$B$8","v":"Male Cabin One"},{"$error":"#VALUE!"},{"$error":"#VALUE!"}]
[{"$f":"'Housing Request'!$E$5","v":0},{"$f":"'Male Cabin Roster'!E26","v":0},"M","Camper",{"$f":"'Male Cabin Roster'!$B$8","v":"Male Cabin One"},{"$error":"#VALUE!"},{"$error":"#VALUE!"}]
[{"$f":"'Housing Request'!$E$5","v":0},{"$f":"'Male Cabin Roster'!E27","v":0},"M","Camper",{"$f":"'Male Cabin Roster'!$B$8","v":"Male Cabin One"},{"$error":"#VALUE!"},{"$error":"#VALUE!"}]
[{"$f":"'Housing Request'!$E$5","v":0},{"$f":"'Male Cabin Roster'!E28","v":0},"M","Camper",{"$f":"'Male Cabin Roster'!$B$8","v":"Male Cabin One"},{"$error":"#VALUE!"},{"$error":"#VALUE!"}]
[{"$f":"'Housing Request'!$E$5","v":0},{"$f":"'Male Cabin Roster'!E29","v":0},"M","Camper",{"$f":"'Male Cabin Roster'!$B$8","v":"Male Cabin One"},{"$error":"#VALUE!"},{"$error":"#VALUE!"}]
[{"$f":"'Housing Request'!$E$5","v":0},{"$f":"'Male Cabin Roster'!E30","v":0},"M","Camper",{"$f":"'Male Cabin Roster'!$B$8","v":"Male Cabin One"},{"$error":"#VALUE!"},{"$error":"#VALUE!"}]
[{"$f":"'Housing Request'!$E$5","v":0},{"$f":"'Male Cabin Roster'!E31","v":0},"M","Camper",{"$f":"'Male Cabin Roster'!$B$8","v":"Male Cabin One"},{"$error":"#VALUE!"},{"$error":"#VALUE!"}]
[{"$f":"'Housing Request'!$E$5","v":0},{"$f":"'Male Cabin Roster'!E32","v":0},"M","Camper",{"$f":"'Male Cabin Roster'!$B$8","v":"Male Cabin One"},{"$error":"#VALUE!"},{"$error":"#VALUE!"}]
[{"$f":"'Housing Request'!$E$5","v":0},{"$f":"'Male Cabin Roster'!E33","v":0},"M","Camper",{"$f":"'Male Cabin Roster'!$B$8","v":"Male Cabin One"},{"$error":"#VALUE!"},{"$error":"#VALUE!"}]
[{"$f":"'Housing Request'!$E$5","v":0},{"$f":"'Male Cabin Roster'!K10","v":0},"M","Leader",{"$f":"'Male Cabin Roster'!$H$8","v":"Male Cabin Two"},{"$error":"#VALUE!"},{"$error":"#VALUE!"}]
[{"$f":"'Housing Request'!$E$5","v":0},{"$f":"'Male Cabin Roster'!K11","v":0},"M","Leader",{"$f":"'Male Cabin Roster'!$H$8","v":"Male Cabin Two"},{"$error":"#VALUE!"},{"$error":"#VALUE!"}]
[{"$f":"'Housing Request'!$E$5","v":0},{"$f":"'Male Cabin Roster'!K12","v":0},"M","Leader",{"$f":"'Male Cabin Roster'!$H$8","v":"Male Cabin Two"},{"$error":"#VALUE!"},{"$error":"#VALUE!"}]
[{"$f":"'Housing Request'!$E$5","v":0},{"$f":"'Male Cabin Roster'!K13","v":0},"M","Leader",{"$f":"'Male Cabin Roster'!$H$8","v":"Male Cabin Two"},{"$error":"#VALUE!"},{"$error":"#VALUE!"}]
[{"$f":"'Housing Request'!$E$5","v":0},{"$f":"'Male Cabin Roster'!K14","v":0},"M","Leader",{"$f":"'Male Cabin Roster'!$H$8","v":"Male Cabin Two"},{"$error":"#VALUE!"},{"$error":"#VALUE!"}]
[{"$f":"'Housing Request'!$E$5","v":0},{"$f":"'Male Cabin Roster'!K16","v":0},"M","Camper",{"$f":"'Male Cabin Roster'!$H$8","v":"Male Cabin Two"},{"$error":"#VALUE!"},{"$error":"#VALUE!"}]
[{"$f":"'Housing Request'!$E$5","v":0},{"$f":"'Male Cabin Roster'!K17","v":0},"M","Camper",{"$f":"'Male Cabin Roster'!$H$8","v":"Male Cabin Two"},{"$error":"#VALUE!"},{"$error":"#VALUE!"}]
[{"$f":"'Housing Request'!$E$5","v":0},{"$f":"'Male Cabin Roster'!K18","v":0},"M","Camper",{"$f":"'Male Cabin Roster'!$H$8","v":"Male Cabin Two"},{"$error":"#VALUE!"},{"$error":"#VALUE!"}]
[{"$f":"'Housing Request'!$E$5","v":0},{"$f":"'Male Cabin Roster'!K19","v":0},"M","Camper",{"$f":"'Male Cabin Roster'!$H$8","v":"Male Cabin Two"},{"$error":"#VALUE!"},{"$error":"#VALUE!"}]
[{"$f":"'Housing Request'!$E$5","v":0},{"$f":"'Male Cabin Roster'!K20","v":0},"M","Camper",{"$f":"'Male Cabin Roster'!$H$8","v":"Male Cabin Two"},{"$error":"#VALUE!"},{"$error":"#VALUE!"}]
[{"$f":"'Housing Request'!$E$5","v":0},{"$f":"'Male Cabin Roster'!K21","v":0},"M","Camper",{"$f":"'Male Cabin Roster'!$H$8","v":"Male Cabin Two"},{"$error":"#VALUE!"},{"$error":"#VALUE!"}]
[{"$f":"'Housing Request'!$E$5","v":0},{"$f":"'Male Cabin Roster'!K22","v":0},"M","Camper",{"$f":"'Male Cabin Roster'!$H$8","v":"Male Cabin Two"},{"$error":"#VALUE!"},{"$error":"#VALUE!"}]
[{"$f":"'Housing Request'!$E$5","v":0},{"$f":"'Male Cabin Roster'!K23","v":0},"M","Camper",{"$f":"'Male Cabin Roster'!$H$8","v":"Male Cabin Two"},{"$error":"#VALUE!"},{"$error":"#VALUE!"}]
[{"$f":"'Housing Request'!$E$5","v":0},{"$f":"'Male Cabin Roster'!K24","v":0},"M","Camper",{"$f":"'Male Cabin Roster'!$H$8","v":"Male Cabin Two"},{"$error":"#VALUE!"},{"$error":"#VALUE!"}]
[{"$f":"'Housing Request'!$E$5","v":0},{"$f":"'Male Cabin Roster'!K25","v":0},"M","Camper",{"$f":"'Male Cabin Roster'!$H$8","v":"Male Cabin Two"},{"$error":"#VALUE!"},{"$error":"#VALUE!"}]
[{"$f":"'Housing Request'!$E$5","v":0},{"$f":"'Male Cabin Roster'!K26","v":0},"M","Camper",{"$f":"'Male Cabin Roster'!$H$8","v":"Male Cabin Two"},{"$error":"#VALUE!"},{"$error":"#VALUE!"}]
[{"$f":"'Housing Request'!$E$5","v":0},{"$f":"'Male Cabin Roster'!K27","v":0},"M","Camper",{"$f":"'Male Cabin Roster'!$H$8","v":"Male Cabin Two"},{"$error":"#VALUE!"},{"$error":"#VALUE!"}]
[{"$f":"'Housing Request'!$E$5","v":0},{"$f":"'Male Cabin Roster'!K28","v":0},"M","Camper",{"$f":"'Male Cabin Roster'!$H$8","v":"Male Cabin Two"},{"$error":"#VALUE!"},{"$error":"#VALUE!"}]
[{"$f":"'Housing Request'!$E$5","v":0},{"$f":"'Male Cabin Roster'!K29","v":0},"M","Camper",{"$f":"'Male Cabin Roster'!$H$8","v":"Male Cabin Two"},{"$error":"#VALUE!"},{"$error":"#VALUE!"}]
[{"$f":"'Housing Request'!$E$5","v":0},{"$f":"'Male Cabin Roster'!K30","v":0},"M","Camper",{"$f":"'Male Cabin Roster'!$H$8","v":"Male Cabin Two"},{"$error":"#VALUE!"},{"$error":"#VALUE!"}]
[{"$f":"'Housing Request'!$E$5","v":0},{"$f":"'Male Cabin Roster'!K31","v":0},"M","Camper",{"$f":"'Male Cabin Roster'!$H$8","v":"Male Cabin Two"},{"$error":"#VALUE!"},{"$error":"#VALUE!"}]
[{"$f":"'Housing Request'!$E$5","v":0},{"$f":"'Male Cabin Roster'!K32","v":0},"M","Camper",{"$f":"'Male Cabin Roster'!$H$8","v":"Male Cabin Two"},{"$f":"IF(G321<=6,\"SS\",(IF(G321<300,\"BA\",\"HS\")))","v":{"$error":"#VALUE!"}},{"$f":"INT(LEFT(E321,3))","v":{"$error":"#VALUE!"}}]
[{"$f":"'Housing Request'!$E$5","v":0},{"$f":"'Male Cabin Roster'!K33","v":0},"M","Camper",{"$f":"'Male Cabin Roster'!$H$8","v":"Male Cabin Two"},{"$error":"#VALUE!"},{"$error":"#VALUE!"}]
[{"$f":"'Housing Request'!$E$5","v":0},{"$f":"'Male Cabin Roster'!Q10","v":0},"M","Leader",{"$f":"'Male Cabin Roster'!$N$8","v":"Male Cabin Three"},{"$error":"#VALUE!"},{"$error":"#VALUE!"}]
[{"$f":"'Housing Request'!$E$5","v":0},{"$f":"'Male Cabin Roster'!Q11","v":0},"M","Leader",{"$f":"'Male Cabin Roster'!$N$8","v":"Male Cabin Three"},{"$error":"#VALUE!"},{"$error":"#VALUE!"}]
[{"$f":"'Housing Request'!$E$5","v":0},{"$f":"'Male Cabin Roster'!Q12","v":0},"M","Leader",{"$f":"'Male Cabin Roster'!$N$8","v":"Male Cabin Three"},{"$error":"#VALUE!"},{"$error":"#VALUE!"}]
[{"$f":"'Housing Request'!$E$5","v":0},{"$f":"'Male Cabin Roster'!Q13","v":0},"M","Leader",{"$f":"'Male Cabin Roster'!$N$8","v":"Male Cabin Three"},{"$error":"#VALUE!"},{"$error":"#VALUE!"}]
[{"$f":"'Housing Request'!$E$5","v":0},{"$f":"'Male Cabin Roster'!Q14","v":0},"M","Leader",{"$f":"'Male Cabin Roster'!$N$8","v":"Male Cabin Three"},{"$error":"#VALUE!"},{"$error":"#VALUE!"}]
[{"$f":"'Housing Request'!$E$5","v":0},{"$f":"'Male Cabin Roster'!Q16","v":0},"M","Camper",{"$f":"'Male Cabin Roster'!$N$8","v":"Male Cabin Three"},{"$error":"#VALUE!"},{"$error":"#VALUE!"}]
[{"$f":"'Housing Request'!$E$5","v":0},{"$f":"'Male Cabin Roster'!Q17","v":0},"M","Camper",{"$f":"'Male Cabin Roster'!$N$8","v":"Male Cabin Three"},{"$error":"#VALUE!"},{"$error":"#VALUE!"}]
[{"$f":"'Housing Request'!$E$5","v":0},{"$f":"'Male Cabin Roster'!Q18","v":0},"M","Camper",{"$f":"'Male Cabin Roster'!$N$8","v":"Male Cabin Three"},{"$error":"#VALUE!"},{"$error":"#VALUE!"}]
[{"$f":"'Housing Request'!$E$5","v":0},{"$f":"'Male Cabin Roster'!Q19","v":0},"M","Camper",{"$f":"'Male Cabin Roster'!$N$8","v":"Male Cabin Three"},{"$error":"#VALUE!"},{"$error":"#VALUE!"}]
[{"$f":"'Housing Request'!$E$5","v":0},{"$f":"'Male Cabin Roster'!Q20","v":0},"M","Camper",{"$f":"'Male Cabin Roster'!$N$8","v":"Male Cabin Three"},{"$error":"#VALUE!"},{"$error":"#VALUE!"}]
[{"$f":"'Housing Request'!$E$5","v":0},{"$f":"'Male Cabin Roster'!Q21","v":0},"M","Camper",{"$f":"'Male Cabin Roster'!$N$8","v":"Male Cabin Three"},{"$error":"#VALUE!"},{"$error":"#VALUE!"}]
[{"$f":"'Housing Request'!$E$5","v":0},{"$f":"'Male Cabin Roster'!Q22","v":0},"M","Camper",{"$f":"'Male Cabin Roster'!$N$8","v":"Male Cabin Three"},{"$error":"#VALUE!"},{"$error":"#VALUE!"}]
[{"$f":"'Housing Request'!$E$5","v":0},{"$f":"'Male Cabin Roster'!Q23","v":0},"M","Camper",{"$f":"'Male Cabin Roster'!$N$8","v":"Male Cabin Three"},{"$error":"#VALUE!"},{"$error":"#VALUE!"}]
[{"$f":"'Housing Request'!$E$5","v":0},{"$f":"'Male Cabin Roster'!Q24","v":0},"M","Camper",{"$f":"'Male Cabin Roster'!$N$8","v":"Male Cabin Three"},{"$error":"#VALUE!"},{"$error":"#VALUE!"}]
[{"$f":"'Housing Request'!$E$5","v":0},{"$f":"'Male Cabin Roster'!Q25","v":0},"M","Camper",{"$f":"'Male Cabin Roster'!$N$8","v":"Male Cabin Three"},{"$error":"#VALUE!"},{"$error":"#VALUE!"}]
[{"$f":"'Housing Request'!$E$5","v":0},{"$f":"'Male Cabin Roster'!Q26","v":0},"M","Camper",{"$f":"'Male Cabin Roster'!$N$8","v":"Male Cabin Three"},{"$error":"#VALUE!"},{"$error":"#VALUE!"}]
[{"$f":"'Housing Request'!$E$5","v":0},{"$f":"'Male Cabin Roster'!Q27","v":0},"M","Camper",{"$f":"'Male Cabin Roster'!$N$8","v":"Male Cabin Three"},{"$error":"#VALUE!"},{"$error":"#VALUE!"}]
[{"$f":"'Housing Request'!$E$5","v":0},{"$f":"'Male Cabin Roster'!Q28","v":0},"M","Camper",{"$f":"'Male Cabin Roster'!$N$8","v":"Male Cabin Three"},{"$error":"#VALUE!"},{"$error":"#VALUE!"}]
[{"$f":"'Housing Request'!$E$5","v":0},{"$f":"'Male Cabin Roster'!Q29","v":0},"M","Camper",{"$f":"'Male Cabin Roster'!$N$8","v":"Male Cabin Three"},{"$error":"#VALUE!"},{"$error":"#VALUE!"}]
[{"$f":"'Housing Request'!$E$5","v":0},{"$f":"'Male Cabin Roster'!Q30","v":0},"M","Camper",{"$f":"'Male Cabin Roster'!$N$8","v":"Male Cabin Three"},{"$error":"#VALUE!"},{"$error":"#VALUE!"}]
[{"$f":"'Housing Request'!$E$5","v":0},{"$f":"'Male Cabin Roster'!Q31","v":0},"M","Camper",{"$f":"'Male Cabin Roster'!$N$8","v":"Male Cabin Three"},{"$error":"#VALUE!"},{"$error":"#VALUE!"}]
[{"$f":"'Housing Request'!$E$5","v":0},{"$f":"'Male Cabin Roster'!Q32","v":0},"M","Camper",{"$f":"'Male Cabin Roster'!$N$8","v":"Male Cabin Three"},{"$error":"#VALUE!"},{"$error":"#VALUE!"}]
[{"$f":"'Housing Request'!$E$5","v":0},{"$f":"'Male Cabin Roster'!Q33","v":0},"M","Camper",{"$f":"'Male Cabin Roster'!$N$8","v":"Male Cabin Three"},{"$error":"#VALUE!"},{"$error":"#VALUE!"}]
[{"$f":"'Housing Request'!$E$5","v":0},{"$f":"'Male Cabin Roster'!E39","v":0},"M","Leader",{"$f":"'Male Cabin Roster'!$B$37","v":"Male Cabin Four"},{"$error":"#VALUE!"},{"$error":"#VALUE!"}]
[{"$f":"'Housing Request'!$E$5","v":0},{"$f":"'Male Cabin Roster'!E40","v":0},"M","Leader",{"$f":"'Male Cabin Roster'!$B$37","v":"Male Cabin Four"},{"$error":"#VALUE!"},{"$error":"#VALUE!"}]
[{"$f":"'Housing Request'!$E$5","v":0},{"$f":"'Male Cabin Roster'!E41","v":0},"M","Leader",{"$f":"'Male Cabin Roster'!$B$37","v":"Male Cabin Four"},{"$error":"#VALUE!"},{"$error":"#VALUE!"}]
[{"$f":"'Housing Request'!$E$5","v":0},{"$f":"'Male Cabin Roster'!E42","v":0},"M","Leader",{"$f":"'Male Cabin Roster'!$B$37","v":"Male Cabin Four"},{"$error":"#VALUE!"},{"$error":"#VALUE!"}]
[{"$f":"'Housing Request'!$E$5","v":0},{"$f":"'Male Cabin Roster'!E43","v":0},"M","Leader",{"$f":"'Male Cabin Roster'!$B$37","v":"Male Cabin Four"},{"$error":"#VALUE!"},{"$error":"#VALUE!"}]
[{"$f":"'Housing Request'!$E$5","v":0},{"$f":"'Male Cabin Roster'!E45","v":0},"M","Camper",{"$f":"'Male Cabin Roster'!$B$37","v":"Male Cabin Four"},{"$error":"#VALUE!"},{"$error":"#VALUE!"}]
[{"$f":"'Housing Request'!$E$5","v":0},{"$f":"'Male Cabin Roster'!E46","v":0},"M","Camper",{"$f":"'Male Cabin Roster'!$B$37","v":"Male Cabin Four"},{"$error":"#VALUE!"},{"$error":"#VALUE!"}]
[{"$f":"'Housing Request'!$E$5","v":0},{"$f":"'Male Cabin Roster'!E47","v":0},"M","Camper",{"$f":"'Male Cabin Roster'!$B$37","v":"Male Cabin Four"},{"$error":"#VALUE!"},{"$error":"#VALUE!"}]
[{"$f":"'Housing Request'!$E$5","v":0},{"$f":"'Male Cabin Roster'!E48","v":0},"M","Camper",{"$f":"'Male Cabin Roster'!$B$37","v":"Male Cabin Four"},{"$error":"#VALUE!"},{"$error":"#VALUE!"}]
[{"$f":"'Housing Request'!$E$5","v":0},{"$f":"'Male Cabin Roster'!E49","v":0},"M","Camper",{"$f":"'Male Cabin Roster'!$B$37","v":"Male Cabin Four"},{"$error":"#VALUE!"},{"$error":"#VALUE!"}]
[{"$f":"'Housing Request'!$E$5","v":0},{"$f":"'Male Cabin Roster'!E50","v":0},"M","Camper",{"$f":"'Male Cabin Roster'!$B$37","v":"Male Cabin Four"},{"$error":"#VALUE!"},{"$error":"#VALUE!"}]
[{"$f":"'Housing Request'!$E$5","v":0},{"$f":"'Male Cabin Roster'!E51","v":0},"M","Camper",{"$f":"'Male Cabin Roster'!$B$37","v":"Male Cabin Four"},{"$error":"#VALUE!"},{"$error":"#VALUE!"}]
[{"$f":"'Housing Request'!$E$5","v":0},{"$f":"'Male Cabin Roster'!E52","v":0},"M","Camper",{"$f":"'Male Cabin Roster'!$B$37","v":"Male Cabin Four"},{"$error":"#VALUE!"},{"$error":"#VALUE!"}]
[{"$f":"'Housing Request'!$E$5","v":0},{"$f":"'Male Cabin Roster'!E53","v":0},"M","Camper",{"$f":"'Male Cabin Roster'!$B$37","v":"Male Cabin Four"},{"$error":"#VALUE!"},{"$error":"#VALUE!"}]
[{"$f":"'Housing Request'!$E$5","v":0},{"$f":"'Male Cabin Roster'!E54","v":0},"M","Camper",{"$f":"'Male Cabin Roster'!$B$37","v":"Male Cabin Four"},{"$error":"#VALUE!"},{"$error":"#VALUE!"}]
[{"$f":"'Housing Request'!$E$5","v":0},{"$f":"'Male Cabin Roster'!E55","v":0},"M","Camper",{"$f":"'Male Cabin Roster'!$B$37","v":"Male Cabin Four"},{"$error":"#VALUE!"},{"$error":"#VALUE!"}]
[{"$f":"'Housing Request'!$E$5","v":0},{"$f":"'Male Cabin Roster'!E56","v":0},"M","Camper",{"$f":"'Male Cabin Roster'!$B$37","v":"Male Cabin Four"},{"$error":"#VALUE!"},{"$error":"#VALUE!"}]
[{"$f":"'Housing Request'!$E$5","v":0},{"$f":"'Male Cabin Roster'!E57","v":0},"M","Camper",{"$f":"'Male Cabin Roster'!$B$37","v":"Male Cabin Four"},{"$error":"#VALUE!"},{"$error":"#VALUE!"}]
[{"$f":"'Housing Request'!$E$5","v":0},{"$f":"'Male Cabin Roster'!E58","v":0},"M","Camper",{"$f":"'Male Cabin Roster'!$B$37","v":"Male Cabin Four"},{"$error":"#VALUE!"},{"$error":"#VALUE!"}]
[{"$f":"'Housing Request'!$E$5","v":0},{"$f":"'Male Cabin Roster'!E59","v":0},"M","Camper",{"$f":"'Male Cabin Roster'!$B$37","v":"Male Cabin Four"},{"$error":"#VALUE!"},{"$error":"#VALUE!"}]
[{"$f":"'Housing Request'!$E$5","v":0},{"$f":"'Male Cabin Roster'!E60","v":0},"M","Camper",{"$f":"'Male Cabin Roster'!$B$37","v":"Male Cabin Four"},{"$error":"#VALUE!"},{"$error":"#VALUE!"}]
[{"$f":"'Housing Request'!$E$5","v":0},{"$f":"'Male Cabin Roster'!E61","v":0},"M","Camper",{"$f":"'Male Cabin Roster'!$B$37","v":"Male Cabin Four"},{"$error":"#VALUE!"},{"$error":"#VALUE!"}]
[{"$f":"'Housing Request'!$E$5","v":0},{"$f":"'Male Cabin Roster'!E62","v":0},"M","Camper",{"$f":"'Male Cabin Roster'!$B$37","v":"Male Cabin Four"},{"$error":"#VALUE!"},{"$error":"#VALUE!"}]
[{"$f":"'Housing Request'!$E$5","v":0},{"$f":"'Male Cabin Roster'!K39","v":0},"M","Leader",{"$f":"'Male Cabin Roster'!$H$37","v":"Male Cabin Five"},{"$error":"#VALUE!"},{"$error":"#VALUE!"}]
[{"$f":"'Housing Request'!$E$5","v":0},{"$f":"'Male Cabin Roster'!K40","v":0},"M","Leader",{"$f":"'Male Cabin Roster'!$H$37","v":"Male Cabin Five"},{"$error":"#VALUE!"},{"$error":"#VALUE!"}]
[{"$f":"'Housing Request'!$E$5","v":0},{"$f":"'Male Cabin Roster'!K41","v":0},"M","Leader",{"$f":"'Male Cabin Roster'!$H$37","v":"Male Cabin Five"},{"$error":"#VALUE!"},{"$error":"#VALUE!"}]
[{"$f":"'Housing Request'!$E$5","v":0},{"$f":"'Male Cabin Roster'!K42","v":0},"M","Leader",{"$f":"'Male Cabin Roster'!$H$37","v":"Male Cabin Five"},{"$error":"#VALUE!"},{"$error":"#VALUE!"}]
[{"$f":"'Housing Request'!$E$5","v":0},{"$f":"'Male Cabin Roster'!K43","v":0},"M","Leader",{"$f":"'Male Cabin Roster'!$H$37","v":"Male Cabin Five"},{"$error":"#VALUE!"},{"$error":"#VALUE!"}]
[{"$f":"'Housing Request'!$E$5","v":0},{"$f":"'Male Cabin Roster'!K45","v":0},"M","Camper",{"$f":"'Male Cabin Roster'!$H$37","v":"Male Cabin Five"},{"$error":"#VALUE!"},{"$error":"#VALUE!"}]
[{"$f":"'Housing Request'!$E$5","v":0},{"$f":"'Male Cabin Roster'!K46","v":0},"M","Camper",{"$f":"'Male Cabin Roster'!$H$37","v":"Male Cabin Five"},{"$error":"#VALUE!"},{"$error":"#VALUE!"}]
[{"$f":"'Housing Request'!$E$5","v":0},{"$f":"'Male Cabin Roster'!K47","v":0},"M","Camper",{"$f":"'Male Cabin Roster'!$H$37","v":"Male Cabin Five"},{"$error":"#VALUE!"},{"$error":"#VALUE!"}]
[{"$f":"'Housing Request'!$E$5","v":0},{"$f":"'Male Cabin Roster'!K48","v":0},"M","Camper",{"$f":"'Male Cabin Roster'!$H$37","v":"Male Cabin Five"},{"$error":"#VALUE!"},{"$error":"#VALUE!"}]
[{"$f":"'Housing Request'!$E$5","v":0},{"$f":"'Male Cabin Roster'!K49","v":0},"M","Camper",{"$f":"'Male Cabin Roster'!$H$37","v":"Male Cabin Five"},{"$error":"#VALUE!"},{"$error":"#VALUE!"}]
[{"$f":"'Housing Request'!$E$5","v":0},{"$f":"'Male Cabin Roster'!K50","v":0},"M","Camper",{"$f":"'Male Cabin Roster'!$H$37","v":"Male Cabin Five"},{"$error":"#VALUE!"},{"$error":"#VALUE!"}]
[{"$f":"'Housing Request'!$E$5","v":0},{"$f":"'Male Cabin Roster'!K51","v":0},"M","Camper",{"$f":"'Male Cabin Roster'!$H$37","v":"Male Cabin Five"},{"$error":"#VALUE!"},{"$error":"#VALUE!"}]
[{"$f":"'Housing Request'!$E$5","v":0},{"$f":"'Male Cabin Roster'!K52","v":0},"M","Camper",{"$f":"'Male Cabin Roster'!$H$37","v":"Male Cabin Five"},{"$error":"#VALUE!"},{"$error":"#VALUE!"}]
[{"$f":"'Housing Request'!$E$5","v":0},{"$f":"'Male Cabin Roster'!K53","v":0},"M","Camper",{"$f":"'Male Cabin Roster'!$H$37","v":"Male Cabin Five"},{"$error":"#VALUE!"},{"$error":"#VALUE!"}]
[{"$f":"'Housing Request'!$E$5","v":0},{"$f":"'Male Cabin Roster'!K54","v":0},"M","Camper",{"$f":"'Male Cabin Roster'!$H$37","v":"Male Cabin Five"},{"$error":"#VALUE!"},{"$error":"#VALUE!"}]
[{"$f":"'Housing Request'!$E$5","v":0},{"$f":"'Male Cabin Roster'!K55","v":0},"M","Camper",{"$f":"'Male Cabin Roster'!$H$37","v":"Male Cabin Five"},{"$error":"#VALUE!"},{"$error":"#VALUE!"}]
[{"$f":"'Housing Request'!$E$5","v":0},{"$f":"'Male Cabin Roster'!K56","v":0},"M","Camper",{"$f":"'Male Cabin Roster'!$H$37","v":"Male Cabin Five"},{"$f":"IF(G385<=6,\"SS\",(IF(G385<300,\"BA\",\"HS\")))","v":{"$error":"#VALUE!"}},{"$f":"INT(LEFT(E385,3))","v":{"$error":"#VALUE!"}}]
[{"$f":"'Housing Request'!$E$5","v":0},{"$f":"'Male Cabin Roster'!K57","v":0},"M","Camper",{"$f":"'Male Cabin Roster'!$H$37","v":"Male Cabin Five"},{"$error":"#VALUE!"},{"$error":"#VALUE!"}]
[{"$f":"'Housing Request'!$E$5","v":0},{"$f":"'Male Cabin Roster'!K58","v":0},"M","Camper",{"$f":"'Male Cabin Roster'!$H$37","v":"Male Cabin Five"},{"$error":"#VALUE!"},{"$error":"#VALUE!"}]
[{"$f":"'Housing Request'!$E$5","v":0},{"$f":"'Male Cabin Roster'!K59","v":0},"M","Camper",{"$f":"'Male Cabin Roster'!$H$37","v":"Male Cabin Five"},{"$error":"#VALUE!"},{"$error":"#VALUE!"}]
[{"$f":"'Housing Request'!$E$5","v":0},{"$f":"'Male Cabin Roster'!K60","v":0},"M","Camper",{"$f":"'Male Cabin Roster'!$H$37","v":"Male Cabin Five"},{"$error":"#VALUE!"},{"$error":"#VALUE!"}]
[{"$f":"'Housing Request'!$E$5","v":0},{"$f":"'Male Cabin Roster'!K61","v":0},"M","Camper",{"$f":"'Male Cabin Roster'!$H$37","v":"Male Cabin Five"},{"$error":"#VALUE!"},{"$error":"#VALUE!"}]
[{"$f":"'Housing Request'!$E$5","v":0},{"$f":"'Male Cabin Roster'!K62","v":0},"M","Camper",{"$f":"'Male Cabin Roster'!$H$37","v":"Male Cabin Five"},{"$error":"#VALUE!"},{"$error":"#VALUE!"}]
[{"$f":"'Housing Request'!$E$5","v":0},{"$f":"'Male Cabin Roster'!Q39","v":0},"M","Leader",{"$f":"'Male Cabin Roster'!$N$37","v":"Male Cabin Six"},{"$error":"#VALUE!"},{"$error":"#VALUE!"}]
[{"$f":"'Housing Request'!$E$5","v":0},{"$f":"'Male Cabin Roster'!Q40","v":0},"M","Leader",{"$f":"'Male Cabin Roster'!$N$37","v":"Male Cabin Six"},{"$error":"#VALUE!"},{"$error":"#VALUE!"}]
[{"$f":"'Housing Request'!$E$5","v":0},{"$f":"'Male Cabin Roster'!Q41","v":0},"M","Leader",{"$f":"'Male Cabin Roster'!$N$37","v":"Male Cabin Six"},{"$error":"#VALUE!"},{"$error":"#VALUE!"}]
[{"$f":"'Housing Request'!$E$5","v":0},{"$f":"'Male Cabin Roster'!Q42","v":0},"M","Leader",{"$f":"'Male Cabin Roster'!$N$37","v":"Male Cabin Six"},{"$error":"#VALUE!"},{"$error":"#VALUE!"}]
[{"$f":"'Housing Request'!$E$5","v":0},{"$f":"'Male Cabin Roster'!Q43","v":0},"M","Leader",{"$f":"'Male Cabin Roster'!$N$37","v":"Male Cabin Six"},{"$error":"#VALUE!"},{"$error":"#VALUE!"}]
[{"$f":"'Housing Request'!$E$5","v":0},{"$f":"'Male Cabin Roster'!Q45","v":0},"M","Camper",{"$f":"'Male Cabin Roster'!$N$37","v":"Male Cabin Six"},{"$error":"#VALUE!"},{"$error":"#VALUE!"}]
[{"$f":"'Housing Request'!$E$5","v":0},{"$f":"'Male Cabin Roster'!Q46","v":0},"M","Camper",{"$f":"'Male Cabin Roster'!$N$37","v":"Male Cabin Six"},{"$error":"#VALUE!"},{"$error":"#VALUE!"}]
[{"$f":"'Housing Request'!$E$5","v":0},{"$f":"'Male Cabin Roster'!Q47","v":0},"M","Camper",{"$f":"'Male Cabin Roster'!$N$37","v":"Male Cabin Six"},{"$error":"#VALUE!"},{"$error":"#VALUE!"}]
[{"$f":"'Housing Request'!$E$5","v":0},{"$f":"'Male Cabin Roster'!Q48","v":0},"M","Camper",{"$f":"'Male Cabin Roster'!$N$37","v":"Male Cabin Six"},{"$error":"#VALUE!"},{"$error":"#VALUE!"}]
[{"$f":"'Housing Request'!$E$5","v":0},{"$f":"'Male Cabin Roster'!Q49","v":0},"M","Camper",{"$f":"'Male Cabin Roster'!$N$37","v":"Male Cabin Six"},{"$error":"#VALUE!"},{"$error":"#VALUE!"}]
[{"$f":"'Housing Request'!$E$5","v":0},{"$f":"'Male Cabin Roster'!Q50","v":0},"M","Camper",{"$f":"'Male Cabin Roster'!$N$37","v":"Male Cabin Six"},{"$error":"#VALUE!"},{"$error":"#VALUE!"}]
[{"$f":"'Housing Request'!$E$5","v":0},{"$f":"'Male Cabin Roster'!Q51","v":0},"M","Camper",{"$f":"'Male Cabin Roster'!$N$37","v":"Male Cabin Six"},{"$error":"#VALUE!"},{"$error":"#VALUE!"}]
[{"$f":"'Housing Request'!$E$5","v":0},{"$f":"'Male Cabin Roster'!Q52","v":0},"M","Camper",{"$f":"'Male Cabin Roster'!$N$37","v":"Male Cabin Six"},{"$error":"#VALUE!"},{"$error":"#VALUE!"}]
[{"$f":"'Housing Request'!$E$5","v":0},{"$f":"'Male Cabin Roster'!Q53","v":0},"M","Camper",{"$f":"'Male Cabin Roster'!$N$37","v":"Male Cabin Six"},{"$error":"#VALUE!"},{"$error":"#VALUE!"}]
[{"$f":"'Housing Request'!$E$5","v":0},{"$f":"'Male Cabin Roster'!Q54","v":0},"M","Camper",{"$f":"'Male Cabin Roster'!$N$37","v":"Male Cabin Six"},{"$error":"#VALUE!"},{"$error":"#VALUE!"}]
[{"$f":"'Housing Request'!$E$5","v":0},{"$f":"'Male Cabin Roster'!Q55","v":0},"M","Camper",{"$f":"'Male Cabin Roster'!$N$37","v":"Male Cabin Six"},{"$error":"#VALUE!"},{"$error":"#VALUE!"}]
[{"$f":"'Housing Request'!$E$5","v":0},{"$f":"'Male Cabin Roster'!Q56","v":0},"M","Camper",{"$f":"'Male Cabin Roster'!$N$37","v":"Male Cabin Six"},{"$error":"#VALUE!"},{"$error":"#VALUE!"}]
[{"$f":"'Housing Request'!$E$5","v":0},{"$f":"'Male Cabin Roster'!Q57","v":0},"M","Camper",{"$f":"'Male Cabin Roster'!$N$37","v":"Male Cabin Six"},{"$error":"#VALUE!"},{"$error":"#VALUE!"}]
[{"$f":"'Housing Request'!$E$5","v":0},{"$f":"'Male Cabin Roster'!Q58","v":0},"M","Camper",{"$f":"'Male Cabin Roster'!$N$37","v":"Male Cabin Six"},{"$error":"#VALUE!"},{"$error":"#VALUE!"}]
[{"$f":"'Housing Request'!$E$5","v":0},{"$f":"'Male Cabin Roster'!Q59","v":0},"M","Camper",{"$f":"'Male Cabin Roster'!$N$37","v":"Male Cabin Six"},{"$error":"#VALUE!"},{"$error":"#VALUE!"}]
[{"$f":"'Housing Request'!$E$5","v":0},{"$f":"'Male Cabin Roster'!Q60","v":0},"M","Camper",{"$f":"'Male Cabin Roster'!$N$37","v":"Male Cabin Six"},{"$error":"#VALUE!"},{"$error":"#VALUE!"}]
[{"$f":"'Housing Request'!$E$5","v":0},{"$f":"'Male Cabin Roster'!Q61","v":0},"M","Camper",{"$f":"'Male Cabin Roster'!$N$37","v":"Male Cabin Six"},{"$error":"#VALUE!"},{"$error":"#VALUE!"}]
[{"$f":"'Housing Request'!$E$5","v":0},{"$f":"'Male Cabin Roster'!Q62","v":0},"M","Camper",{"$f":"'Male Cabin Roster'!$N$37","v":"Male Cabin Six"},{"$error":"#VALUE!"},{"$error":"#VALUE!"}]
[{"$f":"'Housing Request'!$E$5","v":0},{"$f":"'Male Cabin Roster'!E68","v":0},"M","Leader",{"$f":"'Male Cabin Roster'!$B$66","v":"Male Cabin Seven"},{"$error":"#VALUE!"},{"$error":"#VALUE!"}]
[{"$f":"'Housing Request'!$E$5","v":0},{"$f":"'Male Cabin Roster'!E69","v":0},"M","Leader",{"$f":"'Male Cabin Roster'!$B$66","v":"Male Cabin Seven"},{"$error":"#VALUE!"},{"$error":"#VALUE!"}]
[{"$f":"'Housing Request'!$E$5","v":0},{"$f":"'Male Cabin Roster'!E70","v":0},"M","Leader",{"$f":"'Male Cabin Roster'!$B$66","v":"Male Cabin Seven"},{"$error":"#VALUE!"},{"$error":"#VALUE!"}]
[{"$f":"'Housing Request'!$E$5","v":0},{"$f":"'Male Cabin Roster'!E71","v":0},"M","Leader",{"$f":"'Male Cabin Roster'!$B$66","v":"Male Cabin Seven"},{"$error":"#VALUE!"},{"$error":"#VALUE!"}]
[{"$f":"'Housing Request'!$E$5","v":0},{"$f":"'Male Cabin Roster'!E72","v":0},"M","Leader",{"$f":"'Male Cabin Roster'!$B$66","v":"Male Cabin Seven"},{"$error":"#VALUE!"},{"$error":"#VALUE!"}]
[{"$f":"'Housing Request'!$E$5","v":0},{"$f":"'Male Cabin Roster'!E74","v":0},"M","Camper",{"$f":"'Male Cabin Roster'!$B$66","v":"Male Cabin Seven"},{"$error":"#VALUE!"},{"$error":"#VALUE!"}]
[{"$f":"'Housing Request'!$E$5","v":0},{"$f":"'Male Cabin Roster'!E75","v":0},"M","Camper",{"$f":"'Male Cabin Roster'!$B$66","v":"Male Cabin Seven"},{"$error":"#VALUE!"},{"$error":"#VALUE!"}]
[{"$f":"'Housing Request'!$E$5","v":0},{"$f":"'Male Cabin Roster'!E76","v":0},"M","Camper",{"$f":"'Male Cabin Roster'!$B$66","v":"Male Cabin Seven"},{"$error":"#VALUE!"},{"$error":"#VALUE!"}]
[{"$f":"'Housing Request'!$E$5","v":0},{"$f":"'Male Cabin Roster'!E77","v":0},"M","Camper",{"$f":"'Male Cabin Roster'!$B$66","v":"Male Cabin Seven"},{"$error":"#VALUE!"},{"$error":"#VALUE!"}]
[{"$f":"'Housing Request'!$E$5","v":0},{"$f":"'Male Cabin Roster'!E78","v":0},"M","Camper",{"$f":"'Male Cabin Roster'!$B$66","v":"Male Cabin Seven"},{"$error":"#VALUE!"},{"$error":"#VALUE!"}]
[{"$f":"'Housing Request'!$E$5","v":0},{"$f":"'Male Cabin Roster'!E79","v":0},"M","Camper",{"$f":"'Male Cabin Roster'!$B$66","v":"Male Cabin Seven"},{"$error":"#VALUE!"},{"$error":"#VALUE!"}]
[{"$f":"'Housing Request'!$E$5","v":0},{"$f":"'Male Cabin Roster'!E80","v":0},"M","Camper",{"$f":"'Male Cabin Roster'!$B$66","v":"Male Cabin Seven"},{"$error":"#VALUE!"},{"$error":"#VALUE!"}]
[{"$f":"'Housing Request'!$E$5","v":0},{"$f":"'Male Cabin Roster'!E81","v":0},"M","Camper",{"$f":"'Male Cabin Roster'!$B$66","v":"Male Cabin Seven"},{"$error":"#VALUE!"},{"$error":"#VALUE!"}]
[{"$f":"'Housing Request'!$E$5","v":0},{"$f":"'Male Cabin Roster'!E82","v":0},"M","Camper",{"$f":"'Male Cabin Roster'!$B$66","v":"Male Cabin Seven"},{"$error":"#VALUE!"},{"$error":"#VALUE!"}]
[{"$f":"'Housing Request'!$E$5","v":0},{"$f":"'Male Cabin Roster'!E83","v":0},"M","Camper",{"$f":"'Male Cabin Roster'!$B$66","v":"Male Cabin Seven"},{"$error":"#VALUE!"},{"$error":"#VALUE!"}]
[{"$f":"'Housing Request'!$E$5","v":0},{"$f":"'Male Cabin Roster'!E84","v":0},"M","Camper",{"$f":"'Male Cabin Roster'!$B$66","v":"Male Cabin Seven"},{"$error":"#VALUE!"},{"$error":"#VALUE!"}]
[{"$f":"'Housing Request'!$E$5","v":0},{"$f":"'Male Cabin Roster'!E85","v":0},"M","Camper",{"$f":"'Male Cabin Roster'!$B$66","v":"Male Cabin Seven"},{"$error":"#VALUE!"},{"$error":"#VALUE!"}]
[{"$f":"'Housing Request'!$E$5","v":0},{"$f":"'Male Cabin Roster'!E86","v":0},"M","Camper",{"$f":"'Male Cabin Roster'!$B$66","v":"Male Cabin Seven"},{"$error":"#VALUE!"},{"$error":"#VALUE!"}]
[{"$f":"'Housing Request'!$E$5","v":0},{"$f":"'Male Cabin Roster'!E87","v":0},"M","Camper",{"$f":"'Male Cabin Roster'!$B$66","v":"Male Cabin Seven"},{"$error":"#VALUE!"},{"$error":"#VALUE!"}]
[{"$f":"'Housing Request'!$E$5","v":0},{"$f":"'Male Cabin Roster'!E88","v":0},"M","Camper",{"$f":"'Male Cabin Roster'!$B$66","v":"Male Cabin Seven"},{"$error":"#VALUE!"},{"$error":"#VALUE!"}]
[{"$f":"'Housing Request'!$E$5","v":0},{"$f":"'Male Cabin Roster'!E89","v":0},"M","Camper",{"$f":"'Male Cabin Roster'!$B$66","v":"Male Cabin Seven"},{"$error":"#VALUE!"},{"$error":"#VALUE!"}]
[{"$f":"'Housing Request'!$E$5","v":0},{"$f":"'Male Cabin Roster'!E90","v":0},"M","Camper",{"$f":"'Male Cabin Roster'!$B$66","v":"Male Cabin Seven"},{"$error":"#VALUE!"},{"$error":"#VALUE!"}]
[{"$f":"'Housing Request'!$E$5","v":0},{"$f":"'Male Cabin Roster'!E91","v":0},"M","Camper",{"$f":"'Male Cabin Roster'!$B$66","v":"Male Cabin Seven"},{"$error":"#VALUE!"},{"$error":"#VALUE!"}]
[{"$f":"'Housing Request'!$E$5","v":0},{"$f":"'Male Cabin Roster'!K68","v":0},"M","Leader",{"$f":"'Male Cabin Roster'!$H$66","v":"Male Cabin Eight"},{"$error":"#VALUE!"},{"$error":"#VALUE!"}]
[{"$f":"'Housing Request'!$E$5","v":0},{"$f":"'Male Cabin Roster'!K69","v":0},"M","Leader",{"$f":"'Male Cabin Roster'!$H$66","v":"Male Cabin Eight"},{"$error":"#VALUE!"},{"$error":"#VALUE!"}]
[{"$f":"'Housing Request'!$E$5","v":0},{"$f":"'Male Cabin Roster'!K70","v":0},"M","Leader",{"$f":"'Male Cabin Roster'!$H$66","v":"Male Cabin Eight"},{"$error":"#VALUE!"},{"$error":"#VALUE!"}]
[{"$f":"'Housing Request'!$E$5","v":0},{"$f":"'Male Cabin Roster'!K71","v":0},"M","Leader",{"$f":"'Male Cabin Roster'!$H$66","v":"Male Cabin Eight"},{"$error":"#VALUE!"},{"$error":"#VALUE!"}]
[{"$f":"'Housing Request'!$E$5","v":0},{"$f":"'Male Cabin Roster'!K72","v":0},"M","Leader",{"$f":"'Male Cabin Roster'!$H$66","v":"Male Cabin Eight"},{"$error":"#VALUE!"},{"$error":"#VALUE!"}]
[{"$f":"'Housing Request'!$E$5","v":0},{"$f":"'Male Cabin Roster'!K74","v":0},"M","Camper",{"$f":"'Male Cabin Roster'!$H$66","v":"Male Cabin Eight"},{"$error":"#VALUE!"},{"$error":"#VALUE!"}]
[{"$f":"'Housing Request'!$E$5","v":0},{"$f":"'Male Cabin Roster'!K75","v":0},"M","Camper",{"$f":"'Male Cabin Roster'!$H$66","v":"Male Cabin Eight"},{"$error":"#VALUE!"},{"$error":"#VALUE!"}]
[{"$f":"'Housing Request'!$E$5","v":0},{"$f":"'Male Cabin Roster'!K76","v":0},"M","Camper",{"$f":"'Male Cabin Roster'!$H$66","v":"Male Cabin Eight"},{"$error":"#VALUE!"},{"$error":"#VALUE!"}]
[{"$f":"'Housing Request'!$E$5","v":0},{"$f":"'Male Cabin Roster'!K77","v":0},"M","Camper",{"$f":"'Male Cabin Roster'!$H$66","v":"Male Cabin Eight"},{"$error":"#VALUE!"},{"$error":"#VALUE!"}]
[{"$f":"'Housing Request'!$E$5","v":0},{"$f":"'Male Cabin Roster'!K78","v":0},"M","Camper",{"$f":"'Male Cabin Roster'!$H$66","v":"Male Cabin Eight"},{"$error":"#VALUE!"},{"$error":"#VALUE!"}]
[{"$f":"'Housing Request'!$E$5","v":0},{"$f":"'Male Cabin Roster'!K79","v":0},"M","Camper",{"$f":"'Male Cabin Roster'!$H$66","v":"Male Cabin Eight"},{"$error":"#VALUE!"},{"$error":"#VALUE!"}]
[{"$f":"'Housing Request'!$E$5","v":0},{"$f":"'Male Cabin Roster'!K80","v":0},"M","Camper",{"$f":"'Male Cabin Roster'!$H$66","v":"Male Cabin Eight"},{"$f":"IF(G449<=6,\"SS\",(IF(G449<300,\"BA\",\"HS\")))","v":{"$error":"#VALUE!"}},{"$f":"INT(LEFT(E449,3))","v":{"$error":"#VALUE!"}}]
[{"$f":"'Housing Request'!$E$5","v":0},{"$f":"'Male Cabin Roster'!K81","v":0},"M","Camper",{"$f":"'Male Cabin Roster'!$H$66","v":"Male Cabin Eight"},{"$error":"#VALUE!"},{"$error":"#VALUE!"}]
[{"$f":"'Housing Request'!$E$5","v":0},{"$f":"'Male Cabin Roster'!K82","v":0},"M","Camper",{"$f":"'Male Cabin Roster'!$H$66","v":"Male Cabin Eight"},{"$error":"#VALUE!"},{"$error":"#VALUE!"}]
[{"$f":"'Housing Request'!$E$5","v":0},{"$f":"'Male Cabin Roster'!K83","v":0},"M","Camper",{"$f":"'Male Cabin Roster'!$H$66","v":"Male Cabin Eight"},{"$error":"#VALUE!"},{"$error":"#VALUE!"}]
[{"$f":"'Housing Request'!$E$5","v":0},{"$f":"'Male Cabin Roster'!K84","v":0},"M","Camper",{"$f":"'Male Cabin Roster'!$H$66","v":"Male Cabin Eight"},{"$error":"#VALUE!"},{"$error":"#VALUE!"}]
[{"$f":"'Housing Request'!$E$5","v":0},{"$f":"'Male Cabin Roster'!K85","v":0},"M","Camper",{"$f":"'Male Cabin Roster'!$H$66","v":"Male Cabin Eight"},{"$error":"#VALUE!"},{"$error":"#VALUE!"}]
[{"$f":"'Housing Request'!$E$5","v":0},{"$f":"'Male Cabin Roster'!K86","v":0},"M","Camper",{"$f":"'Male Cabin Roster'!$H$66","v":"Male Cabin Eight"},{"$error":"#VALUE!"},{"$error":"#VALUE!"}]
[{"$f":"'Housing Request'!$E$5","v":0},{"$f":"'Male Cabin Roster'!K87","v":0},"M","Camper",{"$f":"'Male Cabin Roster'!$H$66","v":"Male Cabin Eight"},{"$error":"#VALUE!"},{"$error":"#VALUE!"}]
[{"$f":"'Housing Request'!$E$5","v":0},{"$f":"'Male Cabin Roster'!K88","v":0},"M","Camper",{"$f":"'Male Cabin Roster'!$H$66","v":"Male Cabin Eight"},{"$error":"#VALUE!"},{"$error":"#VALUE!"}]
[{"$f":"'Housing Request'!$E$5","v":0},{"$f":"'Male Cabin Roster'!K89","v":0},"M","Camper",{"$f":"'Male Cabin Roster'!$H$66","v":"Male Cabin Eight"},{"$error":"#VALUE!"},{"$error":"#VALUE!"}]
[{"$f":"'Housing Request'!$E$5","v":0},{"$f":"'Male Cabin Roster'!K90","v":0},"M","Camper",{"$f":"'Male Cabin Roster'!$H$66","v":"Male Cabin Eight"},{"$error":"#VALUE!"},{"$error":"#VALUE!"}]
[{"$f":"'Housing Request'!$E$5","v":0},{"$f":"'Male Cabin Roster'!K91","v":0},"M","Camper",{"$f":"'Male Cabin Roster'!$H$66","v":"Male Cabin Eight"},{"$error":"#VALUE!"},{"$error":"#VALUE!"}]
[{"$f":"'Housing Request'!$E$5","v":0},{"$f":"'Male Cabin Roster'!Q68","v":0},"M","Leader",{"$f":"'Male Cabin Roster'!$N$66","v":"Male Cabin Nine"},{"$error":"#VALUE!"},{"$error":"#VALUE!"}]
[{"$f":"'Housing Request'!$E$5","v":0},{"$f":"'Male Cabin Roster'!Q69","v":0},"M","Leader",{"$f":"'Male Cabin Roster'!$N$66","v":"Male Cabin Nine"},{"$error":"#VALUE!"},{"$error":"#VALUE!"}]
[{"$f":"'Housing Request'!$E$5","v":0},{"$f":"'Male Cabin Roster'!Q70","v":0},"M","Leader",{"$f":"'Male Cabin Roster'!$N$66","v":"Male Cabin Nine"},{"$error":"#VALUE!"},{"$error":"#VALUE!"}]
[{"$f":"'Housing Request'!$E$5","v":0},{"$f":"'Male Cabin Roster'!Q71","v":0},"M","Leader",{"$f":"'Male Cabin Roster'!$N$66","v":"Male Cabin Nine"},{"$error":"#VALUE!"},{"$error":"#VALUE!"}]
[{"$f":"'Housing Request'!$E$5","v":0},{"$f":"'Male Cabin Roster'!Q72","v":0},"M","Leader",{"$f":"'Male Cabin Roster'!$N$66","v":"Male Cabin Nine"},{"$error":"#VALUE!"},{"$error":"#VALUE!"}]
[{"$f":"'Housing Request'!$E$5","v":0},{"$f":"'Male Cabin Roster'!Q74","v":0},"M","Camper",{"$f":"'Male Cabin Roster'!$N$66","v":"Male Cabin Nine"},{"$error":"#VALUE!"},{"$error":"#VALUE!"}]
[{"$f":"'Housing Request'!$E$5","v":0},{"$f":"'Male Cabin Roster'!Q75","v":0},"M","Camper",{"$f":"'Male Cabin Roster'!$N$66","v":"Male Cabin Nine"},{"$error":"#VALUE!"},{"$error":"#VALUE!"}]
[{"$f":"'Housing Request'!$E$5","v":0},{"$f":"'Male Cabin Roster'!Q76","v":0},"M","Camper",{"$f":"'Male Cabin Roster'!$N$66","v":"Male Cabin Nine"},{"$error":"#VALUE!"},{"$error":"#VALUE!"}]
[{"$f":"'Housing Request'!$E$5","v":0},{"$f":"'Male Cabin Roster'!Q77","v":0},"M","Camper",{"$f":"'Male Cabin Roster'!$N$66","v":"Male Cabin Nine"},{"$error":"#VALUE!"},{"$error":"#VALUE!"}]
[{"$f":"'Housing Request'!$E$5","v":0},{"$f":"'Male Cabin Roster'!Q78","v":0},"M","Camper",{"$f":"'Male Cabin Roster'!$N$66","v":"Male Cabin Nine"},{"$error":"#VALUE!"},{"$error":"#VALUE!"}]
[{"$f":"'Housing Request'!$E$5","v":0},{"$f":"'Male Cabin Roster'!Q79","v":0},"M","Camper",{"$f":"'Male Cabin Roster'!$N$66","v":"Male Cabin Nine"},{"$error":"#VALUE!"},{"$error":"#VALUE!"}]
[{"$f":"'Housing Request'!$E$5","v":0},{"$f":"'Male Cabin Roster'!Q80","v":0},"M","Camper",{"$f":"'Male Cabin Roster'!$N$66","v":"Male Cabin Nine"},{"$error":"#VALUE!"},{"$error":"#VALUE!"}]
[{"$f":"'Housing Request'!$E$5","v":0},{"$f":"'Male Cabin Roster'!Q81","v":0},"M","Camper",{"$f":"'Male Cabin Roster'!$N$66","v":"Male Cabin Nine"},{"$error":"#VALUE!"},{"$error":"#VALUE!"}]
[{"$f":"'Housing Request'!$E$5","v":0},{"$f":"'Male Cabin Roster'!Q82","v":0},"M","Camper",{"$f":"'Male Cabin Roster'!$N$66","v":"Male Cabin Nine"},{"$error":"#VALUE!"},{"$error":"#VALUE!"}]
[{"$f":"'Housing Request'!$E$5","v":0},{"$f":"'Male Cabin Roster'!Q83","v":0},"M","Camper",{"$f":"'Male Cabin Roster'!$N$66","v":"Male Cabin Nine"},{"$error":"#VALUE!"},{"$error":"#VALUE!"}]
[{"$f":"'Housing Request'!$E$5","v":0},{"$f":"'Male Cabin Roster'!Q84","v":0},"M","Camper",{"$f":"'Male Cabin Roster'!$N$66","v":"Male Cabin Nine"},{"$error":"#VALUE!"},{"$error":"#VALUE!"}]
[{"$f":"'Housing Request'!$E$5","v":0},{"$f":"'Male Cabin Roster'!Q85","v":0},"M","Camper",{"$f":"'Male Cabin Roster'!$N$66","v":"Male Cabin Nine"},{"$error":"#VALUE!"},{"$error":"#VALUE!"}]
[{"$f":"'Housing Request'!$E$5","v":0},{"$f":"'Male Cabin Roster'!Q86","v":0},"M","Camper",{"$f":"'Male Cabin Roster'!$N$66","v":"Male Cabin Nine"},{"$error":"#VALUE!"},{"$error":"#VALUE!"}]
[{"$f":"'Housing Request'!$E$5","v":0},{"$f":"'Male Cabin Roster'!Q87","v":0},"M","Camper",{"$f":"'Male Cabin Roster'!$N$66","v":"Male Cabin Nine"},{"$error":"#VALUE!"},{"$error":"#VALUE!"}]
[{"$f":"'Housing Request'!$E$5","v":0},{"$f":"'Male Cabin Roster'!Q88","v":0},"M","Camper",{"$f":"'Male Cabin Roster'!$N$66","v":"Male Cabin Nine"},{"$error":"#VALUE!"},{"$error":"#VALUE!"}]
[{"$f":"'Housing Request'!$E$5","v":0},{"$f":"'Male Cabin Roster'!Q89","v":0},"M","Camper",{"$f":"'Male Cabin Roster'!$N$66","v":"Male Cabin Nine"},{"$error":"#VALUE!"},{"$error":"#VALUE!"}]
[{"$f":"'Housing Request'!$E$5","v":0},{"$f":"'Male Cabin Roster'!Q90","v":0},"M","Camper",{"$f":"'Male Cabin Roster'!$N$66","v":"Male Cabin Nine"},{"$error":"#VALUE!"},{"$error":"#VALUE!"}]
[{"$f":"'Housing Request'!$E$5","v":0},{"$f":"'Male Cabin Roster'!Q91","v":0},"M","Camper",{"$f":"'Male Cabin Roster'!$N$66","v":"Male Cabin Nine"},{"$error":"#VALUE!"},{"$error":"#VALUE!"}]
[{"$f":"'Housing Request'!$E$5","v":0},{"$f":"'Male Cabin Roster'!E97","v":0},"M","Leader",{"$f":"'Male Cabin Roster'!$B$95","v":"Male Cabin Ten"},{"$error":"#VALUE!"},{"$error":"#VALUE!"}]
[{"$f":"'Housing Request'!$E$5","v":0},{"$f":"'Male Cabin Roster'!E98","v":0},"M","Leader",{"$f":"'Male Cabin Roster'!$B$95","v":"Male Cabin Ten"},{"$error":"#VALUE!"},{"$error":"#VALUE!"}]
[{"$f":"'Housing Request'!$E$5","v":0},{"$f":"'Male Cabin Roster'!E99","v":0},"M","Leader",{"$f":"'Male Cabin Roster'!$B$95","v":"Male Cabin Ten"},{"$error":"#VALUE!"},{"$error":"#VALUE!"}]
[{"$f":"'Housing Request'!$E$5","v":0},{"$f":"'Male Cabin Roster'!E100","v":0},"M","Leader",{"$f":"'Male Cabin Roster'!$B$95","v":"Male Cabin Ten"},{"$error":"#VALUE!"},{"$error":"#VALUE!"}]
[{"$f":"'Housing Request'!$E$5","v":0},{"$f":"'Male Cabin Roster'!E101","v":0},"M","Leader",{"$f":"'Male Cabin Roster'!$B$95","v":"Male Cabin Ten"},{"$error":"#VALUE!"},{"$error":"#VALUE!"}]
[{"$f":"'Housing Request'!$E$5","v":0},{"$f":"'Male Cabin Roster'!E103","v":0},"M","Camper",{"$f":"'Male Cabin Roster'!$B$95","v":"Male Cabin Ten"},{"$error":"#VALUE!"},{"$error":"#VALUE!"}]
[{"$f":"'Housing Request'!$E$5","v":0},{"$f":"'Male Cabin Roster'!E104","v":0},"M","Camper",{"$f":"'Male Cabin Roster'!$B$95","v":"Male Cabin Ten"},{"$error":"#VALUE!"},{"$error":"#VALUE!"}]
[{"$f":"'Housing Request'!$E$5","v":0},{"$f":"'Male Cabin Roster'!E105","v":0},"M","Camper",{"$f":"'Male Cabin Roster'!$B$95","v":"Male Cabin Ten"},{"$error":"#VALUE!"},{"$error":"#VALUE!"}]
[{"$f":"'Housing Request'!$E$5","v":0},{"$f":"'Male Cabin Roster'!E106","v":0},"M","Camper",{"$f":"'Male Cabin Roster'!$B$95","v":"Male Cabin Ten"},{"$error":"#VALUE!"},{"$error":"#VALUE!"}]
[{"$f":"'Housing Request'!$E$5","v":0},{"$f":"'Male Cabin Roster'!E107","v":0},"M","Camper",{"$f":"'Male Cabin Roster'!$B$95","v":"Male Cabin Ten"},{"$error":"#VALUE!"},{"$error":"#VALUE!"}]
[{"$f":"'Housing Request'!$E$5","v":0},{"$f":"'Male Cabin Roster'!E108","v":0},"M","Camper",{"$f":"'Male Cabin Roster'!$B$95","v":"Male Cabin Ten"},{"$error":"#VALUE!"},{"$error":"#VALUE!"}]
[{"$f":"'Housing Request'!$E$5","v":0},{"$f":"'Male Cabin Roster'!E109","v":0},"M","Camper",{"$f":"'Male Cabin Roster'!$B$95","v":"Male Cabin Ten"},{"$error":"#VALUE!"},{"$error":"#VALUE!"}]
[{"$f":"'Housing Request'!$E$5","v":0},{"$f":"'Male Cabin Roster'!E110","v":0},"M","Camper",{"$f":"'Male Cabin Roster'!$B$95","v":"Male Cabin Ten"},{"$error":"#VALUE!"},{"$error":"#VALUE!"}]
[{"$f":"'Housing Request'!$E$5","v":0},{"$f":"'Male Cabin Roster'!E111","v":0},"M","Camper",{"$f":"'Male Cabin Roster'!$B$95","v":"Male Cabin Ten"},{"$error":"#VALUE!"},{"$error":"#VALUE!"}]
[{"$f":"'Housing Request'!$E$5","v":0},{"$f":"'Male Cabin Roster'!E112","v":0},"M","Camper",{"$f":"'Male Cabin Roster'!$B$95","v":"Male Cabin Ten"},{"$error":"#VALUE!"},{"$error":"#VALUE!"}]
[{"$f":"'Housing Request'!$E$5","v":0},{"$f":"'Male Cabin Roster'!E113","v":0},"M","Camper",{"$f":"'Male Cabin Roster'!$B$95","v":"Male Cabin Ten"},{"$error":"#VALUE!"},{"$error":"#VALUE!"}]
[{"$f":"'Housing Request'!$E$5","v":0},{"$f":"'Male Cabin Roster'!E114","v":0},"M","Camper",{"$f":"'Male Cabin Roster'!$B$95","v":"Male Cabin Ten"},{"$error":"#VALUE!"},{"$error":"#VALUE!"}]
[{"$f":"'Housing Request'!$E$5","v":0},{"$f":"'Male Cabin Roster'!E115","v":0},"M","Camper",{"$f":"'Male Cabin Roster'!$B$95","v":"Male Cabin Ten"},{"$error":"#VALUE!"},{"$error":"#VALUE!"}]
[{"$f":"'Housing Request'!$E$5","v":0},{"$f":"'Male Cabin Roster'!E116","v":0},"M","Camper",{"$f":"'Male Cabin Roster'!$B$95","v":"Male Cabin Ten"},{"$error":"#VALUE!"},{"$error":"#VALUE!"}]
[{"$f":"'Housing Request'!$E$5","v":0},{"$f":"'Male Cabin Roster'!E117","v":0},"M","Camper",{"$f":"'Male Cabin Roster'!$B$95","v":"Male Cabin Ten"},{"$error":"#VALUE!"},{"$error":"#VALUE!"}]
[{"$f":"'Housing Request'!$E$5","v":0},{"$f":"'Male Cabin Roster'!E118","v":0},"M","Camper",{"$f":"'Male Cabin Roster'!$B$95","v":"Male Cabin Ten"},{"$error":"#VALUE!"},{"$error":"#VALUE!"}]
[{"$f":"'Housing Request'!$E$5","v":0},{"$f":"'Male Cabin Roster'!E119","v":0},"M","Camper",{"$f":"'Male Cabin Roster'!$B$95","v":"Male Cabin Ten"},{"$error":"#VALUE!"},{"$error":"#VALUE!"}]
[{"$f":"'Housing Request'!$E$5","v":0},{"$f":"'Male Cabin Roster'!E120","v":0},"M","Camper",{"$f":"'Male Cabin Roster'!$B$95","v":"Male Cabin Ten"},{"$error":"#VALUE!"},{"$error":"#VALUE!"}]
[{"$f":"'Housing Request'!$E$5","v":0},{"$f":"'Male Cabin Roster'!K97","v":0},"M","Leader",{"$f":"'Male Cabin Roster'!$H$95","v":"Male Cabin Eleven"},{"$error":"#VALUE!"},{"$error":"#VALUE!"}]
[{"$f":"'Housing Request'!$E$5","v":0},{"$f":"'Male Cabin Roster'!K98","v":0},"M","Leader",{"$f":"'Male Cabin Roster'!$H$95","v":"Male Cabin Eleven"},{"$error":"#VALUE!"},{"$error":"#VALUE!"}]
[{"$f":"'Housing Request'!$E$5","v":0},{"$f":"'Male Cabin Roster'!K99","v":0},"M","Leader",{"$f":"'Male Cabin Roster'!$H$95","v":"Male Cabin Eleven"},{"$error":"#VALUE!"},{"$error":"#VALUE!"}]
[{"$f":"'Housing Request'!$E$5","v":0},{"$f":"'Male Cabin Roster'!K100","v":0},"M","Leader",{"$f":"'Male Cabin Roster'!$H$95","v":"Male Cabin Eleven"},{"$error":"#VALUE!"},{"$error":"#VALUE!"}]
[{"$f":"'Housing Request'!$E$5","v":0},{"$f":"'Male Cabin Roster'!K101","v":0},"M","Leader",{"$f":"'Male Cabin Roster'!$H$95","v":"Male Cabin Eleven"},{"$error":"#VALUE!"},{"$error":"#VALUE!"}]
[{"$f":"'Housing Request'!$E$5","v":0},{"$f":"'Male Cabin Roster'!K103","v":0},"M","Camper",{"$f":"'Male Cabin Roster'!$H$95","v":"Male Cabin Eleven"},{"$error":"#VALUE!"},{"$error":"#VALUE!"}]
[{"$f":"'Housing Request'!$E$5","v":0},{"$f":"'Male Cabin Roster'!K104","v":0},"M","Camper",{"$f":"'Male Cabin Roster'!$H$95","v":"Male Cabin Eleven"},{"$f":"IF(G513<=6,\"SS\",(IF(G513<300,\"BA\",\"HS\")))","v":{"$error":"#VALUE!"}},{"$f":"INT(LEFT(E513,3))","v":{"$error":"#VALUE!"}}]
[{"$f":"'Housing Request'!$E$5","v":0},{"$f":"'Male Cabin Roster'!K105","v":0},"M","Camper",{"$f":"'Male Cabin Roster'!$H$95","v":"Male Cabin Eleven"},{"$error":"#VALUE!"},{"$error":"#VALUE!"}]
[{"$f":"'Housing Request'!$E$5","v":0},{"$f":"'Male Cabin Roster'!K106","v":0},"M","Camper",{"$f":"'Male Cabin Roster'!$H$95","v":"Male Cabin Eleven"},{"$error":"#VALUE!"},{"$error":"#VALUE!"}]
[{"$f":"'Housing Request'!$E$5","v":0},{"$f":"'Male Cabin Roster'!K107","v":0},"M","Camper",{"$f":"'Male Cabin Roster'!$H$95","v":"Male Cabin Eleven"},{"$error":"#VALUE!"},{"$error":"#VALUE!"}]
[{"$f":"'Housing Request'!$E$5","v":0},{"$f":"'Male Cabin Roster'!K108","v":0},"M","Camper",{"$f":"'Male Cabin Roster'!$H$95","v":"Male Cabin Eleven"},{"$error":"#VALUE!"},{"$error":"#VALUE!"}]
[{"$f":"'Housing Request'!$E$5","v":0},{"$f":"'Male Cabin Roster'!K109","v":0},"M","Camper",{"$f":"'Male Cabin Roster'!$H$95","v":"Male Cabin Eleven"},{"$error":"#VALUE!"},{"$error":"#VALUE!"}]
[{"$f":"'Housing Request'!$E$5","v":0},{"$f":"'Male Cabin Roster'!K110","v":0},"M","Camper",{"$f":"'Male Cabin Roster'!$H$95","v":"Male Cabin Eleven"},{"$error":"#VALUE!"},{"$error":"#VALUE!"}]
[{"$f":"'Housing Request'!$E$5","v":0},{"$f":"'Male Cabin Roster'!K111","v":0},"M","Camper",{"$f":"'Male Cabin Roster'!$H$95","v":"Male Cabin Eleven"},{"$error":"#VALUE!"},{"$error":"#VALUE!"}]
[{"$f":"'Housing Request'!$E$5","v":0},{"$f":"'Male Cabin Roster'!K112","v":0},"M","Camper",{"$f":"'Male Cabin Roster'!$H$95","v":"Male Cabin Eleven"},{"$error":"#VALUE!"},{"$error":"#VALUE!"}]
[{"$f":"'Housing Request'!$E$5","v":0},{"$f":"'Male Cabin Roster'!K113","v":0},"M","Camper",{"$f":"'Male Cabin Roster'!$H$95","v":"Male Cabin Eleven"},{"$error":"#VALUE!"},{"$error":"#VALUE!"}]
[{"$f":"'Housing Request'!$E$5","v":0},{"$f":"'Male Cabin Roster'!K114","v":0},"M","Camper",{"$f":"'Male Cabin Roster'!$H$95","v":"Male Cabin Eleven"},{"$error":"#VALUE!"},{"$error":"#VALUE!"}]
[{"$f":"'Housing Request'!$E$5","v":0},{"$f":"'Male Cabin Roster'!K115","v":0},"M","Camper",{"$f":"'Male Cabin Roster'!$H$95","v":"Male Cabin Eleven"},{"$error":"#VALUE!"},{"$error":"#VALUE!"}]
[{"$f":"'Housing Request'!$E$5","v":0},{"$f":"'Male Cabin Roster'!K116","v":0},"M","Camper",{"$f":"'Male Cabin Roster'!$H$95","v":"Male Cabin Eleven"},{"$error":"#VALUE!"},{"$error":"#VALUE!"}]
[{"$f":"'Housing Request'!$E$5","v":0},{"$f":"'Male Cabin Roster'!K117","v":0},"M","Camper",{"$f":"'Male Cabin Roster'!$H$95","v":"Male Cabin Eleven"},{"$error":"#VALUE!"},{"$error":"#VALUE!"}]
[{"$f":"'Housing Request'!$E$5","v":0},{"$f":"'Male Cabin Roster'!K118","v":0},"M","Camper",{"$f":"'Male Cabin Roster'!$H$95","v":"Male Cabin Eleven"},{"$error":"#VALUE!"},{"$error":"#VALUE!"}]
[{"$f":"'Housing Request'!$E$5","v":0},{"$f":"'Male Cabin Roster'!K119","v":0},"M","Camper",{"$f":"'Male Cabin Roster'!$H$95","v":"Male Cabin Eleven"},{"$error":"#VALUE!"},{"$error":"#VALUE!"}]
[{"$f":"'Housing Request'!$E$5","v":0},{"$f":"'Male Cabin Roster'!K120","v":0},"M","Camper",{"$f":"'Male Cabin Roster'!$H$95","v":"Male Cabin Eleven"},{"$error":"#VALUE!"},{"$error":"#VALUE!"}]
[{"$f":"'Housing Request'!$E$5","v":0},{"$f":"'Male Cabin Roster'!Q97","v":0},"M","Leader",{"$f":"'Male Cabin Roster'!$N$95","v":"Male Cabin Twelve"},{"$error":"#VALUE!"},{"$error":"#VALUE!"}]
[{"$f":"'Housing Request'!$E$5","v":0},{"$f":"'Male Cabin Roster'!Q98","v":0},"M","Leader",{"$f":"'Male Cabin Roster'!$N$95","v":"Male Cabin Twelve"},{"$error":"#VALUE!"},{"$error":"#VALUE!"}]
[{"$f":"'Housing Request'!$E$5","v":0},{"$f":"'Male Cabin Roster'!Q99","v":0},"M","Leader",{"$f":"'Male Cabin Roster'!$N$95","v":"Male Cabin Twelve"},{"$error":"#VALUE!"},{"$error":"#VALUE!"}]
[{"$f":"'Housing Request'!$E$5","v":0},{"$f":"'Male Cabin Roster'!Q100","v":0},"M","Leader",{"$f":"'Male Cabin Roster'!$N$95","v":"Male Cabin Twelve"},{"$error":"#VALUE!"},{"$error":"#VALUE!"}]
[{"$f":"'Housing Request'!$E$5","v":0},{"$f":"'Male Cabin Roster'!Q101","v":0},"M","Leader",{"$f":"'Male Cabin Roster'!$N$95","v":"Male Cabin Twelve"},{"$error":"#VALUE!"},{"$error":"#VALUE!"}]
[{"$f":"'Housing Request'!$E$5","v":0},{"$f":"'Male Cabin Roster'!Q103","v":0},"M","Camper",{"$f":"'Male Cabin Roster'!$N$95","v":"Male Cabin Twelve"},{"$error":"#VALUE!"},{"$error":"#VALUE!"}]
[{"$f":"'Housing Request'!$E$5","v":0},{"$f":"'Male Cabin Roster'!Q104","v":0},"M","Camper",{"$f":"'Male Cabin Roster'!$N$95","v":"Male Cabin Twelve"},{"$error":"#VALUE!"},{"$error":"#VALUE!"}]
[{"$f":"'Housing Request'!$E$5","v":0},{"$f":"'Male Cabin Roster'!Q105","v":0},"M","Camper",{"$f":"'Male Cabin Roster'!$N$95","v":"Male Cabin Twelve"},{"$error":"#VALUE!"},{"$error":"#VALUE!"}]
[{"$f":"'Housing Request'!$E$5","v":0},{"$f":"'Male Cabin Roster'!Q106","v":0},"M","Camper",{"$f":"'Male Cabin Roster'!$N$95","v":"Male Cabin Twelve"},{"$error":"#VALUE!"},{"$error":"#VALUE!"}]
[{"$f":"'Housing Request'!$E$5","v":0},{"$f":"'Male Cabin Roster'!Q107","v":0},"M","Camper",{"$f":"'Male Cabin Roster'!$N$95","v":"Male Cabin Twelve"},{"$error":"#VALUE!"},{"$error":"#VALUE!"}]
[{"$f":"'Housing Request'!$E$5","v":0},{"$f":"'Male Cabin Roster'!Q108","v":0},"M","Camper",{"$f":"'Male Cabin Roster'!$N$95","v":"Male Cabin Twelve"},{"$error":"#VALUE!"},{"$error":"#VALUE!"}]
[{"$f":"'Housing Request'!$E$5","v":0},{"$f":"'Male Cabin Roster'!Q109","v":0},"M","Camper",{"$f":"'Male Cabin Roster'!$N$95","v":"Male Cabin Twelve"},{"$error":"#VALUE!"},{"$error":"#VALUE!"}]
[{"$f":"'Housing Request'!$E$5","v":0},{"$f":"'Male Cabin Roster'!Q110","v":0},"M","Camper",{"$f":"'Male Cabin Roster'!$N$95","v":"Male Cabin Twelve"},{"$error":"#VALUE!"},{"$error":"#VALUE!"}]
[{"$f":"'Housing Request'!$E$5","v":0},{"$f":"'Male Cabin Roster'!Q111","v":0},"M","Camper",{"$f":"'Male Cabin Roster'!$N$95","v":"Male Cabin Twelve"},{"$error":"#VALUE!"},{"$error":"#VALUE!"}]
[{"$f":"'Housing Request'!$E$5","v":0},{"$f":"'Male Cabin Roster'!Q112","v":0},"M","Camper",{"$f":"'Male Cabin Roster'!$N$95","v":"Male Cabin Twelve"},{"$error":"#VALUE!"},{"$error":"#VALUE!"}]
[{"$f":"'Housing Request'!$E$5","v":0},{"$f":"'Male Cabin Roster'!Q113","v":0},"M","Camper",{"$f":"'Male Cabin Roster'!$N$95","v":"Male Cabin Twelve"},{"$error":"#VALUE!"},{"$error":"#VALUE!"}]
[{"$f":"'Housing Request'!$E$5","v":0},{"$f":"'Male Cabin Roster'!Q114","v":0},"M","Camper",{"$f":"'Male Cabin Roster'!$N$95","v":"Male Cabin Twelve"},{"$error":"#VALUE!"},{"$error":"#VALUE!"}]
[{"$f":"'Housing Request'!$E$5","v":0},{"$f":"'Male Cabin Roster'!Q115","v":0},"M","Camper",{"$f":"'Male Cabin Roster'!$N$95","v":"Male Cabin Twelve"},{"$error":"#VALUE!"},{"$error":"#VALUE!"}]
[{"$f":"'Housing Request'!$E$5","v":0},{"$f":"'Male Cabin Roster'!Q116","v":0},"M","Camper",{"$f":"'Male Cabin Roster'!$N$95","v":"Male Cabin Twelve"},{"$error":"#VALUE!"},{"$error":"#VALUE!"}]
[{"$f":"'Housing Request'!$E$5","v":0},{"$f":"'Male Cabin Roster'!Q117","v":0},"M","Camper",{"$f":"'Male Cabin Roster'!$N$95","v":"Male Cabin Twelve"},{"$error":"#VALUE!"},{"$error":"#VALUE!"}]
[{"$f":"'Housing Request'!$E$5","v":0},{"$f":"'Male Cabin Roster'!Q118","v":0},"M","Camper",{"$f":"'Male Cabin Roster'!$N$95","v":"Male Cabin Twelve"},{"$error":"#VALUE!"},{"$error":"#VALUE!"}]
[{"$f":"'Housing Request'!$E$5","v":0},{"$f":"'Male Cabin Roster'!Q119","v":0},"M","Camper",{"$f":"'Male Cabin Roster'!$N$95","v":"Male Cabin Twelve"},{"$error":"#VALUE!"},{"$error":"#VALUE!"}]
[{"$f":"'Housing Request'!$E$5","v":0},{"$f":"'Male Cabin Roster'!Q120","v":0},"M","Camper",{"$f":"'Male Cabin Roster'!$N$95","v":"Male Cabin Twelve"},{"$error":"#VALUE!"},{"$error":"#VALUE!"}]